Workbook

Sheet Forside
A1: Indhold
A3: Noter
A4: Noter
A6: Figurer
A7: Figur 1.S | B7: Kubikmeterpriser for spildevand fordelt på selskaber - 2022
A8: Figur 1.V | B8: Kubikmeterpriser for drikkevand fordelt på selskaber - 2022
A9: Figur 2.S | B9: Kubikmeterpriser for spildevand fordelt på kommuner - 2022
A10: Figur 2.V | B10: Kubikmeterpriser for drikkevand fordelt på kommuner - 2022
A11: Figur 3.S | B11: Kubikmeterpriser for spildevand fordelt på regioner - 2022
A12: Figur 3.V | B12: Kubikmeterpriser for drikkevand fordelt på regioner - 2022
A13: Figur 4.S | B13: Pct. Vis udvikling i kubikmeterpriser for spildevand fordelt på selskaber (faste 2022 priser)
A14: Figur 4.V | B14: Pct. Vis udvikling i kubikmeterpriser for drikkevand fordelt på selskaber (faste 2022 priser)
A15: Figur 5.S | B15: Pct. Vis udvikling i kubikmeterpriser for spildevand fordelt på kommuner (faste 2022 priser)
A16: Figur 5.V | B16: Pct. Vis udvikling i kubikmeterpriser for drikkevand fordelt på kommuner (faste 2022 priser)
A17: Figur 6.S | B17: Pct. Vis udvikling i kubikmeterpriser for spildevand fordelt på regioner (faste 2022 priser)
A18: Figur 6.V | B18: Pct. Vis udvikling i kubikmeterpriser for drikkevand fordelt på regioner (faste 2022 priser)
A19: Figur 7 | B19: Udvikling i kubikmeterpriser for vand 2011 - 2022 (faste 2022 priser)
A21: Resultater
A22: Regionsoversigt
A23: Kommune oversigt
A25: Data fra selskabers takstblade samt beregninger
A26: Drikkevand 2011 | B26: Spildevand 2011
A27: Drikkevand 2012 | B27: Spildevand 2012
A28: Drikkevand 2013 | B28: Spildevand 2013
A29: Drikkevand 2014 | B29: Spildevand 2014
A30: Drikkevand 2015 | B30: Spildevand 2015
A31: Drikkevand 2016 | B31: Spildevand 2016
A32: Drikkevand 2017 | B32: Spildevand 2017
A33: Drikkevand 2018 | B33: Spildevand 2018
A34: Drikkevand 2019 | B34: Spildevand 2019
A35: Drikkevand 2020 | B35: Spildevand 2020
A36: Drikkevand 2021 | B36: Spildevand 2021
A37: Drikkevand 2022 | B37: Spildevand 2022
A40: Nøgletal
A41: Nøgletal

Sheet Noter
A1: Forside

Sheet V 2011
A1: Forside | F1: Takstblad | H1: Beregning | J1: Vægte | M1: Land | O1: Region | Q1: kommune
A2: ID | B2: Selskabsnavn | C2: Region | D2: Kommune | E2: Debiteret vandmængde | F2: Fast Årligt Bidrag | G2: Kubikmeterpris | H2: Samlede udgifter for en husholdning | I2: Takst inkl. Fast bidrag | J2: Land | K2: Region | L2: Kommune | M2: Vægtet takst | N2: Vægtet årlige udgifter | O2: Vægtet takst | P2: Vægtet årlige udgifter | Q2: Vægtet takst | R2: Vægtet årlige udgifter
A3: V002 | B3: Andelsselskabet Gram Vandværk | C3: Region Syddanmark | D3: Haderslev Kommune | E3: 262986 | F3: 637.5 | G3: 10.94 | H3: =F3+G3*Nøgletal!$C$9 -> 1429.009 | I3: =H3/Nøgletal!$C$9 -> 19.75133379 | J3: =IF(H3>0,E3/(SUMIFS($E$3:$E$163,$I$3:$I$163,">0")),"-") -> 0.001040301548 | K3: =IF(H3>0,E3/(SUMIFS($E$3:$E$163,$C$3:$C$163,C3,$I$3:$I$163,">0")),"-") -> 0.006023046456 | L3: =IF(H3>0,E3/(SUMIFS($E$3:$E$163,$D$3:$D$163,D3,$I$3:$I$163,">0")),"-") -> 0.1298364172 | M3: =IF(H3>0,J3*I3,"-") -> 0.02054734313 | N3: =IF(H3>0,J3*H3,"-") -> 1.486600275 | O3: =IF(H3>0,K3*I3,"-") -> 0.118963201 | P3: =IF(H3>0,K3*H3,"-") -> 8.606987593 | Q3: =IF(H3>0,L3*I3,"-") -> 2.564442414 | R3: =IF(H3>0,L3*H3,"-") -> 185.5374086
A4: V003 | B4: Andelsselskabet Gørlev Vandforsyning | C4: Region Sjælland | D4: Kalundborg Kommune | E4: 480605 | F4: 375 | G4: 8.75 | H4: =F4+G4*Nøgletal!$C$9 -> 1008.0625 | I4: =H4/Nøgletal!$C$9 -> 13.93313753 | J4: =IF(H4>0,E4/(SUMIFS($E$3:$E$163,$I$3:$I$163,">0")),"-") -> 0.001901143505 | K4: =IF(H4>0,E4/(SUMIFS($E$3:$E$163,$C$3:$C$163,C4,$I$3:$I$163,">0")),"-") -> 0.01634390344 | L4: =IF(H4>0,E4/(SUMIFS($E$3:$E$163,$D$3:$D$163,D4,$I$3:$I$163,">0")),"-") -> 0.1460686929 | M4: =IF(H4>0,J4*I4,"-") -> 0.02648889391 | N4: =IF(H4>0,J4*H4,"-") -> 1.916471474 | O4: =IF(H4>0,K4*I4,"-") -> 0.2277218543 | P4: =IF(H4>0,K4*H4,"-") -> 16.47567616 | Q4: =IF(H4>0,L4*I4,"-") -> 2.035195186 | R4: =IF(H4>0,L4*H4,"-") -> 147.2463717
A5: V006 | B5: Andelsselskabet Klinting Vandværk | C5: Region Syddanmark | D5: Varde Kommune | E5: 653720 | F5: 587.5 | G5: 8.44 | H5: =F5+G5*Nøgletal!$C$9 -> 1198.134 | I5: =H5/Nøgletal!$C$9 -> 16.56024879 | J5: 0.002585939663 | K5: 0.01497184614 | L5: 0.4076153207 | M5: 0.04282380418 | N5: 3.098302232 | O5: 0.2479374969 | P5: 17.9382779 | Q5: 6.750211121 | R5: 488.3777746
A6: V007 | B6: Andelsselskabet Marielyst Vandværk | C6: Region Sjælland | D6: Guldborgsund Kommune | E6: 220458 | F6: 532.5 | G6: 14.63 | H6: =F6+G6*Nøgletal!$C$9 -> 1590.9805 | I6: =H6/Nøgletal!$C$9 -> 21.99005529 | J6: 0.0008720722729 | K6: 0.007497101079 | L6: 0.1176709837 | M6: 0.0191769175 | N6: 1.387449981 | O6: 0.1648616672 | P6: 11.92774162 | Q6: 2.587591437 | R6: 187.2122405
A7: V008 | B7: Andelsselskabet Stenløse Vandværk | C7: Region Hovedstaden | D7: Egedal Kommune | E7: 269330 | F7: 0 | G7: 14 | H7: =F7+G7*Nøgletal!$C$9 -> 1012.9 | I7: =H7/Nøgletal!$C$9 -> 14 | J7: 0.001065396698 | K7: 0.002581010975 | L7: 0.300791598 | M7: 0.01491555377 | N7: 1.079140315 | O7: 0.03613415365 | P7: 2.614306017 | Q7: 4.211082372 | R7: 304.6718096
A8: V010 | B8: Andelsselskabet Vejgaard Vandværk | C8: Region Nordjylland | D8: Aalborg Kommune | E8: 419097 | F8: 687.5 | G8: 9.39 | H8: =F8+G8*Nøgletal!$C$9 -> 1366.8665 | I8: =H8/Nøgletal!$C$9 -> 18.8924188 | J8: 0.001657834478 | K8: 0.01655389059 | L8: 0.05586045848 | M8: 0.03132050326 | N8: 2.266038411 | O8: 0.3127430337 | P8: 22.62695849 | Q8: 1.055339176 | R8: 76.35378937
A9: V012 | B9: Andelsselskabet Ørbæk Vandværk | C9: Region Syddanmark | D9: Nyborg Kommune | E9: 257368 | F9: 1250 | G9: 10.81 | H9: =F9+G9*Nøgletal!$C$9 -> 2032.1035 | I9: =H9/Nøgletal!$C$9 -> 28.08712509 | J9: 0.001018078259 | K9: 0.005894380006 | L9: 0.174901682 | M9: 0.0285948914 | N9: 2.068840393 | O9: 0.1655561885 | P9: 11.97799024 | Q9: 4.912485421 | R9: 355.4183202
A10: V013 | B10: Andelsvandværket Helle Vest a.m.b.a. | C10: Region Syddanmark | D10: Varde Kommune | E10: 510727 | F10: 437.5 | G10: 7.75 | H10: =F10+G10*Nøgletal!$C$9 -> 998.2125 | I10: =H10/Nøgletal!$C$9 -> 13.79699378 | J10: 0.002020297997 | K10: 0.01169694374 | L10: 0.3184546134 | M10: 0.02787403889 | N10: 2.016686714 | O10: 0.1613826601 | P10: 11.67603546 | Q10: 4.393716321 | R10: 317.8853758
A11: V014 | B11: AquaDjurs A/S | C11: Region Midtjylland | D11: Norddjurs Kommune | E11: 214041 | F11: 625 | G11: 14.75 | H11: =F11+G11*Nøgletal!$C$9 -> 1692.1625 | I11: =H11/Nøgletal!$C$9 -> 23.38856254 | J11: 0.000846688355 | K11: 0.004275596077 | L11: 0.1204689962 | M11: 0.01980282355 | N11: 1.432734284 | O11: 0.1000000462 | P11: 7.235003346 | Q11: 2.817596651 | R11: 203.8531177
A12: V015 | B12: Arwos Vand A/S | C12: Region Syddanmark | D12: Aabenraa Kommune | E12: 1474858 | F12: 562.5 | G12: 13.94 | H12: =F12+G12*Nøgletal!$C$9 -> 1571.059 | I12: =H12/Nøgletal!$C$9 -> 21.71470629 | J12: 0.005834139692 | K12: 0.03377798913 | L12: 0.485418756 | M12: 0.1266866299 | N12: 9.165777671 | O12: 0.733479113 | P12: 53.06721383 | Q12: 10.54072571 | R12: 762.6215053
A13: V017 | B13: Assens Vandværk A/S | C13: Region Syddanmark | D13: Assens Kommune | E13: 662979 | F13: 548.85 | G13: 13.14 | H13: =F13+G13*Nøgletal!$C$9 -> 1499.529 | I13: =H13/Nøgletal!$C$9 -> 20.72604008 | J13: 0.002622565765 | K13: 0.01518390073 | L13: 0.6678435726 | M13: 0.05435540317 | N13: 3.932613419 | O13: 0.3147021351 | P13: 22.76869947 | Q13: 13.84175265 | R13: 1001.450805
A14: V018 | B14: Aulum Vandværk a.m.b.a. | C14: Region Midtjylland | D14: Herning Kommune | E14: 304784 | F14: 343.75 | G14: 7.89 | H14: =F14+G14*Nøgletal!$C$9 -> 914.5915 | I14: =H14/Nøgletal!$C$9 -> 12.6412094 | J14: 0.001205643141 | K14: 0.006088241387 | L14: 0.07665402697 | M14: 0.01524078741 | N14: 1.102670969 | O14: 0.07696273424 | P14: 5.568253822 | Q14: 0.9689996062 | R14: 70.10712151
A15: V019 | B15: Baunehøj Vandværk A.m.b.A. | C15: Region Hovedstaden | D15: Gribskov Kommune | E15: 285277 | F15: 800 | G15: 17.25 | H15: =F15+G15*Nøgletal!$C$9 -> 2048.0375 | I15: =H15/Nøgletal!$C$9 -> 28.30736006 | J15: 0.001128478721 | K15: 0.002733832354 | L15: 0.1987842038 | M15: 0.03194425346 | N15: 2.311166738 | O15: 0.07738757679 | P15: 5.59899118 | Q15: 5.627056032 | R15: 407.1175039
A16: V020 | B16: Billund Drikkevand A/S | C16: Region Syddanmark | D16: Billund Kommune | E16: 680288 | F16: 562.5 | G16: 10.63 | H16: =F16+G16*Nøgletal!$C$9 -> 1331.5805 | I16: =H16/Nøgletal!$C$9 -> 18.40470629 | J16: 0.002691035492 | K16: 0.01558032073 | L16: 0.3933203169 | M16: 0.04952771784 | N16: 3.583330385 | O16: 0.2867512269 | P16: 20.74645127 | Q16: 7.238944909 | R16: 523.7376642
A17: V021 | B17: Birkerød Vandforsyning a.m.b.a. | C17: Region Hovedstaden | D17: Rudersdal Kommune | E17: 1160978 | F17: 425 | G17: 13.75 | H17: =F17+G17*Nøgletal!$C$9 -> 1419.8125 | I17: =H17/Nøgletal!$C$9 -> 19.62422253 | J17: 0.004592515233 | K17: 0.01112574522 | L17: 0.4067474408 | M17: 0.09012454091 | N17: 6.520510534 | O17: 0.2183341 | P17: 15.79647213 | Q17: 7.982102291 | R17: 577.5051008
A18: V022 | B18: Bjerringbro Fællesvandværk | C18: Region Midtjylland | D18: Viborg Kommune | E18: 508060 | F18: 275 | G18: 13.75 | H18: =F18+G18*Nøgletal!$C$9 -> 1269.8125 | I18: =H18/Nøgletal!$C$9 -> 17.55096752 | J18: 0.002009748065 | K18: 0.0101488002 | L18: 0.1802423121 | M18: 0.03527302302 | N18: 2.552003215 | O18: 0.1781212626 | P18: 12.88707335 | Q18: 3.163426966 | R18: 228.873941
A19: V024 | B19: Bogense Forsyningsselskab a.m.b.a. | C19: Region Syddanmark | D19: Nordfyns Kommune | E19: 238641 | F19: 1125 | G19: 13.13 | H19: =F19+G19*Nøgletal!$C$9 -> 2074.9555 | I19: =H19/Nøgletal!$C$9 -> 28.67941258 | J19: 0.0009439993073 | K19: 0.005465484206 | L19: 0.4456581011 | M19: 0.02707334561 | N19: 1.958756555 | O19: 0.1567468765 | P19: 11.34063651 | Q19: 12.78121255 | R19: 924.7207281
A20: V025 | B20: Bolderslev Vandværk | C20: Region Syddanmark | D20: Aabenraa Kommune | E20: 273098 | F20: 668.75 | G20: 9.69 | H20: =F20+G20*Nøgletal!$C$9 -> 1369.8215 | I20: =H20/Nøgletal!$C$9 -> 18.93326192 | J20: 0.001080301888 | K20: 0.006254636905 | L20: 0.08988451187 | M20: 0.0204536386 | N20: 1.479820752 | O20: 0.1184206787 | P20: 8.567736107 | Q20: 1.701807006 | R20: 123.1257369
A21: V026 | B21: Bording Vandværk a.m.b.a. | C21: Region Midtjylland | D21: Ikast-Brande Kommune | E21: 273791 | F21: 500 | G21: 8.75 | H21: =F21+G21*Nøgletal!$C$9 -> 1133.0625 | I21: =H21/Nøgletal!$C$9 -> 15.66085003 | J21: 0.001083043209 | K21: 0.005469137807 | L21: 0.1461535998 | M21: 0.01696137727 | N21: 1.227155646 | O21: 0.08565134702 | P21: 6.196874957 | Q21: 2.288889608 | R21: 165.6011631
A22: V027 | B22: Bornholms Vand A/S | C22: Region Hovedstaden | D22: Bornholms Regionskommune | E22: 1297097 | F22: 1084.25 | G22: 15.13 | H22: =F22+G22*Nøgletal!$C$9 -> 2178.9055 | I22: =H22/Nøgletal!$C$9 -> 30.1161783 | J22: 0.005130965213 | K22: 0.01243018451 | L22: 0.5191567316 | M22: 0.1545250632 | N22: 11.17988832 | O22: 0.3743496529 | P22: 27.08419739 | Q22: 15.63501669 | R22: 1131.193458
A23: V028 | B23: Borup Vandværk | C23: Region Sjælland | D23: Køge Kommune | E23: 223427 | F23: 500 | G23: 11.25 | H23: =F23+G23*Nøgletal!$C$9 -> 1313.9375 | I23: =H23/Nøgletal!$C$9 -> 18.16085003 | J23: 0.0008838168346 | K23: 0.007598067671 | L23: 0.1101629021 | M23: 0.01605086499 | N23: 1.161280082 | O23: 0.1379873675 | P23: 9.983386041 | Q23: 2.000651944 | R23: 144.7471681
A24: V030 | B24: Brande Vandværk a.m.b.a. | C24: Region Midtjylland | D24: Ikast-Brande Kommune | E24: 674707 | F24: 650 | G24: 10.93 | H24: =F24+G24*Nøgletal!$C$9 -> 1440.7855 | I24: =H24/Nøgletal!$C$9 -> 19.91410504 | J24: 0.002668958564 | K24: 0.01347767298 | L24: 0.3601683651 | M24: 0.0531499212 | N24: 3.845396799 | O24: 0.2683957955 | P24: 19.4184358 | Q24: 7.172430656 | R24: 518.925358
A25: V035 | B25: Brønderslev Vand A/S | C25: Region Nordjylland | D25: Brønderslev Kommune | E25: 934302 | F25: 500 | G25: 24.38 | H25: =F25+G25*Nøgletal!$C$9 -> 2263.893 | I25: =H25/Nøgletal!$C$9 -> 31.29085003 | J25: 0.003695846233 | K25: 0.03690394606 | L25: 0.7136532583 | M25: 0.1156461702 | N25: 8.367000415 | O25: 1.154755842 | P25: 83.54658517 | Q25: 22.33081708 | R25: 1615.634616
A26: V041 | B26: Egedal Vandforsyning A/S | C26: Region Hovedstaden | D26: Egedal Kommune | E26: 626074 | F26: 161.25 | G26: 14.43 | H26: =F26+G26*Nøgletal!$C$9 -> 1205.2605 | I26: =H26/Nøgletal!$C$9 -> 16.65874914 | J26: 0.002476579558 | K26: 0.005999717318 | L26: 0.699208402 | M26: 0.04125671757 | N26: 2.984923516 | O26: 0.09994778569 | P26: 7.231222295 | Q26: 11.64793736 | R26: 842.7282682
A27: V043 | B27: Energi Viborg Vand A/S | C27: Region Midtjylland | D27: Viborg Kommune | E27: 2310701 | F27: 550 | G27: 15.13 | H27: =F27+G27*Nøgletal!$C$9 -> 1644.6555 | I27: =H27/Nøgletal!$C$9 -> 22.73193504 | J27: 0.009140508728 | K27: 0.04615762461 | L27: 0.8197576879 | M27: 0.2077814506 | N27: 15.03298795 | O27: 1.049252124 | P27: 75.91339119 | Q27: 18.63467851 | R27: 1348.21899
A28: V044 | B28: Esbjerg Vand A/S | C28: Region Syddanmark | D28: Esbjerg Kommune | E28: 6943576 | F28: 1090 | G28: 13.73 | H28: =F28+G28*Nøgletal!$C$9 -> 2083.3655 | I28: =H28/Nøgletal!$C$9 -> 28.79565308 | J28: 0.02746691027 | K28: 0.1590255026 | L28: 1 | M28: 0.7909276192 | N28: 57.22361325 | O28: 4.579243202 | P28: 331.3082457 | Q28: 28.79565308 | R28: 2083.3655
A29: V045 | B29: Fanø Vand A/S | C29: Region Syddanmark | D29: Fanø Kommune | E29: 225208 | F29: 640.63 | G29: 8.13 | H29: =F29+G29*Nøgletal!$C$9 -> 1228.8355 | I29: =H29/Nøgletal!$C$9 -> 16.98459572 | J29: 0.0008908619893 | K29: 0.005157834433 | L29: 1 | M29: 0.01513093073 | N29: 1.094722838 | O29: 0.08760373262 | P29: 6.338130055 | Q29: 16.98459572 | R29: 1228.8355
A30: V047 | B30: Faxe Vandforsyning A/S | C30: Region Sjælland | D30: Faxe Kommune | E30: 883118 | F30: 122.5 | G30: 19.04 | H30: =F30+G30*Nøgletal!$C$9 -> 1500.044 | I30: =H30/Nøgletal!$C$9 -> 20.73315826 | J30: 0.00349337616 | K30: 0.03003213723 | L30: 1 | M30: 0.07242872079 | N30: 5.240217949 | O30: 0.6226610541 | P30: 45.04952727 | Q30: 20.73315826 | R30: 1500.044
A31: V050 | B31: FFV Vand A/S | C31: Region Syddanmark | D31: Faaborg-Midtfyn Kommune | E31: 704822 | F31: 812.5 | G31: 15 | H31: =F31+G31*Nøgletal!$C$9 -> 1897.75 | I31: =H31/Nøgletal!$C$9 -> 26.23013131 | J31: 0.002788085366 | K31: 0.01614221156 | L31: 0.3097115352 | M31: 0.07313184523 | N31: 5.291089003 | O31: 0.4234123288 | P31: 30.63388199 | Q31: 8.123774236 | R31: 587.7550659
A32: V051 | B32: Fjerritslev Vand a.m.b.a. | C32: Region Nordjylland | D32: Jammerbugt Kommune | E32: 227260 | F32: 375 | G32: 8.75 | H32: =F32+G32*Nøgletal!$C$9 -> 1008.0625 | I32: =H32/Nøgletal!$C$9 -> 13.93313753 | J32: 0.0008989791468 | K32: 0.00897653091 | L32: 0.1683896361 | M32: 0.01252560009 | N32: 0.9062271662 | O32: 0.1250712397 | P32: 9.048904191 | Q32: 2.346195958 | R32: 169.7472775
A33: V052 | B33: Fonden Djurs Vand | C33: Region Midtjylland | D33: Syddjurs Kommune | E33: 357572 | F33: 812.5 | G33: 14.54 | H33: =F33+G33*Nøgletal!$C$9 -> 1864.469 | I33: =H33/Nøgletal!$C$9 -> 25.77013131 | J33: 0.001414458204 | K33: 0.007142713033 | L33: 0.626250278 | M33: 0.03645077365 | N33: 2.637213473 | O33: 0.1840686527 | P33: 13.31736703 | Q33: 16.1385519 | R33: 1167.62423
A34: V053 | B34: Forsyning Helsingør Vand A/S | C34: Region Hovedstaden | D34: Helsingør Kommune | E34: 2894266 | F34: 500.4 | G34: 20.65 | H34: =F34+G34*Nøgletal!$C$9 -> 1994.4275 | I34: =H34/Nøgletal!$C$9 -> 27.56637871 | J34: 0.01144893417 | K34: 0.02773598304 | L34: 1 | M34: 0.3156056552 | N34: 22.83406915 | O34: 0.7645806124 | P34: 55.31740731 | Q34: 27.56637871 | R34: 1994.4275
A35: V054 | B35: Fredensborg Vand A/S | C35: Region Hovedstaden | D35: Fredensborg Kommune | E35: 1756308 | F35: 254.01 | G35: 19.88 | H35: =F35+G35*Nøgletal!$C$9 -> 1692.328 | I35: =H35/Nøgletal!$C$9 -> 23.39085003 | J35: 0.006947479835 | K35: 0.01683084032 | L35: 1 | M35: 0.1625074589 | N35: 11.75741465 | O35: 0.3936876619 | P35: 28.48330234 | Q35: 23.39085003 | R35: 1692.328
A36: V055 | B36: Frederiksberg Vand A/S | C36: Region Hovedstaden | D36: Frederiksberg Kommune | E36: 4987164 | F36: 360 | G36: 19.28 | H36: =F36+G36*Nøgletal!$C$9 -> 1754.908 | I36: =H36/Nøgletal!$C$9 -> 24.25581202 | J36: 0.01972787309 | K36: 0.04779239231 | L36: 1 | M36: 0.4785155812 | N36: 34.6206023 | O36: 1.159243284 | P36: 83.8712516 | Q36: 24.25581202 | R36: 1754.908
A37: V056 | B37: Frederiksberg Vandværk | C37: Region Sjælland | D37: Sorø Kommune | E37: 209209 | F37: 625 | G37: 16.73 | H37: =F37+G37*Nøgletal!$C$9 -> 1835.4155 | I37: =H37/Nøgletal!$C$9 -> 25.36856254 | J37: 0.0008275742688 | K37: 0.007114557057 | L37: 0.2053809053 | M37: 0.0209943696 | N37: 1.51894264 | O37: 0.1804860857 | P37: 13.0581683 | Q37: 5.210218341 | R37: 376.959297
A38: V057 | B38: Frederikshavn Vand A/S | C38: Region Nordjylland | D38: Frederikshavn Kommune | E38: 4338355 | F38: 1312.5 | G38: 13.96 | H38: =F38+G38*Nøgletal!$C$9 -> 2322.506 | I38: =H38/Nøgletal!$C$9 -> 32.10098134 | J38: 0.01716136001 | K38: 0.1713604583 | L38: 1 | M38: 0.5508964975 | N38: 39.8573616 | O38: 5.500838875 | P38: 397.9856926 | Q38: 32.10098134 | R38: 2322.506
A39: V058 | B39: Frederikssund Vand A/S | C39: Region Hovedstaden | D39: Frederikssund Kommune | E39: 1327564 | F39: 762.5 | G39: 15 | H39: =F39+G39*Nøgletal!$C$9 -> 1847.75 | I39: =H39/Nøgletal!$C$9 -> 25.5390463 | J39: 0.005251484432 | K39: 0.01272215221 | L39: 0.8044945291 | M39: 0.1341179041 | N39: 9.703430359 | O39: 0.3249116343 | P39: 23.50735674 | Q39: 20.54602303 | R39: 1486.504766
A40: V059 | B40: Furesø Vandforsyning a.m.b.a. | C40: Region Hovedstaden | D40: Furesø Kommune | E40: 1687507 | F40: 375 | G40: 12.5 | H40: =F40+G40*Nøgletal!$C$9 -> 1279.375 | I40: =H40/Nøgletal!$C$9 -> 17.68313753 | J40: 0.006675321672 | K40: 0.01617151483 | L40: 1 | M40: 0.1180406311 | N40: 8.540239664 | O40: 0.2859631207 | P40: 20.68943178 | Q40: 17.68313753 | R40: 1279.375
A41: V060 | B41: Galten Vandværk | C41: Region Midtjylland | D41: Skanderborg Kommune | E41: 272721 | F41: 843.75 | G41: 10.94 | H41: =F41+G41*Nøgletal!$C$9 -> 1635.259 | I41: =H41/Nøgletal!$C$9 -> 22.60205943 | J41: 0.001078810578 | K41: 0.005447763922 | L41: 0.2161327033 | M41: 0.0243833408 | N41: 1.764134707 | O41: 0.1231306839 | P41: 8.908504983 | Q41: 4.885044206 | R41: 353.4329483
A42: V061 | B42: Gentofte Vand A/S | C42: Region Hovedstaden | D42: Gentofte Kommune | E42: 3681225 | F42: 0 | G42: 20.64 | H42: =F42+G42*Nøgletal!$C$9 -> 1493.304 | I42: =H42/Nøgletal!$C$9 -> 20.64 | J42: 0.01456193131 | K42: 0.0352774742 | L42: 1 | M42: 0.3005582623 | N42: 21.74539027 | O42: 0.7281270676 | P42: 52.67999334 | Q42: 20.64 | R42: 1493.304
A43: V062 | B43: Gilleleje Vandværk a.m.b.a. | C43: Region Hovedstaden | D43: Gribskov Kommune | E43: 419634 | F43: 887.5 | G43: 14.38 | H43: =F43+G43*Nøgletal!$C$9 -> 1927.893 | I43: =H43/Nøgletal!$C$9 -> 26.64675881 | J43: 0.001659958705 | K43: 0.004021386253 | L43: 0.292405664 | M43: 0.04423251925 | N43: 3.200222768 | O43: 0.1071569096 | P43: 7.752802408 | Q43: 7.791663203 | R43: 563.7268327
A44: V063 | B44: Give Vandværk a.m.b.a. | C44: Region Syddanmark | D44: Vejle Kommune | E44: 279193 | F44: 691.25 | G44: 12.5 | H44: =F44+G44*Nøgletal!$C$9 -> 1595.625 | I44: =H44/Nøgletal!$C$9 -> 22.05425017 | J44: 0.001104412061 | K44: 0.006394227865 | L44: 1 | M44: 0.02435697988 | N44: 1.762227494 | O44: 0.141019901 | P44: 10.20278984 | Q44: 22.05425017 | R44: 1595.625
A45: V065 | B45: Gladsaxe Vand A/S | C45: Region Hovedstaden | D45: Gladsaxe Kommune | E45: 3314957 | F45: 0 | G45: 19.83 | H45: =F45+G45*Nøgletal!$C$9 -> 1434.7005 | I45: =H45/Nøgletal!$C$9 -> 19.83 | J45: 0.01311307408 | K45: 0.03176749861 | L45: 1 | M45: 0.260032259 | N45: 18.81333394 | O45: 0.6299494974 | P45: 45.57684613 | Q45: 19.83 | R45: 1434.7005
A46: V067 | B46: Glostrup Vand a/s | C46: Region Hovedstaden | D46: Glostrup Kommune | E46: 1252983 | F46: 212.5 | G46: 20 | H46: =F46+G46*Nøgletal!$C$9 -> 1659.5 | I46: =H46/Nøgletal!$C$9 -> 22.93711126 | J46: 0.00495646215 | K46: 0.01200743651 | L46: 1 | M46: 0.1136869238 | N46: 8.225248939 | O46: 0.2754159072 | P46: 19.92634089 | Q46: 22.93711126 | R46: 1659.5
A47: V068 | B47: Greve Vandværk A.m.b.a. | C47: Region Sjælland | D47: Greve Kommune | E47: 1905070 | F47: 500 | G47: 16.25 | H47: =F47+G47*Nøgletal!$C$9 -> 1675.6875 | I47: =H47/Nøgletal!$C$9 -> 23.16085003 | J47: 0.007535942107 | K47: 0.06478559341 | L47: 1 | M47: 0.174538825 | N47: 12.62788399 | O47: 1.500489413 | P47: 108.5604091 | Q47: 23.16085003 | R47: 1675.6875
A48: V069 | B48: Grindsted Vandværk A.m.b.a. | C48: Region Syddanmark | D48: Billund Kommune | E48: 1049315 | F48: 656.25 | G48: 8.89 | H48: =F48+G48*Nøgletal!$C$9 -> 1299.4415 | I48: =H48/Nøgletal!$C$9 -> 17.96049067 | J48: 0.00415080658 | K48: 0.02403197506 | L48: 0.6066796831 | M48: 0.07455052286 | N48: 5.393730329 | O48: 0.4316260638 | P48: 31.22814571 | Q48: 10.89626479 | R48: 788.3447575
A49: V070 | B49: Guldborgsund Vand A/S | C49: Region Sjælland | D49: Guldborgsund Kommune | E49: 1443095 | F49: 862 | G49: 16.33 | H49: =F49+G49*Nøgletal!$C$9 -> 2043.4755 | I49: =H49/Nøgletal!$C$9 -> 28.24430546 | J49: 0.005708493848 | K49: 0.04907523919 | L49: 0.7702619465 | M49: 0.161232444 | N49: 11.66516732 | O49: 1.386096046 | P49: 100.2840489 | Q49: 21.7555137 | R49: 1574.011416
A50: V071 | B50: Haderslev Vand A/S | C50: Region Syddanmark | D50: Haderslev Kommune | E50: 1762532 | F50: 805 | G50: 16.5 | H50: =F50+G50*Nøgletal!$C$9 -> 1998.775 | I50: =H50/Nøgletal!$C$9 -> 27.62646856 | J50: 0.006972100297 | K50: 0.04036645341 | L50: 0.8701635828 | M50: 0.1926145096 | N50: 13.93565977 | O50: 1.115182556 | P50: 80.68345791 | Q50: 24.03954686 | R50: 1739.261215
A51: V072 | B51: Hadsten Vandværk a.m.b.a. | C51: Region Midtjylland | D51: Favrskov Kommune | E51: 343712 | F51: 618.75 | G51: 13.03 | H51: =F51+G51*Nøgletal!$C$9 -> 1561.4705 | I51: =H51/Nøgletal!$C$9 -> 21.58217692 | J51: 0.00135963179 | K51: 0.006865851303 | L51: 1 | M51: 0.02934381383 | N51: 2.12302493 | O51: 0.1481800175 | P51: 10.72082427 | Q51: 21.58217692 | R51: 1561.4705
A52: V073 | B52: Hadsund Vandværk a.m.b.a | C52: Region Nordjylland | D52: Mariagerfjord Kommune | E52: 359411 | F52: 412.5 | G52: 10.25 | H52: =F52+G52*Nøgletal!$C$9 -> 1154.0875 | I52: =H52/Nøgletal!$C$9 -> 15.95145128 | J52: 0.001421732791 | K52: 0.01419635638 | L52: 0.192005261 | M52: 0.02267870135 | N52: 1.640804043 | O52: 0.2264524871 | P52: 16.38383744 | Q52: 3.062762566 | R52: 221.5908717
A53: V074 | B53: Halsnaes Forsyning A/S | C53: Region Hovedstaden | D53: Halsnæs Kommune | E53: 651463 | F53: 525 | G53: 19.13 | H53: =F53+G53*Nøgletal!$C$9 -> 1909.0555 | I53: =H53/Nøgletal!$C$9 -> 26.38639254 | J53: 0.002577011581 | K53: 0.00624302214 | L53: 1 | M53: 0.06799803915 | N53: 4.919658132 | O53: 0.1647308328 | P53: 11.91827575 | Q53: 26.38639254 | R53: 1909.0555
A54: V079 | B54: Helsinge Vandværk | C54: Region Hovedstaden | D54: Gribskov Kommune | E54: 451037 | F54: 762.5 | G54: 16.25 | H54: =F54+G54*Nøgletal!$C$9 -> 1938.1875 | I54: =H54/Nøgletal!$C$9 -> 26.7890463 | J54: 0.001784180487 | K54: 0.004322323719 | L54: 0.3142876255 | M54: 0.04779649367 | N54: 3.458076317 | O54: 0.1157909302 | P54: 8.377473803 | Q54: 8.419465753 | R54: 609.1483472
A55: V080 | B55: Herning Vand A/S | C55: Region Midtjylland | D55: Herning Kommune | E55: 3167718 | F55: 753.75 | G55: 13.69 | H55: =F55+G55*Nøgletal!$C$9 -> 1744.2215 | I55: =H55/Nøgletal!$C$9 -> 24.10810643 | J55: 0.01253063639 | K55: 0.0632770481 | L55: 0.7966899215 | M55: 0.3020899156 | N55: 21.85620539 | O55: 1.52548981 | P55: 110.3691878 | Q55: 19.20668542 | R55: 1389.60369
A56: V081 | B56: Hillerød Vand A/S | C56: Region Hovedstaden | D56: Hillerød Kommune | E56: 1460025 | F56: 325 | G56: 16.25 | H56: =F56+G56*Nøgletal!$C$9 -> 1500.6875 | I56: =H56/Nøgletal!$C$9 -> 20.74205252 | J56: 0.005775464353 | K56: 0.01399153659 | L56: 0.847013921 | M56: 0.1197949849 | N56: 8.667167161 | O56: 0.2902131868 | P56: 20.99692406 | Q56: 17.56880724 | R56: 1271.103204
A57: V085 | B57: Hjørring Vandselskab A/S | C57: Region Nordjylland | D57: Hjørring Kommune | E57: 3522843 | F57: 750 | G57: 13.63 | H57: =F57+G57*Nøgletal!$C$9 -> 1736.1305 | I57: =H57/Nøgletal!$C$9 -> 23.99627505 | J57: 0.01393541492 | K57: 0.1391485923 | L57: 1 | M57: 0.3343980494 | N57: 24.19369887 | O57: 3.339047893 | P57: 241.5801151 | Q57: 23.99627505 | R57: 1736.1305
A58: V086 | B58: HOFOR Vand Albertslund A/S | C58: Region Hovedstaden | D58: Albertslund Kommune | E58: 1372721 | F58: 75 | G58: 22.69 | H58: =F58+G58*Nøgletal!$C$9 -> 1716.6215 | I58: =H58/Nøgletal!$C$9 -> 23.72662751 | J58: 0.005430113321 | K58: 0.01315489536 | L58: 1 | M58: 0.1288382761 | N58: 9.321449275 | O58: 0.312121302 | P58: 22.5819762 | Q58: 23.72662751 | R58: 1716.6215
A59: V087 | B59: HOFOR Vand Brøndby A/S | C59: Region Hovedstaden | D59: Brøndby Kommune | E59: 1939607 | F59: 125 | G59: 23.25 | H59: =F59+G59*Nøgletal!$C$9 -> 1807.1375 | I59: =H59/Nøgletal!$C$9 -> 24.97771251 | J59: 0.007672561146 | K59: 0.01858740933 | L59: 1 | M59: 0.1916430265 | N59: 13.86537297 | O59: 0.4642709665 | P59: 33.59000443 | Q59: 24.97771251 | R59: 1807.1375
A60: V088 | B60: HOFOR Vand Dragør A/S | C60: Region Hovedstaden | D60: Dragør Kommune | E60: 655554 | F60: 441.15 | G60: 16.96 | H60: =F60+G60*Nøgletal!$C$9 -> 1668.206 | I60: =H60/Nøgletal!$C$9 -> 23.05744299 | J60: 0.002593194472 | K60: 0.006282226521 | L60: 1 | M60: 0.05979243368 | N60: 4.325982577 | O60: 0.1448520798 | P60: 10.48004798 | Q60: 23.05744299 | R60: 1668.206
A61: V089 | B61: HOFOR Vand Herlev A/S | C61: Region Hovedstaden | D61: Herlev Kommune | E61: 1491020 | F61: 0 | G61: 23.75 | H61: =F61+G61*Nøgletal!$C$9 -> 1718.3125 | I61: =H61/Nøgletal!$C$9 -> 23.75 | J61: 0.005898072197 | K61: 0.01428856416 | L61: 1 | M61: 0.1400792147 | N61: 10.13473118 | O61: 0.3393533987 | P61: 24.5522184 | Q61: 23.75 | R61: 1718.3125
A62: V090 | B62: HOFOR Vand Hvidovre A/S | C62: Region Hovedstaden | D62: Hvidovre Kommune | E62: 2848396 | F62: 0 | G62: 19.78 | H62: =F62+G62*Nøgletal!$C$9 -> 1431.083 | I62: =H62/Nøgletal!$C$9 -> 19.78 | J62: 0.01126748484 | K62: 0.02729640715 | L62: 1 | M62: 0.2228708502 | N62: 16.12470601 | O62: 0.5399229334 | P62: 39.06342423 | Q62: 19.78 | R62: 1431.083
A63: V091 | B63: HOFOR Vand København A/S | C63: Region Hovedstaden | D63: Københavns Kommune | E63: 49442414 | F63: 462.5 | G63: 17.76 | H63: =F63+G63*Nøgletal!$C$9 -> 1747.436 | I63: =H63/Nøgletal!$C$9 -> 24.15253628 | J63: 0.1955808288 | K63: 0.4738106159 | L63: 1 | M63: 4.723773064 | N63: 341.7649812 | O63: 11.44372809 | P63: 827.9537274 | Q63: 24.15253628 | R63: 1747.436
A64: V092 | B64: HOFOR Vand Rødovre A/S | C64: Region Hovedstaden | D64: Rødovre Kommune | E64: 1729270 | F64: 0 | G64: 24.52 | H64: =F64+G64*Nøgletal!$C$9 -> 1774.022 | I64: =H64/Nøgletal!$C$9 -> 24.52 | J64: 0.006840524814 | K64: 0.016571733 | L64: 1 | M64: 0.1677296684 | N64: 12.13524151 | O64: 0.4063388932 | P64: 29.39861892 | Q64: 24.52 | R64: 1774.022
A65: V093 | B65: HOFOR Vand Vallensbæk A/S | C65: Region Hovedstaden | D65: Vallensbæk Kommune | E65: 418773 | F65: 125 | G65: 28.16 | H65: =F65+G65*Nøgletal!$C$9 -> 2162.376 | I65: =H65/Nøgletal!$C$9 -> 29.88771251 | J65: 0.001656552822 | K65: 0.004013135221 | L65: 1 | M65: 0.04951057449 | N65: 3.582090064 | O65: 0.1199434318 | P65: 8.677907287 | Q65: 29.88771251 | R65: 2162.376
A66: V094 | B66: Holbæk Vand A/S | C66: Region Sjælland | D66: Holbæk Kommune | E66: 1724589 | F66: 0 | G66: 17.29 | H66: =F66+G66*Nøgletal!$C$9 -> 1250.9315 | I66: =H66/Nøgletal!$C$9 -> 17.29 | J66: 0.006822008043 | K66: 0.05864798761 | L66: 0.6505104235 | M66: 0.1179525191 | N66: 8.533864754 | O66: 1.014023706 | P66: 73.36461511 | Q66: 11.24732522 | R66: 813.7439798
A67: V097 | B67: Horsens Vand A/S | C67: Region Midtjylland | D67: Horsens Kommune | E67: 3912644 | F67: 930 | G67: 12.94 | H67: =F67+G67*Nøgletal!$C$9 -> 1866.209 | I67: =H67/Nøgletal!$C$9 -> 25.79418106 | J67: 0.01547736234 | K67: 0.0781573873 | L67: 1 | M67: 0.3992258865 | N67: 28.88399289 | O67: 2.0160058 | P67: 145.8580196 | Q67: 25.79418106 | R67: 1866.209
A68: V098 | B68: HTK Vand A/S | C68: Region Hovedstaden | D68: Høje-Taastrup Kommune | E68: 2182161 | F68: 0 | G68: 22.25 | H68: =F68+G68*Nøgletal!$C$9 -> 1609.7875 | I68: =H68/Nøgletal!$C$9 -> 22.25 | J68: =IF(H68>0,E68/(SUMIFS($E$3:$E$163,$I$3:$I$163,">0")),"-") -> 0.008632039224 | K68: =IF(H68>0,E68/(SUMIFS($E$3:$E$163,$C$3:$C$163,C68,$I$3:$I$163,">0")),"-") -> 0.02091182375 | L68: =IF(H68>0,E68/(SUMIFS($E$3:$E$163,$D$3:$D$163,D68,$I$3:$I$163,">0")),"-") -> 1 | M68: =IF(H68>0,J68*I68,"-") -> 0.1920628727 | N68: =IF(H68>0,J68*H68,"-") -> 13.89574884 | O68: =IF(H68>0,K68*I68,"-") -> 0.4652880785 | P68: =IF(H68>0,K68*H68,"-") -> 33.66359248 | Q68: =IF(H68>0,L68*I68,"-") -> 22.25 | R68: =IF(H68>0,L68*H68,"-") -> 1609.7875
A69: V101 | B69: Høng Vandværk a.m.b.a. | C69: Region Sjælland | D69: Kalundborg Kommune | E69: 243582 | F69: 725 | G69: 12.5 | H69: =F69+G69*Nøgletal!$C$9 -> 1629.375 | I69: =H69/Nøgletal!$C$9 -> 22.52073255 | J69: 0.0009635445681 | K69: 0.008283477465 | L69: 0.07403107407 | M69: 0.02169972952 | N69: 1.569975431 | O69: 0.1865499806 | P69: 13.49689109 | Q69: 1.66723402 | R69: 120.6243813
A70: V102 | B70: Hørsholm Vand ApS | C70: Region Hovedstaden | D70: Hørsholm Kommune | E70: 1257705 | F70: 0 | G70: 22.5 | H70: =F70+G70*Nøgletal!$C$9 -> 1627.875 | I70: =H70/Nøgletal!$C$9 -> 22.5 | J70: 0.004975141106 | K70: 0.01205268781 | L70: 1 | M70: 0.1119406749 | N70: 8.098907828 | O70: 0.2711854758 | P70: 19.62026917 | Q70: 22.5 | R70: 1627.875
A71: V103 | B71: Haarby Vandværk | C71: Region Syddanmark | D71: Assens Kommune | E71: 329737 | F71: 750 | G71: 11.88 | H71: =F71+G71*Nøgletal!$C$9 -> 1609.518 | I71: =H71/Nøgletal!$C$9 -> 22.24627505 | J71: 0.001304350466 | K71: 0.007551813668 | L71: 0.3321564274 | M71: 0.02901693923 | N71: 2.099375554 | O71: 0.167999724 | P71: 12.15478003 | Q71: 7.389243245 | R71: 534.6117487
A72: V106 | B72: Ikast Vandforsyning a.m.b.a. | C72: Region Midtjylland | D72: Ikast-Brande Kommune | E72: 924812 | F72: 775 | G72: 12.5 | H72: =F72+G72*Nøgletal!$C$9 -> 1679.375 | I72: =H72/Nøgletal!$C$9 -> 23.21181755 | J72: 0.003658306357 | K72: 0.01847366887 | L72: 0.4936780351 | M72: 0.08491593972 | N72: 6.143668238 | O72: 0.4288074314 | P72: 31.02421766 | Q72: 11.45916448 | R72: 829.0705503
A73: V107 | B73: Ishøj Vand A/S | C73: Region Hovedstaden | D73: Ishøj Kommune | E73: 1037569 | F73: 212.5 | G73: 25.89 | H73: =F73+G73*Nøgletal!$C$9 -> 2085.6415 | I73: =H73/Nøgletal!$C$9 -> 28.82711126 | J73: 0.004104342578 | K73: 0.009943106882 | L73: 1 | M73: 0.1183163402 | N73: 8.560187212 | O73: 0.2866310484 | P73: 20.73775635 | Q73: 28.82711126 | R73: 2085.6415
A74: V108 | B74: Jammerbugt Forsyning A/S | C74: Region Nordjylland | D74: Jammerbugt Kommune | E74: 123791 | F74: 724 | G74: 12 | H74: =F74+G74*Nøgletal!$C$9 -> 1592.2 | I74: =H74/Nøgletal!$C$9 -> 22.00691085 | J74: 0.0004896837436 | K74: 0.004889614265 | L74: 0.09172367087 | M74: 0.01077642649 | N74: 0.7796744565 | O74: 0.1076053052 | P74: 7.785243833 | Q74: 2.018554648 | R74: 146.0424288
A75: V110 | B75: Jyllinge Vandværk a.m.b.a. | C75: Region Sjælland | D75: Roskilde Kommune | E75: 243655 | F75: 950 | G75: 17 | H75: =F75+G75*Nøgletal!$C$9 -> 2179.95 | I75: =H75/Nøgletal!$C$9 -> 30.13061507 | J75: 0.0009638333363 | K75: 0.008285959971 | L75: 0.0746609607 | M75: 0.02904089124 | N75: 2.101108482 | O75: 0.2496610703 | P75: 18.06297844 | Q75: 2.249580667 | R75: 162.7571613
A76: V112 | B76: Kalundborg Vandforsyning A/S | C76: Region Sjælland | D76: Kalundborg Kommune | E76: 2566080 | F76: 0 | G76: 19 | H76: =F76+G76*Nøgletal!$C$9 -> 1374.65 | I76: =H76/Nøgletal!$C$9 -> 19 | J76: 0.01015071904 | K76: 0.08726451812 | L76: 0.779900233 | M76: 0.1928636618 | N76: 13.95368593 | O76: 1.658025844 | P76: 119.9581698 | Q76: 14.81810443 | R76: 1072.089855
A77: V113 | B77: Kerteminde Forsyning - Vand A/S | C77: Region Syddanmark | D77: Kerteminde Kommune | E77: 902367 | F77: 414.71 | G77: 18.81 | H77: =F77+G77*Nøgletal!$C$9 -> 1775.6135 | I77: =H77/Nøgletal!$C$9 -> 24.54199724 | J77: 0.003569520002 | K77: 0.02066649313 | L77: 0.7296612821 | M77: 0.08760315003 | N77: 6.338087905 | O77: 0.5071970172 | P77: 36.69570419 | Q77: 17.90734517 | R77: 1295.596423
A78: V114 | B78: Klemensker Vandværk | C78: Region Hovedstaden | D78: Bornholms Regionskommune | E78: 267672 | F78: 562.5 | G78: 11.25 | H78: =F78+G78*Nøgletal!$C$9 -> 1376.4375 | I78: =H78/Nøgletal!$C$9 -> 19.02470629 | J78: 0.001058838098 | K78: 0.002565122228 | L78: 0.1071344091 | M78: 0.02014408382 | N78: 1.457424465 | O78: 0.04880069699 | P78: 3.530730427 | Q78: 2.038200667 | R78: 147.4638182
A79: V115 | B79: Kvarmløse-Tølløse Vandværk | C79: Region Sjælland | D79: Holbæk Kommune | E79: 241870 | F79: 625 | G79: 12.5 | H79: =F79+G79*Nøgletal!$C$9 -> 1529.375 | I79: =H79/Nøgletal!$C$9 -> 21.13856254 | J79: 0.0009567723587 | K79: 0.008225257591 | L79: 0.09123272625 | M79: 0.02022479234 | N79: 1.463263726 | O79: 0.173870122 | P79: 12.57950333 | Q79: 1.92852869 | R79: 139.5290507
A80: V116 | B80: Køge Vand A/S | C80: Region Sjælland | D80: Køge Kommune | E80: 1804724 | F80: 234.04 | G80: 25.75 | H80: =F80+G80*Nøgletal!$C$9 -> 2097.0525 | I80: =H80/Nøgletal!$C$9 -> 28.98483068 | J80: 0.007139000448 | K80: 0.06137313342 | L80: 0.8898370979 | M80: 0.2069227192 | N80: 14.97085874 | O80: 1.778889881 | P80: 128.7026829 | Q80: 25.79177762 | R80: 1866.035111
A81: V117 | B81: Langeland Vand ApS | C81: Region Syddanmark | D81: Langeland Kommune | E81: 805758 | F81: 1040 | G81: 13.3 | H81: =F81+G81*Nøgletal!$C$9 -> 2002.255 | I81: =H81/Nøgletal!$C$9 -> 27.67456807 | J81: 0.003187360905 | K81: 0.01845390198 | L81: 1 | M81: 0.08820883635 | N81: 6.38190931 | O81: 0.5107037666 | P81: 36.94941751 | Q81: 27.67456807 | R81: 2002.255
A82: V118 | B82: Langeskov Vandværk | C82: Region Syddanmark | D82: Kerteminde Kommune | E82: 334326 | F82: 287.5 | G82: 11.88 | H82: =F82+G82*Nøgletal!$C$9 -> 1147.018 | I82: =H82/Nøgletal!$C$9 -> 15.85373877 | J82: 0.00132250331 | K82: 0.007656913408 | L82: 0.2703387179 | M82: 0.020966622 | N82: 1.516935102 | O82: 0.121390705 | P82: 8.782617503 | Q82: 4.285879412 | R82: 310.0833755
A83: V119 | B83: Lejre Vand A/S | C83: Region Sjælland | D83: Lejre Kommune | E83: 212065 | F83: 564 | G83: 12.75 | H83: =F83+G83*Nøgletal!$C$9 -> 1486.4625 | I83: =H83/Nøgletal!$C$9 -> 20.54543884 | J83: 0.000838871833 | K83: 0.007211680866 | L83: 1 | M83: 0.01723498994 | N83: 1.246951522 | O83: 0.1481671482 | P83: 10.71989317 | Q83: 20.54543884 | R83: 1486.4625
A84: V120 | B84: Lemvig Vand og Spildevand A/S | C84: Region Midtjylland | D84: Lemvig Kommune | E84: 1874792 | F84: 643.75 | G84: 12.06 | H84: =F84+G84*Nøgletal!$C$9 -> 1516.291 | I84: =H84/Nøgletal!$C$9 -> 20.95771942 | J84: 0.007416170521 | K84: 0.03745008349 | L84: 1 | M84: 0.1554260209 | N84: 11.24507262 | O84: 0.784868342 | P84: 56.78522454 | Q84: 20.95771942 | R84: 1516.291
A85: V122 | B85: Lille Skensved Vandværk a.m.b.a. | C85: Region Sjælland | D85: Næstved Kommune | E85: 478980 | F85: 375 | G85: 10.06 | H85: =F85+G85*Nøgletal!$C$9 -> 1102.841 | I85: =H85/Nøgletal!$C$9 -> 15.24313753 | J85: 0.001894715444 | K85: 0.01628864217 | L85: 0.1805483622 | M85: 0.02888140808 | N85: 2.089569875 | O85: 0.2482900127 | P85: 17.96378242 | Q85: 2.752123515 | R85: 199.1161363
A86: V123 | B86: Lillerød Andelsvandværk a.m.b.a | C86: Region Hovedstaden | D86: Allerød Kommune | E86: 598232 | F86: 375 | G86: 12.5 | H86: =F86+G86*Nøgletal!$C$9 -> 1279.375 | I86: =H86/Nøgletal!$C$9 -> 17.68313753 | J86: 0.00236644413 | K86: 0.005732905201 | L86: 1 | M86: 0.041846157 | N86: 3.027569459 | O86: 0.1013757511 | P86: 7.334535591 | Q86: 17.68313753 | R86: 1279.375
A87: V124 | B87: Lindholm Vandværk a.m.b.a | C87: Region Nordjylland | D87: Aalborg Kommune | E87: 519555 | F87: 462.5 | G87: 10.67 | H87: =F87+G87*Nøgletal!$C$9 -> 1234.4745 | I87: =H87/Nøgletal!$C$9 -> 17.06253628 | J87: 0.002055219179 | K87: 0.0205218759 | L87: 0.06925027024 | M87: 0.03506725181 | N87: 2.537115668 | O87: 0.3501552521 | P87: 25.33373249 | Q87: 1.181585249 | R87: 85.48769273
A88: V125 | B88: Lolland Vand A/S | C88: Region Sjælland | D88: Lolland Kommune | E88: 1751600 | F88: 750 | G88: 25.18 | H88: =F88+G88*Nøgletal!$C$9 -> 2571.773 | I88: =H88/Nøgletal!$C$9 -> 35.54627505 | J88: 0.006928856259 | K88: 0.05956654896 | L88: 1 | M88: 0.2462950304 | N88: 17.81944545 | O88: 2.117368933 | P88: 153.1916423 | Q88: 35.54627505 | R88: 2571.773
A89: V126 | B89: Lyngby-Taarbæk Vand A/S | C89: Region Hovedstaden | D89: Lyngby-Taarbæk Kommune | E89: 2760054 | F89: 0 | G89: 22.52 | H89: =F89+G89*Nøgletal!$C$9 -> 1629.322 | I89: =H89/Nøgletal!$C$9 -> 22.52 | J89: 0.01091802777 | K89: 0.02644981868 | L89: 1 | M89: 0.2458739853 | N89: 17.78898284 | O89: 0.5956499168 | P89: 43.09527148 | Q89: 22.52 | R89: 1629.322
A90: V127 | B90: Læsø Vand A/S | C90: Region Nordjylland | D90: Læsø Kommune | E90: 188798 | F90: 1070 | G90: 9.25 | H90: =F90+G90*Nøgletal!$C$9 -> 1739.2375 | I90: =H90/Nøgletal!$C$9 -> 24.03921907 | J90: 0.0007468338685 | K90: 0.007457322374 | L90: 1 | M90: 0.01795330298 | N90: 1.29892147 | O90: 0.1792682063 | P90: 12.97005472 | Q90: 24.03921907 | R90: 1739.2375
A91: V128 | B91: Løgstør Vand a.m.b.a. | C91: Region Nordjylland | D91: Vesthimmerlands Kommune | E91: 415122 | F91: 897.5 | G91: 11.38 | H91: =F91+G91*Nøgletal!$C$9 -> 1720.843 | I91: =H91/Nøgletal!$C$9 -> 23.78497581 | J91: 0.001642110452 | K91: 0.01639688227 | L91: 0.3630148486 | M91: 0.03905755739 | N91: 2.825814277 | O91: 0.3899994482 | P91: 28.21646007 | Q91: 8.634299394 | R91: 624.6915612
A92: V131 | B92: Mariager Vand a.m.b.a. | C92: Region Nordjylland | D92: Mariagerfjord Kommune | E92: 217952 | F92: 531.25 | G92: 9.31 | H92: =F92+G92*Nøgletal!$C$9 -> 1204.8285 | I92: =H92/Nøgletal!$C$9 -> 16.65277816 | J92: 0.0008621592141 | K92: 0.008608874703 | L92: 0.116434752 | M92: 0.01435734613 | N92: 1.038753993 | O92: 0.1433616806 | P92: 10.37221759 | Q92: 1.938962095 | R92: 140.2839076
A93: V132 | B93: Mariagerfjord Vand a/s | C93: Region Nordjylland | D93: Mariagerfjord Kommune | E93: 1294518 | F93: 761.96 | G93: 12.36 | H93: =F93+G93*Nøgletal!$C$9 -> 1656.206 | I93: =H93/Nøgletal!$C$9 -> 22.89158258 | J93: 0.005120763386 | K93: 0.0511320991 | L93: 0.691559987 | M93: 0.117222378 | N93: 8.481039045 | O93: 1.170494669 | P93: 84.68528932 | Q93: 15.83090255 | R93: 1145.3658
A94: V133 | B94: Midtfyns Vandforsyning A.m.b.A. | C94: Region Syddanmark | D94: Faaborg-Midtfyn Kommune | E94: 1570915 | F94: 525 | G94: 9.63 | H94: =F94+G94*Nøgletal!$C$9 -> 1221.7305 | I94: =H94/Nøgletal!$C$9 -> 16.88639254 | J94: 0.006214115227 | K94: 0.03597793808 | L94: 0.6902884648 | M94: 0.104933989 | N94: 7.591974103 | O94: 0.607537585 | P94: 43.95534428 | Q94: 11.65648198 | R94: 843.3464712
A95: V134 | B95: Morsø Forsyning A/S | C95: Region Nordjylland | D95: Morsø Kommune | E95: 561316 | F95: 692.5 | G95: 15.31 | H95: =F95+G95*Nøgletal!$C$9 -> 1800.1785 | I95: =H95/Nøgletal!$C$9 -> 24.8815273 | J95: 0.00222041441 | K95: 0.02217139146 | L95: 1 | M95: 0.05524730175 | N95: 3.997142282 | O95: 0.551658082 | P95: 39.91246223 | Q95: 24.8815273 | R95: 1800.1785
A96: V135 | B96: Mørkøv Vandværk | C96: Region Sjælland | D96: Holbæk Kommune | E96: 260000 | F96: 437.5 | G96: 11.25 | H96: =F96+G96*Nøgletal!$C$9 -> 1251.4375 | I96: =H96/Nøgletal!$C$9 -> 17.29699378 | J96: 0.001028489739 | K96: 0.008841803339 | L96: 0.09807131444 | M96: 0.01778978062 | N96: 1.287090628 | O96: 0.1529366174 | P96: 11.06496427 | Q96: 1.696338916 | R96: 122.7301206
A97: V136 | B97: NFS Vand A/S | C97: Region Syddanmark | D97: Nyborg Kommune | E97: 1214133 | F97: 500 | G97: 16.25 | H97: =F97+G97*Nøgletal!$C$9 -> 1675.6875 | I97: =H97/Nøgletal!$C$9 -> 23.16085003 | J97: 0.004802782049 | K97: 0.02780672531 | L97: 0.825098318 | M97: 0.1112365148 | N97: 8.047961845 | O97: 0.6440273949 | P97: 46.59538202 | Q97: 19.10997841 | R97: 1382.606938
A98: V137 | B98: NK-Vand A/S | C98: Region Sjælland | D98: Næstved Kommune | E98: 2173938 | F98: 683.59 | G98: 13.09 | H98: =F98+G98*Nøgletal!$C$9 -> 1630.6515 | I98: =H98/Nøgletal!$C$9 -> 22.53837595 | J98: 0.008599511258 | K98: 0.07392897026 | L98: 0.8194516378 | M98: 0.1938190177 | N98: 14.02280593 | O98: 1.666238925 | P98: 120.5523862 | Q98: 18.46910909 | R98: 1336.240042
A99: V138 | B99: Nordenskov Vandværk | C99: Region Syddanmark | D99: Varde Kommune | E99: 224924 | F99: 500 | G99: 8.12 | H99: =F99+G99*Nøgletal!$C$9 -> 1087.482 | I99: =H99/Nøgletal!$C$9 -> 15.03085003 | J99: 0.0008897385621 | K99: 0.005151330113 | L99: 0.1402473053 | M99: 0.0133735269 | N99: 0.9675746709 | O99: 0.07742887041 | P99: 5.601978774 | Q99: 2.108036213 | R99: 152.51642
A100: V140 | B100: Nybrovejens Vandværk a.m.b.a. | C100: Region Hovedstaden | D100: Frederikssund Kommune | E100: 322620 | F100: 287.5 | G100: 12.25 | H100: =F100+G100*Nøgletal!$C$9 -> 1173.7875 | I100: =H100/Nøgletal!$C$9 -> 16.22373877 | J100: 0.001276197537 | K100: 0.003091693316 | L100: 0.1955054709 | M100: 0.02070469546 | N100: 1.497984717 | O100: 0.05015882472 | P100: 3.628990968 | Q100: 3.171829688 | R100: 229.4818779
A101: V141 | B101: Nyhuse Vandværk a.m.b.a. | C101: Region Hovedstaden | D101: Hillerød Kommune | E101: 263707 | F101: 625 | G101: 11 | H101: =F101+G101*Nøgletal!$C$9 -> 1420.85 | I101: =H101/Nøgletal!$C$9 -> 19.63856254 | J101: 0.00104315363 | K101: 0.002527125316 | L101: 0.152986079 | M101: 0.0204860378 | N101: 1.482164835 | O101: 0.04962910857 | P101: 3.590666005 | Q101: 3.004426682 | R101: 217.3702704
A102: V142 | B102: Næsby Vandværk | C102: Region Syddanmark | D102: Odense Kommune | E102: 406406 | F102: 600 | G102: 13.06 | H102: =F102+G102*Nøgletal!$C$9 -> 1544.891 | I102: =H102/Nøgletal!$C$9 -> 21.35302004 | J102: 0.001607632312 | K102: 0.009307728236 | L102: 0.0430137913 | M102: 0.03432780497 | N102: 2.483616689 | O102: 0.1987481076 | P102: 14.37942558 | Q102: 0.9184743478 | R102: 66.45161906
A103: V144 | B103: Odder Vandværk A.m.b.a. | C103: Region Midtjylland | D103: Odder Kommune | E103: 869360 | F103: 700 | G103: 13.45 | H103: =F103+G103*Nøgletal!$C$9 -> 1673.1075 | I103: =H103/Nøgletal!$C$9 -> 23.12519005 | J103: 0.00343895323 | K103: 0.01736598224 | L103: 1 | M103: 0.07952644701 | N103: 5.753738441 | O103: 0.4015916397 | P103: 29.05515514 | Q103: 23.12519005 | R103: 1673.1075
A104: V145 | B104: Odsherred Vand A/S | C104: Region Sjælland | D104: Odsherred Kommune | E104: 374283 | F104: 1062.5 | G104: 12.5 | H104: =F104+G104*Nøgletal!$C$9 -> 1966.875 | I104: =H104/Nøgletal!$C$9 -> 27.18555632 | J104: 0.001480562404 | K104: 0.012728218 | L104: 0.6280601072 | M104: 0.04024991263 | N104: 2.912081179 | O104: 0.3460236872 | P104: 25.03481377 | Q104: 17.07416342 | R104: 1235.315723
A105: V146 | B105: Otterup Vandværk | C105: Region Syddanmark | D105: Nordfyns Kommune | E105: 296839 | F105: 500 | G105: 13.75 | H105: =F105+G105*Nøgletal!$C$9 -> 1494.8125 | I105: =H105/Nøgletal!$C$9 -> 20.66085003 | J105: 0.001174214868 | K105: 0.006798366023 | L105: 0.5543418989 | M105: 0.0242602773 | N105: 1.755231063 | O105: 0.1404600209 | P105: 10.16228251 | Q105: 11.45317484 | R105: 828.6371997
A106: V149 | B106: Padborg Vandværk a.m.b.a. | C106: Region Syddanmark | D106: Aabenraa Kommune | E106: 660661 | F106: 450 | G106: 10.75 | H106: =F106+G106*Nøgletal!$C$9 -> 1227.7625 | I106: =H106/Nøgletal!$C$9 -> 16.96976503 | J106: 0.002613396383 | K106: 0.01513081265 | L106: 0.2174427916 | M106: 0.04434872256 | N106: 3.208630077 | O106: 0.2567663353 | P106: 18.57704436 | Q106: 3.689953081 | R106: 266.9681054
A107: V150 | B107: Pandrup Vandværk | C107: Region Nordjylland | D107: Jammerbugt Kommune | E107: 266000 | F107: 312.5 | G107: 10 | H107: =F107+G107*Nøgletal!$C$9 -> 1036 | I107: =H107/Nøgletal!$C$9 -> 14.31928127 | J107: 0.001052224118 | K107: 0.01050672015 | L107: 0.1970942674 | M107: 0.01506709311 | N107: 1.090104186 | O107: 0.1504486811 | P107: 10.88496208 | Q107: 2.822248252 | R107: 204.189661
A108: V151 | B108: Randers Spildevand A/S | C108: Region Midtjylland | D108: Randers Kommune | E108: 272235 | F108: 425 | G108: 14.12 | H108: =F108+G108*Nøgletal!$C$9 -> 1446.582 | I108: =H108/Nøgletal!$C$9 -> 19.99422253 | J108: 0.001076888093 | K108: 0.005438055783 | L108: 0.09478307494 | M108: 0.02153154017 | N108: 1.557806931 | O108: 0.1087296975 | P108: 7.866593611 | Q108: 1.895113892 | R108: 137.1114901
A109: V152 | B109: Rebild Vand & Spildevand A/S | C109: Region Nordjylland | D109: Rebild Kommune | E109: 2739 | F109: 1030 | G109: 13.25 | H109: =F109+G109*Nøgletal!$C$9 -> 1988.6375 | I109: =H109/Nøgletal!$C$9 -> 27.48635107 | J109: 1.083474383e-05 | K109: 0.0001081876184 | L109: 0.007761317525 | M109: 0.0002978075727 | N109: 0.02154637789 | O109: 0.002973682862 | P109: 0.215145955 | Q109: 0.2133302983 | R109: 15.43444708
A110: V153 | B110: Ringkjøbing-Skjern Vand A/S | C110: Region Midtjylland | D110: Ringkøbing-Skjern Kommune | E110: 3223773 | F110: 1037.5 | G110: 13.75 | H110: =F110+G110*Nøgletal!$C$9 -> 2032.3125 | I110: =H110/Nøgletal!$C$9 -> 28.09001382 | J110: 0.01275237482 | K110: 0.06439678001 | L110: 0.8900849865 | M110: 0.3582143849 | N110: 25.91681075 | O110: 1.808906441 | P110: 130.874381 | Q110: 25.00249957 | R110: 1808.930844
A111: V154 | B111: Ringsted Vand A/S | C111: Region Sjælland | D111: Ringsted Kommune | E111: 1928055 | F111: 185.55 | G111: 19.45 | H111: =F111+G111*Nøgletal!$C$9 -> 1592.7575 | I111: =H111/Nøgletal!$C$9 -> 22.01461645 | J111: 0.007626864555 | K111: 0.06556724283 | L111: 1 | M111: 0.1679024979 | N111: 12.14774572 | O111: 1.443437703 | P111: 104.4327178 | Q111: 22.01461645 | R111: 1592.7575
A112: V155 | B112: Roskilde Vand A/S | C112: Region Sjælland | D112: Roskilde Kommune | E112: 3019831 | F112: 283 | G112: 22.69 | H112: =F112+G112*Nøgletal!$C$9 -> 1924.6215 | I112: =H112/Nøgletal!$C$9 -> 26.60154112 | J112: 0.01194563538 | K112: 0.1026951993 | L112: 0.9253390393 | M112: 0.3177723107 | N112: 22.99082668 | O112: 2.731850567 | P112: 197.6493885 | Q112: 24.6154445 | R112: 1780.92741
A113: V156 | B113: Rudersdal Forsyning A/S | C113: Region Hovedstaden | D113: Rudersdal Kommune | E113: 1693319 | F113: 423.75 | G113: 15.98 | H113: =F113+G113*Nøgletal!$C$9 -> 1579.903 | I113: =H113/Nøgletal!$C$9 -> 21.8369454 | J113: 0.006698312373 | K113: 0.01622721169 | L113: 0.5932525592 | M113: 0.1462706816 | N113: 10.58268381 | O113: 0.3543527357 | P113: 25.63742043 | Q113: 12.95482375 | R113: 937.2814981
A114: V158 | B114: Rødding Vandværk a.m.b.a. | C114: Region Syddanmark | D114: Vejen Kommune | E114: 254533 | F114: 675 | G114: 10.5 | H114: =F114+G114*Nøgletal!$C$9 -> 1434.675 | I114: =H114/Nøgletal!$C$9 -> 19.82964755 | J114: 0.001006863765 | K114: 0.005829451315 | L114: 0.287985382 | M114: 0.01996575358 | N114: 1.444522272 | O114: 0.115595965 | P114: 8.363368066 | Q114: 5.710648623 | R114: 413.1654279
A115: V159 | B115: Rødekro Vandværk | C115: Region Syddanmark | D115: Aabenraa Kommune | E115: 293368 | F115: 437.5 | G115: 10 | H115: =F115+G115*Nøgletal!$C$9 -> 1161 | I115: =H115/Nøgletal!$C$9 -> 16.04699378 | J115: 0.00116048453 | K115: 0.006718871319 | L115: 0.09655595969 | M115: 0.01862228804 | N115: 1.34732254 | O115: 0.1078176863 | P115: 7.800609601 | Q115: 1.549432885 | R115: 112.1014692
A116: V160 | B116: Rønne Vand A/S | C116: Region Hovedstaden | D116: Bornholms Regionskommune | E116: 933700 | F116: 806.25 | G116: 12.63 | H116: =F116+G116*Nøgletal!$C$9 -> 1720.0305 | I116: =H116/Nøgletal!$C$9 -> 23.77374568 | J116: 0.003693464883 | K116: 0.008947721931 | L116: 0.3737088593 | M116: 0.08780749481 | N116: 6.35287225 | O116: 0.2127208656 | P116: 15.39035463 | Q116: 8.88445938 | R116: 642.7906361
A117: V162 | B117: Silkeborg Vand a/s | C117: Region Midtjylland | D117: Silkeborg Kommune | E117: 2488972 | F117: 787.5 | G117: 12.97 | H117: =F117+G117*Nøgletal!$C$9 -> 1725.8795 | I117: =H117/Nøgletal!$C$9 -> 23.8545888 | J117: 0.009845700629 | K117: 0.0497186937 | L117: 1 | M117: 0.23486514 | N117: 16.99249288 | O117: 1.186018994 | P117: 85.80847422 | Q117: 23.8545888 | R117: 1725.8795
A118: V165 | B118: SK Vand A/S | C118: Region Sjælland | D118: Slagelse Kommune | E118: 3743919 | F118: 1100 | G118: 11.75 | H118: =F118+G118*Nøgletal!$C$9 -> 1950.1125 | I118: =H118/Nøgletal!$C$9 -> 26.95387008 | J118: 0.01480993183 | K118: 0.1273192135 | L118: 1 | M118: 0.3991849785 | N118: 28.88103319 | O118: 3.431745539 | P118: 248.2867898 | Q118: 26.95387008 | R118: 1950.1125
A119: V166 | B119: Skanderborg Forsyningsvirksomhed A/S | C119: Region Midtjylland | D119: Skanderborg Kommune | E119: 989101 | F119: 1062.5 | G119: 14.35 | H119: =F119+G119*Nøgletal!$C$9 -> 2100.7225 | I119: =H119/Nøgletal!$C$9 -> 29.03555632 | J119: 0.003912616268 | K119: 0.01975787982 | L119: 0.7838672967 | M119: 0.11360499 | N119: 8.219321028 | O119: 0.5736810324 | P119: 41.5058227 | Q119: 22.76002304 | R119: 1646.687667
A120: V167 | B120: Skive Vand A/S | C120: Region Midtjylland | D120: Skive Kommune | E120: 2389171 | F120: 687.5 | G120: 14.06 | H120: =F120+G120*Nøgletal!$C$9 -> 1704.741 | I120: =H120/Nøgletal!$C$9 -> 23.5624188 | J120: 0.009450914843 | K120: 0.04772510946 | L120: 1 | M120: 0.2226864135 | N120: 16.11136202 | O120: 1.124519016 | P120: 81.35895083 | Q120: 23.5624188 | R120: 1704.741
A121: V171 | B121: Solrød Vandværk a.m.b.a. | C121: Region Sjælland | D121: Solrød Kommune | E121: 661218 | F121: 356.25 | G121: 13.38 | H121: =F121+G121*Nøgletal!$C$9 -> 1324.293 | I121: =H121/Nøgletal!$C$9 -> 18.30398065 | J121: 0.002615599725 | K121: 0.02248599815 | L121: 1 | M121: 0.04787588675 | N121: 3.463820407 | O121: 0.4115832751 | P121: 29.77804995 | Q121: 18.30398065 | R121: 1324.293
A122: V172 | B122: Sorø Vand A/S | C122: Region Sjælland | D122: Sorø Kommune | E122: 482416 | F122: 509.38 | G122: 18.6 | H122: =F122+G122*Nøgletal!$C$9 -> 1855.09 | I122: =H122/Nøgletal!$C$9 -> 25.64049758 | J122: 0.001908307331 | K122: 0.01640549 | L122: 0.4735887788 | M122: 0.04892994951 | N122: 3.540081847 | O122: 0.4206449266 | P122: 30.43366044 | Q122: 12.14305194 | R122: 878.5498076
A123: V174 | B123: Struer Forsyning Vand A/S | C123: Region Midtjylland | D123: Struer Kommune | E123: 1174750 | F123: 527.5 | G123: 11.44 | H123: =F123+G123*Nøgletal!$C$9 -> 1355.184 | I123: =H123/Nøgletal!$C$9 -> 18.73094679 | J123: 0.004646993544 | K123: 0.02346632884 | L123: 1 | M123: 0.08704258878 | N123: 6.297531298 | O123: 0.4395465568 | P123: 31.80119338 | Q123: 18.73094679 | R123: 1355.184
A124: V176 | B124: Støvring Vandværk a.m.b.a. | C124: Region Nordjylland | D124: Rebild Kommune | E124: 350165 | F124: 125 | G124: 10 | H124: =F124+G124*Nøgletal!$C$9 -> 848.5 | I124: =H124/Nøgletal!$C$9 -> 11.72771251 | J124: 0.001385158114 | K124: 0.01383114911 | L124: 0.9922386825 | M124: 0.01624473614 | N124: 1.17530666 | O124: 0.1622077404 | P124: 11.73573002 | Q124: 11.63669001 | R124: 841.9145221
A125: V178 | B125: Svendborg Vand A/S | C125: Region Syddanmark | D125: Svendborg Kommune | E125: 1977199 | F125: 769 | G125: 16.46 | H125: =F125+G125*Nøgletal!$C$9 -> 1959.881 | I125: =H125/Nøgletal!$C$9 -> 27.08888735 | J125: 0.007821264939 | K125: 0.04528287221 | L125: 1 | M125: 0.2118693649 | N125: 15.32874855 | O125: 1.226662624 | P125: 88.74904086 | Q125: 27.08888735 | R125: 1959.881
A126: V179 | B126: Svinninge Vandværk | C126: Region Sjælland | D126: Holbæk Kommune | E126: 424673 | F126: 250 | G126: 10.31 | H126: =F126+G126*Nøgletal!$C$9 -> 995.9285 | I126: =H126/Nøgletal!$C$9 -> 13.76542502 | J126: 0.001679891627 | K126: 0.0144418275 | L126: 0.1601855358 | M126: 0.02312442223 | N126: 1.673051948 | O126: 0.1987978935 | P126: 14.3830276 | Q126: 2.205021982 | R126: 159.5333404
A127: V180 | B127: Sydals Øst Vandforsyning | C127: Region Syddanmark | D127: Sønderborg Kommune | E127: 319000 | F127: 450 | G127: 8.75 | H127: =F127+G127*Nøgletal!$C$9 -> 1083.0625 | I127: =H127/Nøgletal!$C$9 -> 14.96976503 | J127: 0.001261877796 | K127: 0.007305909134 | L127: 0.1238404516 | M127: 0.0188900141 | N127: 1.36669252 | O127: 0.1093677431 | P127: 7.912756211 | Q127: 1.853862461 | R127: 134.1269491
A128: V181 | B128: Sønderborg Vandforsyning A/S | C128: Region Syddanmark | D128: Sønderborg Kommune | E128: 2256895 | F128: 555 | G128: 14.62 | H128: =F128+G128*Nøgletal!$C$9 -> 1612.757 | I128: =H128/Nøgletal!$C$9 -> 22.29104354 | J128: 0.008927666732 | K128: 0.05168862005 | L128: 0.8761595484 | M128: 0.1990070078 | N128: 14.39815702 | O128: 1.15219328 | P128: 83.3611838 | Q128: 19.53051064 | R128: 1413.032445
A129: V183 | B129: Tarup Vandværk | C129: Region Syddanmark | D129: Odense Kommune | E129: 287185 | F129: 568.75 | G129: 12.5 | H129: =F129+G129*Nøgletal!$C$9 -> 1473.125 | I129: =H129/Nøgletal!$C$9 -> 20.36109191 | J129: 0.001136026253 | K129: 0.006577264936 | L129: 0.03039550513 | M129: 0.02313073496 | N129: 1.673508674 | O129: 0.1339202959 | P129: 9.689133409 | Q129: 0.6188856736 | R129: 44.77637849
A130: V184 | B130: Thisted Drikkevand A/S | C130: Region Nordjylland | D130: Thisted Kommune | E130: 3176133 | F130: 677.5 | G130: 13.94 | H130: =F130+G130*Nøgletal!$C$9 -> 1686.059 | I130: =H130/Nøgletal!$C$9 -> 23.3042018 | J130: 0.01256392385 | K130: 0.125453912 | L130: 1 | M130: 0.2927922168 | N130: 21.18351688 | O130: 2.923603282 | P130: 211.5226975 | Q130: 23.3042018 | R130: 1686.059
A131: V185 | B131: Tinglev Vandværk | C131: Region Syddanmark | D131: Aabenraa Kommune | E131: 336336 | F131: 676.25 | G131: 11.6 | H131: =F131+G131*Nøgletal!$C$9 -> 1515.51 | I131: =H131/Nøgletal!$C$9 -> 20.94692467 | J131: 0.001330454327 | K131: 0.007702947506 | L131: 0.1106979809 | M131: 0.02786892656 | N131: 2.016316837 | O131: 0.1613530612 | P131: 11.67389397 | Q131: 2.318782267 | R131: 167.763897
A132: V188 | B132: TREFOR Vand A/S 3 | C132: Region Syddanmark | D132: Fredericia Kommune | E132: 1007244.957 | F132: 862.5 | G132: 13.56 | H132: =F132+G132*Nøgletal!$C$9 -> 1843.566 | I132: =H132/Nøgletal!$C$9 -> 25.48121631 | J132: =IF(H132>0,E132/(SUMIFS($E$3:$E$163,$I$3:$I$163,">0")),"-") -> 0.003984388861 | K132: =IF(H132>0,E132/(SUMIFS($E$3:$E$163,$C$3:$C$163,C132,$I$3:$I$163,">0")),"-") -> 0.02306846437 | L132: =IF(H132>0,E132/(SUMIFS($E$3:$E$163,$D$3:$D$163,D132,$I$3:$I$163,">0")),"-") -> 1 | M132: =IF(H132>0,J132*I132,"-") -> 0.1015270744 | N132: =IF(H132>0,J132*H132,"-") -> 7.345483834 | O132: =IF(H132>0,K132*I132,"-") -> 0.5878125306 | P132: =IF(H132>0,K132*H132,"-") -> 42.52823659 | Q132: =IF(H132>0,L132*I132,"-") -> 25.48121631 | R132: =IF(H132>0,L132*H132,"-") -> 1843.566
A133: V188 | B133: TREFOR Vand A/S 1 | C133: Region Syddanmark | D133: Kolding Kommune | E133: 1826693.83 | F133: 862.5 | G133: 13.56 | H133: =F133+G133*Nøgletal!$C$9 -> 1843.566 | I133: =H133/Nøgletal!$C$9 -> 25.48121631 | J133: 0.007225907159 | K133: 0.04183592206 | L133: 0.8849957102 | M133: 0.1841249033 | N133: 13.32143676 | O133: 1.06603018 | P133: 77.1272835 | Q133: 22.55076712 | R133: 1631.548001
A134: V188 | B134: TREFOR Vand A/S 2 | C134: Region Syddanmark | D134: Middelfart Kommune | E134: 761712.2123 | F134: 862.5 | G134: 13.56 | H134: =F134+G134*Nøgletal!$C$9 -> 1843.566 | I134: =H134/Nøgletal!$C$9 -> 25.48121631 | J134: 0.003013127672 | K134: 0.01744514172 | L134: 1 | M134: 0.07677815798 | N134: 5.55489973 | O134: 0.4445234298 | P134: 32.16127014 | Q134: 25.48121631 | R134: 1843.566
A135: V190 | B135: Tønder Vand A/S | C135: Region Syddanmark | D135: Tønder Kommune | E135: 1628828 | F135: 416 | G135: 14.38 | H135: =F135+G135*Nøgletal!$C$9 -> 1456.393 | I135: =H135/Nøgletal!$C$9 -> 20.12982723 | J135: 0.006443203405 | K135: 0.03730429267 | L135: 1 | M135: 0.1297005713 | N135: 9.383836336 | O135: 0.7509289664 | P135: 54.32971072 | Q135: 20.12982723 | R135: 1456.393
A136: V191 | B136: TÅRNBYFORSYNING Vand | C136: Region Hovedstaden | D136: Tårnby Kommune | E136: 2202489 | F136: 250 | G136: 22.52 | H136: =F136+G136*Nøgletal!$C$9 -> 1879.322 | I136: =H136/Nøgletal!$C$9 -> 25.97542502 | J136: 0.008712451298 | K136: 0.0211066286 | L136: 1 | M136: 0.2263096254 | N136: 16.3735014 | O136: 0.5482536487 | P136: 39.66615148 | Q136: 25.97542502 | R136: 1879.322
A137: V193 | B137: Udsholt Vandværk A.m.b.a. | C137: Region Hovedstaden | D137: Gribskov Kommune | E137: 279161 | F137: 1712.5 | G137: 12.5 | H137: =F137+G137*Nøgletal!$C$9 -> 2616.875 | I137: =H137/Nøgletal!$C$9 -> 36.16966137 | J137: 0.001104285477 | K137: 0.002675222236 | L137: 0.1945225067 | M137: 0.03994163177 | N137: 2.889777059 | O137: 0.09676188237 | P137: 7.000722189 | Q137: 7.035813194 | R137: 509.0410846
A138: V194 | B138: Ulfborg Vandværk a.m.b.a | C138: Region Midtjylland | D138: Holstebro Kommune | E138: 299215 | F138: 437.5 | G138: 9.75 | H138: =F138+G138*Nøgletal!$C$9 -> 1142.9125 | I138: =H138/Nøgletal!$C$9 -> 15.79699378 | J138: 0.001183613682 | K138: 0.005976997305 | L138: 0.07623063503 | M138: 0.01869753798 | N138: 1.352766873 | O138: 0.09441858925 | P138: 6.831184932 | Q138: 1.204214867 | R138: 87.12494565
A139: V197 | B139: Vand Ballerup A/S | C139: Region Hovedstaden | D139: Ballerup Kommune | E139: 3131550 | F139: 0 | G139: 21.45 | H139: =F139+G139*Nøgletal!$C$9 -> 1551.9075 | I139: =H139/Nøgletal!$C$9 -> 21.45 | J139: 0.01238756555 | K139: 0.03000989463 | L139: 1 | M139: 0.2657132811 | N139: 19.22435589 | O139: 0.6437122397 | P139: 46.57258054 | Q139: 21.45 | R139: 1551.9075
A140: V198 | B140: Vandcenter Djurs a.m.b.a | C140: Region Midtjylland | D140: Norddjurs Kommune | E140: 1562690 | F140: 650 | G140: 12.13 | H140: =F140+G140*Nøgletal!$C$9 -> 1527.6055 | I140: =H140/Nøgletal!$C$9 -> 21.11410504 | J140: 0.006181579349 | K140: 0.03121566071 | L140: 0.8795310038 | M140: 0.1305185157 | N140: 9.443014613 | O140: 0.6590907392 | P140: 47.68521498 | Q140: 18.57051001 | R140: 1343.576399
A141: V199 | B141: Vandcenter Syd A/S | C141: Region Syddanmark | D141: Odense Kommune | E141: 8754681 | F141: 600 | G141: 15.06 | H141: =F141+G141*Nøgletal!$C$9 -> 1689.591 | I141: =H141/Nøgletal!$C$9 -> 23.35302004 | J141: 0.03463115223 | K141: 0.2005044009 | L141: 0.9265907036 | M141: 0.8087419921 | N141: 58.51248313 | O141: 4.682383292 | P141: 338.7704312 | Q141: 21.63869127 | R141: 1565.559313
A142: V200 | B142: Vandforsyningen Brovst og Omegn | C142: Region Nordjylland | D142: Jammerbugt Kommune | E142: 286889 | F142: 500 | G142: 8.13 | H142: =F142+G142*Nøgletal!$C$9 -> 1088.2055 | I142: =H142/Nøgletal!$C$9 -> 15.04085003 | J142: 0.001134855357 | K142: 0.01133181368 | L142: 0.212572095 | M142: 0.01706918924 | N142: 1.234955841 | O142: 0.1704401101 | P142: 12.33134197 | Q142: 3.197265003 | R142: 231.3221229
A143: V205 | B143: Vejen Vand A/S | C143: Region Syddanmark | D143: Vejen Kommune | E143: 629307 | F143: 375 | G143: 13 | H143: =F143+G143*Nøgletal!$C$9 -> 1315.55 | I143: =H143/Nøgletal!$C$9 -> 18.18313753 | J143: 0.002489368432 | K143: 0.01441272652 | L143: 0.712014618 | M143: 0.04526452856 | N143: 3.274888641 | O143: 0.2620685884 | P143: 18.96066237 | Q143: 12.94665972 | R143: 936.6908307
A144: V206 | B144: Verdo Vand A/S | C144: Region Midtjylland | D144: Randers Kommune | E144: 2362794 | F144: 693.75 | G144: 15.63 | H144: =F144+G144*Nøgletal!$C$9 -> 1824.5805 | I144: =H144/Nøgletal!$C$9 -> 25.21880442 | J144: 0.009346574559 | K144: 0.04719821322 | L144: 0.8226454378 | M144: 0.2357094358 | N144: 17.05357768 | O144: 1.190282508 | P144: 86.11693948 | Q144: 20.74613441 | R144: 1500.982824
A145: V207 | B145: Vestforsyning Vand A/S | C145: Region Midtjylland | D145: Holstebro Kommune | E145: 3625913 | F145: 611.25 | G145: 12.03 | H145: =F145+G145*Nøgletal!$C$9 -> 1481.6205 | I145: =H145/Nøgletal!$C$9 -> 20.47851417 | J145: 0.01434313199 | K145: 0.07242976531 | L145: 0.923769365 | M145: 0.2937260316 | N145: 21.25107838 | O145: 1.483253975 | P145: 107.3134251 | Q145: 18.91742403 | R145: 1368.675628
A146: V208 | B146: Vesthimmerlands Vand A/S | C146: Region Nordjylland | D146: Vesthimmerlands Kommune | E146: 43245 | F146: 727.5 | G146: 10 | H146: =F146+G146*Nøgletal!$C$9 -> 1451 | I146: =H146/Nøgletal!$C$9 -> 20.0552868 | J146: 0.0001710655338 | K146: 0.001708132004 | L146: 0.03781677947 | M146: 0.003430768341 | N146: 0.2482160895 | O146: 0.03425707723 | P146: 2.478499538 | Q146: 0.7584263582 | R146: 54.87214702
A147: V209 | B147: Videbæk Vand A/S | C147: Region Midtjylland | D147: Ringkøbing-Skjern Kommune | E147: 398098 | F147: 593.75 | G147: 18.25 | H147: =F147+G147*Nøgletal!$C$9 -> 1914.1375 | I147: =H147/Nøgletal!$C$9 -> 26.45663442 | J147: 0.001574768109 | K147: 0.007952243948 | L147: 0.1099150135 | M147: 0.04166306414 | N147: 3.014322691 | O147: 0.2103896109 | P147: 15.22168835 | Q147: 2.90798133 | R147: 210.3924492
A148: V210 | B148: Vildbjerg Vandværk | C148: Region Midtjylland | D148: Herning Kommune | E148: 503597 | F148: 610 | G148: 10 | H148: =F148+G148*Nøgletal!$C$9 -> 1333.5 | I148: =H148/Nøgletal!$C$9 -> 18.43123704 | J148: 0.001992093643 | K148: 0.01005964912 | L148: 0.1266560516 | M148: 0.03671675015 | N148: 2.656456873 | O148: 0.1854117775 | P148: 13.4145421 | Q148: 2.334427709 | R148: 168.8958448
A149: V212 | B149: Vordingborg Vand A/S | C149: Region Sjælland | D149: Vordingborg Kommune | E149: 946681 | F149: 637.5 | G149: 18.13 | H149: =F149+G149*Nøgletal!$C$9 -> 1949.2055 | I149: =H149/Nøgletal!$C$9 -> 26.94133379 | J149: 0.003744814211 | K149: 0.0321937201 | L149: 1 | M149: 0.1008902897 | N149: 7.299412457 | O149: 0.8673417594 | P149: 62.75217629 | Q149: 26.94133379 | R149: 1949.2055
A150: V214 | B150: Ærø Vand A/S | C150: Region Syddanmark | D150: Ærø Kommune | E150: 153153 | F150: 1804.5 | G150: 13.75 | H150: =F150+G150*Nøgletal!$C$9 -> 2799.3125 | I150: =H150/Nøgletal!$C$9 -> 38.69125777 | J150: 0.000605831881 | K150: 0.003507592168 | L150: 1 | M150: 0.02344039747 | N150: 1.695912757 | O150: 0.1357131527 | P150: 9.818846601 | Q150: 38.69125777 | R150: 2799.3125
A151: V217 | B151: Aabybro Vand A.m.b.a. | C151: Region Nordjylland | D151: Jammerbugt Kommune | E151: 445668 | F151: 828.75 | G151: 11.88 | H151: =F151+G151*Nøgletal!$C$9 -> 1688.268 | I151: =H151/Nøgletal!$C$9 -> 23.33473393 | J151: 0.001762942174 | K151: 0.01760341713 | L151: 0.3302203306 | M151: 0.04113778656 | N151: 2.976318858 | O151: 0.4107710551 | P151: 29.71928584 | Q151: 7.705603555 | R151: 557.5004172
A152: V218 | B152: Aalborg Forsyning, Vand A/S | C152: Region Nordjylland | D152: Aalborg Kommune | E152: 6563918 | F152: 1250 | G152: 12.56 | H152: =F152+G152*Nøgletal!$C$9 -> 2158.716 | I152: =H152/Nøgletal!$C$9 -> 29.83712509 | J152: 0.02596508582 | K152: 0.2592678554 | L152: 0.8748892713 | M152: 0.7747235135 | N152: 56.0512462 | O152: 7.735807432 | P152: 559.6856677 | Q152: 26.10418062 | R152: 1888.637468
A153: V219 | B153: Aalestrup Vand a.m.b.a. | C153: Region Nordjylland | D153: Vesthimmerlands Kommune | E153: 205441 | F153: 812.5 | G153: 10 | H153: =F153+G153*Nøgletal!$C$9 -> 1536 | I153: =H153/Nøgletal!$C$9 -> 21.23013131 | J153: 0.000812669079 | K153: 0.008114703365 | L153: 0.179653532 | M153: 0.01725307126 | N153: 1.248259705 | O153: 0.1722762179 | P153: 12.46418437 | Q153: 3.814068074 | R153: 275.9478252
A154: V220 | B154: Aarhus Vand A/S | C154: Region Midtjylland | D154: Aarhus Kommune | E154: 14310804 | F154: 556.25 | G154: 18.8 | H154: =F154+G154*Nøgletal!$C$9 -> 1916.43 | I154: =H154/Nøgletal!$C$9 -> 26.48832066 | J154: 0.05660967337 | K154: 0.2858668079 | L154: 1 | M154: 1.499495181 | N154: 108.4884763 | O154: 7.572131676 | P154: 547.8437267 | Q154: 26.48832066 | R154: 1916.43
A155: V221 | B155: Aars Vand | C155: Region Nordjylland | D155: Vesthimmerlands Kommune | E155: 479732 | F155: 850 | G155: 11.77 | H155: =F155+G155*Nøgletal!$C$9 -> 1701.5595 | I155: =H155/Nøgletal!$C$9 -> 23.51844506 | J155: 0.001897690152 | K155: 0.0189489093 | L155: 0.4195148399 | M155: 0.04463072159 | N155: 3.229032707 | O155: 0.4456488822 | P155: 32.24269663 | Q155: 9.866336713 | R155: 713.8294612
A156: V016 | B156: Asnæs Vandværk a.m.b.a. | C156: Region Sjælland | D156: Odsherred Kommune | E156: 221652 | F156: 468.75 | G156: 10 | H156: =F156+G156*Nøgletal!$C$9 -> 1192.25 | I156: =H156/Nøgletal!$C$9 -> 16.47892191 | J156: 0.0008767954143 | K156: 0.00753770536 | L156: 0.3719398928 | M156: 0.01444864316 | N156: 1.045359333 | O156: 0.124213258 | P156: 8.986829216 | Q156: 6.129168447 | R156: 443.4453372
A157: V038 | B157: Christiansfeld Vandforsyning A/S | C157: Region Syddanmark | D157: Kolding Kommune | E157: 237377 | F157: 479.39 | G157: 11.56 | H157: =F157+G157*Nøgletal!$C$9 -> 1315.756 | I157: =H157/Nøgletal!$C$9 -> 18.1859848 | J157: 0.0009389992648 | K157: 0.0054365354 | L157: 0.1150042898 | M157: 0.01707662635 | N157: 1.235493917 | O157: 0.09886875012 | P157: 7.153154071 | Q157: 2.091466266 | R157: 151.3175844
A158: V039 | B158: Dianalund Vandværk | C158: Region Sjælland | D158: Sorø Kommune | E158: 327014 | F158: 281.25 | G158: 8.75 | H158: =F158+G158*Nøgletal!$C$9 -> 914.3125 | I158: =H158/Nøgletal!$C$9 -> 12.63735314 | J158: 0.001293579014 | K158: 0.01112074414 | L158: 0.3210303159 | M158: 0.01634741482 | N158: 1.182735462 | O158: 0.140536771 | P158: 10.16783538 | Q158: 4.056973473 | R158: 293.5220307
A159: V040 | B159: Dronninglund Vandværk a.m.b.a | C159: Region Nordjylland | D159: Brønderslev Kommune | E159: 374880 | F159: 562.5 | G159: 9.13 | H159: =F159+G159*Nøgletal!$C$9 -> 1223.0555 | I159: =H159/Nøgletal!$C$9 -> 16.90470629 | J159: 0.001482923975 | K159: 0.01480736561 | L159: 0.2863467417 | M159: 0.02506839425 | N159: 1.813698324 | O159: 0.2503141665 | P159: 18.11022994 | Q159: 4.840607565 | R159: 350.2179574
A160: V096 | B160: Hornslet Vandværk a.m.b.a. | C160: Region Midtjylland | D160: Syddjurs Kommune | E160: 213401 | F160: 375 | G160: 11.25 | H160: =F160+G160*Nøgletal!$C$9 -> 1188.9375 | I160: =H160/Nøgletal!$C$9 -> 16.43313753 | J160: 0.000844156688 | K160: 0.004262811697 | L160: 0.373749722 | M160: 0.01387214295 | N160: 1.003649542 | O160: 0.07005137086 | P160: 5.068216682 | Q160: 6.141880581 | R160: 444.3650601
A161: V175 | B161: Strømmen Vandværk | C161: Region Midtjylland | D161: Randers Kommune | E161: 237161 | F161: 408 | G161: 12.62 | H161: =F161+G161*Nøgletal!$C$9 -> 1321.057 | I161: =H161/Nøgletal!$C$9 -> 18.25925363 | J161: 0.0009381448272 | K161: 0.004737431806 | L161: 0.08257148726 | M161: 0.01712982434 | N161: 1.239342791 | O161: 0.08650196889 | P161: 6.258417449 | Q161: 1.507693728 | R161: 109.0816412
A162: V186 | B162: Tistrup Vandværk | C162: Region Syddanmark | D162: Varde Kommune | E162: 214396 | F162: 562.5 | G162: 10 | H162: =F162+G162*Nøgletal!$C$9 -> 1286 | I162: =H162/Nøgletal!$C$9 -> 17.77470629 | J162: 0.0008480926391 | K162: 0.004910212209 | L162: 0.1336827607 | M162: 0.01507459757 | N162: 1.090647134 | O162: 0.08727757983 | P162: 6.314532901 | Q162: 2.376171806 | R162: 171.9160302
A163: V201 | B163: Vandforsyningen Østlolland a.m.b.a. | C163: Region Sjælland | D163: Guldborgsund Kommune | E163: 209959 | F163: 1143.75 | G163: 15.31 | H163: =F163+G163*Nøgletal!$C$9 -> 2251.4285 | I163: =H163/Nøgletal!$C$9 -> 31.11856945 | J163: 0.0008305410661 | K163: 0.007140062259 | L163: 0.1120670698 | M163: 0.02584524985 | N163: 1.869903827 | O163: 0.2221885233 | P163: 16.07533966 | Q163: 3.487366894 | R163: 252.3109948
A164: Selskaber der ikke er blevet reguleret igennem hele perioden fra 2011-2021.
A165: V078 | B165: Hedensted Vandværk | C165: Region Midtjylland | D165: Hedensted Kommune | E165: 440556 | F165: 312.5 | G165: 11.25 | H165: =F165+G165*Nøgletal!$C$9 -> 1126.4375 | I165: =H165/Nøgletal!$C$9 -> 15.56928127
A166: V001 | B166: Andelsselskabet Ejby Vandværk | C166: Region Sjælland | D166: Køge Kommune | E166: 237900 | F166: 500 | G166: 11.25 | H166: =F166+G166*Nøgletal!$C$9 -> 1313.9375 | I166: =H166/Nøgletal!$C$9 -> 18.16085003
A167: V004 | B167: Andelsselskabet Hammerum Vandværk | C167: Region Midtjylland | D167: Herning Kommune | E167: 222639 | F167: 570.31 | G167: 14.06 | H167: =F167+G167*Nøgletal!$C$9 -> 1587.551 | I167: =H167/Nøgletal!$C$9 -> 21.94265377
A168: V005 | B168: Andelsselskabet Haarlev Vandværk | C168: Region Sjælland | D168: Stevns Kommune | E168: 222710 | F168: 706.25 | G168: 14.75 | H168: =F168+G168*Nøgletal!$C$9 -> 1773.4125 | I168: =H168/Nøgletal!$C$9 -> 24.51157567
A169: V009 | B169: Andelsselskabet Strandhuse Nr. Bjert Vandværk | C169: Region Syddanmark | D169: Kolding Kommune | E169: 238280 | F169: 343.75 | G169: 11.56 | H169: =F169+G169*Nøgletal!$C$9 -> 1180.116 | I169: =H169/Nøgletal!$C$9 -> 16.3112094
A170: V011 | B170: Andelsselskabet Vrå Vandværk | C170: Region Nordjylland | D170: Hjørring Kommune | E170: 228239 | F170: 718.75 | G170: 11.25 | H170: =F170+G170*Nøgletal!$C$9 -> 1532.6875 | I170: =H170/Nøgletal!$C$9 -> 21.18434692
A171: V029 | B171: Bramdrupdam Vandværk I/S (SKØN) | C171: Region Syddanmark | D171: Kolding Kommune | E171: 337729 | F171: 437.5 | G171: 11.88 | H171: =F171+G171*Nøgletal!$C$9 -> 1297.018 | I171: =H171/Nøgletal!$C$9 -> 17.92699378
A172: V031 | B172: Branderup Vandværk | C172: Region Syddanmark | D172: Tønder Kommune | E172: 333477 | F172: 531.25 | G172: 7.81 | H172: =F172+G172*Nøgletal!$C$9 -> 1096.3035 | I172: =H172/Nøgletal!$C$9 -> 15.15277816
A173: V032 | B173: Bredebro Andelsvandværk | C173: Region Syddanmark | D173: Tønder Kommune | E173: 216004 | F173: 437.5 | G173: 9.19 | H173: =F173+G173*Nøgletal!$C$9 -> 1102.3965 | I173: =H173/Nøgletal!$C$9 -> 15.23699378
A174: V033 | B174: Broager Vandværk a.m.b.a. (SKØN) | C174: Region Syddanmark | D174: Sønderborg Kommune | E174: 210302 | F174: 460.19 | G174: 12.44 | H174: =F174+G174*Nøgletal!$C$9 -> 1360.224 | I174: =H174/Nøgletal!$C$9 -> 18.80060815
A175: V034 | B175: Brædstrup Vandværk a.m.b.a. | C175: Region Midtjylland | D175: Horsens Kommune | E175: 273190 | F175: 312.5 | G175: 10.47 | H175: =F175+G175*Nøgletal!$C$9 -> 1070.0045 | I175: =H175/Nøgletal!$C$9 -> 14.78928127
A176: V036 | B176: Brørup Vandværk A.m.b.a. | C176: Region Syddanmark | D176: Vejen Kommune | E176: 439244 | F176: 625 | G176: 10.38 | H176: =F176+G176*Nøgletal!$C$9 -> 1375.993 | I176: =H176/Nøgletal!$C$9 -> 19.01856254
A177: V042 | B177: Egå vandværk a.m.b.a | C177: Region Midtjylland | D177: Aarhus Kommune | E177: 211204 | F177: 643.75 | G177: 18.35 | H177: =F177+G177*Nøgletal!$C$9 -> 1971.3725 | I177: =H177/Nøgletal!$C$9 -> 27.24771942
A178: V046 | B178: Farsø Vandværk I/S | C178: Region Nordjylland | D178: Vesthimmerlands Kommune | E178: 200440 | F178: 375 | G178: 10 | H178: =F178+G178*Nøgletal!$C$9 -> 1098.5 | I178: =H178/Nøgletal!$C$9 -> 15.18313753
A179: V048 | B179: Faxe Vandværk s.m.b.a. | C179: Region Sjælland | D179: Faxe Kommune | E179: 252980 | F179: 625 | G179: 13.75 | H179: =F179+G179*Nøgletal!$C$9 -> 1619.8125 | I179: =H179/Nøgletal!$C$9 -> 22.38856254
A180: V064 | B180: Gl. Hørning Vandværk | C180: Region Midtjylland | D180: Skanderborg Kommune | E180: 261450 | F180: 250 | G180: 11.75 | H180: =F180+G180*Nøgletal!$C$9 -> 1100.1125 | I180: =H180/Nøgletal!$C$9 -> 15.20542502
A181: V066 | B181: Glamsbjerg vandværk | C181: Region Syddanmark | D181: Assens Kommune | E181: 225120 | F181: 800 | G181: 11.25 | H181: =F181+G181*Nøgletal!$C$9 -> 1613.9375 | I181: =H181/Nøgletal!$C$9 -> 22.30736006
A182: V075 | B182: Halsnæs Vandforsyning a.m.b.a. | C182: Region Hovedstaden | D182: Halsnæs Kommune | E182: 478549 | F182: 762.5 | G182: 20.75 | H182: =F182+G182*Nøgletal!$C$9 -> 2263.7625 | I182: =H182/Nøgletal!$C$9 -> 31.2890463
A183: V076 | B183: Hammel Vandværk a.m.b.a. | C183: Region Midtjylland | D183: Favrskov Kommune | E183: 457073 | F183: 500 | G183: 10.63 | H183: =F183+G183*Nøgletal!$C$9 -> 1269.0805 | I183: =H183/Nøgletal!$C$9 -> 17.54085003
A184: V077 | B184: Hasselager-Kolt Vandværk A.M.B.A. | C184: Region Midtjylland | D184: Aarhus Kommune | E184: 331045 | F184: 512.5 | G184: 14.06 | H184: =F184+G184*Nøgletal!$C$9 -> 1529.741 | I184: =H184/Nøgletal!$C$9 -> 21.14362129
A185: V082 | B185: Hinnerup Vandværk A.m.b.a. | C185: Region Midtjylland | D185: Favrskov Kommune | E185: 326418 | F185: 0 | G185: 14.7 | H185: =F185+G185*Nøgletal!$C$9 -> 1063.545 | I185: =H185/Nøgletal!$C$9 -> 14.7
A186: V083 | B186: Hjallerup Vandforsyning | C186: Region Nordjylland | D186: Brønderslev Kommune | E186: 267801 | F186: 846.25 | G186: 8.13 | H186: =F186+G186*Nøgletal!$C$9 -> 1434.4555 | I186: =H186/Nøgletal!$C$9 -> 19.82661368
A187: V084 | B187: Hjerting Vandværk a.m.b.a. | C187: Region Syddanmark | D187: Esbjerg Kommune | E187: 334131 | F187: 700 | G187: 12.5 | H187: =F187+G187*Nøgletal!$C$9 -> 1604.375 | I187: =H187/Nøgletal!$C$9 -> 22.17519005
A188: V095 | B188: Hornbæk Vandværk a.m.b.a. | C188: Region Hovedstaden | D188: Helsingør Kommune | E188: 243251 | F188: 562.5 | G188: 13 | H188: =F188+G188*Nøgletal!$C$9 -> 1503.05 | I188: =H188/Nøgletal!$C$9 -> 20.77470629
A189: V099 | B189: Hurup Vandværk | C189: Region Nordjylland | D189: Thisted Kommune | E189: 344511 | F189: 625 | G189: 10 | H189: =F189+G189*Nøgletal!$C$9 -> 1348.5 | I189: =H189/Nøgletal!$C$9 -> 18.63856254
A190: V100 | B190: Hæstrup Vandværk I/S | C190: Region Nordjylland | D190: Hjørring Kommune | E190: 222766 | F190: 706.25 | G190: 9.19 | H190: =F190+G190*Nøgletal!$C$9 -> 1371.1465 | I190: =H190/Nøgletal!$C$9 -> 18.95157567
A191: V105 | B191: I/S Ørslev Vandværk | C191: Region Sjælland | D191: Vordingborg Kommune | E191: 318354 | F191: 375 | G191: 10.93 | H191: =F191+G191*Nøgletal!$C$9 -> 1165.7855 | I191: =H191/Nøgletal!$C$9 -> 16.11313753
A192: V109 | B192: Juelsminde Vand | C192: Region Midtjylland | D192: Hedensted Kommune | E192: 236650 | F192: 500 | G192: 10.62 | H192: =F192+G192*Nøgletal!$C$9 -> 1268.357 | I192: =H192/Nøgletal!$C$9 -> 17.53085003
A193: V121 | B193: Lille Næstved Vandværk | C193: Region Sjælland | D193: Næstved Kommune | E193: 214668 | F193: 312.5 | G193: 12.19 | H193: =F193+G193*Nøgletal!$C$9 -> 1194.4465 | I193: =H193/Nøgletal!$C$9 -> 16.50928127
A194: V129 | B194: Løgten Skødstrup Vandværk A.m.b.a. | C194: Region Midtjylland | D194: Aarhus Kommune | E194: 287932 | F194: 518.75 | G194: 13.01 | H194: =F194+G194*Nøgletal!$C$9 -> 1460.0235 | I194: =H194/Nøgletal!$C$9 -> 20.18000691
A195: V130 | B195: Løkken Vandværk | C195: Region Nordjylland | D195: Hjørring Kommune | E195: 259145 | F195: 687.5 | G195: 9.06 | H195: =F195+G195*Nøgletal!$C$9 -> 1342.991 | I195: =H195/Nøgletal!$C$9 -> 18.5624188
A196: V139 | B196: Nr. Uttrup Vandværk a.m.b.a | C196: Region Nordjylland | D196: Aalborg Kommune | E196: 213413 | F196: 625 | G196: 11.69 | H196: =F196+G196*Nøgletal!$C$9 -> 1470.7715 | I196: =H196/Nøgletal!$C$9 -> 20.32856254
A197: V143 | B197: Nørre Alslev Vandværk | C197: Region Sjælland | D197: Guldborgsund Kommune | E197: 263513 | F197: 712.5 | G197: 11.75 | H197: =F197+G197*Nøgletal!$C$9 -> 1562.6125 | I197: =H197/Nøgletal!$C$9 -> 21.5979613
A198: V147 | B198: Outrup Vandværk I/S | C198: Region Syddanmark | D198: Varde Kommune | E198: 309308 | F198: 1100 | G198: 10 | H198: =F198+G198*Nøgletal!$C$9 -> 1823.5 | I198: =H198/Nøgletal!$C$9 -> 25.20387008
A199: V148 | B199: Oksby Og Ho Vandværk a.m.b.a. | C199: Region Syddanmark | D199: Varde Kommune | E199: 273730 | F199: 750 | G199: 11.25 | H199: =F199+G199*Nøgletal!$C$9 -> 1563.9375 | I199: =H199/Nøgletal!$C$9 -> 21.61627505
A200: V157 | B200: Ry Vandværk | C200: Region Midtjylland | D200: Skanderborg Kommune | E200: 286000 | F200: 812.5 | G200: 12.4 | H200: =F200+G200*Nøgletal!$C$9 -> 1709.64 | I200: =H200/Nøgletal!$C$9 -> 23.63013131
... 17 more rows

Sheet S 2011
A1: Forside | F1: Takstblad | H1: Beregning | J1: Vægte | M1: Land | O1: Region | Q1: Kommune
A2: ID | B2: Selskabsnavn | C2: Region | D2: Kommune | E2: Debiteret vandmængde | F2: Fast Årligt Bidrag | G2: Kubikmeterpris | H2: Samlede udgifter for en husholdning | I2: Takst inkl. Fast bidrag | J2: Land | K2: Region | L2: Kommune | M2: Vægtet takst | N2: Vægtet årlige udgifter | O2: Vægtet takst | P2: Vægtet årlige udgifter | Q2: Vægtet takst | R2: Vægtet årlige udgifter
A3: S001 | B3: Afløb Ballerup A/S | C3: Region Hovedstaden | D3: Ballerup Kommune | E3: 2703561 | F3: 0 | G3: 19.63 | H3: =F3+G3*Nøgletal!$C$9 -> 1420.2305 | I3: =H3/Nøgletal!$C$9 -> 19.63 | J3: =IF(H3>0,E3/(SUMIFS($E$3:$E$99,$H$3:$H$99,">0")),"-") -> 0.01001630711 | K3: =IF(H3>0,E3/(SUMIFS($E$3:$E$99,$C$3:$C$99,C3,$H$3:$H$99,">0")),"-") -> 0.03090637687 | L3: =IF(H3>0,E3/(SUMIFS($E$3:$E$99,$D$3:$D$99,D3,$H$3:$H$99,">0")),"-") -> 1 | M3: =IF(H3>0,J3*I3,"-") -> 0.1966201086 | N3: =IF(H3>0,J3*H3,"-") -> 14.22546486 | O3: =IF(H3>0,K3*I3,"-") -> 0.606692178 | P3: =IF(H3>0,K3*H3,"-") -> 43.89417908 | Q3: =IF(H3>0,L3*I3,"-") -> 19.63 | R3: =IF(H3>0,L3*H3,"-") -> 1420.2305
A4: S002 | B4: Allerød Spildevand A/S | C4: Region Hovedstaden | D4: Allerød Kommune | E4: 1099383 | F4: 0 | G4: 41.41 | H4: =F4+G4*Nøgletal!$C$9 -> 2996.0135 | I4: =H4/Nøgletal!$C$9 -> 41.41 | J4: =IF(H4>0,E4/(SUMIFS($E$3:$E$99,$H$3:$H$99,">0")),"-") -> 0.004073056892 | K4: =IF(H4>0,E4/(SUMIFS($E$3:$E$99,$C$3:$C$99,C4,$H$3:$H$99,">0")),"-") -> 0.0125678486 | L4: =IF(H4>0,E4/(SUMIFS($E$3:$E$99,$D$3:$D$99,D4,$H$3:$H$99,">0")),"-") -> 1 | M4: =IF(H4>0,J4*I4,"-") -> 0.1686652859 | N4: =IF(H4>0,J4*H4,"-") -> 12.20293343 | O4: =IF(H4>0,K4*I4,"-") -> 0.5204346104 | P4: =IF(H4>0,K4*H4,"-") -> 37.65344407 | Q4: =IF(H4>0,L4*I4,"-") -> 41.41 | R4: =IF(H4>0,L4*H4,"-") -> 2996.0135
A5: S003 | B5: AquaDjurs A/S | C5: Region Midtjylland | D5: Norddjurs Kommune | E5: 1759913 | F5: 687 | G5: 35 | H5: =F5+G5*Nøgletal!$C$9 -> 3219.25 | I5: =H5/Nøgletal!$C$9 -> 44.49550795 | J5: 0.006520226139 | K5: 0.03035867599 | L5: 1 | M5: 0.290120774 | N5: 20.990238 | O5: 1.350824709 | P5: 97.73216768 | Q5: 44.49550795 | R5: 3219.25
A6: S004 | B6: Arwos Spildevand A/S | C6: Region Syddanmark | D6: Aabenraa Kommune | E6: 3068492 | F6: 312.5 | G6: 32.5 | H6: =F6+G6*Nøgletal!$C$9 -> 2663.875 | I6: =H6/Nøgletal!$C$9 -> 36.81928127 | J6: 0.01136832431 | K6: 0.05064816199 | L6: 1 | M6: 0.4185735305 | N6: 30.28379493 | O6: 1.864828922 | P6: 134.9203725 | Q6: 36.81928127 | R6: 2663.875
A7: S006 | B7: Assens Spildevand A/S | C7: Region Syddanmark | D7: Assens Kommune | E7: 1843200 | F7: 649 | G7: 38.35 | H7: =F7+G7*Nøgletal!$C$9 -> 3423.6225 | I7: =H7/Nøgletal!$C$9 -> 47.32028334 | J7: 0.006828792571 | K7: 0.03042363877 | L7: 1 | M7: 0.3231403994 | N7: 23.37920789 | O7: 1.439655207 | P7: 104.1590542 | Q7: 47.32028334 | R7: 3423.6225
A8: S007 | B8: Billund Spildevand A/S | C8: Region Syddanmark | D8: Billund Kommune | E8: 1296682 | F8: 662.5 | G8: 36 | H8: =F8+G8*Nøgletal!$C$9 -> 3267.1 | I8: =H8/Nøgletal!$C$9 -> 45.1568763 | J8: 0.004804021489 | K8: 0.02140287802 | L8: 1 | M8: 0.2169346041 | N8: 15.69521861 | O8: 0.9664871152 | P8: 69.92534278 | Q8: 45.1568763 | R8: 3267.1
A9: S010 | B9: Bornholms Spildevand A/S | C9: Region Hovedstaden | D9: Bornholms Regionskommune | E9: 1904441 | F9: 625 | G9: 30.75 | H9: =F9+G9*Nøgletal!$C$9 -> 2849.7625 | I9: =H9/Nøgletal!$C$9 -> 39.38856254 | J9: 0.007055681723 | K9: 0.02177105354 | L9: 1 | M9: 0.2779131608 | N9: 20.10701719 | O9: 0.8575305039 | P9: 62.04233196 | Q9: 39.38856254 | R9: 2849.7625
A10: S011 | B10: Brøndby Kloakforsyning A/S | C10: Region Hovedstaden | D10: Brøndby Kommune | E10: 1939607 | F10: 0 | G10: 24 | H10: =F10+G10*Nøgletal!$C$9 -> 1736.4 | I10: =H10/Nøgletal!$C$9 -> 24 | J10: 0.007185966728 | K10: 0.02217306172 | L10: 1 | M10: 0.1724632015 | N10: 12.47771263 | O10: 0.5321534813 | P10: 38.50130438 | Q10: 24 | R10: 1736.4
A11: S012 | B11: Brønderslev Spildevand A/S | C11: Region Nordjylland | D11: Brønderslev Kommune | E11: 1331870 | F11: 0 | G11: 33.5 | H11: =F11+G11*Nøgletal!$C$9 -> 2423.725 | I11: =H11/Nøgletal!$C$9 -> 33.5 | J11: 0.004934388 | K11: 0.04486146324 | L11: 1 | M11: 0.165301998 | N11: 11.95959956 | O11: 1.502859019 | P11: 108.73185 | Q11: 33.5 | R11: 2423.725
A12: S013 | B12: Egedal Spildevand A/S | C12: Region Hovedstaden | D12: Egedal Kommune | E12: 1607185 | F12: 0 | G12: 43.85 | H12: =F12+G12*Nøgletal!$C$9 -> 3172.5475 | I12: =H12/Nøgletal!$C$9 -> 43.85 | J12: 0.005954390727 | K12: 0.01837290348 | L12: 1 | M12: 0.2611000334 | N12: 18.89058742 | O12: 0.8056518177 | P12: 58.28890901 | Q12: 43.85 | R12: 3172.5475
A13: S014 | B13: Energi Viborg Spildevand A/S | C13: Region Midtjylland | D13: Viborg Kommune | E13: 4020444 | F13: 0 | G13: 33.63 | H13: =F13+G13*Nøgletal!$C$9 -> 2433.1305 | I13: =H13/Nøgletal!$C$9 -> 33.63 | J13: 0.01489517042 | K13: 0.06935306276 | L13: 1 | M13: 0.5009245812 | N13: 36.24189345 | O13: 2.3323435 | P13: 168.7450523 | Q13: 33.63 | R13: 2433.1305
A14: S015 | B14: Esbjerg Spildevand A/S | C14: Region Syddanmark | D14: Esbjerg Kommune | E14: 6840558 | F14: 635 | G14: 21.16 | H14: =F14+G14*Nøgletal!$C$9 -> 2165.926 | I14: =H14/Nøgletal!$C$9 -> 29.93677954 | J14: 0.02534328974 | K14: 0.1129094323 | L14: 1 | M14: 0.7586964779 | N14: 54.89169018 | O14: 3.380144783 | P14: 244.553475 | Q14: 29.93677954 | R14: 2165.926
A15: S016 | B15: Fanø Vand A/S | C15: Region Syddanmark | D15: Fanø Kommune | E15: 161640 | F15: 683.75 | G15: 47.31 | H15: =F15+G15*Nøgletal!$C$9 -> 4106.6285 | I15: =H15/Nøgletal!$C$9 -> 56.76058742 | J15: 0.0005988530985 | K15: 0.002668010509 | L15: 1 | M15: 0.03399125365 | N15: 2.459267202 | O15: 0.1514378438 | P15: 10.956528 | Q15: 56.76058742 | R15: 4106.6285
A16: S017 | B16: Favrskov Spildevand A/S | C16: Region Midtjylland | D16: Favrskov Kommune | E16: 1854263 | F16: 421 | G16: 32.65 | H16: =F16+G16*Nøgletal!$C$9 -> 2783.2275 | I16: =H16/Nøgletal!$C$9 -> 38.46893573 | J16: 0.006869779405 | K16: 0.03198622297 | L16: 1 | M16: 0.2642731024 | N16: 19.12015896 | O16: 1.230475955 | P16: 89.02493538 | Q16: 38.46893573 | R16: 2783.2275
A17: S018 | B17: Faxe Spildevand A/S | C17: Region Sjælland | D17: Faxe Kommune | E17: 1967431 | F17: 535 | G17: 28.94 | H17: =F17+G17*Nøgletal!$C$9 -> 2628.809 | I17: =H17/Nøgletal!$C$9 -> 36.33460954 | J17: 0.007289050671 | K17: 0.05753318078 | L17: 1 | M17: 0.26484481 | N17: 19.16152201 | O17: 2.090445659 | P17: 151.2437434 | Q17: 36.33460954 | R17: 2628.809
A18: S020 | B18: FFV Spildevand A/S | C18: Region Syddanmark | D18: Faaborg-Midtfyn Kommune | E18: 2387616 | F18: 687 | G18: 32.71 | H18: =F18+G18*Nøgletal!$C$9 -> 3053.5685 | I18: =H18/Nøgletal!$C$9 -> 42.20550795 | J18: 0.008845776043 | K18: 0.03940970416 | L18: 1 | M18: 0.3733404711 | N18: 27.01118308 | O18: 1.663306582 | P18: 120.3402312 | Q18: 42.20550795 | R18: 3053.5685
A19: S021 | B19: Forsyning Helsingør Spildevand A/S | C19: Region Hovedstaden | D19: Helsingør Kommune | E19: 2981381 | F19: 0 | G19: 42.25 | H19: =F19+G19*Nøgletal!$C$9 -> 3056.7875 | I19: =H19/Nøgletal!$C$9 -> 42.25 | J19: 0.01104559051 | K19: 0.03408233984 | L19: 1 | M19: 0.466676199 | N19: 33.76402299 | O19: 1.439978858 | P19: 104.1824704 | Q19: 42.25 | R19: 3056.7875
A20: S022 | B20: Fredensborg Spildevand A/S | C20: Region Hovedstaden | D20: Fredensborg Kommune | E20: 1756308 | F20: 0 | G20: 43.56 | H20: =F20+G20*Nøgletal!$C$9 -> 3151.566 | I20: =H20/Nøgletal!$C$9 -> 43.56 | J20: 0.00650687013 | K20: 0.02007763722 | L20: 1 | M20: 0.2834392628 | N20: 20.50683067 | O20: 0.8745818771 | P20: 63.27599881 | Q20: 43.56 | R20: 3151.566
A21: S023 | B21: Fredericia Spildevand A/S | C21: Region Syddanmark | D21: Fredericia Kommune | E21: 4439222 | F21: 0 | G21: 22.5 | H21: =F21+G21*Nøgletal!$C$9 -> 1627.875 | I21: =H21/Nøgletal!$C$9 -> 22.5 | J21: 0.01644668306 | K21: 0.07327326744 | L21: 1 | M21: 0.3700503688 | N21: 26.77314418 | O21: 1.648648517 | P21: 119.2797202 | Q21: 22.5 | R21: 1627.875
A22: S024 | B22: Frederiksberg Kloak A/S | C22: Region Hovedstaden | D22: Frederiksberg Kommune | E22: 4880937 | F22: 0 | G22: 13.68 | H22: =F22+G22*Nøgletal!$C$9 -> 989.748 | I22: =H22/Nøgletal!$C$9 -> 13.68 | J22: 0.018083174 | K22: 0.05579754938 | L22: 1 | M22: 0.2473778204 | N22: 17.8977853 | O22: 0.7633104756 | P22: 55.22551291 | Q22: 13.68 | R22: 989.748
A23: S025 | B23: Frederikshavn Spildevand A/S | C23: Region Nordjylland | D23: Frederikshavn Kommune | E23: 3909685 | F23: 831.25 | G23: 39.35 | H23: =F23+G23*Nøgletal!$C$9 -> 3678.2225 | I23: =H23/Nøgletal!$C$9 -> 50.83928818 | J23: 0.01448482416 | K23: 0.1316901724 | L23: 1 | M23: 0.7363981495 | N23: 53.27840612 | O23: 6.695034625 | P23: 484.3857551 | Q23: 50.83928818 | R23: 3678.2225
A24: S026 | B24: Frederikssund Spildevand A/S | C24: Region Hovedstaden | D24: Frederikssund Kommune | E24: 1987868 | F24: 650 | G24: 35 | H24: =F24+G24*Nøgletal!$C$9 -> 3182.25 | I24: =H24/Nøgletal!$C$9 -> 43.98410504 | J24: 0.007364766835 | K24: 0.0227247684 | L24: 1 | M24: 0.3239326781 | N24: 23.43652926 | O24: 0.9995286004 | P24: 72.31589424 | Q24: 43.98410504 | R24: 3182.25
A25: S027 | B25: Furesø Spildevand A/S | C25: Region Hovedstaden | D25: Furesø Kommune | E25: 1759701 | F25: 0 | G25: 45.84 | H25: =F25+G25*Nøgletal!$C$9 -> 3316.524 | I25: =H25/Nøgletal!$C$9 -> 45.84 | J25: 0.00651944071 | K25: 0.02011642507 | L25: 1 | M25: 0.2988511621 | N25: 21.62188158 | O25: 0.9221369253 | P25: 66.71660655 | Q25: 45.84 | R25: 3316.524
A26: S028 | B26: Gentofte Spildevand A/S | C26: Region Hovedstaden | D26: Gentofte Kommune | E26: 3710049 | F26: 0 | G26: 26.64 | H26: =F26+G26*Nøgletal!$C$9 -> 1927.404 | I26: =H26/Nøgletal!$C$9 -> 26.64 | J26: 0.01374520131 | K26: 0.042412275 | L26: 1 | M26: 0.3661721628 | N26: 26.49255598 | O26: 1.129863006 | P26: 81.74558848 | Q26: 26.64 | R26: 1927.404
A27: S029 | B27: Gladsaxe Spildevand A/S | C27: Region Hovedstaden | D27: Gladsaxe Kommune | E27: 3232267 | F27: 0 | G27: 21.9 | H27: =F27+G27*Nøgletal!$C$9 -> 1584.465 | I27: =H27/Nøgletal!$C$9 -> 21.9 | J27: 0.01197508728 | K27: 0.03695040062 | L27: 1 | M27: 0.2622544115 | N27: 18.97410667 | O27: 0.8092137736 | P27: 58.54661652 | Q27: 21.9 | R27: 1584.465
A28: S030 | B28: Glostrup Spildevand a/s | C28: Region Hovedstaden | D28: Glostrup Kommune | E28: 1345703 | F28: 0 | G28: 20.23 | H28: =F28+G28*Nøgletal!$C$9 -> 1463.6405 | I28: =H28/Nøgletal!$C$9 -> 20.23 | J28: 0.004985637288 | K28: 0.0153837121 | L28: 1 | M28: 0.1008594423 | N28: 7.297180653 | O28: 0.3112124958 | P28: 22.51622407 | Q28: 20.23 | R28: 1463.6405
A29: S031 | B29: Greve Spildevand A/S | C29: Region Sjælland | D29: Greve Kommune | E29: 2201360 | F29: 0 | G29: 30.08 | H29: =F29+G29*Nøgletal!$C$9 -> 2176.288 | I29: =H29/Nøgletal!$C$9 -> 30.08 | J29: 0.008155724183 | K29: 0.06437391849 | L29: 1 | M29: 0.2453241834 | N29: 17.74920467 | O29: 1.936367468 | P29: 140.0961863 | Q29: 30.08 | R29: 2176.288
A30: S032 | B30: Gribvand Spildevand A/S | C30: Region Hovedstaden | D30: Gribskov Kommune | E30: 1768713 | F30: 640 | G30: 43.38 | H30: =F30+G30*Nøgletal!$C$9 -> 3778.543 | I30: =H30/Nøgletal!$C$9 -> 52.22588804 | J30: 0.006552828882 | K30: 0.02021944782 | L30: 1 | M30: 0.3422273075 | N30: 24.7601457 | O30: 1.055978618 | P30: 76.40005301 | Q30: 52.22588804 | R30: 3778.543
A31: S033 | B31: Guldborgsund Spildevand A/S | C31: Region Sjælland | D31: Guldborgsund Kommune | E31: 2597398 | F31: 719.99 | G31: 34.38 | H31: =F31+G31*Nøgletal!$C$9 -> 3207.383 | I31: =H31/Nøgletal!$C$9 -> 44.33148583 | J31: 0.009622988371 | K31: 0.07595517641 | L31: 1 | M31: 0.4266013727 | N31: 30.86460931 | O31: 3.367205827 | P31: 243.6173416 | Q31: 44.33148583 | R31: 3207.383
A32: S034 | B32: Haderslev Spildevand A/S | C32: Region Syddanmark | D32: Haderslev Kommune | E32: 2318789 | F32: 687 | G32: 42.65 | H32: =F32+G32*Nøgletal!$C$9 -> 3772.7275 | I32: =H32/Nøgletal!$C$9 -> 52.14550795 | J32: 0.008590781845 | K32: 0.03827365393 | L32: 1 | M32: 0.447970683 | N32: 32.41067891 | O32: 1.995799125 | P32: 144.3960667 | Q32: 52.14550795 | R32: 3772.7275
A33: S035 | B33: Halsnaes Forsyning A/S | C33: Region Hovedstaden | D33: Halsnæs Kommune | E33: 1392858 | F33: 525 | G33: 48.75 | H33: =F33+G33*Nøgletal!$C$9 -> 4052.0625 | I33: =H33/Nøgletal!$C$9 -> 56.00639254 | J33: 0.005160339824 | K33: 0.01592277529 | L33: 1 | M33: 0.2890120178 | N33: 20.91001949 | O33: 0.891777203 | P33: 64.52008063 | Q33: 56.00639254 | R33: 4052.0625
A34: S036 | B34: Hedensted Spildevand | C34: Region Midtjylland | D34: Hedensted Kommune | E34: 1839505 | F34: 759 | G34: 43.75 | H34: =F34+G34*Nøgletal!$C$9 -> 3924.3125 | I34: =H34/Nøgletal!$C$9 -> 54.24067035 | J34: 0.006815103124 | K34: 0.03173164598 | L34: 1 | M34: 0.369655762 | N34: 26.74459438 | O34: 1.72114575 | P34: 124.524895 | Q34: 54.24067035 | R34: 3924.3125
A35: S038 | B35: Herning Vand A/S | C35: Region Midtjylland | D35: Herning Kommune | E35: 4240352 | F35: 0 | G35: 25.63 | H35: =F35+G35*Nøgletal!$C$9 -> 1854.3305 | I35: =H35/Nøgletal!$C$9 -> 25.63 | J35: 0.01570989813 | K35: 0.07314649784 | L35: 1 | M35: 0.4026446891 | N35: 29.13134326 | O35: 1.87474474 | P35: 135.6377819 | Q35: 25.63 | R35: 1854.3305
A36: S039 | B36: Hillerød Spildevand A/S | C36: Region Hovedstaden | D36: Hillerød Kommune | E36: 2287971 | F36: 0 | G36: 43.95 | H36: =F36+G36*Nøgletal!$C$9 -> 3179.7825 | I36: =H36/Nøgletal!$C$9 -> 43.95 | J36: 0.00847660556 | K36: 0.02615546459 | L36: 1 | M36: 0.3725468143 | N36: 26.95376202 | O36: 1.149532669 | P36: 83.16868858 | Q36: 43.95 | R36: 3179.7825
A37: S040 | B37: Hjørring Vandselskab A/S | C37: Region Nordjylland | D37: Hjørring Kommune | E37: 3379300 | F37: 802.5 | G37: 27.94 | H37: =F37+G37*Nøgletal!$C$9 -> 2823.959 | I37: =H37/Nøgletal!$C$9 -> 39.03191431 | J37: 0.01251982353 | K37: 0.1138251802 | L37: 1 | M37: 0.4886726792 | N37: 35.35546834 | O37: 4.442814679 | P37: 321.437642 | Q37: 39.03191431 | R37: 2823.959
A38: S041 | B38: HOFOR Spildevand Albertslund A/S | C38: Region Hovedstaden | D38: Albertslund Kommune | E38: 1372721 | F38: 0 | G38: 27.68 | H38: =F38+G38*Nøgletal!$C$9 -> 2002.648 | I38: =H38/Nøgletal!$C$9 -> 27.68 | J38: 0.005085735117 | K38: 0.01569257456 | L38: 1 | M38: 0.140773148 | N38: 10.18493726 | O38: 0.4343704638 | P38: 31.42670305 | Q38: 27.68 | R38: 2002.648
A39: S042 | B39: HOFOR Spildevand Dragør A/S | C39: Region Hovedstaden | D39: Dragør Kommune | E39: 655554 | F39: 0 | G39: 37.5 | H39: =F39+G39*Nøgletal!$C$9 -> 2713.125 | I39: =H39/Nøgletal!$C$9 -> 37.5 | J39: 0.002428733879 | K39: 0.007494115718 | L39: 1 | M39: 0.09107752045 | N39: 6.589458604 | O39: 0.2810293394 | P39: 20.33247271 | Q39: 37.5 | R39: 2713.125
A40: S043 | B40: HOFOR Spildevand Herlev A/S | C40: Region Hovedstaden | D40: Herlev Kommune | E40: 1478340 | F40: 0 | G40: 33.61 | H40: =F40+G40*Nøgletal!$C$9 -> 2431.6835 | I40: =H40/Nøgletal!$C$9 -> 33.61 | J40: 0.005477038417 | K40: 0.01689998235 | L40: 1 | M40: 0.1840832612 | N40: 13.31842395 | O40: 0.5680084068 | P40: 41.09540823 | Q40: 33.61 | R40: 2431.6835
A41: S044 | B41: HOFOR Spildevand Hvidovre A/S | C41: Region Hovedstaden | D41: Hvidovre Kommune | E41: 2922372 | F41: 0 | G41: 28.25 | H41: =F41+G41*Nøgletal!$C$9 -> 2043.8875 | I41: =H41/Nøgletal!$C$9 -> 28.25 | J41: 0.0108269706 | K41: 0.03340776494 | L41: 1 | M41: 0.3058619193 | N41: 22.12910986 | O41: 0.9437693596 | P41: 68.28171316 | Q41: 28.25 | R41: 2043.8875
A42: S045 | B42: HOFOR Spildevand København A/S | C42: Region Hovedstaden | D42: Københavns Kommune | E42: 30105989 | F42: 0 | G42: 17.55 | H42: =F42+G42*Nøgletal!$C$9 -> 1269.7425 | I42: =H42/Nøgletal!$C$9 -> 17.55 | J42: 0.1115383865 | K42: 0.3441635096 | L42: 1 | M42: 1.957498683 | N42: 141.6250297 | O42: 6.040069593 | P42: 436.9990351 | Q42: 17.55 | R42: 1269.7425
A43: S046 | B43: HOFOR Spildevand Rødovre A/S | C43: Region Hovedstaden | D43: Rødovre Kommune | E43: 1696623 | F43: 0 | G43: 18.34 | H43: =F43+G43*Nøgletal!$C$9 -> 1326.899 | I43: =H43/Nøgletal!$C$9 -> 18.34 | J43: 0.006285745735 | K43: 0.01939533447 | L43: 1 | M43: 0.1152805768 | N43: 8.34054973 | O43: 0.3557104341 | P43: 25.73564991 | Q43: 18.34 | R43: 1326.899
A44: S047 | B44: Holbæk Spildevand A/S | C44: Region Sjælland | D44: Holbæk Kommune | E44: 3075173 | F44: 0 | G44: 30.5 | H44: =F44+G44*Nøgletal!$C$9 -> 2206.675 | I44: =H44/Nøgletal!$C$9 -> 30.5 | J44: 0.01139307646 | K44: 0.08992665264 | L44: 1 | M44: 0.3474888321 | N44: 25.140817 | O44: 2.742762905 | P44: 198.4388962 | Q44: 30.5 | R44: 2206.675
A45: S048 | B45: Horsens Vand A/S | C45: Region Midtjylland | D45: Horsens Kommune | E45: 4617371 | F45: 663.75 | G45: 23.85 | H45: =F45+G45*Nøgletal!$C$9 -> 2389.2975 | I45: =H45/Nøgletal!$C$9 -> 33.02415342 | J45: 0.01710669964 | K45: 0.07965011345 | L45: 1 | M45: 0.5649342735 | N45: 40.87299469 | O45: 2.630377567 | P45: 190.3078169 | Q45: 33.02415342 | R45: 2389.2975
A46: S049 | B46: HTK Kloak A/S | C46: Region Hovedstaden | D46: Høje-Taastrup Kommune | E46: 2354624 | F46: 0 | G46: 23.1 | H46: =F46+G46*Nøgletal!$C$9 -> 1671.285 | I46: =H46/Nøgletal!$C$9 -> 23.1 | J46: 0.008723545399 | K46: 0.02691742363 | L46: 1 | M46: 0.2015138987 | N46: 14.57953057 | O46: 0.6217924857 | P46: 44.98668634 | Q46: 23.1 | R46: 1671.285
A47: S051 | B47: Hørsholm Vand ApS | C47: Region Hovedstaden | D47: Hørsholm Kommune | E47: 1216288 | F47: 0 | G47: 32.78 | H47: =F47+G47*Nøgletal!$C$9 -> 2371.633 | I47: =H47/Nøgletal!$C$9 -> 32.78 | J47: 0.004506173209 | K47: 0.01390427488 | L47: 1 | M47: 0.1477123578 | N47: 10.68698909 | O47: 0.4557821307 | P47: 32.97583716 | Q47: 32.78 | R47: 2371.633
A48: S052 | B48: Ikast-Brande Spildevand A/S | C48: Region Midtjylland | D48: Ikast-Brande Kommune | E48: 1783713 | F48: 500 | G48: 33.86 | H48: =F48+G48*Nøgletal!$C$9 -> 2949.771 | I48: =H48/Nøgletal!$C$9 -> 40.77085003 | J48: 0.006608401738 | K48: 0.03076922838 | L48: 1 | M48: 0.2694301562 | N48: 19.4932718 | O48: 1.254487596 | P48: 90.76217757 | Q48: 40.77085003 | R48: 2949.771
A49: S053 | B49: Ishøj Spildevand A/S | C49: Region Hovedstaden | D49: Ishøj Kommune | E49: 1037569 | F49: 0 | G49: 33.68 | H49: =F49+G49*Nøgletal!$C$9 -> 2436.748 | I49: =H49/Nøgletal!$C$9 -> 33.68 | J49: 0.003844044856 | K49: 0.0118612077 | L49: 1 | M49: 0.1294674308 | N49: 9.366968615 | O49: 0.3994854753 | P49: 28.90277413 | Q49: 33.68 | R49: 2436.748
A50: S054 | B50: Jammerbugt Forsyning A/S | C50: Region Nordjylland | D50: Jammerbugt Kommune | E50: 1881484 | F50: 687 | G50: 23.55 | H50: =F50+G50*Nøgletal!$C$9 -> 2390.8425 | I50: =H50/Nøgletal!$C$9 -> 33.04550795 | J50: 0.006970629319 | K50: 0.0633741471 | L50: 1 | M50: 0.2303479866 | N50: 16.66567683 | O50: 2.094230882 | P50: 151.5176043 | Q50: 33.04550795 | R50: 2390.8425
A51: S056 | B51: Kalundborg Spildevandsanlæg A/S | C51: Region Sjælland | D51: Kalundborg Kommune | E51: 1795118 | F51: 0 | G51: 36.69 | H51: =F51+G51*Nøgletal!$C$9 -> 2654.5215 | I51: =H51/Nøgletal!$C$9 -> 36.69 | J51: 0.006650655633 | K51: 0.0524942671 | L51: 1 | M51: 0.2440125552 | N51: 17.65430837 | O51: 1.92601466 | P51: 139.3471606 | Q51: 36.69 | R51: 2654.5215
A52: S057 | B52: Kerteminde Forsyning - Spildevand A/S | C52: Region Syddanmark | D52: Kerteminde Kommune | E52: 1074785 | F52: 0 | G52: 32.8 | H52: =F52+G52*Nøgletal!$C$9 -> 2373.08 | I52: =H52/Nøgletal!$C$9 -> 32.8 | J52: 0.003981924817 | K52: 0.01774027268 | L52: 1 | M52: 0.130607134 | N52: 9.449426146 | O52: 0.5818809438 | P52: 42.09908628 | Q52: 32.8 | R52: 2373.08
A53: S058 | B53: Kolding Spildevand A/S | C53: Region Syddanmark | D53: Kolding Kommune | E53: 4297558 | F53: 570 | G53: 33.75 | H53: =F53+G53*Nøgletal!$C$9 -> 3011.8125 | I53: =H53/Nøgletal!$C$9 -> 41.62836904 | J53: 0.01592183819 | K53: 0.0709349784 | L53: 1 | M53: 0.6628001558 | N53: 47.95359127 | O53: 2.952907459 | P53: 213.6428546 | Q53: 41.62836904 | R53: 3011.8125
A54: S059 | B54: Køge Afløb A/S | C54: Region Sjælland | D54: Køge Kommune | E54: 2625920 | F54: 0 | G54: 34.8 | H54: =F54+G54*Nøgletal!$C$9 -> 2517.78 | I54: =H54/Nøgletal!$C$9 -> 34.8 | J54: 0.009728658305 | K54: 0.0767892394 | L54: 1 | M54: 0.338557309 | N54: 24.49462131 | O54: 2.672265531 | P54: 193.3384112 | Q54: 34.8 | R54: 2517.78
A55: S060 | B55: Langeland Spildevand ApS | C55: Region Syddanmark | D55: Langeland Kommune | E55: 617486 | F55: 687.5 | G55: 29.3 | H55: =F55+G55*Nøgletal!$C$9 -> 2807.355 | I55: =H55/Nøgletal!$C$9 -> 38.8024188 | J55: 0.002287697379 | K55: 0.01019215007 | L55: 1 | M55: 0.08876819179 | N55: 6.422378676 | O55: 0.3954800755 | P55: 28.61298346 | Q55: 38.8024188 | R55: 2807.355
A56: S061 | B56: Lejre Spildevand A/S | C56: Region Sjælland | D56: Lejre Kommune | E56: 1029384 | F56: 675 | G56: 43.1 | H56: =F56+G56*Nøgletal!$C$9 -> 3793.285 | I56: =H56/Nøgletal!$C$9 -> 52.42964755 | J56: 0.003813720601 | K56: 0.03010206496 | L56: 1 | M56: 0.199952027 | N56: 14.46652915 | O56: 1.578240656 | P56: 114.1857115 | Q56: 52.42964755 | R56: 3793.285
A57: S062 | B57: Lemvig Vand og Spildevand A/S | C57: Region Midtjylland | D57: Lemvig Kommune | E57: 1267528 | F57: 687.5 | G57: 29.44 | H57: =F57+G57*Nøgletal!$C$9 -> 2817.484 | I57: =H57/Nøgletal!$C$9 -> 38.9424188 | J57: 0.004696010086 | K57: 0.02186498529 | L57: 1 | M57: 0.1828739914 | N57: 13.23093328 | O57: 0.8514754143 | P57: 61.60424622 | Q57: 38.9424188 | R57: 2817.484
A58: S063 | B58: Lolland Spildevand A/S | C58: Region Sjælland | D58: Lolland Kommune | E58: 1806540 | F58: 687 | G58: 47.35 | H58: =F58+G58*Nøgletal!$C$9 -> 4112.7725 | I58: =H58/Nøgletal!$C$9 -> 56.84550795 | J58: 0.00669297251 | K58: 0.0528282783 | L58: 1 | M58: 0.380465422 | N58: 27.52667328 | O58: 3.003050314 | P58: 217.2706902 | Q58: 56.84550795 | R58: 4112.7725
A59: S064 | B59: Lyngby-Taarbæk Spildevand A/S | C59: Region Hovedstaden | D59: Lyngby-Taarbæk Kommune | E59: 2737117 | F59: 0 | G59: 27.11 | H59: =F59+G59*Nøgletal!$C$9 -> 1961.4085 | I59: =H59/Nøgletal!$C$9 -> 27.11 | J59: 0.0101406273 | K59: 0.03128997997 | L59: 1 | M59: 0.274912406 | N59: 19.88991258 | O59: 0.848271357 | P59: 61.37243268 | Q59: 27.11 | R59: 1961.4085
A60: S065 | B60: Læsø Vand A/S | C60: Region Nordjylland | D60: Læsø Kommune | E60: 188798 | F60: 353.75 | G60: 22.43 | H60: =F60+G60*Nøgletal!$C$9 -> 1976.5605 | I60: =H60/Nøgletal!$C$9 -> 27.3194264 | J60: 0.0006994696071 | K60: 0.006359295229 | L60: 1 | M60: 0.01910910845 | N60: 1.382543996 | O60: 0.173732298 | P60: 12.56953176 | Q60: 27.3194264 | R60: 1976.5605
A61: S066 | B61: Mariagerfjord Vand A/S | C61: Region Nordjylland | D61: Mariagerfjord Kommune | E61: 2037171 | F61: 0 | G61: 35.2 | H61: =F61+G61*Nøgletal!$C$9 -> 2546.72 | I61: =H61/Nøgletal!$C$9 -> 35.2 | J61: 0.007547427404 | K61: 0.06861816238 | L61: 1 | M61: 0.2656694446 | N61: 19.22118432 | O61: 2.415359316 | P61: 174.7512465 | Q61: 35.2 | R61: 2546.72
A62: S067 | B62: Middelfart Spildevand A/S | C62: Region Syddanmark | D62: Middelfart Kommune | E62: 1593248 | F62: 0 | G62: 50 | H62: =F62+G62*Nøgletal!$C$9 -> 3617.5 | I62: =H62/Nøgletal!$C$9 -> 50 | J62: 0.005902756134 | K62: 0.02629796095 | L62: 1 | M62: 0.2951378067 | N62: 21.35322031 | O62: 1.314898048 | P62: 95.13287374 | Q62: 50 | R62: 3617.5
A63: S068 | B63: Morsø Forsyning A/S | C63: Region Nordjylland | D63: Morsø Kommune | E63: 857116 | F63: 603.54 | G63: 40.63 | H63: =F63+G63*Nøgletal!$C$9 -> 3543.1205 | I63: =H63/Nøgletal!$C$9 -> 48.97194886 | J63: 0.003175492281 | K63: 0.02887029359 | L63: 1 | M63: 0.1555100456 | N63: 11.2511518 | O63: 1.413834541 | P63: 102.2909291 | Q63: 48.97194886 | R63: 3543.1205
A64: S071 | B64: NFS Spildevand A/S | C64: Region Syddanmark | D64: Nyborg Kommune | E64: 1380946 | F64: 500 | G64: 40 | H64: =F64+G64*Nøgletal!$C$9 -> 3394 | I64: =H64/Nøgletal!$C$9 -> 46.91085003 | J64: 0.005116207566 | K64: 0.02279372953 | L64: 1 | M64: 0.2400056459 | N64: 17.36440848 | O64: 1.069273228 | P64: 77.36191802 | Q64: 46.91085003 | R64: 3394
A65: S072 | B65: NK-Spildevand A/S | C65: Region Sjælland | D65: Næstved Kommune | E65: 2948705 | F65: 823.75 | G65: 36.81 | H65: =F65+G65*Nøgletal!$C$9 -> 3486.9535 | I65: =H65/Nøgletal!$C$9 -> 48.19562543 | J65: 0.0109245306 | K65: 0.08622837488 | L65: 1 | M65: 0.5265145847 | N65: 38.0933302 | O65: 4.155830457 | P65: 300.6743336 | Q65: 48.19562543 | R65: 3486.9535
A66: S073 | B66: Odder Spildevand A/S | C66: Region Midtjylland | D66: Odder Kommune | E66: 918626 | F66: 312.5 | G66: 26.88 | H66: =F66+G66*Nøgletal!$C$9 -> 2257.268 | I66: =H66/Nøgletal!$C$9 -> 31.19928127 | J66: 0.003403378041 | K66: 0.01584639075 | L66: 1 | M66: 0.1061829488 | N66: 7.682336343 | O66: 0.4943960023 | P66: 35.76955076 | Q66: 31.19928127 | R66: 2257.268
A67: S074 | B67: Odsherred Spildevand A/S | C67: Region Sjælland | D67: Odsherred Kommune | E67: 1164004 | F67: 685 | G67: 40 | H67: =F67+G67*Nøgletal!$C$9 -> 3579 | I67: =H67/Nøgletal!$C$9 -> 49.46786455 | J67: 0.004312468461 | K67: 0.03403872998 | L67: 1 | M67: 0.2133286057 | N67: 15.43432462 | O67: 1.683823284 | P67: 121.8246146 | Q67: 49.46786455 | R67: 3579
A68: S075 | B68: Randers Spildevand A/S | C68: Region Midtjylland | D68: Randers Kommune | E68: 4085285 | F68: 0 | G68: 36.37 | H68: =F68+G68*Nøgletal!$C$9 -> 2631.3695 | I68: =H68/Nøgletal!$C$9 -> 36.37 | J68: =IF(H68>0,E68/(SUMIFS($E$3:$E$99,$H$3:$H$99,">0")),"-") -> 0.01513539706 | K68: =IF(H68>0,E68/(SUMIFS($E$3:$E$99,$C$3:$C$99,C68,$H$3:$H$99,">0")),"-") -> 0.07047157652 | L68: =IF(H68>0,E68/(SUMIFS($E$3:$E$99,$D$3:$D$99,D68,$H$3:$H$99,">0")),"-") -> 1 | M68: =IF(H68>0,J68*I68,"-") -> 0.550474391 | N68: =IF(H68>0,J68*H68,"-") -> 39.82682219 | O68: =IF(H68>0,K68*I68,"-") -> 2.563051238 | P68: =IF(H68>0,K68*H68,"-") -> 185.4367571 | Q68: =IF(H68>0,L68*I68,"-") -> 36.37 | R68: =IF(H68>0,L68*H68,"-") -> 2631.3695
A69: S076 | B69: Rebild Vand & Spildevand A/S | C69: Region Nordjylland | D69: Rebild Kommune | E69: 1140685 | F69: 0 | G69: 37.5 | H69: =F69+G69*Nøgletal!$C$9 -> 2713.125 | I69: =H69/Nøgletal!$C$9 -> 37.5 | J69: 0.004226074899 | K69: 0.03842176654 | L69: 1 | M69: 0.1584778087 | N69: 11.46586946 | O69: 1.440816245 | P69: 104.2430553 | Q69: 37.5 | R69: 2713.125
A70: S077 | B70: Ringkøbing-Skjern Spildevand A/S | C70: Region Midtjylland | D70: Ringkøbing-Skjern Kommune | E70: 2255416 | F70: 787.5 | G70: 35.88 | H70: =F70+G70*Nøgletal!$C$9 -> 3383.418 | I70: =H70/Nøgletal!$C$9 -> 46.7645888 | J70: 0.008355993937 | K70: 0.0389061525 | L70: 1 | M70: 0.3907646205 | N70: 28.2718203 | O70: 1.819430224 | P70: 131.6357767 | Q70: 46.7645888 | R70: 3383.418
A71: S079 | B71: Ringsted Spildevand A/S | C71: Region Sjælland | D71: Ringsted Kommune | E71: 1341830 | F71: 0 | G71: =29.79+4.98 -> 34.77 | H71: =F71+G71*Nøgletal!$C$9 -> 2515.6095 | I71: =H71/Nøgletal!$C$9 -> 34.77 | J71: 0.004971288376 | K71: 0.03923885918 | L71: 1 | M71: 0.1728516968 | N71: 12.50582027 | O71: 1.364335134 | P71: 98.70964693 | Q71: 34.77 | R71: 2515.6095
A72: S080 | B72: Roskilde Spildevand A/S | C72: Region Sjælland | D72: Roskilde Kommune | E72: 3804724 | F72: 0 | G72: 29.59 | H72: =F72+G72*Nøgletal!$C$9 -> 2140.8365 | I72: =H72/Nøgletal!$C$9 -> 29.59 | J72: 0.01409595865 | K72: 0.1112607627 | L72: 1 | M72: 0.4170994165 | N72: 30.17714278 | O72: 3.292205969 | P72: 238.1911019 | Q72: 29.59 | R72: 2140.8365
A73: S081 | B73: Rudersdal Forsyning A/S | C73: Region Hovedstaden | D73: Rudersdal Kommune | E73: 2808431 | F73: 0 | G73: 27.69 | H73: =F73+G73*Nøgletal!$C$9 -> 2003.3715 | I73: =H73/Nøgletal!$C$9 -> 27.69 | J73: 0.01040483548 | K73: 0.0321052223 | L73: 1 | M73: 0.2881098943 | N73: 20.84475085 | O73: 0.8889936054 | P73: 64.31868735 | Q73: 27.69 | R73: 2003.3715
A74: S083 | B74: Silkeborg Spildevand A/S | C74: Region Midtjylland | D74: Silkeborg Kommune | E74: 3774657 | F74: 656.25 | G74: 30 | H74: =F74+G74*Nøgletal!$C$9 -> 2826.75 | I74: =H74/Nøgletal!$C$9 -> 39.07049067 | J74: 0.01398456471 | K74: 0.06511321232 | L74: 1 | M74: 0.5463838052 | N74: 39.5308683 | O74: 2.544005155 | P74: 184.0587729 | Q74: 39.07049067 | R74: 2826.75
A75: S084 | B75: SK Spildevand A/S | C75: Region Sjælland | D75: Slagelse Kommune | E75: 3441193 | F75: 683.75 | G75: 35.63 | H75: =F75+G75*Nøgletal!$C$9 -> 3261.5805 | I75: =H75/Nøgletal!$C$9 -> 45.08058742 | J75: 0.01274912825 | K75: 0.1006301003 | L75: 1 | M75: 0.5747381907 | N75: 41.5823081 | O75: 4.536464036 | P75: 328.213173 | Q75: 45.08058742 | R75: 3261.5805
A76: S085 | B76: Skanderborg Forsyningsvirksomhed A/S | C76: Region Midtjylland | D76: Skanderborg Kommune | E76: 2307680 | F76: 0 | G76: 44.59 | H76: =F76+G76*Nøgletal!$C$9 -> 3226.0865 | I76: =H76/Nøgletal!$C$9 -> 44.59 | J76: 0.008549624588 | K76: 0.03980771175 | L76: 1 | M76: 0.3812277604 | N76: 27.58182846 | O76: 1.775025867 | P76: 128.4231215 | Q76: 44.59 | R76: 3226.0865
A77: S086 | B77: Skive Vand A/S | C77: Region Midtjylland | D77: Skive Kommune | E77: 1945733 | F77: 625 | G77: 30.63 | H77: =F77+G77*Nøgletal!$C$9 -> 2841.0805 | I77: =H77/Nøgletal!$C$9 -> 39.26856254 | J77: 0.007208662682 | K77: 0.03356408965 | L77: 1 | M77: 0.2830738214 | N77: 20.48039098 | O77: 1.318013554 | P77: 95.35828061 | Q77: 39.26856254 | R77: 2841.0805
A78: S087 | B78: Solrød Spildevand A/S | C78: Region Sjælland | D78: Solrød Kommune | E78: 864384 | F78: 0 | G78: 25.85 | H78: =F78+G78*Nøgletal!$C$9 -> 1870.2475 | I78: =H78/Nøgletal!$C$9 -> 25.85 | J78: 0.003202419183 | K78: 0.02527700383 | L78: 1 | M78: 0.08278253587 | N78: 5.989316471 | O78: 0.6534105491 | P78: 47.27425323 | Q78: 25.85 | R78: 1870.2475
A79: S088 | B79: Sorø Spildevand A/S | C79: Region Sjælland | D79: Sorø Kommune | E79: 1017863 | F79: 562.5 | G79: 47 | H79: =F79+G79*Nøgletal!$C$9 -> 3962.95 | I79: =H79/Nøgletal!$C$9 -> 54.77470629 | J79: 0.003771036943 | K79: 0.02976515872 | L79: 1 | M79: 0.2065574409 | N79: 14.94443085 | O79: 1.630377826 | P79: 117.9578357 | Q79: 54.77470629 | R79: 3962.95
A80: S089 | B80: Stevns Spildevand A/S | C80: Region Sjælland | D80: Stevns Kommune | E80: 821646 | F80: 680 | G80: 59.88 | H80: =F80+G80*Nøgletal!$C$9 -> 5012.318 | I80: =H80/Nøgletal!$C$9 -> 69.27875605 | J80: 0.003044081001 | K80: 0.02402722528 | L80: 1 | M80: 0.210890145 | N80: 15.25790199 | O80: 1.664576278 | P80: 120.4320937 | Q80: 69.27875605 | R80: 5012.318
A81: S090 | B81: Struer Forsyning Spildevand A/S | C81: Region Midtjylland | D81: Struer Kommune | E81: 1115887 | F81: 0 | G81: 22.5 | H81: =F81+G81*Nøgletal!$C$9 -> 1627.875 | I81: =H81/Nøgletal!$C$9 -> 22.5 | J81: 0.004134201853 | K81: 0.01924916281 | L81: 1 | M81: 0.09301954169 | N81: 6.729963842 | O81: 0.4331061633 | P81: 31.33523092 | Q81: 22.5 | R81: 1627.875
A82: S091 | B82: Svendborg Spildevand A/S | C82: Region Syddanmark | D82: Svendborg Kommune | E82: 2737533 | F82: 0 | G82: 35.51 | H82: =F82+G82*Nøgletal!$C$9 -> 2569.1485 | I82: =H82/Nøgletal!$C$9 -> 35.51 | J82: 0.01014216852 | K82: 0.04518539232 | L82: 1 | M82: 0.3601484041 | N82: 26.05673704 | O82: 1.604533281 | P82: 116.0879829 | Q82: 35.51 | R82: 2569.1485
A83: S092 | B83: Syddjurs Spildevand A/S | C83: Region Midtjylland | D83: Syddjurs Kommune | E83: 1657432 | F83: 758.73 | G83: 39.63 | H83: =F83+G83*Nøgletal!$C$9 -> 3625.9605 | I83: =H83/Nøgletal!$C$9 -> 50.11693849 | J83: 0.006140548681 | K83: 0.02859086845 | L83: 1 | M83: 0.3077455006 | N83: 22.26538696 | O83: 1.432886796 | P83: 103.6693597 | Q83: 50.11693849 | R83: 3625.9605
A84: S093 | B84: Sønderborg Spildevandsforsyning A/S | C84: Region Syddanmark | D84: Sønderborg Kommune | E84: 3480643 | F84: 0 | G84: 41.13 | H84: =F84+G84*Nøgletal!$C$9 -> 2975.7555 | I84: =H84/Nøgletal!$C$9 -> 41.13 | J84: 0.01289528486 | K84: 0.05745107711 | L84: 1 | M84: 0.5303830664 | N84: 38.37321486 | O84: 2.362962801 | P84: 170.9603587 | Q84: 41.13 | R84: 2975.7555
A85: S095 | B85: Thisted Spildevand Transport A/S | C85: Region Nordjylland | D85: Thisted Kommune | E85: 2430339 | F85: 758.34 | G85: 25.28 | H85: =F85+G85*Nøgletal!$C$9 -> 2587.348 | I85: =H85/Nøgletal!$C$9 -> 35.76154803 | J85: 0.009004058652 | K85: 0.08186126552 | L85: 1 | M85: 0.321999076 | N85: 23.29663315 | O85: 2.927485579 | P85: 211.8035816 | Q85: 35.76154803 | R85: 2587.348
A86: S096 | B86: Tønder Spildevand A/S | C86: Region Syddanmark | D86: Tønder Kommune | E86: 2031963 | F86: 555 | G86: 28.75 | H86: =F86+G86*Nøgletal!$C$9 -> 2635.0625 | I86: =H86/Nøgletal!$C$9 -> 36.42104354 | J86: 0.007528132508 | K86: 0.03353933827 | L86: 1 | M86: 0.2741824418 | N86: 19.83709967 | O86: 1.2215377 | P86: 88.37825256 | Q86: 36.42104354 | R86: 2635.0625
A87: S097 | B87: TÅRNBYFORSYNING Spildevand | C87: Region Hovedstaden | D87: Tårnby Kommune | E87: 2071877 | F87: 0 | G87: 28.85 | H87: =F87+G87*Nøgletal!$C$9 -> 2087.2975 | I87: =H87/Nøgletal!$C$9 -> 28.85 | J87: 0.007676008174 | K87: 0.02368513653 | L87: 1 | M87: 0.2214528358 | N87: 16.02211267 | O87: 0.6833161888 | P87: 49.43792626 | Q87: 28.85 | R87: 2087.2975
A88: S098 | B88: Vallensbæk Kloakforsyning A/S | C88: Region Hovedstaden | D88: Vallensbæk Kommune | E88: 660393 | F88: 0 | G88: 39.34 | H88: =F88+G88*Nøgletal!$C$9 -> 2846.249 | I88: =H88/Nøgletal!$C$9 -> 39.34 | J88: 0.002446661682 | K88: 0.007549433854 | L88: 1 | M88: 0.09625167057 | N88: 6.963808366 | O88: 0.2969947278 | P88: 21.48756856 | Q88: 39.34 | R88: 2846.249
A89: S099 | B89: Vandcenter Syd A/S 1 | C89: Region Syddanmark | D89: Nordfyns Kommune | E89: 1451129.189 | F89: 312.5 | G89: 28 | H89: =F89+G89*Nøgletal!$C$9 -> 2338.3 | I89: =H89/Nøgletal!$C$9 -> 32.31928127 | J89: 0.005376226252 | K89: 0.02395216486 | L89: 1 | M89: 0.1737557684 | N89: 12.57122984 | O89: 0.7741167531 | P89: 56.00734708 | Q89: 32.31928127 | R89: 2338.3
A90: S099 | B90: Vandcenter Syd A/S 2 | C90: Region Syddanmark | D90: Odense Kommune | E90: 10022892.81 | F90: 312.5 | G90: 28 | H90: =F90+G90*Nøgletal!$C$9 -> 2338.3 | I90: =H90/Nøgletal!$C$9 -> 32.31928127 | J90: 0.0371333854 | K90: 0.1654366701 | L90: 1 | M90: 1.200124327 | N90: 86.82899508 | O90: 5.346794273 | P90: 386.8405657 | Q90: 32.31928127 | R90: 2338.3
A91: S100 | B91: VARDE KLOAK OG SPILDEVAND A/S | C91: Region Syddanmark | D91: Varde Kommune | E91: 2356475 | F91: 686.25 | G91: 28.83 | H91: =F91+G91*Nøgletal!$C$9 -> 2772.1005 | I91: =H91/Nøgletal!$C$9 -> 38.31514167 | J91: 0.008730403089 | K91: 0.03889569454 | L91: 1 | M91: 0.3345066312 | N91: 24.20155477 | O91: 1.490294047 | P91: 107.8227743 | Q91: 38.31514167 | R91: 2772.1005
A92: S102 | B92: Vejen Spildevand A/S | C92: Region Syddanmark | D92: Vejen Kommune | E92: 1842197 | F92: 700 | G92: 36.38 | H92: =F92+G92*Nøgletal!$C$9 -> 3332.093 | I92: =H92/Nøgletal!$C$9 -> 46.05519005 | J92: 0.006825076599 | K92: 0.03040708337 | L92: 1 | M92: 0.3143301999 | N92: 22.74178996 | O92: 1.400404004 | P92: 101.3192297 | Q92: 46.05519005 | R92: 3332.093
A93: S103 | B93: Vejle Spildevand a/s | C93: Region Syddanmark | D93: Vejle Kommune | E93: 5074261 | F93: 0 | G93: 38.81 | H93: =F93+G93*Nøgletal!$C$9 -> 2807.9035 | I93: =H93/Nøgletal!$C$9 -> 38.81 | J93: 0.01879941179 | K93: 0.08375514523 | L93: 1 | M93: 0.7296051718 | N93: 52.78693418 | O93: 3.250537187 | P93: 235.1763654 | Q93: 38.81 | R93: 2807.9035
A94: S104 | B94: Vestforsyning Spildevand A/S | C94: Region Midtjylland | D94: Holstebro Kommune | E94: 3445474 | F94: 672.5 | G94: 23.87 | H94: =F94+G94*Nøgletal!$C$9 -> 2399.4945 | I94: =H94/Nøgletal!$C$9 -> 33.1650933 | J94: 0.01276498874 | K94: 0.05943477251 | L94: 1 | M94: 0.4233520427 | N94: 30.62952029 | O94: 1.971159775 | P94: 142.6134098 | Q94: 33.1650933 | R94: 2399.4945
A95: S105 | B95: Vesthimmerlands Vand A/S | C95: Region Nordjylland | D95: Vesthimmerlands Kommune | E95: 2116212 | F95: 561.43 | G95: 25.74 | H95: =F95+G95*Nøgletal!$C$9 -> 2423.719 | I95: =H95/Nøgletal!$C$9 -> 33.49991707 | J95: 0.007840263012 | K95: 0.07128050549 | L95: 1 | M95: 0.2626481607 | N95: 19.00259443 | O95: 2.387891023 | P95: 172.7639155 | Q95: 33.49991707 | R95: 2423.719
A96: S107 | B96: Vordingborg Spildevand A/S | C96: Region Sjælland | D96: Vordingborg Kommune | E96: 1693785 | F96: 0 | G96: 52.5 | H96: =F96+G96*Nøgletal!$C$9 -> 3798.375 | I96: =H96/Nøgletal!$C$9 -> 52.5 | J96: 0.00627523135 | K96: 0.04953100698 | L96: 1 | M96: 0.3294496459 | N96: 23.83568188 | O96: 2.600377867 | P96: 188.1373386 | Q96: 52.5 | R96: 3798.375
A97: S108 | B97: Ærø Vand A/S | C97: Region Syddanmark | D97: Ærø Kommune | E97: 267153 | F97: 758.75 | G97: 71.45 | H97: =F97+G97*Nøgletal!$C$9 -> 5928.1575 | I97: =H97/Nøgletal!$C$9 -> 81.93721493 | J97: 0.0009897636837 | K97: 0.004409595469 | L97: 1 | M97: 0.08109847967 | N97: 5.867475004 | O97: 0.3613099717 | P97: 26.14077645 | Q97: 81.93721493 | R97: 5928.1575
A98: S109 | B98: Aalborg Forsyning, Kloak A/S | C98: Region Nordjylland | D98: Aalborg Kommune | E98: 10415850 | F98: 687.5 | G98: 26.25 | H98: =F98+G98*Nøgletal!$C$9 -> 2586.6875 | I98: =H98/Nøgletal!$C$9 -> 35.7524188 | J98: 0.03858923562 | K98: 0.3508377483 | L98: 1 | M98: 1.379658513 | N98: 99.81829342 | O98: 12.54329811 | P98: 907.5076182 | Q98: 35.7524188 | R98: 2586.6875
A99: S110 | B99: Aarhus Vand A/S | C99: Region Midtjylland | D99: Aarhus Kommune | E99: 15081398 | F99: 0 | G99: 28.77 | H99: =F99+G99*Nøgletal!$C$9 -> 2081.5095 | I99: =H99/Nøgletal!$C$9 -> 28.77 | J99: 0.05587442417 | K99: 0.2601556301 | L99: 1 | M99: 1.607507183 | N99: 116.3031447 | O99: 7.484677477 | P99: 541.5164155 | Q99: 28.77 | R99: 2081.5095

Sheet V 2012
A1: Forside | F1: Takstblad | H1: Beregning | J1: Vægte | M1: Land | O1: Region | Q1: Kommune
A2: ID | B2: Selskabsnavn | C2: Region | D2: Kommune | E2: Debiteret vandmængde | F2: Fast Årligt Bidrag | G2: Kubikmeterpris | H2: Samlede udgifter for en husholdning | I2: Takst inkl. Fast bidrag | J2: Land | K2: Region | L2: Kommune | M2: Vægtet takst | N2: Vægtet årlige udgifter | O2: Vægtet takst | P2: Vægtet årlige udgifter | Q2: Vægtet takst | R2: Vægtet årlige udgifter
A3: V002 | B3: Andelsselskabet Gram Vandværk | C3: Region Syddanmark | D3: Haderslev Kommune | E3: 262986 | F3: 656.25 | G3: 12.38 | H3: =F3+G3*Nøgletal!$C$9 -> 1551.943 | I3: =H3/Nøgletal!$C$9 -> 21.45049067 | J3: =IF(H3>0,E3/(SUMIFS($E$3:$E$163,$I$3:$I$163,">0")),"-") -> 0.001051942355 | K3: =IF(H3>0,E3/(SUMIFS($E$3:$E$163,$C$3:$C$163,C3,$I$3:$I$163,">0")),"-") -> 0.006152519773 | L3: =IF(H3>0,E3/(SUMIFS($E$3:$E$163,$D$3:$D$163,D3,$I$3:$I$163,">0")),"-") -> 0.1355376467 | M3: =IF(H3>0,J3*I3,"-") -> 0.02256467967 | N3: =IF(H3>0,J3*H3,"-") -> 1.632554574 | O3: =IF(H3>0,K3*I3,"-") -> 0.131974568 | P3: =IF(H3>0,K3*H3,"-") -> 9.548359995 | Q3: =IF(H3>0,L3*I3,"-") -> 2.907349026 | R3: =IF(H3>0,L3*H3,"-") -> 210.346702
A4: V003 | B4: Andelsselskabet Gørlev Vandforsyning | C4: Region Sjælland | D4: Kalundborg Kommune | E4: 656281 | F4: 375 | G4: 9.88 | H4: =F4+G4*Nøgletal!$C$9 -> 1089.818 | I4: =H4/Nøgletal!$C$9 -> 15.06313753 | J4: =IF(H4>0,E4/(SUMIFS($E$3:$E$163,$I$3:$I$163,">0")),"-") -> 0.002625119894 | K4: =IF(H4>0,E4/(SUMIFS($E$3:$E$163,$C$3:$C$163,C4,$I$3:$I$163,">0")),"-") -> 0.02196794575 | L4: =IF(H4>0,E4/(SUMIFS($E$3:$E$163,$D$3:$D$163,D4,$I$3:$I$163,">0")),"-") -> 0.1780017337 | M4: =IF(H4>0,J4*I4,"-") -> 0.03954254199 | N4: =IF(H4>0,J4*H4,"-") -> 2.860902913 | O4: =IF(H4>0,K4*I4,"-") -> 0.3309061881 | P4: =IF(H4>0,K4*H4,"-") -> 23.94106271 | Q4: =IF(H4>0,L4*I4,"-") -> 2.681264594 | R4: =IF(H4>0,L4*H4,"-") -> 193.9894934
A5: V006 | B5: Andelsselskabet Klinting Vandværk | C5: Region Syddanmark | D5: Varde Kommune | E5: 417221 | F5: 587.5 | G5: 9.57 | H5: =F5+G5*Nøgletal!$C$9 -> 1279.8895 | I5: =H5/Nøgletal!$C$9 -> 17.69024879 | J5: 0.00166888139 | K5: 0.00976082549 | L5: 0.3032880968 | M5: 0.02952292699 | N5: 2.135983768 | O5: 0.1726714313 | P5: 12.49277806 | Q5: 5.365241888 | R5: 388.1752506
A6: V007 | B6: Andelsselskabet Marielyst Vandværk | C6: Region Sjælland | D6: Guldborgsund Kommune | E6: 221860 | F6: 532.5 | G6: 15.21 | H6: =F6+G6*Nøgletal!$C$9 -> 1632.9435 | I6: =H6/Nøgletal!$C$9 -> 22.57005529 | J6: 0.000887438612 | K6: 0.007426404916 | L6: 0.1216995591 | M6: 0.02002953854 | N6: 1.449137113 | O6: 0.1676143695 | P6: 12.12689964 | Q6: 2.746765777 | R6: 198.728504
A7: V008 | B7: Andelsselskabet Stenløse Vandværk | C7: Region Hovedstaden | D7: Egedal Kommune | E7: 274116 | F7: 0 | G7: 15.71 | H7: =F7+G7*Nøgletal!$C$9 -> 1136.6185 | I7: =H7/Nøgletal!$C$9 -> 15.71 | J7: 0.001096462285 | K7: 0.00266033356 | L7: 0.3056972803 | M7: 0.0172254225 | N7: 1.246259318 | O7: 0.04179384022 | P7: 3.02378434 | Q7: 4.802504274 | R7: 347.4611842
A8: V010 | B8: Andelsselskabet Vejgaard Vandværk | C8: Region Nordjylland | D8: Aalborg Kommune | E8: 505463 | F8: 687.5 | G8: 10.51 | H8: =F8+G8*Nøgletal!$C$9 -> 1447.8985 | I8: =H8/Nøgletal!$C$9 -> 20.0124188 | J8: 0.002021848838 | K8: 0.0203651023 | L8: 0.0671939239 | M8: 0.04046208569 | N8: 2.9274319 | O8: 0.4075549562 | P8: 29.48660108 | Q8: 1.344712946 | R8: 97.28998162
A9: V012 | B9: Andelsselskabet Ørbæk Vandværk | C9: Region Syddanmark | D9: Nyborg Kommune | E9: 258185 | F9: 1075 | G9: 11.31 | H9: =F9+G9*Nøgletal!$C$9 -> 1893.2785 | I9: =H9/Nøgletal!$C$9 -> 26.16832757 | J9: 0.001032738385 | K9: 0.006040201067 | L9: 0.1743117594 | M9: 0.02702503635 | N9: 1.95526138 | O9: 0.1580619601 | P9: 11.43578282 | Q9: 4.561447219 | R9: 330.0207063
A10: V013 | B10: Andelsvandværket Helle Vest a.m.b.a. | C10: Region Syddanmark | D10: Varde Kommune | E10: 511721 | F10: 437.5 | G10: 8.63 | H10: =F10+G10*Nøgletal!$C$9 -> 1061.8805 | I10: =H10/Nøgletal!$C$9 -> 14.67699378 | J10: 0.002046880799 | K10: 0.01197163944 | L10: 0.3719824462 | M10: 0.03004205675 | N10: 2.173542806 | O10: 0.1757076777 | P10: 12.71245048 | Q10: 5.45958405 | R10: 395.000906
A11: V014 | B11: AquaDjurs A/S | C11: Region Midtjylland | D11: Norddjurs Kommune | E11: 178926 | F11: 639.38 | G11: 16.51 | H11: =F11+G11*Nøgletal!$C$9 -> 1833.8785 | I11: =H11/Nøgletal!$C$9 -> 25.34731859 | J11: 0.0007157028806 | K11: 0.003612972803 | L11: 0.1059406984 | M11: 0.01814114893 | N11: 1.312512125 | O11: 0.09157917269 | P11: 6.625753144 | Q11: 2.685312634 | R11: 194.2823691
A12: V015 | B12: Arwos Vand A/S | C12: Region Syddanmark | D12: Aabenraa Kommune | E12: 1209424 | F12: 562.5 | G12: 15.06 | H12: =F12+G12*Nøgletal!$C$9 -> 1652.091 | I12: =H12/Nøgletal!$C$9 -> 22.83470629 | J12: 0.004837688434 | K12: 0.02829430112 | L12: 0.4470171053 | M12: 0.1104671945 | N12: 7.992301522 | O12: 0.6460920557 | P12: 46.74476023 | Q12: 10.2075043 | R12: 738.5129364
A13: V017 | B13: Assens Vandværk A/S | C13: Region Syddanmark | D13: Assens Kommune | E13: 665461 | F13: 575 | G13: 14.78 | H13: =F13+G13*Nøgletal!$C$9 -> 1644.333 | I13: =H13/Nøgletal!$C$9 -> 22.72747754 | J13: 0.002661839837 | K13: 0.01556836471 | L13: 0.6703829516 | M13: 0.06049690511 | N13: 4.376951085 | O13: 0.3538296592 | P13: 25.59957584 | Q13: 15.23611348 | R13: 1102.33281
A14: V018 | B14: Aulum Vandværk a.m.b.a. | C14: Region Midtjylland | D14: Herning Kommune | E14: 305412 | F14: 343.75 | G14: 8.94 | H14: =F14+G14*Nøgletal!$C$9 -> 990.559 | I14: =H14/Nøgletal!$C$9 -> 13.6912094 | J14: 0.001221646089 | K14: 0.006167048107 | L14: 0.07763459184 | M14: 0.01672581242 | N14: 1.210112529 | O14: 0.08443434701 | P14: 6.108825006 | Q14: 1.062911453 | R14: 76.90164366
A15: V019 | B15: Baunehøj Vandværk A.m.b.A. | C15: Region Hovedstaden | D15: Gribskov Kommune | E15: 273818 | F15: 800 | G15: 18.38 | H15: =F15+G15*Nøgletal!$C$9 -> 2129.793 | I15: =H15/Nøgletal!$C$9 -> 29.43736006 | J15: 0.001095270287 | K15: 0.002657441428 | L15: 0.1918652519 | M15: 0.0322418658 | N15: 2.33269899 | O15: 0.07822806016 | P15: 5.659800152 | Q15: 5.648006502 | R15: 408.6332704
A16: V020 | B16: Billund Drikkevand A/S | C16: Region Syddanmark | D16: Billund Kommune | E16: 684693 | F16: 575.45 | G16: 11.84 | H16: =F16+G16*Nøgletal!$C$9 -> 1432.074 | I16: =H16/Nøgletal!$C$9 -> 19.7936973 | J16: 0.002738767717 | K16: 0.01601829459 | L16: 0.3813542755 | M16: 0.05421033917 | N16: 3.922118039 | O16: 0.3170612745 | P16: 22.93938321 | Q16: 7.548411094 | R16: 546.1275427
A17: V021 | B17: Birkerød Vandforsyning a.m.b.a. | C17: Region Hovedstaden | D17: Rudersdal Kommune | E17: 1142443 | F17: 425 | G17: 14.04 | H17: =F17+G17*Nøgletal!$C$9 -> 1440.794 | I17: =H17/Nøgletal!$C$9 -> 19.91422253 | J17: 0.004569764853 | K17: 0.01108756677 | L17: 0.4056579052 | M17: 0.09100331419 | N17: 6.584089781 | O17: 0.220800272 | P17: 15.97489968 | Q17: 8.078361795 | R17: 584.4694759
A18: V022 | B18: Bjerringbro Fællesvandværk | C18: Region Midtjylland | D18: Viborg Kommune | E18: 525726 | F18: 300 | G18: 9.06 | H18: =F18+G18*Nøgletal!$C$9 -> 955.491 | I18: =H18/Nøgletal!$C$9 -> 13.20651002 | J18: 0.002102900711 | K18: 0.01061575031 | L18: 0.1906131734 | M18: 0.02777197931 | N18: 2.009302703 | O18: 0.1401970128 | P18: 10.14325388 | Q18: 2.517334784 | R18: 182.1291716
A19: V024 | B19: Bogense Forsyningsselskab a.m.b.a. | C19: Region Syddanmark | D19: Nordfyns Kommune | E19: 235087 | F19: 1125 | G19: 14.26 | H19: =F19+G19*Nøgletal!$C$9 -> 2156.711 | I19: =H19/Nøgletal!$C$9 -> 29.80941258 | J19: 0.0009403465293 | K19: 0.005499826668 | L19: 0.4398029664 | M19: 0.02803117766 | N19: 2.028055704 | O19: 0.1639466022 | P19: 11.86153667 | Q19: 13.11026808 | R19: 948.5278954
A20: V025 | B20: Bolderslev Vandværk | C20: Region Syddanmark | D20: Aabenraa Kommune | E20: 265973 | F20: 668.75 | G20: 3.56 | H20: =F20+G20*Nøgletal!$C$9 -> 926.316 | I20: =H20/Nøgletal!$C$9 -> 12.80326192 | J20: 0.001063890336 | K20: 0.00622240021 | L20: 0.09830669851 | M20: 0.01362126663 | N20: 0.9854986406 | O20: 0.07966701967 | P20: 5.763908873 | Q20: 1.25864641 | R20: 91.06306773
A21: V026 | B21: Bording Vandværk a.m.b.a. | C21: Region Midtjylland | D21: Ikast-Brande Kommune | E21: 269054 | F21: 500 | G21: 9.88 | H21: =F21+G21*Nøgletal!$C$9 -> 1214.818 | I21: =H21/Nøgletal!$C$9 -> 16.79085003 | J21: 0.001076214317 | K21: 0.005432887252 | L21: 0.1416181761 | M21: 0.0180705532 | N21: 1.307404524 | O21: 0.09122279511 | P21: 6.599969226 | Q21: 2.377889557 | R21: 172.0403095
A22: V027 | B22: Bornholms Vand A/S | C22: Region Hovedstaden | D22: Bornholms Regionskommune | E22: 1287323 | F22: 1084.25 | G22: 15.68 | H22: =F22+G22*Nøgletal!$C$9 -> 2218.698 | I22: =H22/Nøgletal!$C$9 -> 30.6661783 | J22: 0.005149283947 | K22: 0.01249364714 | L22: 0.5217554307 | M22: 0.1579088596 | N22: 11.42470599 | O22: 0.3831324108 | P22: 27.71962992 | Q22: 16.00024507 | R22: 1157.61773
A23: V028 | B23: Borup Vandværk | C23: Region Sjælland | D23: Køge Kommune | E23: 239162 | F23: 500 | G23: 12.38 | H23: =F23+G23*Nøgletal!$C$9 -> 1395.693 | I23: =H23/Nøgletal!$C$9 -> 19.29085003 | J23: 0.0009566465038 | K23: 0.008005561402 | L23: 0.1143823781 | M23: 0.01845452424 | N23: 1.335184829 | O23: 0.1544340844 | P23: 11.17330601 | Q23: 2.206533303 | R23: 159.6426844
A24: V030 | B24: Brande Vandværk a.m.b.a. | C24: Region Midtjylland | D24: Ikast-Brande Kommune | E24: 719121 | F24: 650 | G24: 10.92 | H24: =F24+G24*Nøgletal!$C$9 -> 1440.062 | I24: =H24/Nøgletal!$C$9 -> 19.90410504 | J24: 0.002876479501 | K24: 0.01452088917 | L24: 0.3785136234 | M24: 0.05725375015 | N24: 4.142308823 | O24: 0.2890253033 | P24: 20.91098069 | Q24: 7.533974921 | R24: 545.0830856
A25: V035 | B25: Brønderslev Vand A/S | C25: Region Nordjylland | D25: Brønderslev Kommune | E25: 907574 | F25: 500 | G25: 19.27 | H25: =F25+G25*Nøgletal!$C$9 -> 1894.1845 | I25: =H25/Nøgletal!$C$9 -> 26.18085003 | J25: 0.003630290322 | K25: 0.03656615293 | L25: 0.7094506759 | M25: 0.09504408651 | N25: 6.876439659 | O25: 0.9573329662 | P25: 69.26304011 | Q25: 18.57402175 | R25: 1343.830474
A26: V041 | B26: Egedal Vandforsyning A/S | C26: Region Hovedstaden | D26: Egedal Kommune | E26: 622575 | F26: 330 | G26: 15.01 | H26: =F26+G26*Nøgletal!$C$9 -> 1415.9735 | I26: =H26/Nøgletal!$C$9 -> 19.57116102 | J26: 0.002490296105 | K26: 0.00604217618 | L26: 0.6943027197 | M26: 0.04873798607 | N26: 3.526193292 | O26: 0.118252403 | P26: 8.555561354 | Q26: 13.58831033 | R26: 983.114252
A27: V043 | B27: Energi Viborg Vand A/S | C27: Region Midtjylland | D27: Viborg Kommune | E27: 2232352 | F27: 565 | G27: 16.13 | H27: =F27+G27*Nøgletal!$C$9 -> 1732.0055 | I27: =H27/Nøgletal!$C$9 -> 23.93926054 | J27: 0.008929394034 | K27: 0.04507688688 | L27: 0.8093868266 | M27: 0.2137630902 | N27: 15.46575958 | O27: 1.079107339 | P27: 78.073416 | Q27: 19.37612212 | R27: 1401.862435
A28: V044 | B28: Esbjerg Vand A/S | C28: Region Syddanmark | D28: Esbjerg Kommune | E28: 6846631 | F28: 1055 | G28: 14.33 | H28: =F28+G28*Nøgletal!$C$9 -> 2091.7755 | I28: =H28/Nøgletal!$C$9 -> 28.91189357 | J28: 0.02738648117 | K28: 0.1601759508 | L28: 1 | M28: 0.7917950289 | N28: 57.28637034 | O28: 4.630990044 | P28: 335.0521297 | Q28: 28.91189357 | R28: 2091.7755
A29: V045 | B29: Fanø Vand A/S | C29: Region Syddanmark | D29: Fanø Kommune | E29: 225208 | F29: 655.63 | G29: 11 | H29: =F29+G29*Nøgletal!$C$9 -> 1451.48 | I29: =H29/Nøgletal!$C$9 -> 20.06192122 | J29: 0.0009008305911 | K29: 0.005268708879 | L29: 1 | M29: 0.01807239235 | N29: 1.307537586 | O29: 0.1057004224 | P29: 7.647425563 | Q29: 20.06192122 | R29: 1451.48
A30: V047 | B30: Faxe Vandforsyning A/S | C30: Region Sjælland | D30: Faxe Kommune | E30: 1310385 | F30: 125 | G30: 19.79 | H30: =F30+G30*Nøgletal!$C$9 -> 1556.8065 | I30: =H30/Nøgletal!$C$9 -> 21.51771251 | J30: 0.005241531802 | K30: 0.04386301995 | L30: 1 | M30: 0.1127857744 | N30: 8.16005078 | O30: 0.9438318531 | P30: 68.28623457 | Q30: 21.51771251 | R30: 1556.8065
A31: V050 | B31: FFV Vand A/S | C31: Region Syddanmark | D31: Faaborg-Midtfyn Kommune | E31: 729460 | F31: 468.75 | G31: 17.38 | H31: =F31+G31*Nøgletal!$C$9 -> 1726.193 | I31: =H31/Nøgletal!$C$9 -> 23.85892191 | J31: 0.002917835437 | K31: 0.01706561214 | L31: 0.3115486461 | M31: 0.06961640782 | N31: 5.036747106 | O31: 0.4071671073 | P31: 29.45854021 | Q31: 7.433214818 | R31: 537.7930921
A32: V051 | B32: Fjerritslev Vand a.m.b.a. | C32: Region Nordjylland | D32: Jammerbugt Kommune | E32: 220465 | F32: 281.25 | G32: 9.26 | H32: =F32+G32*Nøgletal!$C$9 -> 951.211 | I32: =H32/Nøgletal!$C$9 -> 13.14735314 | J32: 0.0008818586208 | K32: 0.008882533993 | L32: 0.1653355232 | M32: 0.01159410671 | N32: 0.8388336205 | O32: 0.1167818112 | P32: 8.449164042 | Q32: 2.17372451 | R32: 157.2689683
A33: V052 | B33: Fonden Djurs Vand | C33: Region Midtjylland | D33: Syddjurs Kommune | E33: 322565 | F33: 812.5 | G33: 15.34 | H33: =F33+G33*Nøgletal!$C$9 -> 1922.349 | I33: =H33/Nøgletal!$C$9 -> 26.57013131 | J33: 0.001290257982 | K33: 0.006513410975 | L33: 0.6150151673 | M33: 0.034282324 | N33: 2.480326142 | O33: 0.1730621849 | P33: 12.52104907 | Q33: 16.34103375 | R33: 1182.273792
A34: V053 | B34: Forsyning Helsingør Vand A/S | C34: Region Hovedstaden | D34: Helsingør Kommune | E34: 2888126 | F34: 550 | G34: 20.49 | H34: =F34+G34*Nøgletal!$C$9 -> 2032.4515 | I34: =H34/Nøgletal!$C$9 -> 28.09193504 | J34: 0.01155248593 | K34: 0.02802966088 | L34: 1 | M34: 0.3245316843 | N34: 23.47986736 | O34: 0.7874074126 | P34: 56.9689263 | Q34: 28.09193504 | R34: 2032.4515
A35: V054 | B35: Fredensborg Vand A/S | C35: Region Hovedstaden | D35: Fredensborg Kommune | E35: 1701943 | F35: 254.01 | G35: 23.53 | H35: =F35+G35*Nøgletal!$C$9 -> 1956.4055 | I35: =H35/Nøgletal!$C$9 -> 27.04085003 | J35: 0.006807761353 | K35: 0.01651759138 | L35: 1 | M35: 0.1840876538 | N35: 13.31874175 | O35: 0.4466497115 | P35: 32.31510663 | Q35: 27.04085003 | R35: 1956.4055
A36: V055 | B36: Frederiksberg Vand A/S | C36: Region Hovedstaden | D36: Frederiksberg Kommune | E36: 5111838 | F36: 370 | G36: 21.93 | H36: =F36+G36*Nøgletal!$C$9 -> 1956.6355 | I36: =H36/Nøgletal!$C$9 -> 27.04402903 | J36: 0.02044732002 | K36: 0.04961109232 | L36: 1 | M36: 0.5529779161 | N36: 40.00795223 | O36: 1.341683821 | P36: 97.07082443 | Q36: 27.04402903 | R36: 1956.6355
A37: V056 | B37: Frederiksberg Vandværk | C37: Region Sjælland | D37: Sorø Kommune | E37: 200813 | F37: 625 | G37: 17.13 | H37: =F37+G37*Nøgletal!$C$9 -> 1864.3555 | I37: =H37/Nøgletal!$C$9 -> 25.76856254 | J37: 0.0008032507437 | K37: 0.006721890609 | L37: 0.2018555841 | M37: 0.02069861703 | N37: 1.497544942 | O37: 0.1732134586 | P37: 12.53199373 | Q37: 5.201528243 | R37: 376.3305684
A38: V057 | B38: Frederikshavn Vand A/S | C38: Region Nordjylland | D38: Frederikshavn Kommune | E38: 4281176 | F38: 1312.5 | G38: 14.89 | H38: =F38+G38*Nøgletal!$C$9 -> 2389.7915 | I38: =H38/Nøgletal!$C$9 -> 33.03098134 | J38: 0.01712467722 | K38: 0.1724885644 | L38: 1 | M38: 0.5656448936 | N38: 40.92440805 | O38: 5.697466552 | P38: 412.211705 | Q38: 33.03098134 | R38: 2389.7915
A39: V058 | B39: Frederikssund Vand A/S | C39: Region Hovedstaden | D39: Frederikssund Kommune | E39: 1307873 | F39: 825 | G39: 17.38 | H39: =F39+G39*Nøgletal!$C$9 -> 2082.443 | I39: =H39/Nøgletal!$C$9 -> 28.78290256 | J39: 0.005231483818 | K39: 0.01269308772 | L39: 0.8037320633 | M39: 0.150577289 | N39: 10.89426686 | O39: 0.365343907 | P39: 26.43263167 | Q39: 23.13374166 | R39: 1673.726209
A40: V059 | B40: Furesø Vandforsyning a.m.b.a. | C40: Region Hovedstaden | D40: Furesø Kommune | E40: 1692069 | F40: 375 | G40: 13 | H40: =F40+G40*Nøgletal!$C$9 -> 1315.55 | I40: =H40/Nøgletal!$C$9 -> 18.18313753 | J40: 0.006768265414 | K40: 0.01642176285 | L40: 1 | M40: 0.1230683008 | N40: 8.903991566 | O40: 0.2985991723 | P40: 21.60365012 | Q40: 18.18313753 | R40: 1315.55
A41: V060 | B41: Galten Vandværk | C41: Region Midtjylland | D41: Skanderborg Kommune | E41: 271606 | F41: 750 | G41: 11.13 | H41: =F41+G41*Nøgletal!$C$9 -> 1555.2555 | I41: =H41/Nøgletal!$C$9 -> 21.49627505 | J41: 0.001086422301 | K41: 0.005484418648 | L41: 0.217692669 | M41: 0.0233540326 | N41: 1.689664259 | O41: 0.1178945718 | P41: 8.529672267 | Q41: 4.679581489 | R41: 338.5677207
A42: V061 | B42: Gentofte Vand A/S | C42: Region Hovedstaden | D42: Gentofte Kommune | E42: 3699270 | F42: 0 | G42: 20.15 | H42: =F42+G42*Nøgletal!$C$9 -> 1457.8525 | I42: =H42/Nøgletal!$C$9 -> 20.15 | J42: 0.01479705686 | K42: 0.0359019252 | L42: 1 | M42: 0.2981606957 | N42: 21.57192633 | O42: 0.7234237927 | P42: 52.3397114 | Q42: 20.15 | R42: 1457.8525
A43: V062 | B43: Gilleleje Vandværk a.m.b.a. | C43: Region Hovedstaden | D43: Gribskov Kommune | E43: 418027 | F43: 887.5 | G43: 15.5 | H43: =F43+G43*Nøgletal!$C$9 -> 2008.925 | I43: =H43/Nøgletal!$C$9 -> 27.76675881 | J43: 0.001672105385 | K43: 0.004057009649 | L43: 0.292913014 | M43: 0.04642894693 | N43: 3.35913431 | O43: 0.1126500084 | P43: 8.150228109 | Q43: 8.133245011 | R43: 588.4402766
A44: V063 | B44: Give Vandværk a.m.b.a. | C44: Region Syddanmark | D44: Vejle Kommune | E44: 279324 | F44: 691.25 | G44: 13.63 | H44: =F44+G44*Nøgletal!$C$9 -> 1677.3805 | I44: =H44/Nøgletal!$C$9 -> 23.18425017 | J44: 0.001117294253 | K44: 0.006534744942 | L44: 1 | M44: 0.02590362947 | N44: 1.874127592 | O44: 0.1515031615 | P44: 10.96125374 | Q44: 23.18425017 | R44: 1677.3805
A45: V065 | B45: Gladsaxe Vand A/S | C45: Region Hovedstaden | D45: Gladsaxe Kommune | E45: 3470154 | F45: 0 | G45: 20.75 | H45: =F45+G45*Nøgletal!$C$9 -> 1501.2625 | I45: =H45/Nøgletal!$C$9 -> 20.75 | J45: 0.01388059429 | K45: 0.03367832284 | L45: 1 | M45: 0.2880223315 | N45: 20.83841569 | O45: 0.6988251989 | P45: 50.56000314 | Q45: 20.75 | R45: 1501.2625
A46: V067 | B46: Glostrup Vand a/s | C46: Region Hovedstaden | D46: Glostrup Kommune | E46: 1249063 | F46: 213.75 | G46: 23.46 | H46: =F46+G46*Nøgletal!$C$9 -> 1911.081 | I46: =H46/Nøgletal!$C$9 -> 26.41438839 | J46: 0.004996244186 | K46: 0.01212232856 | L46: 1 | M46: 0.1319727344 | N46: 9.548227335 | O46: 0.3202038949 | P46: 23.1667518 | Q46: 26.41438839 | R46: 1911.081
A47: V068 | B47: Greve Vandværk A.m.b.a. | C47: Region Sjælland | D47: Greve Kommune | E47: 1909583 | F47: 437.5 | G47: 16.28 | H47: =F47+G47*Nøgletal!$C$9 -> 1615.358 | I47: =H47/Nøgletal!$C$9 -> 22.32699378 | J47: 0.007638320054 | K47: 0.06392020454 | L47: 1 | M47: 0.1705407243 | N47: 12.33862141 | O47: 1.427146009 | P47: 103.2540138 | Q47: 22.32699378 | R47: 1615.358
A48: V069 | B48: Grindsted Vandværk A.m.b.a. | C48: Region Syddanmark | D48: Billund Kommune | E48: 1110732 | F48: 675 | G48: 10.09 | H48: =F48+G48*Nøgletal!$C$9 -> 1405.0115 | I48: =H48/Nøgletal!$C$9 -> 19.41964755 | J48: 0.004442921051 | K48: 0.02598541593 | L48: 0.6186457245 | M48: 0.08627996089 | N48: 6.242355171 | O48: 0.5046276187 | P48: 36.50980821 | Q48: 12.01388193 | R48: 869.2043574
A49: V070 | B49: Guldborgsund Vand A/S | C49: Region Sjælland | D49: Guldborgsund Kommune | E49: 1404634 | F49: 887 | G49: 17.79 | H49: =F49+G49*Nøgletal!$C$9 -> 2174.1065 | I49: =H49/Nøgletal!$C$9 -> 30.04984796 | J49: 0.005618527213 | K49: 0.0470178529 | L49: 0.7705009397 | M49: 0.1688358885 | N49: 12.21527653 | O49: 1.412879331 | P49: 102.2218196 | Q49: 23.15343609 | R49: 1675.151101
A50: V071 | B50: Haderslev Vand A/S | C50: Region Syddanmark | D50: Haderslev Kommune | E50: 1677331 | F50: 825 | G50: 17.49 | H50: =F50+G50*Nøgletal!$C$9 -> 2090.4015 | I50: =H50/Nøgletal!$C$9 -> 28.89290256 | J50: 0.006709313507 | K50: 0.03924091832 | L50: 0.8644623533 | M50: 0.1938515414 | N50: 14.02515902 | O50: 1.133784029 | P50: 82.02927451 | Q50: 24.97682654 | R50: 1807.0734
A51: V072 | B51: Hadsten Vandværk a.m.b.a. | C51: Region Midtjylland | D51: Favrskov Kommune | E51: 327270 | F51: 618.75 | G51: 15.19 | H51: =F51+G51*Nøgletal!$C$9 -> 1717.7465 | I51: =H51/Nøgletal!$C$9 -> 23.74217692 | J51: 0.001309077953 | K51: 0.006608416939 | L51: 1 | M51: 0.03108036035 | N51: 2.248664071 | O51: 0.1568982041 | P51: 11.35158507 | Q51: 23.74217692 | R51: 1717.7465
A52: V073 | B52: Hadsund Vandværk a.m.b.a | C52: Region Nordjylland | D52: Mariagerfjord Kommune | E52: 369823 | F52: 412.5 | G52: 10.56 | H52: =F52+G52*Nøgletal!$C$9 -> 1176.516 | I52: =H52/Nøgletal!$C$9 -> 16.26145128 | J52: 0.001479289686 | K52: 0.01490016723 | L52: 0.2005375895 | M52: 0.02405539716 | N52: 1.740407985 | O52: 0.2422983435 | P52: 17.53028515 | Q52: 3.261032241 | R52: 235.9356827
A53: V074 | B53: Halsnaes Forsyning A/S | C53: Region Hovedstaden | D53: Halsnæs Kommune | E53: 595911 | F53: 525 | G53: 21.04 | H53: =F53+G53*Nøgletal!$C$9 -> 2047.244 | I53: =H53/Nøgletal!$C$9 -> 28.29639254 | J53: 0.002383640272 | K53: 0.005783398385 | L53: 1 | M53: 0.0674484208 | N53: 4.879893245 | O53: 0.1636493109 | P53: 11.84002764 | Q53: 28.29639254 | R53: 2047.244
A54: V079 | B54: Helsinge Vandværk | C54: Region Hovedstaden | D54: Gribskov Kommune | E54: 417282 | F54: 762.5 | G54: 17.06 | H54: =F54+G54*Nøgletal!$C$9 -> 1996.791 | I54: =H54/Nøgletal!$C$9 -> 27.5990463 | J54: 0.001669125389 | K54: 0.004049779321 | L54: 0.2923909898 | M54: 0.04606626891 | N54: 3.332894556 | O54: 0.111770047 | P54: 8.086562901 | Q54: 8.069712466 | R54: 583.8436969
A55: V080 | B55: Herning Vand A/S | C55: Region Midtjylland | D55: Herning Kommune | E55: 3130299 | F55: 625 | G55: 14.81 | H55: =F55+G55*Nøgletal!$C$9 -> 1696.5035 | I55: =H55/Nøgletal!$C$9 -> 23.44856254 | J55: 0.01252117642 | K55: 0.0632087296 | L55: 0.7957103362 | M55: 0.2936035883 | N55: 21.24221962 | O55: 1.482153849 | P55: 107.233831 | Q55: 18.65826359 | R55: 1349.92537
A56: V081 | B56: Hillerød Vand A/S | C56: Region Hovedstaden | D56: Hillerød Kommune | E56: 1447677 | F56: 406.25 | G56: 16.81 | H56: =F56+G56*Nøgletal!$C$9 -> 1622.4535 | I56: =H56/Nøgletal!$C$9 -> 22.42506565 | J56: 0.005790698943 | K56: 0.01404990481 | L56: 0.8490878773 | M56: 0.129856804 | N56: 9.395139768 | O56: 0.3150700378 | P56: 22.79531723 | Q56: 19.04085139 | R56: 1377.605598
A57: V085 | B57: Hjørring Vandselskab A/S | C57: Region Nordjylland | D57: Hjørring Kommune | E57: 3413448 | F57: 937.5 | G57: 14.75 | H57: =F57+G57*Nøgletal!$C$9 -> 2004.6625 | I57: =H57/Nøgletal!$C$9 -> 27.70784381 | J57: 0.01365377065 | K57: 0.1375278066 | L57: 1 | M57: 0.3783165445 | N57: 27.371202 | O57: 3.810598987 | P57: 275.6968367 | Q57: 27.70784381 | R57: 2004.6625
A58: V086 | B58: HOFOR Vand Albertslund A/S | C58: Region Hovedstaden | D58: Albertslund Kommune | E58: 1333976 | F58: 75 | G58: 21.36 | H58: =F58+G58*Nøgletal!$C$9 -> 1620.396 | I58: =H58/Nøgletal!$C$9 -> 22.39662751 | J58: 0.005335895655 | K58: 0.01294642093 | L58: 1 | M58: 0.1195060674 | N58: 8.646263975 | O58: 0.2899561672 | P58: 20.97832869 | Q58: 22.39662751 | R58: 1620.396
A59: V087 | B59: HOFOR Vand Brøndby A/S | C59: Region Hovedstaden | D59: Brøndby Kommune | E59: 1858688 | F59: 125 | G59: 24 | H59: =F59+G59*Nøgletal!$C$9 -> 1861.4 | I59: =H59/Nøgletal!$C$9 -> 25.72771251 | J59: 0.007434740372 | K59: 0.01803882321 | L59: 1 | M59: 0.1912788629 | N59: 13.83902573 | O59: 0.4640976576 | P59: 33.57746552 | Q59: 25.72771251 | R59: 1861.4
A60: V088 | B60: HOFOR Vand Dragør A/S | C60: Region Hovedstaden | D60: Dragør Kommune | E60: 626066 | F60: 441.15 | G60: 17.64 | H60: =F60+G60*Nøgletal!$C$9 -> 1717.404 | I60: =H60/Nøgletal!$C$9 -> 23.73744299 | J60: 0.002504260083 | K60: 0.006076056816 | L60: 1 | M60: 0.05944473095 | N60: 4.300826284 | O60: 0.1442300523 | P60: 10.43504428 | Q60: 23.73744299 | R60: 1717.404
A61: V089 | B61: HOFOR Vand Herlev A/S | C61: Region Hovedstaden | D61: Herlev Kommune | E61: 1497644 | F61: 0 | G61: 22.79 | H61: =F61+G61*Nøgletal!$C$9 -> 1648.8565 | I61: =H61/Nøgletal!$C$9 -> 22.79 | J61: 0.005990566631 | K61: 0.01453484143 | L61: 1 | M61: 0.1365250135 | N61: 9.877584728 | O61: 0.3312490362 | P61: 23.96586777 | Q61: 22.79 | R61: 1648.8565
A62: V090 | B62: HOFOR Vand Hvidovre A/S | C62: Region Hovedstaden | D62: Hvidovre Kommune | E62: 2930539 | F62: 0 | G62: 20.8 | H62: =F62+G62*Nøgletal!$C$9 -> 1504.88 | I62: =H62/Nøgletal!$C$9 -> 20.8 | J62: 0.01172213767 | K62: 0.02844128489 | L62: 1 | M62: 0.2438204635 | N62: 17.64041053 | O62: 0.5915787257 | P62: 42.80072081 | Q62: 20.8 | R62: 1504.88
A63: V091 | B63: HOFOR Vand København A/S | C63: Region Hovedstaden | D63: Københavns Kommune | E63: 47971981 | F63: 475 | G63: 18.59 | H63: =F63+G63*Nøgletal!$C$9 -> 1819.9865 | I63: =H63/Nøgletal!$C$9 -> 25.15530753 | J63: 0.1918876239 | K63: 0.4655746873 | L63: 1 | M63: 4.826992191 | N63: 349.232885 | O63: 11.71167444 | P63: 847.3396456 | Q63: 25.15530753 | R63: 1819.9865
A64: V092 | B64: HOFOR Vand Rødovre A/S | C64: Region Hovedstaden | D64: Rødovre Kommune | E64: 1749997 | F64: 0 | G64: 23.65 | H64: =F64+G64*Nøgletal!$C$9 -> 1711.0775 | I64: =H64/Nøgletal!$C$9 -> 23.65 | J64: 0.006999977052 | K64: 0.01698396208 | L64: 1 | M64: 0.1655494573 | N64: 11.97750323 | O64: 0.4016707031 | P64: 29.06087537 | Q64: 23.65 | R64: 1711.0775
A65: V093 | B65: HOFOR Vand Vallensbæk A/S | C65: Region Hovedstaden | D65: Vallensbæk Kommune | E65: 417944 | F65: 125 | G65: 24.66 | H65: =F65+G65*Nøgletal!$C$9 -> 1909.151 | I65: =H65/Nøgletal!$C$9 -> 26.38771251 | J65: 0.001671773385 | K65: 0.004056204122 | L65: 1 | M65: 0.04411427547 | N65: 3.19166783 | O65: 0.1070339483 | P65: 7.743906157 | Q65: 26.38771251 | R65: 1909.151
A66: V094 | B66: Holbæk Vand A/S | C66: Region Sjælland | D66: Holbæk Kommune | E66: 1676001 | F66: 0 | G66: 17.51 | H66: =F66+G66*Nøgletal!$C$9 -> 1266.8485 | I66: =H66/Nøgletal!$C$9 -> 17.51 | J66: 0.006703993515 | K66: 0.05610142462 | L66: 0.6146181485 | M66: 0.1173869264 | N66: 8.492944128 | O66: 0.9823359451 | P66: 71.07200563 | Q66: 10.76196378 | R66: 778.6280795
A67: V097 | B67: Horsens Vand A/S | C67: Region Midtjylland | D67: Horsens Kommune | E67: 3848455 | F67: 340 | G67: 13.59 | H67: =F67+G67*Nøgletal!$C$9 -> 1323.2365 | I67: =H67/Nøgletal!$C$9 -> 18.28937802 | J67: 0.01539379592 | K67: 0.07771013295 | L67: 1 | M67: 0.2815429529 | N67: 20.36963264 | O67: 1.421269998 | P67: 102.8288843 | Q67: 18.28937802 | R67: 1323.2365
A68: V098 | B68: HTK Vand A/S | C68: Region Hovedstaden | D68: Høje-Taastrup Kommune | E68: 2181146 | F68: 0 | G68: 23.38 | H68: =F68+G68*Nøgletal!$C$9 -> 1691.543 | I68: =H68/Nøgletal!$C$9 -> 23.38 | J68: =IF(H68>0,E68/(SUMIFS($E$3:$E$163,$I$3:$I$163,">0")),"-") -> 0.008724570355 | K68: =IF(H68>0,E68/(SUMIFS($E$3:$E$163,$C$3:$C$163,C68,$I$3:$I$163,">0")),"-") -> 0.02116832254 | L68: =IF(H68>0,E68/(SUMIFS($E$3:$E$163,$D$3:$D$163,D68,$I$3:$I$163,">0")),"-") -> 1 | M68: =IF(H68>0,J68*I68,"-") -> 0.2039804549 | N68: =IF(H68>0,J68*H68,"-") -> 14.75798591 | O68: =IF(H68>0,K68*I68,"-") -> 0.494915381 | P68: =IF(H68>0,K68*H68,"-") -> 35.80712782 | Q68: =IF(H68>0,L68*I68,"-") -> 23.38 | R68: =IF(H68>0,L68*H68,"-") -> 1691.543
A69: V101 | B69: Høng Vandværk a.m.b.a. | C69: Region Sjælland | D69: Kalundborg Kommune | E69: 253668 | F69: 812.5 | G69: 13.63 | H69: =F69+G69*Nøgletal!$C$9 -> 1798.6305 | I69: =H69/Nøgletal!$C$9 -> 24.86013131 | J69: 0.001014670413 | K69: 0.008491126306 | L69: 0.06880184522 | M69: 0.0252248397 | N69: 1.825017152 | O69: 0.2110905149 | P69: 15.27239875 | Q69: 1.710422906 | R69: 123.7490973
A70: V102 | B70: Hørsholm Vand ApS | C70: Region Hovedstaden | D70: Hørsholm Kommune | E70: 1261306 | F70: 0 | G70: 24.8 | H70: =F70+G70*Nøgletal!$C$9 -> 1794.28 | I70: =H70/Nøgletal!$C$9 -> 24.8 | J70: 0.005045216109 | K70: 0.01224114857 | L70: 1 | M70: 0.1251213595 | N70: 9.052530361 | O70: 0.3035804845 | P70: 21.96404805 | Q70: 24.8 | R70: 1794.28
A71: V103 | B71: Haarby Vandværk | C71: Region Syddanmark | D71: Assens Kommune | E71: 327197 | F71: 1000 | G71: 13 | H71: =F71+G71*Nøgletal!$C$9 -> 1940.55 | I71: =H71/Nøgletal!$C$9 -> 26.82170007 | J71: 0.001308785953 | K71: 0.007654726914 | L71: 0.3296170484 | M71: 0.03510386429 | N71: 2.539764581 | O71: 0.2053127894 | P71: 14.85438031 | Q71: 8.840889609 | R71: 639.6383632
A72: V106 | B72: Ikast Vandforsyning a.m.b.a. | C72: Region Midtjylland | D72: Ikast-Brande Kommune | E72: 911680 | F72: 687.5 | G72: 13.63 | H72: =F72+G72*Nøgletal!$C$9 -> 1673.6305 | I72: =H72/Nøgletal!$C$9 -> 23.1324188 | J72: 0.003646714297 | K72: 0.01840914705 | L72: 0.4798682005 | M72: 0.08435732234 | N72: 6.103252271 | O72: 0.4258480992 | P72: 30.81010998 | Q72: 11.10051218 | R72: 803.1220563
A73: V107 | B73: Ishøj Vand A/S | C73: Region Hovedstaden | D73: Ishøj Kommune | E73: 1042101 | F73: 222.5 | G73: 25.63 | H73: =F73+G73*Nøgletal!$C$9 -> 2076.8305 | I73: =H73/Nøgletal!$C$9 -> 28.70532827 | J73: 0.004168397481 | K73: 0.01011373383 | L73: 1 | M73: 0.119655218 | N73: 8.657055024 | O73: 0.2903180496 | P73: 21.00451089 | Q73: 28.70532827 | R73: 2076.8305
A74: V108 | B74: Jammerbugt Forsyning A/S | C74: Region Nordjylland | D74: Jammerbugt Kommune | E74: 139101 | F74: 724 | G74: 12.44 | H74: =F74+G74*Nøgletal!$C$9 -> 1624.034 | I74: =H74/Nøgletal!$C$9 -> 22.44691085 | J74: 0.0005564031298 | K74: 0.005604378749 | L74: 0.1043174046 | M74: 0.01248953145 | N74: 0.9036176005 | O74: 0.1258009901 | P74: 9.101701637 | Q74: 2.341603481 | R74: 169.4150119
A75: V110 | B75: Jyllinge Vandværk a.m.b.a. | C75: Region Sjælland | D75: Roskilde Kommune | E75: 240138 | F75: 950 | G75: 18.13 | H75: =F75+G75*Nøgletal!$C$9 -> 2261.7055 | I75: =H75/Nøgletal!$C$9 -> 31.26061507 | J75: 0.0009605504977 | K75: 0.008038231424 | L75: 0.07441372442 | M75: 0.03002739936 | N75: 2.172482344 | O75: 0.2512800584 | P75: 18.18011222 | Q75: 2.326218795 | R75: 168.3019298
A76: V112 | B76: Kalundborg Vandforsyning A/S | C76: Region Sjælland | D76: Kalundborg Kommune | E76: 2776987 | F76: 0 | G76: 19.63 | H76: =F76+G76*Nøgletal!$C$9 -> 1420.2305 | I76: =H76/Nøgletal!$C$9 -> 19.63 | J76: 0.01110793063 | K76: 0.09295515149 | L76: 0.7531964211 | M76: 0.2180486782 | N76: 15.77582187 | O76: 1.824709624 | P76: 132.0177413 | Q76: 14.78524575 | R76: 1069.71253
A77: V113 | B77: Kerteminde Forsyning - Vand A/S | C77: Region Syddanmark | D77: Kerteminde Kommune | E77: 883344 | F77: 424.24 | G77: 19.03 | H77: =F77+G77*Nøgletal!$C$9 -> 1801.0605 | I77: =H77/Nøgletal!$C$9 -> 24.89371804 | J77: 0.003533370474 | K77: 0.02066570626 | L77: 0.7381782871 | M77: 0.0879587283 | N77: 6.363813992 | O77: 0.5144462647 | P77: 37.22018725 | Q77: 18.37600214 | R77: 1329.503755
A78: V114 | B78: Klemensker Vandværk | C78: Region Hovedstaden | D78: Bornholms Regionskommune | E78: 252063 | F78: 562.5 | G78: 12.38 | H78: =F78+G78*Nøgletal!$C$9 -> 1458.193 | I78: =H78/Nøgletal!$C$9 -> 20.15470629 | J78: 0.001008250423 | K78: 0.002446306155 | L78: 0.1021618033 | M78: 0.02032099114 | N78: 1.470223709 | O78: 0.04930458205 | P78: 3.567186511 | Q78: 2.05904114 | R78: 148.9716264
A79: V115 | B79: Kvarmløse-Tølløse Vandværk | C79: Region Sjælland | D79: Holbæk Kommune | E79: 213363 | F79: 625 | G79: 11.8 | H79: =F79+G79*Nøgletal!$C$9 -> 1478.73 | I79: =H79/Nøgletal!$C$9 -> 20.43856254 | J79: 0.0008534506652 | K79: 0.007141981575 | L79: 0.07824385071 | M79: 0.0174433048 | N79: 1.262023102 | O79: 0.1459718371 | P79: 10.56106241 | Q79: 1.599191836 | R79: 115.7015294
A80: V116 | B80: Køge Vand A/S | C80: Region Sjælland | D80: Køge Kommune | E80: 1851737 | F80: 239.43 | G80: 20.28 | H80: =F80+G80*Nøgletal!$C$9 -> 1706.688 | I80: =H80/Nøgletal!$C$9 -> 23.58932965 | J80: 0.007406936416 | K80: 0.06198390319 | L80: 0.8856176219 | M80: 0.1747246648 | N80: 12.6413295 | O80: 1.462158725 | P80: 105.7871838 | Q80: 20.89112602 | R80: 1511.472968
A81: V117 | B81: Langeland Vand ApS | C81: Region Syddanmark | D81: Langeland Kommune | E81: 834243 | F81: 1040 | G81: 13.8 | H81: =F81+G81*Nøgletal!$C$9 -> 2038.43 | I81: =H81/Nøgletal!$C$9 -> 28.17456807 | J81: 0.003336966781 | K81: 0.0195169954 | L81: 1 | M81: 0.09401759772 | N81: 6.802173195 | O81: 0.5498829156 | P81: 39.78402894 | Q81: 28.17456807 | R81: 2038.43
A82: V118 | B82: Langeskov Vandværk | C82: Region Syddanmark | D82: Kerteminde Kommune | E82: 313310 | F82: 287.5 | G82: 13 | H82: =F82+G82*Nøgletal!$C$9 -> 1228.05 | I82: =H82/Nøgletal!$C$9 -> 16.97373877 | J82: 0.00125323804 | K82: 0.00732984254 | L82: 0.2618217129 | M82: 0.02127213511 | N82: 1.539038975 | O82: 0.1244148325 | P82: 9.001413131 | Q82: 4.444093359 | R82: 321.5301545
A83: V119 | B83: Lejre Vand A/S | C83: Region Sjælland | D83: Lejre Kommune | E83: 207304 | F83: 577 | G83: 13.49 | H83: =F83+G83*Nøgletal!$C$9 -> 1553.0015 | I83: =H83/Nøgletal!$C$9 -> 21.46512094 | J83: 0.0008292147031 | K83: 0.006939166343 | L83: 1 | M83: 0.01779919389 | N83: 1.287771678 | O83: 0.1489500448 | P83: 10.77653574 | Q83: 21.46512094 | R83: 1553.0015
A84: V120 | B84: Lemvig Vand og Spildevand A/S | C84: Region Midtjylland | D84: Lemvig Kommune | E84: 1708474 | F84: 660 | G84: 12.69 | H84: =F84+G84*Nøgletal!$C$9 -> 1578.1215 | I84: =H84/Nøgletal!$C$9 -> 21.81232205 | J84: 0.006833885312 | K84: 0.03449845241 | L84: 1 | M84: 0.1490629072 | N84: 10.78470134 | O84: 0.7524913541 | P84: 54.44274947 | Q84: 21.81232205 | R84: 1578.1215
A85: V122 | B85: Lille Skensved Vandværk a.m.b.a. | C85: Region Sjælland | D85: Næstved Kommune | E85: 370844 | F85: 375 | G85: 10.81 | H85: =F85+G85*Nøgletal!$C$9 -> 1157.1035 | I85: =H85/Nøgletal!$C$9 -> 15.99313753 | J85: 0.00148337368 | K85: 0.01241340352 | L85: 0.1476051243 | M85: 0.02372379927 | N85: 1.716416877 | O85: 0.1985292697 | P85: 14.36359266 | Q85: 2.360669053 | R85: 170.794406
A86: V123 | B86: Lillerød Andelsvandværk a.m.b.a | C86: Region Hovedstaden | D86: Allerød Kommune | E86: 596086 | F86: 375 | G86: 12.38 | H86: =F86+G86*Nøgletal!$C$9 -> 1270.693 | I86: =H86/Nøgletal!$C$9 -> 17.56313753 | J86: 0.002384340271 | K86: 0.005785096785 | L86: 1 | M86: 0.04187649609 | N86: 3.029764492 | O86: 0.1016044504 | P86: 7.351081988 | Q86: 17.56313753 | R86: 1270.693
A87: V124 | B87: Lindholm Vandværk a.m.b.a | C87: Region Nordjylland | D87: Aalborg Kommune | E87: 500273 | F87: 462.5 | G87: 12.5 | H87: =F87+G87*Nøgletal!$C$9 -> 1366.875 | I87: =H87/Nøgletal!$C$9 -> 18.89253628 | J87: 0.00200108887 | K87: 0.02015599722 | L87: 0.06650398919 | M87: 0.03780564409 | N87: 2.73523835 | O87: 0.3807979089 | P87: 27.55072871 | Q87: 1.256429029 | R87: 90.90264023
A88: V125 | B88: Lolland Vand A/S | C88: Region Sjælland | D88: Lolland Kommune | E88: 1741446 | F88: 767.25 | G88: 28.55 | H88: =F88+G88*Nøgletal!$C$9 -> 2832.8425 | I88: =H88/Nøgletal!$C$9 -> 39.15469938 | J88: 0.006965773106 | K88: 0.05829209022 | L88: 1 | M88: 0.2727427519 | N88: 19.7329381 | O88: 2.282409269 | P88: 165.1323106 | Q88: 39.15469938 | R88: 2832.8425
A89: V126 | B89: Lyngby-Taarbæk Vand A/S | C89: Region Hovedstaden | D89: Lyngby-Taarbæk Kommune | E89: 2731565 | F89: 0 | G89: 22.99 | H89: =F89+G89*Nøgletal!$C$9 -> 1663.3265 | I89: =H89/Nøgletal!$C$9 -> 22.99 | J89: 0.01092624291 | K89: 0.0265102148 | L89: 1 | M89: 0.2511943245 | N89: 18.17390938 | O89: 0.6094698382 | P89: 44.09514279 | Q89: 22.99 | R89: 1663.3265
A90: V127 | B90: Læsø Vand A/S | C90: Region Nordjylland | D90: Læsø Kommune | E90: 195340 | F90: 1070 | G90: 10 | H90: =F90+G90*Nøgletal!$C$9 -> 1793.5 | I90: =H90/Nøgletal!$C$9 -> 24.78921907 | J90: 0.000781358778 | K90: 0.00787024784 | L90: 1 | M90: 0.01936927392 | N90: 1.401366968 | O90: 0.1950972979 | P90: 14.1152895 | Q90: 24.78921907 | R90: 1793.5
A91: V128 | B91: Løgstør Vand a.m.b.a. | C91: Region Nordjylland | D91: Vesthimmerlands Kommune | E91: 412761 | F91: 897.5 | G91: 12.5 | H91: =F91+G91*Nøgletal!$C$9 -> 1801.875 | I91: =H91/Nøgletal!$C$9 -> 24.90497581 | J91: 0.001651041418 | K91: 0.01663013908 | L91: 0.3574106064 | M91: 0.04111914657 | N91: 2.974970255 | O91: 0.4141732117 | P91: 29.96543186 | Q91: 8.901302508 | R91: 644.0092365
A92: V131 | B92: Mariager Vand a.m.b.a. | C92: Region Nordjylland | D92: Mariagerfjord Kommune | E92: 213913 | F92: 543.75 | G92: 10.5 | H92: =F92+G92*Nøgletal!$C$9 -> 1303.425 | I92: =H92/Nøgletal!$C$9 -> 18.01554941 | J92: 0.0008556506618 | K92: 0.008618553938 | L92: 0.1159949419 | M92: 0.01541501678 | N92: 1.115276464 | O92: 0.1552679843 | P92: 11.23363867 | Q92: 2.089712607 | R92: 151.1907071
A93: V132 | B93: Mariagerfjord Vand a/s | C93: Region Nordjylland | D93: Mariagerfjord Kommune | E93: 1260422 | F93: 779.49 | G93: 13 | H93: =F93+G93*Nøgletal!$C$9 -> 1720.04 | I93: =H93/Nøgletal!$C$9 -> 23.77387699 | J93: 0.005041680115 | K93: 0.05078239748 | L93: 0.6834674686 | M93: 0.1198602829 | N93: 8.671891465 | O93: 1.207294471 | P93: 87.34775496 | Q93: 16.24867152 | R93: 1175.591385
A94: V133 | B94: Midtfyns Vandforsyning A.m.b.A. | C94: Region Syddanmark | D94: Faaborg-Midtfyn Kommune | E94: 1611940 | F94: 525 | G94: 10.25 | H94: =F94+G94*Nøgletal!$C$9 -> 1266.5875 | I94: =H94/Nøgletal!$C$9 -> 17.50639254 | J94: 0.006447749916 | K94: 0.03771110524 | L94: 0.6884513539 | M94: 0.112876841 | N94: 8.166639446 | O94: 0.6601854114 | P94: 47.76441451 | Q94: 12.05229964 | R94: 871.9838792
A95: V134 | B95: Morsø Forsyning A/S | C95: Region Nordjylland | D95: Morsø Kommune | E95: 532263 | F95: 692.5 | G95: 15.57 | H95: =F95+G95*Nøgletal!$C$9 -> 1818.9895 | I95: =H95/Nøgletal!$C$9 -> 25.1415273 | J95: 0.00212904867 | K95: 0.0214448742 | L95: 1 | M95: 0.05352753526 | N95: 3.872717176 | O95: 0.5391568901 | P95: 39.008001 | Q95: 25.1415273 | R95: 1818.9895
A96: V135 | B96: Mørkøv Vandværk | C96: Region Sjælland | D96: Holbæk Kommune | E96: 296418 | F96: 437.5 | G96: 12.38 | H96: =F96+G96*Nøgletal!$C$9 -> 1333.193 | I96: =H96/Nøgletal!$C$9 -> 18.42699378 | J96: 0.001185670146 | K96: 0.009922113461 | L96: 0.1087015356 | M96: 0.0218483364 | N96: 1.580727138 | O96: 0.182834723 | P96: 13.22809221 | Q96: 2.00304252 | R96: 144.9201263
A97: V136 | B97: NFS Vand A/S | C97: Region Syddanmark | D97: Nyborg Kommune | E97: 1222983 | F97: 500 | G97: 17.38 | H97: =F97+G97*Nøgletal!$C$9 -> 1757.443 | I97: =H97/Nøgletal!$C$9 -> 24.29085003 | J97: 0.004891924349 | K97: 0.02861151198 | L97: 0.8256882406 | M97: 0.1188290007 | N97: 8.597278204 | O97: 0.6949979468 | P97: 50.28310145 | Q97: 20.05666923 | R97: 1451.100019
A98: V137 | B98: NK-Vand A/S | C98: Region Sjælland | D98: Næstved Kommune | E98: 2141562 | F98: 770.31 | G98: 16.66 | H98: =F98+G98*Nøgletal!$C$9 -> 1975.661 | I98: =H98/Nøgletal!$C$9 -> 27.30699378 | J98: 0.008566234602 | K98: 0.07168532663 | L98: 0.8523948757 | M98: 0.233918115 | N98: 16.92397562 | O98: 1.957510768 | P98: 141.6259041 | Q98: 23.27634157 | R98: 1684.043312
A99: V138 | B99: Nordenskov Vandværk | C99: Region Syddanmark | D99: Varde Kommune | E99: 218394 | F99: 500 | G99: 8.75 | H99: =F99+G99*Nøgletal!$C$9 -> 1133.0625 | I99: =H99/Nøgletal!$C$9 -> 15.66085003 | J99: 0.0008735746337 | K99: 0.005109296325 | L99: 0.1587559126 | M99: 0.01368092133 | N99: 0.9898146584 | O99: 0.08001592353 | P99: 5.789152068 | Q99: 2.48625254 | R99: 179.8803712
A100: V140 | B100: Nybrovejens Vandværk a.m.b.a. | C100: Region Hovedstaden | D100: Frederikssund Kommune | E100: 319377 | F100: 287.5 | G100: 13.38 | H100: =F100+G100*Nøgletal!$C$9 -> 1255.543 | I100: =H100/Nøgletal!$C$9 -> 17.35373877 | J100: 0.001277506002 | K100: 0.003099597803 | L100: 0.1962679367 | M100: 0.02216950544 | N100: 1.603963718 | O100: 0.05378961056 | P100: 3.891678324 | Q100: 3.405982502 | R100: 246.4228341
A101: V141 | B101: Nyhuse Vandværk a.m.b.a. | C101: Region Hovedstaden | D101: Hillerød Kommune | E101: 257302 | F101: 625 | G101: 12.38 | H101: =F101+G101*Nøgletal!$C$9 -> 1520.693 | I101: =H101/Nøgletal!$C$9 -> 21.01856254 | J101: 0.00102920639 | K101: 0.002497151372 | L101: 0.1509121227 | M101: 0.02163243888 | N101: 1.565106953 | O101: 0.0524865323 | P101: 3.797400612 | Q101: 3.171955889 | R101: 229.4910086
A102: V142 | B102: Næsby Vandværk | C102: Region Syddanmark | D102: Odense Kommune | E102: 403944 | F102: 562.5 | G102: 13.63 | H102: =F102+G102*Nøgletal!$C$9 -> 1548.6305 | I102: =H102/Nøgletal!$C$9 -> 21.40470629 | J102: 0.001615773473 | K102: 0.009450211978 | L102: 0.0435406894 | M102: 0.03458515662 | N102: 2.502236081 | O102: 0.2022790118 | P102: 14.6348865 | Q102: 0.9319756683 | R102: 67.4284396
A103: V144 | B103: Odder Vandværk A.m.b.a. | C103: Region Midtjylland | D103: Odder Kommune | E103: 855976 | F103: 700 | G103: 13.81 | H103: =F103+G103*Nøgletal!$C$9 -> 1699.1535 | I103: =H103/Nøgletal!$C$9 -> 23.48519005 | J103: 0.003423898645 | K103: 0.01728434106 | L103: 1 | M103: 0.08041091038 | N103: 5.817729366 | O103: 0.4059260346 | P103: 29.3687486 | Q103: 23.48519005 | R103: 1699.1535
A104: V145 | B104: Odsherred Vand A/S | C104: Region Sjælland | D104: Odsherred Kommune | E104: 348109 | F104: 1062.5 | G104: 13.63 | H104: =F104+G104*Nøgletal!$C$9 -> 2048.6305 | I104: =H104/Nøgletal!$C$9 -> 28.31555632 | J104: 0.001392433822 | K104: 0.01165238614 | L104: 0.6303193705 | M104: 0.03942753832 | N104: 2.852582397 | O104: 0.3299437961 | P104: 23.87143364 | Q104: 17.84784364 | R104: 1291.291487
A105: V146 | B105: Otterup Vandværk | C105: Region Syddanmark | D105: Nordfyns Kommune | E105: 299441 | F105: 500 | G105: 14.88 | H105: =F105+G105*Nøgletal!$C$9 -> 1576.568 | I105: =H105/Nøgletal!$C$9 -> 21.79085003 | J105: 0.001197762127 | K105: 0.007005379273 | L105: 0.5601970336 | M105: 0.02610025488 | N105: 1.888353441 | O105: 0.1526531692 | P105: 11.04445679 | Q105: 12.20716955 | R105: 883.1887169
A106: V149 | B106: Padborg Vandværk a.m.b.a. | C106: Region Syddanmark | D106: Aabenraa Kommune | E106: 576306 | F106: 460 | G106: 11.98 | H106: =F106+G106*Nøgletal!$C$9 -> 1326.753 | I106: =H106/Nøgletal!$C$9 -> 18.33798203 | J106: 0.002305220395 | K106: 0.01348259626 | L106: 0.2130093663 | M106: 0.04227309018 | N106: 3.058458074 | O106: 0.247243608 | P106: 17.88807504 | Q106: 3.906161932 | R106: 282.6108158
A107: V150 | B107: Pandrup Vandværk | C107: Region Nordjylland | D107: Jammerbugt Kommune | E107: 266412 | F107: 312.5 | G107: 10 | H107: =F107+G107*Nøgletal!$C$9 -> 1036 | I107: =H107/Nøgletal!$C$9 -> 14.31928127 | J107: 0.001065646333 | K107: 0.01073373844 | L107: 0.1997930166 | M107: 0.01525928958 | N107: 1.104009601 | O107: 0.1536994199 | P107: 11.12015303 | Q107: 2.8608924 | R107: 206.9855652
A108: V151 | B108: Randers Spildevand A/S | C108: Region Midtjylland | D108: Randers Kommune | E108: 272212 | F108: 425 | G108: 15.89 | H108: =F108+G108*Nøgletal!$C$9 -> 1574.6415 | I108: =H108/Nøgletal!$C$9 -> 21.76422253 | J108: 0.001088846297 | K108: 0.005496655336 | L108: 0.09408594625 | M108: 0.02369789311 | N108: 1.714542566 | O108: 0.1196304299 | P108: 8.655261603 | Q108: 2.047707471 | R108: 148.1516355
A109: V152 | B109: Rebild Vand & Spildevand A/S | C109: Region Nordjylland | D109: Rebild Kommune | E109: 3869 | F109: 1060 | G109: 16.13 | H109: =F109+G109*Nøgletal!$C$9 -> 2227.0055 | I109: =H109/Nøgletal!$C$9 -> 30.78100207 | J109: 1.54759758e-05 | K109: 0.000155881995 | L109: 0.01104847737 | M109: 0.000476366043 | N109: 0.03446508321 | O109: 0.00479820401 | P109: 0.3471500601 | Q109: 0.3400832049 | R109: 24.60501987
A110: V153 | B110: Ringkjøbing-Skjern Vand A/S | C110: Region Midtjylland | D110: Ringkøbing-Skjern Kommune | E110: 3261103 | F110: 1037.5 | G110: 14.35 | H110: =F110+G110*Nøgletal!$C$9 -> 2075.7225 | I110: =H110/Nøgletal!$C$9 -> 28.69001382 | J110: 0.0130443916 | K110: 0.06584999635 | L110: 0.892224052 | M110: 0.3742437753 | N110: 27.07653714 | O110: 1.889237305 | P110: 136.686319 | Q110: 25.59792038 | R110: 1852.00954
A111: V154 | B111: Ringsted Vand A/S | C111: Region Sjælland | D111: Ringsted Kommune | E111: 1968268 | F111: 185.55 | G111: 13.2 | H111: =F111+G111*Nøgletal!$C$9 -> 1140.57 | I111: =H111/Nøgletal!$C$9 -> 15.76461645 | J111: 0.007873059687 | K111: 0.06588459007 | L111: 1 | M111: 0.1241157662 | N111: 8.979775687 | O111: 1.038645292 | P111: 75.14598689 | Q111: 15.76461645 | R111: 1140.57
A112: V155 | B112: Roskilde Vand A/S | C112: Region Sjælland | D112: Roskilde Kommune | E112: 2986928 | F112: 375 | G112: 21.85 | H112: =F112+G112*Nøgletal!$C$9 -> 1955.8475 | I112: =H112/Nøgletal!$C$9 -> 27.03313753 | J112: 0.01194769331 | K112: 0.09998258715 | L112: 0.9255862756 | M112: 0.3229836365 | N112: 23.3678661 | O112: 2.702843029 | P112: 195.5506931 | Q112: 25.02150108 | R112: 1810.305603
A113: V156 | B113: Rudersdal Forsyning A/S | C113: Region Hovedstaden | D113: Rudersdal Kommune | E113: 1673829 | F113: 423.75 | G113: 16.45 | H113: =F113+G113*Nøgletal!$C$9 -> 1613.9075 | I113: =H113/Nøgletal!$C$9 -> 22.3069454 | J113: 0.006695305529 | K113: 0.01624474114 | L113: 0.5943420948 | M113: 0.1493518149 | N113: 10.80560381 | O113: 0.3623705537 | P113: 26.21750956 | Q113: 13.25795666 | R113: 959.2131644
A114: V158 | B114: Rødding Vandværk a.m.b.a. | C114: Region Syddanmark | D114: Vejen Kommune | E114: 246540 | F114: 675 | G114: 11.63 | H114: =F114+G114*Nøgletal!$C$9 -> 1516.4305 | I114: =H114/Nøgletal!$C$9 -> 20.95964755 | J114: 0.0009861584576 | K114: 0.005767767961 | L114: 0.2774348696 | M114: 0.0206695337 | N114: 1.495440763 | O114: 0.1208903836 | P114: 8.746419253 | Q114: 5.814937085 | R114: 420.7106981
A115: V159 | B115: Rødekro Vandværk | C115: Region Syddanmark | D115: Aabenraa Kommune | E115: 304613 | F115: 437.5 | G115: 11.13 | H115: =F115+G115*Nøgletal!$C$9 -> 1242.7555 | I115: =H115/Nøgletal!$C$9 -> 17.17699378 | J115: 0.001218450094 | K115: 0.007126377472 | L115: 0.1125884896 | M115: 0.02092930969 | N115: 1.514235556 | O115: 0.1224097415 | P115: 8.856344798 | Q115: 1.933931786 | R115: 139.9199647
A116: V160 | B116: Rønne Vand A/S | C116: Region Hovedstaden | D116: Bornholms Regionskommune | E116: 927906 | F116: 806.25 | G116: 13.75 | H116: =F116+G116*Nøgletal!$C$9 -> 1801.0625 | I116: =H116/Nøgletal!$C$9 -> 24.89374568 | J116: 0.003711618195 | K116: 0.009005455617 | L116: 0.376082766 | M116: 0.09239607941 | N116: 6.684856345 | O116: 0.2241795219 | P116: 16.21938841 | Q116: 9.362108733 | R116: 677.3485668
A117: V162 | B117: Silkeborg Vand a/s | C117: Region Midtjylland | D117: Silkeborg Kommune | E117: 2428799 | F117: 787.5 | G117: 13.55 | H117: =F117+G117*Nøgletal!$C$9 -> 1767.8425 | I117: =H117/Nøgletal!$C$9 -> 24.4345888 | J117: 0.009715180805 | K117: 0.04904365341 | L117: 1 | M117: 0.2373864481 | N117: 17.17490952 | O117: 1.198361505 | P117: 86.70145486 | Q117: 24.4345888 | R117: 1767.8425
A118: V165 | B118: SK Vand A/S | C118: Region Sjælland | D118: Slagelse Kommune | E118: 3549893 | F118: 1200 | G118: 13.21 | H118: =F118+G118*Nøgletal!$C$9 -> 2155.7435 | I118: =H118/Nøgletal!$C$9 -> 29.79604008 | J118: 0.01419954979 | K118: 0.1188269306 | L118: 1 | M118: 0.4230903548 | N118: 30.61058717 | O118: 3.540571988 | P118: 256.1603833 | Q118: 29.79604008 | R118: 2155.7435
A119: V166 | B119: Skanderborg Forsyningsvirksomhed A/S | C119: Region Midtjylland | D119: Skanderborg Kommune | E119: 976052 | F119: 1127.5 | G119: 14.04 | H119: =F119+G119*Nøgletal!$C$9 -> 2143.294 | I119: =H119/Nøgletal!$C$9 -> 29.62396683 | J119: 0.003904201894 | K119: 0.01970898209 | L119: 0.782307331 | M119: 0.1156579474 | N119: 8.367852494 | O119: 0.5838582318 | P119: 42.24214307 | Q119: 23.17504642 | R119: 1676.714609
A120: V167 | B120: Skive Vand A/S | C120: Region Midtjylland | D120: Skive Kommune | E120: 2316736 | F120: 687.5 | G120: 15.19 | H120: =F120+G120*Nøgletal!$C$9 -> 1786.4965 | I120: =H120/Nøgletal!$C$9 -> 24.6924188 | J120: 0.009266929507 | K120: 0.04678081531 | L120: 1 | M120: 0.2288229043 | N120: 16.55533713 | O120: 1.155131483 | P120: 83.57376281 | Q120: 24.6924188 | R120: 1786.4965
A121: V171 | B121: Solrød Vandværk a.m.b.a. | C121: Region Sjælland | D121: Solrød Kommune | E121: 635409 | F121: 231.25 | G121: 14.51 | H121: =F121+G121*Nøgletal!$C$9 -> 1281.0485 | I121: =H121/Nøgletal!$C$9 -> 17.70626814 | J121: 0.002541632025 | K121: 0.02126928929 | L121: 1 | M121: 0.04500281815 | N121: 3.255953893 | O121: 0.3765997393 | P121: 27.24699114 | Q121: 17.70626814 | R121: 1281.0485
A122: V172 | B122: Sorø Vand A/S | C122: Region Sjælland | D122: Sorø Kommune | E122: 480618 | F122: 520 | G122: 19.1 | H122: =F122+G122*Nøgletal!$C$9 -> 1901.885 | I122: =H122/Nøgletal!$C$9 -> 26.28728404 | J122: 0.001922468993 | K122: 0.01608791075 | L122: 0.4831132801 | M122: 0.05053648848 | N122: 3.656314941 | O122: 0.4229074793 | P122: 30.59735613 | Q122: 12.69973602 | R122: 918.8259007
A123: V174 | B123: Struer Forsyning Vand A/S | C123: Region Midtjylland | D123: Struer Kommune | E123: 1110624 | F123: 538.75 | G123: 12.56 | H123: =F123+G123*Nøgletal!$C$9 -> 1447.466 | I123: =H123/Nøgletal!$C$9 -> 20.00644091 | J123: 0.004442489052 | K123: 0.02242633439 | L123: 1 | M123: 0.08887839472 | N123: 6.430351858 | O123: 0.4486711338 | P123: 32.46135653 | Q123: 20.00644091 | R123: 1447.466
A124: V176 | B124: Støvring Vandværk a.m.b.a. | C124: Region Nordjylland | D124: Rebild Kommune | E124: 346315 | F124: 500 | G124: 11.13 | H124: =F124+G124*Nøgletal!$C$9 -> 1305.2555 | I124: =H124/Nøgletal!$C$9 -> 18.04085003 | J124: 0.001385257833 | K124: 0.01395303 | L124: 0.9889515226 | M124: 0.02499122883 | N124: 1.808115406 | O124: 0.2517245218 | P124: 18.21226915 | Q124: 17.84152611 | R124: 1290.834414
A125: V178 | B125: Svendborg Vand A/S | C125: Region Syddanmark | D125: Svendborg Kommune | E125: 1942480 | F125: 784 | G125: 17.79 | H125: =F125+G125*Nøgletal!$C$9 -> 2071.1065 | I125: =H125/Nøgletal!$C$9 -> 28.62621285 | J125: 0.007769907848 | K125: 0.04544404116 | L125: 1 | M125: 0.2224230359 | N125: 16.09230665 | O125: 1.300890795 | P125: 94.11944904 | Q125: 28.62621285 | R125: 2071.1065
A126: V179 | B126: Svinninge Vandværk | C126: Region Sjælland | D126: Holbæk Kommune | E126: 541116 | F126: 250 | G126: 11.44 | H126: =F126+G126*Nøgletal!$C$9 -> 1077.684 | I126: =H126/Nøgletal!$C$9 -> 14.89542502 | J126: 0.002164460615 | K126: 0.01811298352 | L126: 0.1984364652 | M126: 0.03224056079 | N126: 2.332604573 | O126: 0.2698005878 | P126: 19.52007253 | Q126: 2.955795488 | R126: 213.8518035
A127: V180 | B127: Sydals Øst Vandforsyning | C127: Region Syddanmark | D127: Sønderborg Kommune | E127: 281854 | F127: 543.75 | G127: 9.88 | H127: =F127+G127*Nøgletal!$C$9 -> 1258.568 | I127: =H127/Nøgletal!$C$9 -> 17.39554941 | J127: 0.001127414237 | K127: 0.006593933929 | L127: 0.1144693082 | M127: 0.01961199006 | N127: 1.418927481 | O127: 0.1147051035 | P127: 8.298914237 | Q127: 1.991256506 | R127: 144.0674082
A128: V181 | B128: Sønderborg Vandforsyning A/S | C128: Region Syddanmark | D128: Sønderborg Kommune | E128: 2180413 | F128: 555 | G128: 15.36 | H128: =F128+G128*Nøgletal!$C$9 -> 1666.296 | I128: =H128/Nøgletal!$C$9 -> 23.03104354 | J128: 0.008721638359 | K128: 0.05101044959 | L128: 0.8855306918 | M128: 0.2008684328 | N128: 14.53283111 | O128: 1.174823885 | P128: 84.99850812 | Q128: 20.39469592 | R128: 1475.55625
A129: V183 | B129: Tarup Vandværk | C129: Region Syddanmark | D129: Odense Kommune | E129: 290521 | F129: 568.75 | G129: 11.66 | H129: =F129+G129*Nøgletal!$C$9 -> 1412.351 | I129: =H129/Nøgletal!$C$9 -> 19.52109191 | J129: 0.001162082183 | K129: 0.006796697152 | L129: 0.0313149462 | M129: 0.0226851131 | N129: 1.641267933 | O129: 0.1326789498 | P129: 9.599322019 | Q129: 0.611301943 | R129: 44.22769557
A130: V184 | B130: Thisted Drikkevand A/S | C130: Region Nordjylland | D130: Thisted Kommune | E130: 2913469 | F130: 692.5 | G130: 15.71 | H130: =F130+G130*Nøgletal!$C$9 -> 1829.1185 | I130: =H130/Nøgletal!$C$9 -> 25.2815273 | J130: 0.01165385777 | K130: 0.1173836547 | L130: 1 | M130: 0.2946273234 | N130: 21.31628685 | O130: 2.96763807 | P130: 214.7086144 | Q130: 25.2815273 | R130: 1829.1185
A131: V185 | B131: Tinglev Vandværk | C131: Region Syddanmark | D131: Aabenraa Kommune | E131: 349227 | F131: 692 | G131: 12.88 | H131: =F131+G131*Nøgletal!$C$9 -> 1623.868 | I131: =H131/Nøgletal!$C$9 -> 22.44461645 | J131: 0.001396905815 | K131: 0.008170115607 | L131: 0.1290783403 | M131: 0.03135301524 | N131: 2.268390652 | O131: 0.1833751111 | P131: 13.26718929 | Q131: 2.897113839 | R131: 209.6061863
A132: V188 | B132: TREFOR Vand A/S 3 | C132: Region Syddanmark | D132: Fredericia Kommune | E132: 990595.7897 | F132: 1187.5 | G132: 14.88 | H132: =F132+G132*Nøgletal!$C$9 -> 2264.068 | I132: =H132/Nøgletal!$C$9 -> 31.29326883 | J132: =IF(H132>0,E132/(SUMIFS($E$3:$E$163,$I$3:$I$163,">0")),"-") -> 0.003962376962 | K132: =IF(H132>0,E132/(SUMIFS($E$3:$E$163,$C$3:$C$163,C132,$I$3:$I$163,">0")),"-") -> 0.02317484651 | L132: =IF(H132>0,E132/(SUMIFS($E$3:$E$163,$D$3:$D$163,D132,$I$3:$I$163,">0")),"-") -> 1 | M132: =IF(H132>0,J132*I132,"-") -> 0.1239957275 | N132: =IF(H132>0,J132*H132,"-") -> 8.971090883 | O132: =IF(H132>0,K132*I132,"-") -> 0.7252167019 | P132: =IF(H132>0,K132*H132,"-") -> 52.46942838 | Q132: =IF(H132>0,L132*I132,"-") -> 31.29326883 | R132: =IF(H132>0,L132*H132,"-") -> 2264.068
A133: V188 | B133: TREFOR Vand A/S 1 | C133: Region Syddanmark | D133: Kolding Kommune | E133: 1796499.654 | F133: 1187.5 | G133: 14.88 | H133: =F133+G133*Nøgletal!$C$9 -> 2264.068 | I133: =H133/Nøgletal!$C$9 -> 31.29326883 | J133: 0.007185987376 | K133: 0.04202885189 | L133: 0.8811910028 | M133: 0.2248730348 | N133: 16.26956407 | O133: 1.315220161 | P133: 95.15617863 | Q133: 27.57534694 | R133: 1995.076351
A134: V188 | B134: TREFOR Vand A/S 2 | C134: Region Syddanmark | D134: Middelfart Kommune | E134: 749121.5567 | F134: 1187.5 | G134: 14.88 | H134: =F134+G134*Nøgletal!$C$9 -> 2264.068 | I134: =H134/Nøgletal!$C$9 -> 31.29326883 | J134: 0.00299648154 | K134: 0.01752559144 | L134: 1 | M134: 0.09376970239 | N134: 6.784237968 | O134: 0.5484330443 | P134: 39.67913076 | Q134: 31.29326883 | R134: 2264.068
A135: V190 | B135: Tønder Vand A/S | C135: Region Syddanmark | D135: Tønder Kommune | E135: 1686594 | F135: 516 | G135: 17.98 | H135: =F135+G135*Nøgletal!$C$9 -> 1816.853 | I135: =H135/Nøgletal!$C$9 -> 25.11199724 | J135: 0.006746365449 | K135: 0.03945762487 | L135: 1 | M135: 0.1694147105 | N135: 12.2571543 | O135: 0.9908597667 | P135: 71.68870412 | Q135: 25.11199724 | R135: 1816.853
A136: V191 | B136: TÅRNBYFORSYNING Vand | C136: Region Hovedstaden | D136: Tårnby Kommune | E136: 2273280 | F136: 250 | G136: 19.03 | H136: =F136+G136*Nøgletal!$C$9 -> 1626.8205 | I136: =H136/Nøgletal!$C$9 -> 22.48542502 | J136: 0.009093105778 | K136: 0.02206249571 | L136: 1 | M136: 0.2044623482 | N136: 14.79285089 | O136: 0.496084593 | P136: 35.8917203 | Q136: 22.48542502 | R136: 1626.8205
A137: V193 | B137: Udsholt Vandværk A.m.b.a. | C137: Region Hovedstaden | D137: Gribskov Kommune | E137: 318010 | F137: 1712.5 | G137: 13.63 | H137: =F137+G137*Nøgletal!$C$9 -> 2698.6305 | I137: =H137/Nøgletal!$C$9 -> 37.29966137 | J137: 0.001272038011 | K137: 0.003086330879 | L137: 0.2228307444 | M137: 0.04744658704 | N137: 3.432760572 | O137: 0.1151190967 | P137: 8.328866644 | Q137: 8.311511307 | R137: 601.337843
A138: V194 | B138: Ulfborg Vandværk a.m.b.a | C138: Region Midtjylland | D138: Holstebro Kommune | E138: 299215 | F138: 437.5 | G138: 11.25 | H138: =F138+G138*Nøgletal!$C$9 -> 1251.4375 | I138: =H138/Nøgletal!$C$9 -> 17.29699378 | J138: 0.001196858128 | K138: 0.006041914854 | L138: 0.0747676746 | M138: 0.0207020476 | N138: 1.497793144 | O138: 0.1045069637 | P138: 7.56107882 | Q138: 1.293256002 | R138: 93.56707178
A139: V197 | B139: Vand Ballerup A/S | C139: Region Hovedstaden | D139: Ballerup Kommune | E139: 3217893 | F139: 0 | G139: 22.02 | H139: =F139+G139*Nøgletal!$C$9 -> 1593.147 | I139: =H139/Nøgletal!$C$9 -> 22.02 | J139: 0.01287155187 | K139: 0.03123009507 | L139: 1 | M139: 0.2834315722 | N139: 20.50627425 | O139: 0.6876866933 | P139: 49.75413226 | Q139: 22.02 | R139: 1593.147
A140: V198 | B140: Vandcenter Djurs a.m.b.a | C140: Region Midtjylland | D140: Norddjurs Kommune | E140: 1510000 | F140: 650 | G140: 12.13 | H140: =F140+G140*Nøgletal!$C$9 -> 1527.6055 | I140: =H140/Nøgletal!$C$9 -> 21.11410504 | J140: 0.006039990553 | K140: 0.03049075558 | L140: 0.8940593016 | M140: 0.127528995 | N140: 9.226722789 | O140: 0.6437850161 | P140: 46.57784592 | Q140: 18.87726201 | R140: 1365.769906
A141: V199 | B141: Vandcenter Syd A/S | C141: Region Syddanmark | D141: Odense Kommune | E141: 8582926 | F141: 600 | G141: 16.19 | H141: =F141+G141*Nøgletal!$C$9 -> 1771.3465 | I141: =H141/Nøgletal!$C$9 -> 24.48302004 | J141: 0.03433165031 | K141: 0.2007963235 | L141: 0.9251443644 | M141: 0.8405424825 | N141: 60.81324861 | O141: 4.916100412 | P141: 355.6798648 | Q141: 22.65032801 | R141: 1638.751232
A142: V200 | B142: Vandforsyningen Brovst og Omegn | C142: Region Nordjylland | D142: Jammerbugt Kommune | E142: 281356 | F142: 500 | G142: 9.25 | H142: =F142+G142*Nøgletal!$C$9 -> 1169.2375 | I142: =H142/Nøgletal!$C$9 -> 16.16085003 | J142: 0.00112542224 | K142: 0.01133583215 | L142: 0.21100012 | M142: 0.01818778004 | N142: 1.315885886 | O142: 0.1831966833 | P142: 13.25428004 | Q142: 3.409941296 | R142: 246.7092528
A143: V205 | B143: Vejen Vand A/S | C143: Region Syddanmark | D143: Vejen Kommune | E143: 642101 | F143: 500 | G143: 7.38 | H143: =F143+G143*Nøgletal!$C$9 -> 1033.943 | I143: =H143/Nøgletal!$C$9 -> 14.29085003 | J143: 0.002568399983 | K143: 0.01502186086 | L143: 0.7225651304 | M143: 0.03670461899 | N143: 2.655579184 | O143: 0.2146751607 | P143: 15.53174788 | Q143: 10.32606992 | R143: 747.0911586
A144: V206 | B144: Verdo Vand A/S | C144: Region Midtjylland | D144: Randers Kommune | E144: 2377638 | F144: 693.75 | G144: 15.71 | H144: =F144+G144*Nøgletal!$C$9 -> 1830.3685 | I144: =H144/Nøgletal!$C$9 -> 25.29880442 | J144: 0.009510537126 | K144: 0.04801058219 | L144: 0.8217944876 | M144: 0.2406052187 | N144: 17.40778757 | O144: 1.214610329 | P144: 87.87705731 | Q144: 20.79041802 | R144: 1504.186744
A145: V207 | B145: Vestforsyning Vand A/S | C145: Region Midtjylland | D145: Holstebro Kommune | E145: 3702715 | F145: 657.5 | G145: 13.53 | H145: =F145+G145*Nøgletal!$C$9 -> 1636.3955 | I145: =H145/Nøgletal!$C$9 -> 22.6177678 | J145: 0.01481083684 | K145: 0.07476727022 | L145: 0.9252323254 | M145: 0.3349880684 | N145: 24.23638675 | O145: 1.691068757 | P145: 122.3488245 | Q145: 20.92668989 | R145: 1514.046014
A146: V208 | B146: Vesthimmerlands Vand A/S | C146: Region Nordjylland | D146: Vesthimmerlands Kommune | E146: 45814 | F146: 1000 | G146: 13.63 | H146: =F146+G146*Nøgletal!$C$9 -> 1986.1305 | I146: =H146/Nøgletal!$C$9 -> 27.45170007 | J146: 0.0001832557134 | K146: 0.001845845882 | L146: 0.03967043767 | M146: 0.00503068088 | N146: 0.3639697617 | O146: 0.05067160752 | P146: 3.666090804 | Q146: 1.089020957 | R146: 78.79066621
A147: V209 | B147: Videbæk Vand A/S | C147: Region Midtjylland | D147: Ringkøbing-Skjern Kommune | E147: 393924 | F147: 593.75 | G147: 12 | H147: =F147+G147*Nøgletal!$C$9 -> 1461.95 | I147: =H147/Nøgletal!$C$9 -> 20.20663442 | J147: 0.001575693536 | K147: 0.007954331391 | L147: 0.107775948 | M147: 0.03183946323 | N147: 2.303585164 | O147: 0.1607302664 | P147: 11.62883478 | Q147: 2.177789181 | R147: 157.5630472
A148: V210 | B148: Vildbjerg Vandværk | C148: Region Midtjylland | D148: Herning Kommune | E148: 498257 | F148: 500 | G148: 11.13 | H148: =F148+G148*Nøgletal!$C$9 -> 1305.2555 | I148: =H148/Nøgletal!$C$9 -> 18.04085003 | J148: 0.001993024883 | K148: 0.01006108106 | L148: 0.1266550719 | M148: 0.03595586303 | N148: 2.60140669 | O148: 0.1815104546 | P148: 13.13228139 | Q148: 2.284965159 | R148: 165.3172292
A149: V212 | B149: Vordingborg Vand A/S | C149: Region Sjælland | D149: Vordingborg Kommune | E149: 937866 | F149: 637.5 | G149: 19.25 | H149: =F149+G149*Nøgletal!$C$9 -> 2030.2375 | I149: =H149/Nøgletal!$C$9 -> 28.06133379 | J149: 0.003751458133 | K149: 0.03139354851 | L149: 1 | M149: 0.1052709189 | N149: 7.616350981 | O149: 0.8809448438 | P149: 63.73635945 | Q149: 28.06133379 | R149: 2030.2375
A150: V214 | B150: Ærø Vand A/S | C150: Region Syddanmark | D150: Ærø Kommune | E150: 159872 | F150: 1855 | G150: 14.88 | H150: =F150+G150*Nøgletal!$C$9 -> 2931.568 | I150: =H150/Nøgletal!$C$9 -> 40.51925363 | J150: 0.0006394869998 | K150: 0.003740182524 | L150: 1 | M150: 0.02591153594 | N150: 1.874699625 | O150: 0.1515494043 | P150: 10.9645994 | Q150: 40.51925363 | R150: 2931.568
A151: V217 | B151: Aabybro Vand A.m.b.a. | C151: Region Nordjylland | D151: Jammerbugt Kommune | E151: 426106 | F151: 828.75 | G151: 12.38 | H151: =F151+G151*Nøgletal!$C$9 -> 1724.443 | I151: =H151/Nøgletal!$C$9 -> 23.83473393 | J151: 0.001704421334 | K151: 0.01716780908 | L151: 0.3195539357 | M151: 0.04062442901 | N151: 2.939177439 | O151: 0.4091901617 | P151: 29.6049082 | Q151: 7.616483034 | R151: 551.0525475
A152: V218 | B152: Aalborg Forsyning, Vand A/S | C152: Region Nordjylland | D152: Aalborg Kommune | E152: 6516715 | F152: 1250 | G152: 13.63 | H152: =F152+G152*Nøgletal!$C$9 -> 2236.1305 | I152: =H152/Nøgletal!$C$9 -> 30.90712509 | J152: 0.02606681923 | K152: 0.262558422 | L152: 0.8663020869 | M152: 0.8056504426 | N152: 58.28880952 | O152: 8.114925991 | P152: 587.1148955 | Q152: 26.77490696 | R152: 1937.164519
A153: V219 | B153: Aalestrup Vand a.m.b.a. | C153: Region Nordjylland | D153: Vesthimmerlands Kommune | E153: 205752 | F153: 750 | G153: 11.31 | H153: =F153+G153*Nøgletal!$C$9 -> 1568.2785 | I153: =H153/Nøgletal!$C$9 -> 21.67627505 | J153: 0.0008230067128 | K153: 0.00828974728 | L153: 0.1781610838 | M153: 0.01783971988 | N153: 1.290703733 | O153: 0.1796908421 | P153: 13.00063243 | Q153: 3.861868655 | R153: 279.4061972
A154: V220 | B154: Aarhus Vand A/S | C154: Region Midtjylland | D154: Aarhus Kommune | E154: 14323721 | F154: 687.5 | G154: 20.89 | H154: =F154+G154*Nøgletal!$C$9 -> 2198.8915 | I154: =H154/Nøgletal!$C$9 -> 30.3924188 | J154: 0.05729479439 | K154: 0.2892325006 | L154: 1 | M154: 1.741327386 | N154: 125.9850364 | O154: 8.790475289 | P154: 635.9908872 | Q154: 30.3924188 | R154: 2198.8915
A155: V221 | B155: Aars Vand | C155: Region Nordjylland | D155: Vesthimmerlands Kommune | E155: 490538 | F155: 850 | G155: 12.5 | H155: =F155+G155*Nøgletal!$C$9 -> 1754.375 | I155: =H155/Nøgletal!$C$9 -> 24.24844506 | J155: 0.001962148931 | K155: 0.01976377411 | L155: 0.4247578721 | M155: 0.04757906056 | N155: 3.442345031 | O155: 0.4792407907 | P155: 34.67307121 | Q155: 10.29971793 | R155: 745.1845919
A156: V016 | B156: Asnæs Vandværk a.m.b.a. | C156: Region Sjælland | D156: Odsherred Kommune | E156: 204165 | F156: 468.75 | G156: 11.13 | H156: =F156+G156*Nøgletal!$C$9 -> 1274.0055 | I156: =H156/Nøgletal!$C$9 -> 17.60892191 | J156: 0.0008166587227 | K156: 0.006834093391 | L156: 0.3696806295 | M156: 0.01438047967 | N156: 1.040427704 | O156: 0.1203410168 | P156: 8.706672568 | Q156: 6.509677336 | R156: 470.9751553
A157: V038 | B157: Christiansfeld Vandforsyning A/S | C157: Region Syddanmark | D157: Kolding Kommune | E157: 242218 | F157: 479.39 | G157: 12.69 | H157: =F157+G157*Nøgletal!$C$9 -> 1397.5115 | I157: =H157/Nøgletal!$C$9 -> 19.3159848 | J157: 0.0009688704847 | K157: 0.00566665539 | L157: 0.1188089972 | M157: 0.01871468755 | N157: 1.354007644 | O157: 0.1094570294 | P157: 7.919216075 | Q157: 2.294912784 | R157: 166.0369399
A158: V039 | B158: Dianalund Vandværk | C158: Region Sjælland | D158: Sorø Kommune | E158: 313404 | F158: 281.25 | G158: 9.88 | H158: =F158+G158*Nøgletal!$C$9 -> 996.068 | I158: =H158/Nøgletal!$C$9 -> 13.76735314 | J158: 0.001253614039 | K158: 0.01049069236 | L158: 0.3150311358 | M158: 0.01725894719 | N158: 1.248684829 | O158: 0.1444290664 | P158: 10.44944296 | Q158: 4.337144898 | R158: 313.7924334
A159: V040 | B159: Dronninglund Vandværk A.m.b.A | C159: Region Nordjylland | D159: Brønderslev Kommune | E159: 371689 | F159: 750 | G159: 10.88 | H159: =F159+G159*Nøgletal!$C$9 -> 1537.168 | I159: =H159/Nøgletal!$C$9 -> 21.24627505 | J159: 0.001486753675 | K159: 0.01497534836 | L159: 0.2905493241 | M159: 0.03158797751 | N159: 2.285390173 | O159: 0.3181703703 | P159: 23.01962629 | Q159: 6.173090856 | R159: 446.6231234
A160: V096 | B160: Hornslet Vandværk a.m.b.a. | C160: Region Midtjylland | D160: Syddjurs Kommune | E160: 201918 | F160: 375 | G160: 12.38 | H160: =F160+G160*Nøgletal!$C$9 -> 1270.693 | I160: =H160/Nøgletal!$C$9 -> 17.56313753 | J160: 0.0008076707368 | K160: 0.00407723999 | L160: 0.3849848327 | M160: 0.01418523223 | N160: 1.026301552 | O160: 0.07160912667 | P160: 5.180920314 | Q160: 6.761541562 | R160: 489.197532
A161: V175 | B161: Strømmen Vandværk | C161: Region Midtjylland | D161: Randers Kommune | E161: 243377 | F161: 487.5 | G161: 13.63 | H161: =F161+G161*Nøgletal!$C$9 -> 1473.6305 | I161: =H161/Nøgletal!$C$9 -> 20.36807878 | J161: 0.0009735064774 | K161: 0.00491440306 | L161: 0.08411956615 | M161: 0.01982845663 | N161: 1.434588837 | O161: 0.1000969487 | P161: 7.242014238 | Q161: 1.71335395 | R161: 123.9611583
A162: V186 | B162: Tistrup Vandværk | C162: Region Syddanmark | D162: Varde Kommune | E162: 228323 | F162: 437.5 | G162: 12.06 | H162: =F162+G162*Nøgletal!$C$9 -> 1310.041 | I162: =H162/Nøgletal!$C$9 -> 18.10699378 | J162: 0.0009132905716 | K162: 0.005341583857 | L162: 0.1659735443 | M162: 0.0165369467 | N162: 1.196448094 | O162: 0.09672002568 | P162: 6.997693858 | Q162: 3.005281935 | R162: 217.432148
A163: V201 | B163: Vandforsyningen Østlolland a.m.b.a. | C163: Region Sjælland | D163: Guldborgsund Kommune | E163: 196520 | F163: 1331.25 | G163: 20.5 | H163: =F163+G163*Nøgletal!$C$9 -> 2814.425 | I163: =H163/Nøgletal!$C$9 -> 38.90013822 | J163: 0.0007860787706 | K163: 0.006578189372 | L163: 0.1077995013 | M163: 0.03057857282 | N163: 2.212359744 | O163: 0.2558924758 | P163: 18.51382062 | Q163: 4.193415499 | R163: 303.3936113
A164: Selskaber der ikke er blevet reguleret igennem hele perioden fra 2011-2021.
A165: V078 | B165: Hedensted Vandværk | C165: Region Midtjylland | D165: Hedensted Kommune | E165: 424913 | F165: 250 | G165: 11.13 | H165: =F165+G165*Nøgletal!$C$9 -> 1055.2555 | I165: =H165/Nøgletal!$C$9 -> 14.58542502
A166: V001 | B166: Andelsselskabet Ejby Vandværk | C166: Region Sjælland | D166: Køge Kommune | E166: 244789 | F166: 500 | G166: 11.88 | H166: =F166+G166*Nøgletal!$C$9 -> 1359.518 | I166: =H166/Nøgletal!$C$9 -> 18.79085003
A167: V004 | B167: Andelsselskabet Hammerum Vandværk | C167: Region Midtjylland | D167: Herning Kommune | E167: 220160 | F167: 570.31 | G167: 15.19 | H167: =F167+G167*Nøgletal!$C$9 -> 1669.3065 | I167: =H167/Nøgletal!$C$9 -> 23.07265377
A168: V005 | B168: Andelsselskabet Haarlev Vandværk | C168: Region Sjælland | D168: Stevns Kommune | E168: 212485 | F168: 681.25 | G168: 15.87 | H168: =F168+G168*Nøgletal!$C$9 -> 1829.4445 | I168: =H168/Nøgletal!$C$9 -> 25.28603317
A169: V009 | B169: Andelsselskabet Strandhuse Nr. Bjert Vandværk | C169: Region Syddanmark | D169: Kolding Kommune | E169: 238280 | F169: 343.75 | G169: 13.94 | H169: =F169+G169*Nøgletal!$C$9 -> 1352.309 | I169: =H169/Nøgletal!$C$9 -> 18.6912094
A170: V011 | B170: Andelsselskabet Vrå Vandværk | C170: Region Nordjylland | D170: Hjørring Kommune | E170: 251120 | F170: 718.75 | G170: 13 | H170: =F170+G170*Nøgletal!$C$9 -> 1659.3 | I170: =H170/Nøgletal!$C$9 -> 22.93434692
A171: V029 | B171: Bramdrupdam Vandværk I/S (SKØN) | C171: Region Syddanmark | D171: Kolding Kommune | E171: 322058 | F171: 500 | G171: 13.63 | H171: =F171+G171*Nøgletal!$C$9 -> 1486.1305 | I171: =H171/Nøgletal!$C$9 -> 20.54085003
A172: V031 | B172: Branderup Vandværk | C172: Region Syddanmark | D172: Tønder Kommune | E172: 401666 | F172: 531.25 | G172: 8.94 | H172: =F172+G172*Nøgletal!$C$9 -> 1178.059 | I172: =H172/Nøgletal!$C$9 -> 16.28277816
A173: V032 | B173: Bredebro Andelsvandværk | C173: Region Syddanmark | D173: Tønder Kommune | E173: 214098 | F173: 437.5 | G173: 10.31 | H173: =F173+G173*Nøgletal!$C$9 -> 1183.4285 | I173: =H173/Nøgletal!$C$9 -> 16.35699378
A174: V033 | B174: Broager Vandværk a.m.b.a. (SKØN) | C174: Region Syddanmark | D174: Sønderborg Kommune | E174: 200633 | F174: 470.82 | G174: 13.71 | H174: =F174+G174*Nøgletal!$C$9 -> 1462.7385 | I174: =H174/Nøgletal!$C$9 -> 20.21753283
A175: V034 | B175: Brædstrup Vandværk a.m.b.a. | C175: Region Midtjylland | D175: Horsens Kommune | E175: 270811 | F175: 312.5 | G175: 10.19 | H175: =F175+G175*Nøgletal!$C$9 -> 1049.7465 | I175: =H175/Nøgletal!$C$9 -> 14.50928127
A176: V036 | B176: Brørup Vandværk A.m.b.a. | C176: Region Syddanmark | D176: Vejen Kommune | E176: 445403 | F176: 500 | G176: 11.09 | H176: =F176+G176*Nøgletal!$C$9 -> 1302.3615 | I176: =H176/Nøgletal!$C$9 -> 18.00085003
A177: V042 | B177: Egå vandværk a.m.b.a | C177: Region Midtjylland | D177: Aarhus Kommune | E177: 211546 | F177: 643.75 | G177: 14.93 | H177: =F177+G177*Nøgletal!$C$9 -> 1723.9355 | I177: =H177/Nøgletal!$C$9 -> 23.82771942
A178: V046 | B178: Farsø Vandværk I/S | C178: Region Nordjylland | D178: Vesthimmerlands Kommune | E178: 197565 | F178: 250 | G178: 9.25 | H178: =F178+G178*Nøgletal!$C$9 -> 919.2375 | I178: =H178/Nøgletal!$C$9 -> 12.70542502
A179: V048 | B179: Faxe Vandværk s.m.b.a. | C179: Region Sjælland | D179: Faxe Kommune | E179: 247911 | F179: 562.5 | G179: 14.88 | H179: =F179+G179*Nøgletal!$C$9 -> 1639.068 | I179: =H179/Nøgletal!$C$9 -> 22.65470629
A180: V064 | B180: Gl. Hørning Vandværk | C180: Region Midtjylland | D180: Skanderborg Kommune | E180: 258243 | F180: 250 | G180: 12.38 | H180: =F180+G180*Nøgletal!$C$9 -> 1145.693 | I180: =H180/Nøgletal!$C$9 -> 15.83542502
A181: V066 | B181: Glamsbjerg vandværk | C181: Region Syddanmark | D181: Assens Kommune | E181: 203678 | F181: 370 | G181: 9.88 | H181: =F181+G181*Nøgletal!$C$9 -> 1084.818 | I181: =H181/Nøgletal!$C$9 -> 14.99402903
A182: V075 | B182: Halsnæs Vandforsyning a.m.b.a. | C182: Region Hovedstaden | D182: Halsnæs Kommune | E182: 456772 | F182: 716.88 | G182: 21.88 | H182: =F182+G182*Nøgletal!$C$9 -> 2299.898 | I182: =H182/Nøgletal!$C$9 -> 31.78850035
A183: V076 | B183: Hammel Vandværk a.m.b.a. | C183: Region Midtjylland | D183: Favrskov Kommune | E183: 426981 | F183: 500 | G183: 11.75 | H183: =F183+G183*Nøgletal!$C$9 -> 1350.1125 | I183: =H183/Nøgletal!$C$9 -> 18.66085003
A184: V077 | B184: Hasselager-Kolt Vandværk A.M.B.A. | C184: Region Midtjylland | D184: Aarhus Kommune | E184: 373382 | F184: 512.5 | G184: 14.88 | H184: =F184+G184*Nøgletal!$C$9 -> 1589.068 | I184: =H184/Nøgletal!$C$9 -> 21.96362129
A185: V082 | B185: Hinnerup Vandværk A.m.b.a. | C185: Region Midtjylland | D185: Favrskov Kommune | E185: 329640 | F185: 0 | G185: 13.44 | H185: =F185+G185*Nøgletal!$C$9 -> 972.384 | I185: =H185/Nøgletal!$C$9 -> 13.44
A186: V083 | B186: Hjallerup Vandforsyning | C186: Region Nordjylland | D186: Brønderslev Kommune | E186: 267801 | F186: 846.25 | G186: 9.25 | H186: =F186+G186*Nøgletal!$C$9 -> 1515.4875 | I186: =H186/Nøgletal!$C$9 -> 20.94661368
A187: V084 | B187: Hjerting Vandværk a.m.b.a. | C187: Region Syddanmark | D187: Esbjerg Kommune | E187: 357846 | F187: 700 | G187: 13.63 | H187: =F187+G187*Nøgletal!$C$9 -> 1686.1305 | I187: =H187/Nøgletal!$C$9 -> 23.30519005
A188: V095 | B188: Hornbæk Vandværk a.m.b.a. | C188: Region Hovedstaden | D188: Helsingør Kommune | E188: 203296 | F188: 562.5 | G188: 14.13 | H188: =F188+G188*Nøgletal!$C$9 -> 1584.8055 | I188: =H188/Nøgletal!$C$9 -> 21.90470629
A189: V099 | B189: Hurup Vandværk | C189: Region Nordjylland | D189: Thisted Kommune | E189: 324615 | F189: 625 | G189: 11.13 | H189: =F189+G189*Nøgletal!$C$9 -> 1430.2555 | I189: =H189/Nøgletal!$C$9 -> 19.76856254
A190: V100 | B190: Hæstrup Vandværk I/S | C190: Region Nordjylland | D190: Hjørring Kommune | E190: 214151 | F190: 706.25 | G190: 10.31 | H190: =F190+G190*Nøgletal!$C$9 -> 1452.1785 | I190: =H190/Nøgletal!$C$9 -> 20.07157567
A191: V105 | B191: I/S Ørslev Vandværk | C191: Region Sjælland | D191: Vordingborg Kommune | E191: 293980 | F191: 375 | G191: 10.94 | H191: =F191+G191*Nøgletal!$C$9 -> 1166.509 | I191: =H191/Nøgletal!$C$9 -> 16.12313753
A192: V109 | B192: Juelsminde Vand | C192: Region Midtjylland | D192: Hedensted Kommune | E192: 236650 | F192: 500 | G192: 11.35 | H192: =F192+G192*Nøgletal!$C$9 -> 1321.1725 | I192: =H192/Nøgletal!$C$9 -> 18.26085003
A193: V121 | B193: Lille Næstved Vandværk | C193: Region Sjælland | D193: Næstved Kommune | E193: 215405 | F193: 312.5 | G193: 13 | H193: =F193+G193*Nøgletal!$C$9 -> 1253.05 | I193: =H193/Nøgletal!$C$9 -> 17.31928127
A194: V129 | B194: Løgten Skødstrup Vandværk A.m.b.a. | C194: Region Midtjylland | D194: Aarhus Kommune | E194: 308324 | F194: 518.75 | G194: 18.5 | H194: =F194+G194*Nøgletal!$C$9 -> 1857.225 | I194: =H194/Nøgletal!$C$9 -> 25.67000691
A195: V130 | B195: Løkken Vandværk | C195: Region Nordjylland | D195: Hjørring Kommune | E195: 236507 | F195: 687.5 | G195: 10.19 | H195: =F195+G195*Nøgletal!$C$9 -> 1424.7465 | I195: =H195/Nøgletal!$C$9 -> 19.6924188
A196: V139 | B196: Nr. Uttrup Vandværk a.m.b.a | C196: Region Nordjylland | D196: Aalborg Kommune | E196: 216450 | F196: 640 | G196: 13.06 | H196: =F196+G196*Nøgletal!$C$9 -> 1584.891 | I196: =H196/Nøgletal!$C$9 -> 21.90588804
A197: V143 | B197: Nørre Alslev Vandværk | C197: Region Sjælland | D197: Guldborgsund Kommune | E197: 212527 | F197: 787.5 | G197: 13 | H197: =F197+G197*Nøgletal!$C$9 -> 1728.05 | I197: =H197/Nøgletal!$C$9 -> 23.8845888
A198: V147 | B198: Outrup Vandværk I/S | C198: Region Syddanmark | D198: Varde Kommune | E198: 314131 | F198: 1100 | G198: 10.64 | H198: =F198+G198*Nøgletal!$C$9 -> 1869.804 | I198: =H198/Nøgletal!$C$9 -> 25.84387008
A199: V148 | B199: Oksby Og Ho Vandværk a.m.b.a. | C199: Region Syddanmark | D199: Varde Kommune | E199: 279527 | F199: 750 | G199: 12.38 | H199: =F199+G199*Nøgletal!$C$9 -> 1645.693 | I199: =H199/Nøgletal!$C$9 -> 22.74627505
A200: V157 | B200: Ry Vandværk | C200: Region Midtjylland | D200: Skanderborg Kommune | E200: 275893 | F200: 812.5 | G200: 13.14 | H200: =F200+G200*Nøgletal!$C$9 -> 1763.179 | I200: =H200/Nøgletal!$C$9 -> 24.37013131
... 17 more rows

Sheet S 2012
A1: Forside | F1: Takstblad | H1: Beregning | J1: Vægte | M1: Land | O1: Region | Q1: Kommune
A2: ID | B2: Selskabsnavn | C2: Region | D2: Kommune | E2: Debiteret vandmængde | F2: Fast Årligt Bidrag | G2: Kubikmeterpris | H2: Samlede udgifter for en husholdning | I2: Takst inkl. Fast bidrag | J2: Land | K2: Region | L2: Kommune | M2: Vægtet takst | N2: Vægtet årlige udgifter | O2: Vægtet takst | P2: Vægtet årlige udgifter | Q2: Vægtet takst | R2: Vægtet årlige udgifter
A3: S001 | B3: Afløb Ballerup A/S | C3: Region Hovedstaden | D3: Ballerup Kommune | E3: 2780849 | F3: 0 | G3: 25.91 | H3: =F3+G3*Nøgletal!$C$9 -> 1874.5885 | I3: =H3/Nøgletal!$C$9 -> 25.91 | J3: =IF(H3>0,E3/(SUMIFS($E$3:$E$99,$H$3:$H$99,">0")),"-") -> 0.01042487676 | K3: =IF(H3>0,E3/(SUMIFS($E$3:$E$99,$C$3:$C$99,C3,$H$3:$H$99,">0")),"-") -> 0.03188707926 | L3: =IF(H3>0,E3/(SUMIFS($E$3:$E$99,$D$3:$D$99,D3,$H$3:$H$99,">0")),"-") -> 1 | M3: =IF(H3>0,J3*I3,"-") -> 0.2701085568 | N3: =IF(H3>0,J3*H3,"-") -> 19.54235408 | O3: =IF(H3>0,K3*I3,"-") -> 0.8261942235 | P3: =IF(H3>0,K3*H3,"-") -> 59.77515207 | Q3: =IF(H3>0,L3*I3,"-") -> 25.91 | R3: =IF(H3>0,L3*H3,"-") -> 1874.5885
A4: S002 | B4: Allerød Spildevand A/S | C4: Region Hovedstaden | D4: Allerød Kommune | E4: 1104815 | F4: 0 | G4: 49.25 | H4: =F4+G4*Nøgletal!$C$9 -> 3563.2375 | I4: =H4/Nøgletal!$C$9 -> 49.25 | J4: =IF(H4>0,E4/(SUMIFS($E$3:$E$99,$H$3:$H$99,">0")),"-") -> 0.004141742401 | K4: =IF(H4>0,E4/(SUMIFS($E$3:$E$99,$C$3:$C$99,C4,$H$3:$H$99,">0")),"-") -> 0.01266854959 | L4: =IF(H4>0,E4/(SUMIFS($E$3:$E$99,$D$3:$D$99,D4,$H$3:$H$99,">0")),"-") -> 1 | M4: =IF(H4>0,J4*I4,"-") -> 0.2039808133 | N4: =IF(H4>0,J4*H4,"-") -> 14.75801184 | O4: =IF(H4>0,K4*I4,"-") -> 0.6239260675 | P4: =IF(H4>0,K4*H4,"-") -> 45.14105098 | Q4: =IF(H4>0,L4*I4,"-") -> 49.25 | R4: =IF(H4>0,L4*H4,"-") -> 3563.2375
A5: S003 | B5: AquaDjurs A/S | C5: Region Midtjylland | D5: Norddjurs Kommune | E5: 1705868 | F5: 706 | G5: 36.25 | H5: =F5+G5*Nøgletal!$C$9 -> 3328.6875 | I5: =H5/Nøgletal!$C$9 -> 46.00812025 | J5: 0.006394976378 | K5: 0.02961709049 | L5: 1 | M5: 0.2942208422 | N5: 21.28687793 | O5: 1.362626661 | P5: 98.58603889 | Q5: 46.00812025 | R5: 3328.6875
A6: S004 | B6: Arwos Spildevand A/S | C6: Region Syddanmark | D6: Aabenraa Kommune | E6: 2658246 | F6: 312.5 | G6: 38.75 | H6: =F6+G6*Nøgletal!$C$9 -> 3116.0625 | I6: =H6/Nøgletal!$C$9 -> 43.06928127 | J6: 0.009965261307 | K6: 0.04483125655 | L6: 1 | M6: 0.4291966422 | N6: 31.05237706 | O6: 1.930849998 | P6: 139.6969974 | Q6: 43.06928127 | R6: 3116.0625
A7: S006 | B7: Assens Spildevand A/S | C7: Region Syddanmark | D7: Assens Kommune | E7: 1843200 | F7: 664 | G7: 41.74 | H7: =F7+G7*Nøgletal!$C$9 -> 3683.889 | I7: =H7/Nøgletal!$C$9 -> 50.91760885 | J7: 0.006909808062 | K7: 0.03108552484 | L7: 1 | M7: 0.3518309041 | N7: 25.45496591 | O7: 1.582800595 | P7: 114.515623 | Q7: 50.91760885 | R7: 3683.889
A8: S007 | B8: Billund Spildevand A/S | C8: Region Syddanmark | D8: Billund Kommune | E8: 1302241 | F8: 706 | G8: 43.61 | H8: =F8+G8*Nøgletal!$C$9 -> 3861.1835 | I8: =H8/Nøgletal!$C$9 -> 53.36812025 | J8: 0.004881855122 | K8: 0.02196226397 | L8: 1 | M8: 0.2605354312 | N8: 18.84973845 | O8: 1.172084745 | P8: 84.80033128 | Q8: 53.36812025 | R8: 3861.1835
A9: S010 | B9: Bornholms Spildevand A/S | C9: Region Hovedstaden | D9: Bornholms Regionskommune | E9: 1871062 | F9: 643.75 | G9: 33.45 | H9: =F9+G9*Nøgletal!$C$9 -> 3063.8575 | I9: =H9/Nøgletal!$C$9 -> 42.34771942 | J9: 0.007014257428 | K9: 0.02145485148 | L9: 1 | M9: 0.2970378055 | N9: 21.49068523 | O9: 0.9085640307 | P9: 65.73460762 | Q9: 42.34771942 | R9: 3063.8575
A10: S011 | B10: Brøndby Kloakforsyning A/S | C10: Region Hovedstaden | D10: Brøndby Kommune | E10: 1844863 | F10: 0 | G10: 29.5 | H10: =F10+G10*Nøgletal!$C$9 -> 2134.325 | I10: =H10/Nøgletal!$C$9 -> 29.5 | J10: 0.006916042334 | K10: 0.02115443618 | L10: 1 | M10: 0.2040232489 | N10: 14.76108206 | O10: 0.6240558673 | P10: 45.150442 | Q10: 29.5 | R10: 2134.325
A11: S012 | B11: Brønderslev Spildevand A/S | C11: Region Nordjylland | D11: Brønderslev Kommune | E11: 1306847 | F11: 0 | G11: 39.75 | H11: =F11+G11*Nøgletal!$C$9 -> 2875.9125 | I11: =H11/Nøgletal!$C$9 -> 39.75 | J11: 0.004899122144 | K11: 0.04543574574 | L11: 1 | M11: 0.1947401052 | N11: 14.08944661 | O11: 1.806070893 | P11: 130.6692291 | Q11: 39.75 | R11: 2875.9125
A12: S013 | B12: Egedal Spildevand A/S | C12: Region Hovedstaden | D12: Egedal Kommune | E12: 1555033 | F12: 0 | G12: 44.86 | H12: =F12+G12*Nøgletal!$C$9 -> 3245.621 | I12: =H12/Nøgletal!$C$9 -> 44.86 | J12: 0.005829524501 | K12: 0.01783105106 | L12: 1 | M12: 0.2615124691 | N12: 18.92042714 | O12: 0.7999009507 | P12: 57.87283378 | Q12: 44.86 | R12: 3245.621
A13: S014 | B13: Energi Viborg Spildevand A/S | C13: Region Midtjylland | D13: Viborg Kommune | E13: 3919570 | F13: 0 | G13: 35.43 | H13: =F13+G13*Nøgletal!$C$9 -> 2563.3605 | I13: =H13/Nøgletal!$C$9 -> 35.43 | J13: 0.01469372634 | K13: 0.0680511384 | L13: 1 | M13: 0.5205987241 | N13: 37.66531769 | O13: 2.411051834 | P13: 174.4396002 | Q13: 35.43 | R13: 2563.3605
A14: S015 | B14: Esbjerg Spildevand A/S | C14: Region Syddanmark | D14: Esbjerg Kommune | E14: 6599960 | F14: 693.75 | G14: 23.16 | H14: =F14+G14*Nøgletal!$C$9 -> 2369.376 | I14: =H14/Nøgletal!$C$9 -> 32.74880442 | J14: 0.02474200131 | K14: 0.1113081709 | L14: 1 | M14: 0.810270962 | N14: 58.6231041 | O14: 3.645209518 | P14: 263.7309087 | Q14: 32.74880442 | R14: 2369.376
A15: S016 | B15: Fanø Vand A/S | C15: Region Syddanmark | D15: Fanø Kommune | E15: 176704 | F15: 699.38 | G15: 46.25 | H15: =F15+G15*Nøgletal!$C$9 -> 4045.5675 | I15: =H15/Nøgletal!$C$9 -> 55.91662059 | J15: 0.0006624298632 | K15: 0.002980108823 | L15: 1 | M15: 0.03704083933 | N15: 2.679904725 | O15: 0.1666376144 | P15: 12.0562314 | Q15: 55.91662059 | R15: 4045.5675
A16: S017 | B16: Favrskov Spildevand A/S | C16: Region Midtjylland | D16: Favrskov Kommune | E16: 1831337 | F16: 546 | G16: 35.87 | H16: =F16+G16*Nøgletal!$C$9 -> 3141.1945 | I16: =H16/Nøgletal!$C$9 -> 43.41664824 | J16: 0.00686533592 | K16: 0.03179546931 | L16: 1 | M16: 0.2980698747 | N16: 21.56535543 | O16: 1.380452707 | P16: 99.87575332 | Q16: 43.41664824 | R16: 3141.1945
A17: S018 | B17: Faxe Spildevand A/S | C17: Region Sjælland | D17: Faxe Kommune | E17: 1844043 | F17: 550 | G17: 29.75 | H17: =F17+G17*Nøgletal!$C$9 -> 2702.4125 | I17: =H17/Nøgletal!$C$9 -> 37.35193504 | J17: 0.00691296831 | K17: 0.05441652227 | L17: 1 | M17: 0.2582127432 | N17: 18.68169197 | O17: 2.032562405 | P17: 147.05589 | Q17: 37.35193504 | R17: 2702.4125
A18: S020 | B18: FFV Spildevand A/S | C18: Region Syddanmark | D18: Faaborg-Midtfyn Kommune | E18: 2399915 | F18: 706 | G18: 34.58 | H18: =F18+G18*Nøgletal!$C$9 -> 3207.863 | I18: =H18/Nøgletal!$C$9 -> 44.33812025 | J18: 0.008996827265 | K18: 0.04047451028 | L18: 1 | M18: 0.3989024091 | N18: 28.8605893 | O18: 1.794563704 | P18: 129.836684 | Q18: 44.33812025 | R18: 3207.863
A19: S021 | B19: Forsyning Helsingør Spildevand A/S | C19: Region Hovedstaden | D19: Helsingør Kommune | E19: 2997814 | F19: 640 | G19: 39.5 | H19: =F19+G19*Nøgletal!$C$9 -> 3497.825 | I19: =H19/Nøgletal!$C$9 -> 48.34588804 | J19: 0.01123823749 | K19: 0.03437494543 | L19: 1 | M19: 0.5433225716 | N19: 39.30938806 | O19: 1.661887263 | P19: 120.2375435 | Q19: 48.34588804 | R19: 3497.825
A20: S022 | B20: Fredensborg Spildevand A/S | C20: Region Hovedstaden | D20: Fredensborg Kommune | E20: 1710799 | F20: 0 | G20: 42.59 | H20: =F20+G20*Nøgletal!$C$9 -> 3081.3865 | I20: =H20/Nøgletal!$C$9 -> 42.59 | J20: 0.006413461764 | K20: 0.01961716846 | L20: 1 | M20: 0.2731493365 | N20: 19.7623545 | O20: 0.8354952049 | P20: 60.44807807 | Q20: 42.59 | R20: 3081.3865
A21: S023 | B21: Fredericia Spildevand A/S | C21: Region Syddanmark | D21: Fredericia Kommune | E21: 4513376 | F21: 0 | G21: 23.75 | H21: =F21+G21*Nøgletal!$C$9 -> 1718.3125 | I21: =H21/Nøgletal!$C$9 -> 23.75 | J21: 0.01691979268 | K21: 0.07611798056 | L21: 1 | M21: 0.4018450762 | N21: 29.07349126 | O21: 1.807802038 | P21: 130.7944775 | Q21: 23.75 | R21: 1718.3125
A22: S024 | B22: Frederiksberg Kloak A/S | C22: Region Hovedstaden | D22: Frederiksberg Kommune | E22: 4981067 | F22: 0 | G22: 14.24 | H22: =F22+G22*Nøgletal!$C$9 -> 1030.264 | I22: =H22/Nøgletal!$C$9 -> 14.24 | J22: 0.01867307775 | K22: 0.05711625414 | L22: 1 | M22: 0.2659046272 | N22: 19.23819978 | O22: 0.8133354589 | P22: 58.84482045 | Q22: 14.24 | R22: 1030.264
A23: S025 | B23: Frederikshavn Spildevand A/S | C23: Region Nordjylland | D23: Frederikshavn Kommune | E23: 3814703 | F23: 878.75 | G23: 38.11 | H23: =F23+G23*Nøgletal!$C$9 -> 3636.0085 | I23: =H23/Nøgletal!$C$9 -> 50.25581894 | J23: 0.0143005998 | K23: 0.1326275192 | L23: 1 | M23: 0.718688354 | N23: 51.99710241 | O23: 6.665304591 | P23: 482.2347872 | Q23: 50.25581894 | R23: 3636.0085
A24: S026 | B24: Frederikssund Spildevand A/S | C24: Region Hovedstaden | D24: Frederikssund Kommune | E24: 1986726 | F24: 667.5 | G24: 33.75 | H24: =F24+G24*Nøgletal!$C$9 -> 3109.3125 | I24: =H24/Nøgletal!$C$9 -> 42.9759848 | J24: 0.007447859881 | K24: 0.02278113246 | L24: 1 | M24: 0.320079113 | N24: 23.15772382 | O24: 0.9790416023 | P24: 70.83365992 | Q24: 42.9759848 | R24: 3109.3125
A25: S027 | B25: Furesø Spildevand A/S | C25: Region Hovedstaden | D25: Furesø Kommune | E25: 1662818 | F25: 0 | G25: 45.69 | H25: =F25+G25*Nøgletal!$C$9 -> 3305.6715 | I25: =H25/Nøgletal!$C$9 -> 45.69 | J25: 0.006233590073 | K25: 0.01906698614 | L25: 1 | M25: 0.2848127304 | N25: 20.60620105 | O25: 0.871170597 | P25: 63.02919269 | Q25: 45.69 | R25: 3305.6715
A26: S028 | B26: Gentofte Spildevand A/S | C26: Region Hovedstaden | D26: Gentofte Kommune | E26: 3672820 | F26: 0 | G26: 26.55 | H26: =F26+G26*Nøgletal!$C$9 -> 1920.8925 | I26: =H26/Nøgletal!$C$9 -> 26.55 | J26: 0.01376870727 | K26: 0.04211501683 | L26: 1 | M26: 0.3655591781 | N26: 26.44820654 | O26: 1.118153697 | P26: 80.89841996 | Q26: 26.55 | R26: 1920.8925
A27: S029 | B27: Gladsaxe Spildevand A/S | C27: Region Hovedstaden | D27: Gladsaxe Kommune | E27: 3382243 | F27: 0 | G27: 26.8 | H27: =F27+G27*Nøgletal!$C$9 -> 1938.98 | I27: =H27/Nøgletal!$C$9 -> 26.8 | J27: 0.01267938908 | K27: 0.03878306611 | L27: 1 | M27: 0.3398076273 | N27: 24.58508184 | O27: 1.039386172 | P27: 75.19958952 | Q27: 26.8 | R27: 1938.98
A28: S030 | B28: Glostrup Spildevand a/s | C28: Region Hovedstaden | D28: Glostrup Kommune | E28: 1229169 | F28: 0 | G28: 23.95 | H28: =F28+G28*Nøgletal!$C$9 -> 1732.7825 | I28: =H28/Nøgletal!$C$9 -> 23.95 | J28: 0.004607922019 | K28: 0.01409447594 | L28: 1 | M28: 0.1103597324 | N28: 7.984526636 | O28: 0.3375626988 | P28: 24.42266125 | Q28: 23.95 | R28: 1732.7825
A29: S031 | B29: Greve Spildevand A/S | C29: Region Sjælland | D29: Greve Kommune | E29: 2212916 | F29: 0 | G29: 27.03 | H29: =F29+G29*Nøgletal!$C$9 -> 1955.6205 | I29: =H29/Nøgletal!$C$9 -> 27.03 | J29: 0.008295803395 | K29: 0.06530172712 | L29: 1 | M29: 0.2242355658 | N29: 16.22344318 | O29: 1.765105684 | P29: 127.7053962 | Q29: 27.03 | R29: 1955.6205
A30: S032 | B30: Gribvand Spildevand A/S | C30: Region Hovedstaden | D30: Gribskov Kommune | E30: 1796734 | F30: 663.45 | G30: 46.6 | H30: =F30+G30*Nøgletal!$C$9 -> 4034.96 | I30: =H30/Nøgletal!$C$9 -> 55.77000691 | J30: 0.00673561582 | K30: 0.02060255679 | L30: 1 | M30: 0.3756453408 | N30: 27.17794041 | O30: 1.149004735 | P30: 83.13049256 | Q30: 55.77000691 | R30: 4034.96
A31: S033 | B31: Guldborgsund Spildevand A/S | C31: Region Sjælland | D31: Guldborgsund Kommune | E31: 2603894 | F31: 706 | G31: 35.62 | H31: =F31+G31*Nøgletal!$C$9 -> 3283.107 | I31: =H31/Nøgletal!$C$9 -> 45.37812025 | J31: 0.009761505943 | K31: 0.0768392363 | L31: 1 | M31: 0.4429587905 | N31: 32.04806849 | O31: 3.486820105 | P31: 252.2714346 | Q31: 45.37812025 | R31: 3283.107
A32: S034 | B32: Haderslev Spildevand A/S | C32: Region Syddanmark | D32: Haderslev Kommune | E32: 2360988 | F32: 704.18 | G32: 43.73 | H32: =F32+G32*Nøgletal!$C$9 -> 3868.0455 | I32: =H32/Nøgletal!$C$9 -> 53.46296475 | J32: 0.008850897307 | K32: 0.03981800734 | L32: 1 | M32: 0.4731952108 | N32: 34.2356735 | O32: 2.128788723 | P32: 154.0178641 | Q32: 53.46296475 | R32: 3868.0455
A33: S035 | B33: Halsnaes Forsyning A/S | C33: Region Hovedstaden | D33: Halsnæs Kommune | E33: 1295680 | F33: 587.5 | G33: 51 | H33: =F33+G33*Nøgletal!$C$9 -> 4277.35 | I33: =H33/Nøgletal!$C$9 -> 59.12024879 | J33: 0.004857259174 | K33: 0.01485713566 | L33: 1 | M33: 0.2871623708 | N33: 20.77619753 | O33: 0.8783575567 | P33: 63.54916923 | Q33: 59.12024879 | R33: 4277.35
A34: S036 | B34: Hedensted Spildevand | C34: Region Midtjylland | D34: Hedensted Kommune | E34: 1815972 | F34: 705 | G34: 48 | H34: =F34+G34*Nøgletal!$C$9 -> 4177.8 | I34: =H34/Nøgletal!$C$9 -> 57.74429855 | J34: 0.006807735442 | K34: 0.03152870389 | L34: 1 | M34: 0.3931079078 | N34: 28.44135713 | O34: 1.82060289 | P34: 131.7206191 | Q34: 57.74429855 | R34: 4177.8
A35: S038 | B35: Herning Vand A/S | C35: Region Midtjylland | D35: Herning Kommune | E35: 4195633 | F35: 0 | G35: 25.63 | H35: =F35+G35*Nøgletal!$C$9 -> 1854.3305 | I35: =H35/Nøgletal!$C$9 -> 25.63 | J35: 0.01572863429 | K35: 0.0728441135 | L35: 1 | M35: 0.4031248969 | N35: 29.16608629 | O35: 1.866994629 | P35: 135.0770614 | Q35: 25.63 | R35: 1854.3305
A36: S039 | B36: Hillerød Spildevand A/S | C36: Region Hovedstaden | D36: Hillerød Kommune | E36: 2285306 | F36: 0 | G36: 43.29 | H36: =F36+G36*Nøgletal!$C$9 -> 3132.0315 | I36: =H36/Nøgletal!$C$9 -> 43.29 | J36: 0.008567179809 | K36: 0.02620485095 | L36: 1 | M36: 0.3708732139 | N36: 26.83267703 | O36: 1.134407997 | P36: 82.07441861 | Q36: 43.29 | R36: 3132.0315
A37: S040 | B37: Hjørring Vandselskab A/S | C37: Region Nordjylland | D37: Hjørring Kommune | E37: 3345737 | F37: 835 | G37: 31.13 | H37: =F37+G37*Nøgletal!$C$9 -> 3087.2555 | I37: =H37/Nøgletal!$C$9 -> 42.67111956 | J37: 0.01254253499 | K37: 0.1163227644 | L37: 1 | M37: 0.5352040102 | N37: 38.72201014 | O37: 4.963622586 | P37: 359.1180941 | Q37: 42.67111956 | R37: 3087.2555
A38: S041 | B38: HOFOR Spildevand Albertslund A/S | C38: Region Hovedstaden | D38: Albertslund Kommune | E38: 1313045 | F38: 0 | G38: 31.68 | H38: =F38+G38*Nøgletal!$C$9 -> 2292.048 | I38: =H38/Nøgletal!$C$9 -> 31.68 | J38: 0.004922357274 | K38: 0.0150562544 | L38: 1 | M38: 0.1559402784 | N38: 11.28227914 | O38: 0.4769821393 | P38: 34.50965778 | Q38: 31.68 | R38: 2292.048
A39: S042 | B39: HOFOR Spildevand Dragør A/S | C39: Region Hovedstaden | D39: Dragør Kommune | E39: 610819 | F39: 0 | G39: 37.5 | H39: =F39+G39*Nøgletal!$C$9 -> 2713.125 | I39: =H39/Nøgletal!$C$9 -> 37.5 | J39: 0.002289844863 | K39: 0.007004060222 | L39: 1 | M39: 0.08586918235 | N39: 6.212635343 | O39: 0.2626522583 | P39: 19.00289089 | Q39: 37.5 | R39: 2713.125
A40: S043 | B40: HOFOR Spildevand Herlev A/S | C40: Region Hovedstaden | D40: Herlev Kommune | E40: 1497644 | F40: 0 | G40: 33.61 | H40: =F40+G40*Nøgletal!$C$9 -> 2431.6835 | I40: =H40/Nøgletal!$C$9 -> 33.61 | J40: 0.005614383998 | K40: 0.01717299031 | L40: 1 | M40: 0.1886994462 | N40: 13.65240493 | O40: 0.5771842043 | P40: 41.75927718 | Q40: 33.61 | R40: 2431.6835
A41: S044 | B41: HOFOR Spildevand Hvidovre A/S | C41: Region Hovedstaden | D41: Hvidovre Kommune | E41: 2984388 | F41: 0 | G41: 26.8 | H41: =F41+G41*Nøgletal!$C$9 -> 1938.98 | I41: =H41/Nøgletal!$C$9 -> 26.8 | J41: 0.01118790596 | K41: 0.03422099391 | L41: 1 | M41: 0.2998358797 | N41: 21.6931259 | O41: 0.9171226367 | P41: 66.35382277 | Q41: 26.8 | R41: 1938.98
A42: S045 | B42: HOFOR Spildevand København A/S | C42: Region Hovedstaden | D42: Københavns Kommune | E42: 29334581 | F42: 0 | G42: 20.44 | H42: =F42+G42*Nøgletal!$C$9 -> 1478.834 | I42: =H42/Nøgletal!$C$9 -> 20.44 | J42: 0.109969794 | K42: 0.3363699752 | L42: 1 | M42: 2.247782589 | N42: 162.6270703 | O42: 6.875402294 | P42: 497.435356 | Q42: 20.44 | R42: 1478.834
A43: S046 | B43: HOFOR Spildevand Rødovre A/S | C43: Region Hovedstaden | D43: Rødovre Kommune | E43: 1789950 | F43: 0 | G43: 22.7 | H43: =F43+G43*Nøgletal!$C$9 -> 1642.345 | I43: =H43/Nøgletal!$C$9 -> 22.7 | J43: 0.006710183887 | K43: 0.0205247669 | L43: 1 | M43: 0.1523211742 | N43: 11.02043696 | O43: 0.4659122087 | P43: 33.7087483 | Q43: 22.7 | R43: 1642.345
A44: S047 | B44: Holbæk Spildevand A/S | C44: Region Sjælland | D44: Holbæk Kommune | E44: 2846094 | F44: 0 | G44: 31.42 | H44: =F44+G44*Nøgletal!$C$9 -> 2273.237 | I44: =H44/Nøgletal!$C$9 -> 31.42 | J44: 0.01066946792 | K44: 0.08398640244 | L44: 1 | M44: 0.335234682 | N44: 24.25422924 | O44: 2.638852765 | P44: 190.9209975 | Q44: 31.42 | R44: 2273.237
A45: S048 | B45: Horsens Vand A/S | C45: Region Midtjylland | D45: Horsens Kommune | E45: 4494520 | F45: 686.25 | G45: 24.8 | H45: =F45+G45*Nøgletal!$C$9 -> 2480.53 | I45: =H45/Nøgletal!$C$9 -> 34.28514167 | J45: 0.01684910511 | K45: 0.07803335636 | L45: 1 | M45: 0.5776739556 | N45: 41.79471069 | O45: 2.675384678 | P45: 193.5640814 | Q45: 34.28514167 | R45: 2480.53
A46: S049 | B46: HTK Kloak A/S | C46: Region Hovedstaden | D46: Høje-Taastrup Kommune | E46: 2376126 | F46: 0 | G46: 23.53 | H46: =F46+G46*Nøgletal!$C$9 -> 1702.3955 | I46: =H46/Nøgletal!$C$9 -> 23.53 | J46: 0.008907646805 | K46: 0.02724625396 | L46: 1 | M46: 0.2095969293 | N46: 15.16433784 | O46: 0.6411043557 | P46: 46.38390014 | Q46: 23.53 | R46: 1702.3955
A47: S051 | B47: Hørsholm Vand ApS | C47: Region Hovedstaden | D47: Hørsholm Kommune | E47: 1727999 | F47: 0 | G47: 31.25 | H47: =F47+G47*Nøgletal!$C$9 -> 2260.9375 | I47: =H47/Nøgletal!$C$9 -> 31.25 | J47: 0.006477941309 | K47: 0.0198143952 | L47: 1 | M47: 0.2024356659 | N47: 14.64622043 | O47: 0.6191998499 | P47: 44.79910914 | Q47: 31.25 | R47: 2260.9375
A48: S052 | B48: Ikast-Brande Spildevand A/S | C48: Region Midtjylland | D48: Ikast-Brande Kommune | E48: 1770513 | F48: 625 | G48: 34.38 | H48: =F48+G48*Nøgletal!$C$9 -> 3112.393 | I48: =H48/Nøgletal!$C$9 -> 43.01856254 | J48: 0.006637318252 | K48: 0.03073944979 | L48: 1 | M48: 0.2855278903 | N48: 20.65794287 | O48: 1.322366943 | P48: 95.67324834 | Q48: 43.01856254 | R48: 3112.393
A49: S053 | B49: Ishøj Spildevand A/S | C49: Region Hovedstaden | D49: Ishøj Kommune | E49: 1042101 | F49: 0 | G49: 32.5 | H49: =F49+G49*Nøgletal!$C$9 -> 2351.375 | I49: =H49/Nøgletal!$C$9 -> 32.5 | J49: 0.003906639481 | K49: 0.01194942882 | L49: 1 | M49: 0.1269657831 | N49: 9.185974409 | O49: 0.3883564366 | P49: 28.09758819 | Q49: 32.5 | R49: 2351.375
A50: S054 | B50: Jammerbugt Forsyning A/S | C50: Region Nordjylland | D50: Jammerbugt Kommune | E50: 1791446 | F50: 706 | G50: 23.55 | H50: =F50+G50*Nøgletal!$C$9 -> 2409.8425 | I50: =H50/Nøgletal!$C$9 -> 33.30812025 | J50: 0.006715792108 | K50: 0.06228402022 | L50: 1 | M50: 0.2236904111 | N50: 16.18400124 | O50: 2.074563635 | P50: 150.094679 | Q50: 33.30812025 | R50: 2409.8425
A51: S056 | B51: Kalundborg Spildevandsanlæg A/S | C51: Region Sjælland | D51: Kalundborg Kommune | E51: 1793859 | F51: 0 | G51: 36.69 | H51: =F51+G51*Nøgletal!$C$9 -> 2654.5215 | I51: =H51/Nøgletal!$C$9 -> 36.69 | J51: 0.006724837988 | K51: 0.05293562472 | L51: 1 | M51: 0.2467343058 | N51: 17.85122702 | O51: 1.942208071 | P51: 140.5187539 | Q51: 36.69 | R51: 2654.5215
A52: S057 | B52: Kerteminde Forsyning - Spildevand A/S | C52: Region Syddanmark | D52: Kerteminde Kommune | E52: 1035987 | F52: 0 | G52: 32.8 | H52: =F52+G52*Nøgletal!$C$9 -> 2373.08 | I52: =H52/Nøgletal!$C$9 -> 32.8 | J52: 0.003883719252 | K52: 0.0174718965 | L52: 1 | M52: 0.1273859915 | N52: 9.216376482 | O52: 0.5730782051 | P52: 41.46220814 | Q52: 32.8 | R52: 2373.08
A53: S058 | B53: Kolding Spildevand A/S | C53: Region Syddanmark | D53: Kolding Kommune | E53: 4233210 | F53: 583.75 | G53: 36.25 | H53: =F53+G53*Nøgletal!$C$9 -> 3206.4375 | I53: =H53/Nøgletal!$C$9 -> 44.31841742 | J53: 0.01586950336 | K53: 0.07139298753 | L53: 1 | M53: 0.7033112739 | N53: 50.88457067 | O53: 3.164024222 | P53: 228.9171525 | Q53: 44.31841742 | R53: 3206.4375
A54: S059 | B54: Køge Afløb A/S | C54: Region Sjælland | D54: Køge Kommune | E54: 2699674 | F54: 0 | G54: 37.34 | H54: =F54+G54*Nøgletal!$C$9 -> 2701.549 | I54: =H54/Nøgletal!$C$9 -> 37.34 | J54: 0.01012056704 | K54: 0.07966564247 | L54: 1 | M54: 0.3779019733 | N54: 27.34120777 | O54: 2.97471509 | P54: 215.2206367 | Q54: 37.34 | R54: 2701.549
A55: S060 | B55: Langeland Spildevand ApS | C55: Region Syddanmark | D55: Langeland Kommune | E55: 600468 | F55: 687.5 | G55: 30.18 | H55: =F55+G55*Nøgletal!$C$9 -> 2871.023 | I55: =H55/Nøgletal!$C$9 -> 39.6824188 | J55: 0.002251040922 | K55: 0.01012687876 | L55: 1 | M55: 0.0893267486 | N55: 6.462790261 | O55: 0.4018590441 | P55: 29.07450184 | Q55: 39.6824188 | R55: 2871.023
A56: S061 | B56: Lejre Spildevand A/S | C56: Region Sjælland | D56: Lejre Kommune | E56: 1042253 | F56: 706 | G56: 41.25 | H56: =F56+G56*Nøgletal!$C$9 -> 3690.4375 | I56: =H56/Nøgletal!$C$9 -> 51.00812025 | J56: 0.0039072093 | K56: 0.03075621533 | L56: 1 | M56: 0.1992994018 | N56: 14.41931172 | O56: 1.56881673 | P56: 113.5038904 | Q56: 51.00812025 | R56: 3690.4375
A57: S062 | B57: Lemvig Vand og Spildevand A/S | C57: Region Midtjylland | D57: Lemvig Kommune | E57: 1125959 | F57: 705 | G57: 29.44 | H57: =F57+G57*Nøgletal!$C$9 -> 2834.984 | I57: =H57/Nøgletal!$C$9 -> 39.18429855 | J57: 0.004221007257 | K57: 0.01954877493 | L57: 1 | M57: 0.1653972085 | N57: 11.96648804 | O57: 0.766005033 | P57: 55.42046414 | Q57: 39.18429855 | R57: 2834.984
A58: S063 | B58: Lolland Spildevand A/S | C58: Region Sjælland | D58: Lolland Kommune | E58: 1775334 | F58: 706 | G58: 55.03 | H58: =F58+G58*Nøgletal!$C$9 -> 4687.4205 | I58: =H58/Nøgletal!$C$9 -> 64.78812025 | J58: 0.006655391268 | K58: 0.05238896389 | L58: 1 | M58: 0.4311902898 | N58: 31.19661747 | O58: 3.394182492 | P58: 245.5691033 | Q58: 64.78812025 | R58: 4687.4205
A59: S064 | B59: Lyngby-Taarbæk Spildevand A/S | C59: Region Hovedstaden | D59: Lyngby-Taarbæk Kommune | E59: 2697648 | F59: 0 | G59: 34.93 | H59: =F59+G59*Nøgletal!$C$9 -> 2527.1855 | I59: =H59/Nøgletal!$C$9 -> 34.93 | J59: 0.01011297195 | K59: 0.0309330408 | L59: 1 | M59: 0.3532461102 | N59: 25.55735607 | O59: 1.080491115 | P59: 78.17353219 | Q59: 34.93 | R59: 2527.1855
A60: S065 | B60: Læsø Vand A/S | C60: Region Nordjylland | D60: Læsø Kommune | E60: 87465 | F60: 353.75 | G60: 22.43 | H60: =F60+G60*Nøgletal!$C$9 -> 1976.5605 | I60: =H60/Nøgletal!$C$9 -> 27.3194264 | J60: 0.0003278897364 | K60: 0.003040935551 | L60: 1 | M60: 0.008957759521 | N60: 0.6480939013 | O60: 0.08307661496 | P60: 6.010593092 | Q60: 27.3194264 | R60: 1976.5605
A61: S066 | B61: Mariagerfjord Vand a/s | C61: Region Nordjylland | D61: Mariagerfjord Kommune | E61: 1970752 | F61: 625 | G61: 31.29 | H61: =F61+G61*Nøgletal!$C$9 -> 2888.8315 | I61: =H61/Nøgletal!$C$9 -> 39.92856254 | J61: 0.007387976377 | K61: 0.06851803371 | L61: 1 | M61: 0.2949912768 | N61: 21.34261888 | O61: 2.735826594 | P61: 197.9370541 | Q61: 39.92856254 | R61: 2888.8315
A62: S067 | B62: Middelfart Spildevand A/S | C62: Region Syddanmark | D62: Middelfart Kommune | E62: 1517905 | F62: 0 | G62: 50 | H62: =F62+G62*Nøgletal!$C$9 -> 3617.5 | I62: =H62/Nøgletal!$C$9 -> 50 | J62: 0.005690338654 | K62: 0.02559943228 | L62: 1 | M62: 0.2845169327 | N62: 20.58480008 | O62: 1.279971614 | P62: 92.60594629 | Q62: 50 | R62: 3617.5
A63: S068 | B63: Morsø Forsyning A/S | C63: Region Nordjylland | D63: Morsø Kommune | E63: 870184 | F63: 618.75 | G63: 42.38 | H63: =F63+G63*Nøgletal!$C$9 -> 3684.943 | I63: =H63/Nøgletal!$C$9 -> 50.93217692 | J63: 0.003262155175 | K63: 0.03025408405 | L63: 1 | M63: 0.1661486645 | N63: 12.02085588 | O63: 1.540906361 | P63: 111.4845752 | Q63: 50.93217692 | R63: 3684.943
A64: S071 | B64: NFS Spildevand A/S | C64: Region Syddanmark | D64: Nyborg Kommune | E64: 1568207 | F64: 500 | G64: 42.5 | H64: =F64+G64*Nøgletal!$C$9 -> 3574.875 | I64: =H64/Nøgletal!$C$9 -> 49.41085003 | J64: 0.005878911334 | K64: 0.02644777434 | L64: 1 | M64: 0.2904820063 | N64: 21.01637316 | O64: 1.306807011 | P64: 94.54748728 | Q64: 49.41085003 | R64: 3574.875
A65: S072 | B65: NK-Spildevand A/S | C65: Region Sjælland | D65: Næstved Kommune | E65: 2936423 | F65: 823.75 | G65: 41.65 | H65: =F65+G65*Nøgletal!$C$9 -> 3837.1275 | I65: =H65/Nøgletal!$C$9 -> 53.03562543 | J65: 0.01100809425 | K65: 0.0866519531 | L65: 1 | M65: 0.5838211633 | N65: 42.23946116 | O65: 4.595640528 | P65: 332.4945922 | Q65: 53.03562543 | R65: 3837.1275
A66: S073 | B66: Odder Spildevand A/S | C66: Region Midtjylland | D66: Odder Kommune | E66: 898114 | F66: 625 | G66: 26.88 | H66: =F66+G66*Nøgletal!$C$9 -> 2569.768 | I66: =H66/Nøgletal!$C$9 -> 35.51856254 | J66: 0.003366859461 | K66: 0.01559295538 | L66: 1 | M66: 0.1195860083 | N66: 8.652047702 | O66: 0.5538393609 | P66: 40.07027776 | Q66: 35.51856254 | R66: 2569.768
A67: S074 | B67: Odsherred Spildevand A/S | C67: Region Sjælland | D67: Odsherred Kommune | E67: 1134500 | F67: 700 | G67: 40 | H67: =F67+G67*Nøgletal!$C$9 -> 3594 | I67: =H67/Nøgletal!$C$9 -> 49.67519005 | J67: 0.00425302585 | K67: 0.03347836493 | L67: 1 | M67: 0.2112698674 | N67: 15.2853749 | O67: 1.663044141 | P67: 120.3212436 | Q67: 49.67519005 | R67: 3594
A68: S075 | B68: Randers Spildevand A/S | C68: Region Midtjylland | D68: Randers Kommune | E68: 4140085 | F68: 0 | G68: 38.5 | H68: =F68+G68*Nøgletal!$C$9 -> 2785.475 | I68: =H68/Nøgletal!$C$9 -> 38.5 | J68: =IF(H68>0,E68/(SUMIFS($E$3:$E$99,$H$3:$H$99,">0")),"-") -> 0.01552039535 | K68: =IF(H68>0,E68/(SUMIFS($E$3:$E$99,$C$3:$C$99,C68,$H$3:$H$99,">0")),"-") -> 0.07187969531 | L68: =IF(H68>0,E68/(SUMIFS($E$3:$E$99,$D$3:$D$99,D68,$H$3:$H$99,">0")),"-") -> 1 | M68: =IF(H68>0,J68*I68,"-") -> 0.597535221 | N68: =IF(H68>0,J68*H68,"-") -> 43.23167324 | O68: =IF(H68>0,K68*I68,"-") -> 2.767368269 | P68: =IF(H68>0,K68*H68,"-") -> 200.2190943 | Q68: =IF(H68>0,L68*I68,"-") -> 38.5 | R68: =IF(H68>0,L68*H68,"-") -> 2785.475
A69: S076 | B69: Rebild Vand & Spildevand A/S | C69: Region Nordjylland | D69: Rebild Kommune | E69: 1102487 | F69: 0 | G69: 40 | H69: =F69+G69*Nøgletal!$C$9 -> 2894 | I69: =H69/Nøgletal!$C$9 -> 40 | J69: 0.00413301517 | K69: 0.03833066841 | L69: 1 | M69: 0.1653206068 | N69: 11.9609459 | O69: 1.533226736 | P69: 110.9289544 | Q69: 40 | R69: 2894
A70: S077 | B70: Ringkøbing-Skjern Spildevand A/S | C70: Region Midtjylland | D70: Ringkøbing-Skjern Kommune | E70: 2252826 | F70: 787.5 | G70: 35.88 | H70: =F70+G70*Nøgletal!$C$9 -> 3383.418 | I70: =H70/Nøgletal!$C$9 -> 46.7645888 | J70: 0.008445418434 | K70: 0.03911331445 | L70: 1 | M70: 0.3949465203 | N70: 28.57438075 | O70: 1.829118067 | P70: 132.3366922 | Q70: 46.7645888 | R70: 3383.418
A71: S079 | B71: Ringsted Spildevand A/S | C71: Region Sjælland | D71: Ringsted Kommune | E71: 1429656 | F71: 0 | G71: =32.4+4.98 -> 37.38 | H71: =F71+G71*Nøgletal!$C$9 -> 2704.443 | I71: =H71/Nøgletal!$C$9 -> 37.38 | J71: 0.00535950985 | K71: 0.04218822856 | L71: 1 | M71: 0.2003384782 | N71: 14.4944889 | O71: 1.576995984 | P71: 114.0956594 | Q71: 37.38 | R71: 2704.443
A72: S080 | B72: Roskilde Spildevand A/S | C72: Region Sjælland | D72: Roskilde Kommune | E72: 3960423 | F72: 0 | G72: 33.13 | H72: =F72+G72*Nøgletal!$C$9 -> 2396.9555 | I72: =H72/Nøgletal!$C$9 -> 33.13 | J72: 0.01484687651 | K72: 0.1168695341 | L72: 1 | M72: 0.4918770186 | N72: 35.5873023 | O72: 3.871887666 | P72: 280.1310727 | Q72: 33.13 | R72: 2396.9555
A73: S081 | B73: Rudersdal Forsyning A/S | C73: Region Hovedstaden | D73: Rudersdal Kommune | E73: 2780403 | F73: 0 | G73: 27.69 | H73: =F73+G73*Nøgletal!$C$9 -> 2003.3715 | I73: =H73/Nøgletal!$C$9 -> 27.69 | J73: 0.01042320479 | K73: 0.03188196512 | L73: 1 | M73: 0.2886185406 | N73: 20.88155141 | O73: 0.8828116142 | P73: 63.87142029 | Q73: 27.69 | R73: 2003.3715
A74: S083 | B74: Silkeborg Spildevand A/S | C74: Region Midtjylland | D74: Silkeborg Kommune | E74: 3722272 | F74: 656.25 | G74: 30 | H74: =F74+G74*Nøgletal!$C$9 -> 2826.75 | I74: =H74/Nøgletal!$C$9 -> 39.07049067 | J74: 0.01395409347 | K74: 0.06462567247 | L74: 1 | M74: 0.5451932785 | N74: 39.4447337 | O74: 2.524956733 | P74: 182.6806197 | Q74: 39.07049067 | R74: 2826.75
A75: S084 | B75: SK Spildevand A/S | C75: Region Sjælland | D75: Slagelse Kommune | E75: 3134457 | F75: 706.25 | G75: 43.75 | H75: =F75+G75*Nøgletal!$C$9 -> 3871.5625 | I75: =H75/Nøgletal!$C$9 -> 53.51157567 | J75: 0.01175048625 | K75: 0.09249580901 | L75: 1 | M75: 0.628787034 | N75: 45.49274191 | O75: 4.949596483 | P75: 358.1033056 | Q75: 53.51157567 | R75: 3871.5625
A76: S085 | B76: Skanderborg Forsyningsvirksomhed A/S | C76: Region Midtjylland | D76: Skanderborg Kommune | E76: 2473740 | F76: 388.75 | G76: 30 | H76: =F76+G76*Nøgletal!$C$9 -> 2559.25 | I76: =H76/Nøgletal!$C$9 -> 35.3731859 | J76: 0.009273583222 | K76: 0.04294879875 | L76: 1 | M76: 0.3280361833 | N76: 23.73341786 | O76: 1.519235842 | P76: 109.9167132 | Q76: 35.3731859 | R76: 2559.25
A77: S086 | B77: Skive Vand A/S | C77: Region Midtjylland | D77: Skive Kommune | E77: 1932473 | F77: 625 | G77: 30.63 | H77: =F77+G77*Nøgletal!$C$9 -> 2841.0805 | I77: =H77/Nøgletal!$C$9 -> 39.26856254 | J77: 0.007244475648 | K77: 0.03355138129 | L77: 1 | M77: 0.2844801451 | N77: 20.5821385 | O77: 1.317514515 | P77: 95.32217514 | Q77: 39.26856254 | R77: 2841.0805
A78: S087 | B78: Solrød Spildevand A/S | C78: Region Sjælland | D78: Solrød Kommune | E78: 859291 | F78: 0 | G78: 25.85 | H78: =F78+G78*Nøgletal!$C$9 -> 1870.2475 | I78: =H78/Nøgletal!$C$9 -> 25.85 | J78: 0.003221319379 | K78: 0.02535712445 | L78: 1 | M78: 0.08327110595 | N78: 6.024664515 | O78: 0.6554816669 | P78: 47.4240986 | Q78: 25.85 | R78: 1870.2475
A79: S088 | B79: Sorø Spildevand A/S | C79: Region Sjælland | D79: Sorø Kommune | E79: 1033458 | F79: 562.5 | G79: 51.55 | H79: =F79+G79*Nøgletal!$C$9 -> 4292.1425 | I79: =H79/Nøgletal!$C$9 -> 59.32470629 | J79: 0.003874238509 | K79: 0.03049668054 | L79: 1 | M79: 0.2298380617 | N79: 16.62878376 | O79: 1.809206616 | P79: 130.8960986 | Q79: 59.32470629 | R79: 4292.1425
A80: S089 | B80: Stevns Spildevand A/S | C80: Region Sjælland | D80: Stevns Kommune | E80: 818479 | F80: 740 | G80: 58.19 | H80: =F80+G80*Nøgletal!$C$9 -> 4950.0465 | I80: =H80/Nøgletal!$C$9 -> 68.41805805 | J80: 0.003068322913 | K80: 0.02415278859 | L80: 1 | M80: 0.2099286952 | N80: 15.1883411 | O80: 1.652486892 | P80: 119.5574266 | Q80: 68.41805805 | R80: 4950.0465
A81: S090 | B81: Struer Forsyning Spildevand A/S | C81: Region Midtjylland | D81: Struer Kommune | E81: 1106986 | F81: 0 | G81: 23.75 | H81: =F81+G81*Nøgletal!$C$9 -> 1718.3125 | I81: =H81/Nøgletal!$C$9 -> 23.75 | J81: 0.00414988107 | K81: 0.01921936781 | L81: 1 | M81: 0.0985596754 | N81: 7.130792515 | O81: 0.4564599855 | P81: 33.02487995 | Q81: 23.75 | R81: 1718.3125
A82: S091 | B82: Svendborg Spildevand A/S | C82: Region Syddanmark | D82: Svendborg Kommune | E82: 2670421 | F82: 0 | G82: 36.22 | H82: =F82+G82*Nøgletal!$C$9 -> 2620.517 | I82: =H82/Nøgletal!$C$9 -> 36.22 | J82: 0.01001090308 | K82: 0.04503658764 | L82: 1 | M82: 0.3625949095 | N82: 26.2337417 | O82: 1.631225204 | P82: 118.0191435 | Q82: 36.22 | R82: 2620.517
A83: S092 | B83: Syddjurs Spildevand A/S | C83: Region Midtjylland | D83: Syddjurs Kommune | E83: 1524781 | F83: 779.77 | G83: 40.5 | H83: =F83+G83*Nøgletal!$C$9 -> 3709.945 | I83: =H83/Nøgletal!$C$9 -> 51.27774706 | J83: 0.005716115477 | K83: 0.02647307813 | L83: 1 | M83: 0.2931095236 | N83: 21.20647403 | O83: 1.357479805 | P83: 98.21366386 | Q83: 51.27774706 | R83: 3709.945
A84: S093 | B84: Sønderborg Spildevandsforsyning A/S | C84: Region Syddanmark | D84: Sønderborg Kommune | E84: 3393750 | F84: 0 | G84: 44.88 | H84: =F84+G84*Nøgletal!$C$9 -> 3247.068 | I84: =H84/Nøgletal!$C$9 -> 44.88 | J84: 0.01272252664 | K84: 0.05723551429 | L84: 1 | M84: 0.5709869958 | N84: 41.31090915 | O84: 2.568729881 | P84: 185.8476069 | Q84: 44.88 | R84: 3247.068
A85: S095 | B85: Thisted Spildevand Transport A/S | C85: Region Nordjylland | D85: Thisted Kommune | E85: 2260208 | F85: 706 | G85: 28.54 | H85: =F85+G85*Nøgletal!$C$9 -> 2770.869 | I85: =H85/Nøgletal!$C$9 -> 38.29812025 | J85: 0.008473092155 | K85: 0.07858168249 | L85: 1 | M85: 0.3245035022 | N85: 23.47782839 | O85: 3.009530725 | P85: 217.739548 | Q85: 38.29812025 | R85: 2770.869
A86: S096 | B86: Tønder Spildevand A/S | C86: Region Syddanmark | D86: Tønder Kommune | E86: 2116520 | F86: 568 | G86: 32.5 | H86: =F86+G86*Nøgletal!$C$9 -> 2919.375 | I86: =H86/Nøgletal!$C$9 -> 40.35072564 | J86: 0.007934433029 | K86: 0.03569506024 | L86: 1 | M86: 0.3201601303 | N86: 23.16358542 | O86: 1.440321583 | P86: 104.2072665 | Q86: 40.35072564 | R86: 2919.375
A87: S097 | B87: TÅRNBYFORSYNING Spildevand | C87: Region Hovedstaden | D87: Tårnby Kommune | E87: 2262719 | F87: 0 | G87: 24.35 | H87: =F87+G87*Nøgletal!$C$9 -> 1761.7225 | I87: =H87/Nøgletal!$C$9 -> 24.35 | J87: 0.008482505419 | K87: 0.02594585326 | L87: 1 | M87: 0.206549007 | N87: 14.94382065 | O87: 0.6317815268 | P87: 45.70939347 | Q87: 24.35 | R87: 1761.7225
A88: S098 | B88: Vallensbæk Kloakforsyning A/S | C88: Region Hovedstaden | D88: Vallensbæk Kommune | E88: 634052 | F88: 0 | G88: 37 | H88: =F88+G88*Nøgletal!$C$9 -> 2676.95 | I88: =H88/Nøgletal!$C$9 -> 37 | J88: 0.002376940984 | K88: 0.007270465378 | L88: 1 | M88: 0.0879468164 | N88: 6.362952167 | O88: 0.269007219 | P88: 19.46267229 | Q88: 37 | R88: 2676.95
A89: S099 | B89: Vandcenter Syd A/S 1 | C89: Region Syddanmark | D89: Nordfyns Kommune | E89: 1403779.898 | F89: 625 | G89: 28.56 | H89: =F89+G89*Nøgletal!$C$9 -> 2691.316 | I89: =H89/Nøgletal!$C$9 -> 37.19856254 | J89: 0.00526250524 | K89: 0.02367471512 | L89: 1 | M89: 0.1957576303 | N89: 14.16306455 | O89: 0.8806653709 | P89: 63.71613959 | Q89: 37.19856254 | R89: 2691.316
A90: S099 | B90: Vandcenter Syd A/S 2 | C90: Region Syddanmark | D90: Odense Kommune | E90: 9695853.102 | F90: 625 | G90: 28.56 | H90: =F90+G90*Nøgletal!$C$9 -> 2691.316 | I90: =H90/Nøgletal!$C$9 -> 37.19856254 | J90: 0.0363479188 | K90: 0.1635203355 | L90: 1 | M90: 1.352090331 | N90: 97.82373543 | O90: 6.082721429 | P90: 440.0848954 | Q90: 37.19856254 | R90: 2691.316
A91: S100 | B91: VARDE KLOAK OG SPILDEVAND A/S | C91: Region Syddanmark | D91: Varde Kommune | E91: 2229053 | F91: 705 | G91: 29.4 | H91: =F91+G91*Nøgletal!$C$9 -> 2832.09 | I91: =H91/Nøgletal!$C$9 -> 39.14429855 | J91: 0.008356297955 | K91: 0.03759292665 | L91: 1 | M91: 0.3271014219 | N91: 23.66578787 | O91: 1.471548744 | P91: 106.4665516 | Q91: 39.14429855 | R91: 2832.09
A92: S102 | B92: Vejen Spildevand A/S | C92: Region Syddanmark | D92: Vejen Kommune | E92: 1828799 | F92: 700 | G92: 31.75 | H92: =F92+G92*Nøgletal!$C$9 -> 2997.1125 | I92: =H92/Nøgletal!$C$9 -> 41.42519005 | J92: 0.006855821438 | K92: 0.03084265232 | L92: 1 | M92: 0.284003706 | N92: 20.54766813 | O92: 1.277662734 | P92: 92.43889879 | Q92: 41.42519005 | R92: 2997.1125
A93: S103 | B93: Vejle Spildevand a/s | C93: Region Syddanmark | D93: Vejle Kommune | E93: 4884607 | F93: 0 | G93: 35.36 | H93: =F93+G93*Nøgletal!$C$9 -> 2558.296 | I93: =H93/Nøgletal!$C$9 -> 35.36 | J93: 0.01831146746 | K93: 0.08237878269 | L93: 1 | M93: 0.6474934895 | N93: 46.84615397 | O93: 2.912913756 | P93: 210.7493102 | Q93: 35.36 | R93: 2558.296
A94: S104 | B94: Vestforsyning Spildevand A/S | C94: Region Midtjylland | D94: Holstebro Kommune | E94: 3459388 | F94: 686.25 | G94: 24.34 | H94: =F94+G94*Nøgletal!$C$9 -> 2447.249 | I94: =H94/Nøgletal!$C$9 -> 33.82514167 | J94: 0.01296859109 | K94: 0.0600615097 | L94: 1 | M94: 0.4386644308 | N94: 31.73737157 | O94: 2.031589075 | P94: 146.9854696 | Q94: 33.82514167 | R94: 2447.249
A95: S105 | B95: Vesthimmerlands Vand A/S | C95: Region Nordjylland | D95: Vesthimmerlands Kommune | E95: 2073770 | F95: 576.98 | G95: 29.71 | H95: =F95+G95*Nøgletal!$C$9 -> 2726.4985 | I95: =H95/Nøgletal!$C$9 -> 37.68484451 | J95: 0.007774171368 | K95: 0.0720997075 | L95: 1 | M95: 0.2929684392 | N95: 21.19626657 | O95: 2.717066266 | P95: 196.5797444 | Q95: 37.68484451 | R95: 2726.4985
A96: S107 | B96: Vordingborg Spildevand A/S | C96: Region Sjælland | D96: Vordingborg Kommune | E96: 1762803 | F96: 125 | G96: 52.5 | H96: =F96+G96*Nøgletal!$C$9 -> 3923.375 | I96: =H96/Nøgletal!$C$9 -> 54.22771251 | J96: 0.00660841492 | K96: 0.05201918214 | L96: 1 | M96: 0.3583592244 | N96: 25.92728989 | O96: 2.820881254 | P96: 204.0907587 | Q96: 54.22771251 | R96: 3923.375
A97: S108 | B97: Ærø Vand A/S | C97: Region Syddanmark | D97: Ærø Kommune | E97: 261289 | F97: 780 | G97: 71.45 | H97: =F97+G97*Nøgletal!$C$9 -> 5949.4075 | I97: =H97/Nøgletal!$C$9 -> 82.23092605 | J97: 0.0009795230245 | K97: 0.004406632867 | L97: 1 | M97: 0.08054708539 | N97: 5.827581628 | O97: 0.3623615014 | P97: 26.21685463 | Q97: 82.23092605 | R97: 5949.4075
A98: S109 | B98: Aalborg Forsyning, Kloak A/S | C98: Region Nordjylland | D98: Aalborg Kommune | E98: 10138931 | F98: 687.5 | G98: 28.13 | H98: =F98+G98*Nøgletal!$C$9 -> 2722.7055 | I98: =H98/Nøgletal!$C$9 -> 37.6324188 | J98: 0.03800893401 | K98: 0.3525048388 | L98: 1 | M98: 1.430368123 | N98: 103.4871337 | O98: 13.26560972 | P98: 959.7668633 | Q98: 37.6324188 | R98: 2722.7055
A99: S110 | B99: Aarhus Vand A/S | C99: Region Midtjylland | D99: Aarhus Kommune | E99: 15227383 | F99: 0 | G99: 28.46 | H99: =F99+G99*Nøgletal!$C$9 -> 2059.081 | I99: =H99/Nøgletal!$C$9 -> 28.46 | J99: 0.05708457781 | K99: 0.26437613 | L99: 1 | M99: 1.624627084 | N99: 117.5417696 | O99: 7.524144661 | P99: 544.3718662 | Q99: 28.46 | R99: 2059.081

Sheet V 2013
A1: Forside | F1: Takstblad | H1: Beregning | J1: Vægte | M1: Land | O1: Region | Q1: Kommune
A2: ID | B2: Selskabsnavn | C2: Region | D2: Kommune | E2: Debiteret vandmængde | F2: Fast Årligt Bidrag | G2: Kubikmeterpris | H2: Samlede udgifter for en husholdning | I2: Takst inkl. Fast bidrag | J2: Land | K2: Region | L2: Kommune | M2: Vægtet takst | N2: Vægtet årlige udgifter | O2: Vægtet takst | P2: Vægtet årlige udgifter | Q2: Vægtet takst | R2: Vægtet årlige udgifter
A3: V002 | B3: Andelsselskabet Gram Vandværk | C3: Region Syddanmark | D3: Haderslev Kommune | E3: 239709 | F3: 656.25 | G3: 12.79 | H3: =F3+G3*Nøgletal!$C$9 -> 1581.6065 | I3: =H3/Nøgletal!$C$9 -> 21.86049067 | J3: =IF(H3>0,E3/(SUMIFS($E$3:$E$163,$I$3:$I$163,">0")),"-") -> 0.000955534765 | K3: =IF(H3>0,E3/(SUMIFS($E$3:$E$163,$C$3:$C$163,C3,$I$3:$I$163,">0")),"-") -> 0.005592178765 | L3: =IF(H3>0,E3/(SUMIFS($E$3:$E$163,$D$3:$D$163,D3,$I$3:$I$163,">0")),"-") -> 0.1293103169 | M3: =IF(H3>0,J3*I3,"-") -> 0.02088845882 | N3: =IF(H3>0,J3*H3,"-") -> 1.511279995 | O3: =IF(H3>0,K3*I3,"-") -> 0.1222477717 | P3: =IF(H3>0,K3*H3,"-") -> 8.844626284 | Q3: =IF(H3>0,L3*I3,"-") -> 2.826786977 | R3: =IF(H3>0,L3*H3,"-") -> 204.5180378
A4: V003 | B4: Andelsselskabet Gørlev Vandforsyning | C4: Region Sjælland | D4: Kalundborg Kommune | E4: 702331 | F4: 375 | G4: 10.16 | H4: =F4+G4*Nøgletal!$C$9 -> 1110.076 | I4: =H4/Nøgletal!$C$9 -> 15.34313753 | J4: =IF(H4>0,E4/(SUMIFS($E$3:$E$163,$I$3:$I$163,">0")),"-") -> 0.002799651607 | K4: =IF(H4>0,E4/(SUMIFS($E$3:$E$163,$C$3:$C$163,C4,$I$3:$I$163,">0")),"-") -> 0.0233406209 | L4: =IF(H4>0,E4/(SUMIFS($E$3:$E$163,$D$3:$D$163,D4,$I$3:$I$163,">0")),"-") -> 0.1844095597 | M4: =IF(H4>0,J4*I4,"-") -> 0.04295543963 | N4: =IF(H4>0,J4*H4,"-") -> 3.107826057 | O4: =IF(H4>0,K4*I4,"-") -> 0.3581183565 | P4: =IF(H4>0,K4*H4,"-") -> 25.90986309 | Q4: =IF(H4>0,L4*I4,"-") -> 2.829421235 | R4: =IF(H4>0,L4*H4,"-") -> 204.7086264
A5: V006 | B5: Andelsselskabet Klinting Vandværk | C5: Region Syddanmark | D5: Varde Kommune | E5: 726871 | F5: 837.5 | G5: 9.85 | H5: =F5+G5*Nøgletal!$C$9 -> 1550.1475 | I5: =H5/Nøgletal!$C$9 -> 21.42567381 | J5: 0.002897473646 | K5: 0.01695719631 | L5: 0.4354421781 | M5: 0.0620803252 | N5: 4.491511528 | O5: 0.3633193569 | P5: 26.28615547 | Q5: 9.329642069 | R5: 674.9996037
A6: V007 | B6: Andelsselskabet Marielyst Vandværk | C6: Region Sjælland | D6: Guldborgsund Kommune | E6: 207074 | F6: 532.5 | G6: 15.47 | H6: =F6+G6*Nøgletal!$C$9 -> 1651.7545 | I6: =H6/Nøgletal!$C$9 -> 22.83005529 | J6: 0.0008254442091 | K6: 0.006881706394 | L6: 0.1161143301 | M6: 0.01884493693 | N6: 1.363431187 | O6: 0.1571097374 | P6: 11.3668895 | Q6: 2.650896575 | R6: 191.7923672
A7: V008 | B7: Andelsselskabet Stenløse Vandværk | C7: Region Hovedstaden | D7: Egedal Kommune | E7: 272543 | F7: 0 | G7: 15.15 | H7: =F7+G7*Nøgletal!$C$9 -> 1096.1025 | I7: =H7/Nøgletal!$C$9 -> 15.15 | J7: 0.00108641858 | K7: 0.002626740193 | L7: 0.3043095719 | M7: 0.01645924149 | N7: 1.190826122 | O7: 0.03979511392 | P7: 2.879176492 | Q7: 4.610290014 | R7: 333.5544825
A8: V010 | B8: Andelsselskabet Vejgaard Vandværk | C8: Region Nordjylland | D8: Aalborg Kommune | E8: 487593 | F8: 687.5 | G8: 10.8 | H8: =F8+G8*Nøgletal!$C$9 -> 1468.88 | I8: =H8/Nøgletal!$C$9 -> 20.3024188 | J8: 0.001943656945 | K8: 0.01944864765 | L8: 0.06509522717 | M8: 0.0394609373 | N8: 2.854998814 | O8: 0.3948545897 | P8: 28.56772957 | Q8: 1.321590564 | R8: 95.61707728
A9: V012 | B9: Andelsselskabet Ørbæk Vandværk | C9: Region Syddanmark | D9: Nyborg Kommune | E9: 236929 | F9: 1075 | G9: 11.73 | H9: =F9+G9*Nøgletal!$C$9 -> 1923.6655 | I9: =H9/Nøgletal!$C$9 -> 26.58832757 | J9: 0.0009444530507 | K9: 0.005527324058 | L9: 0.1685985405 | M9: 0.02511142709 | N9: 1.81681175 | O9: 0.1469623027 | P9: 10.6327226 | Q9: 4.482753224 | R9: 324.3271957
A10: V013 | B10: Andelsvandværket Helle Vest a.m.b.a. | C10: Region Syddanmark | D10: Varde Kommune | E10: 533777 | F10: 562.5 | G10: 9.23 | H10: =F10+G10*Nøgletal!$C$9 -> 1230.2905 | I10: =H10/Nøgletal!$C$9 -> 17.00470629 | J10: 0.002127756906 | K10: 0.01245250034 | L10: 0.3197665328 | M10: 0.03618188125 | N10: 2.617759108 | O10: 0.2117511109 | P10: 15.32019287 | Q10: 5.437535972 | R10: 393.4057275
A11: V014 | B11: AquaDjurs A/S | C11: Region Midtjylland | D11: Norddjurs Kommune | E11: 166828 | F11: 659.2 | G11: 18.05 | H11: =F11+G11*Nøgletal!$C$9 -> 1965.1175 | I11: =H11/Nøgletal!$C$9 -> 27.16126469 | J11: 0.0006650144708 | K11: 0.003399085983 | L11: 0.09774154162 | M11: 0.01806263406 | N11: 1.306831574 | O11: 0.09232347407 | P11: 6.679603349 | Q11: 2.654783883 | R11: 192.0736139
A12: V015 | B12: Arwos Vand A/S | C12: Region Syddanmark | D12: Aabenraa Kommune | E12: 1255507 | F12: 562.5 | G12: 15.35 | H12: =F12+G12*Nøgletal!$C$9 -> 1673.0725 | I12: =H12/Nøgletal!$C$9 -> 23.12470629 | J12: 0.005004737353 | K12: 0.02928976211 | L12: 0.466809144 | M12: 0.1157330813 | N12: 8.373288435 | O12: 0.677317146 | P12: 49.00389551 | Q12: 10.79482435 | R12: 781.0055415
A13: V017 | B13: Assens Vandværk A/S | C13: Region Syddanmark | D13: Assens Kommune | E13: 634584 | F13: 595 | G13: 16.67 | H13: =F13+G13*Nøgletal!$C$9 -> 1801.0745 | I13: =H13/Nøgletal!$C$9 -> 24.89391154 | J13: 0.002529596608 | K13: 0.01480423 | L13: 0.6654893242 | M13: 0.06297155419 | N13: 4.555991946 | O13: 0.3685351921 | P13: 26.66352115 | Q13: 16.56663237 | R13: 1198.595852
A14: V018 | B14: Aulum Vandværk a.m.b.a. | C14: Region Midtjylland | D14: Herning Kommune | E14: 309479 | F14: 406.25 | G14: 10.04 | H14: =F14+G14*Nøgletal!$C$9 -> 1132.644 | I14: =H14/Nøgletal!$C$9 -> 15.65506565 | J14: 0.001233653903 | K14: 0.006305570593 | L14: 0.07663015407 | M14: 0.01931293285 | N14: 1.397290692 | O14: 0.09871412161 | P14: 7.141966698 | Q14: 1.199650093 | R14: 86.79468422
A15: V019 | B15: Baunehøj Vandværk A.m.b.A. | C15: Region Hovedstaden | D15: Gribskov Kommune | E15: 270332 | F15: 900 | G15: 19.67 | H15: =F15+G15*Nøgletal!$C$9 -> 2323.1245 | I15: =H15/Nøgletal!$C$9 -> 32.10953006 | J15: 0.00107760503 | K15: 0.002605430812 | L15: 0.1858843624 | M15: 0.0346013911 | N15: 2.503410646 | O15: 0.08365915898 | P15: 6.052740152 | Q15: 5.968659522 | R15: 431.8325164
A16: V020 | B16: Billund Drikkevand A/S | C16: Region Syddanmark | D16: Billund Kommune | E16: 666129 | F16: 593.28 | G16: 13.75 | H16: =F16+G16*Nøgletal!$C$9 -> 1588.0925 | I16: =H16/Nøgletal!$C$9 -> 21.95013822 | J16: 0.002655342175 | K16: 0.01554014429 | L16: 0.3669372075 | M16: 0.05828512776 | N16: 4.216928993 | O16: 0.3411083152 | P16: 24.6791866 | Q16: 8.054322422 | R16: 582.7302272
A17: V021 | B17: Birkerød Vandforsyning a.m.b.a. | C17: Region Hovedstaden | D17: Rudersdal Kommune | E17: 1157544 | F17: 425 | G17: 14.29 | H17: =F17+G17*Nøgletal!$C$9 -> 1458.8815 | I17: =H17/Nøgletal!$C$9 -> 20.16422253 | J17: 0.004614234484 | K17: 0.01115628488 | L17: 0.4048034618 | M17: 0.09304245094 | N17: 6.731621326 | O17: 0.2249578109 | P17: 16.27569762 | Q17: 8.162547085 | R17: 590.5602816
A18: V022 | B18: Bjerringbro Fællesvandværk | C18: Region Midtjylland | D18: Viborg Kommune | E18: 512120 | F18: 325 | G18: 9.54 | H18: =F18+G18*Nøgletal!$C$9 -> 1015.219 | I18: =H18/Nøgletal!$C$9 -> 14.03205252 | J18: 0.002041427163 | K18: 0.01043433904 | L18: 0.1817166353 | M18: 0.02864541317 | N18: 2.072495643 | O18: 0.1464151935 | P18: 10.59313925 | Q18: 2.549857371 | R18: 184.4821808
A19: V024 | B19: Bogense Forsyningsselskab a.m.b.a. | C19: Region Syddanmark | D19: Nordfyns Kommune | E19: 233423 | F19: 1125 | G19: 14.55 | H19: =F19+G19*Nøgletal!$C$9 -> 2177.6925 | I19: =H19/Nøgletal!$C$9 -> 30.09941258 | J19: 0.0009304773348 | K19: 0.005445532474 | L19: 0.4397130656 | M19: 0.02800682119 | N19: 2.026293513 | O19: 0.1639073286 | P19: 11.85869523 | Q19: 13.23510498 | R19: 957.5598451
A20: V025 | B20: Bolderslev Vandværk | C20: Region Syddanmark | D20: Aabenraa Kommune | E20: 251401 | F20: 668.75 | G20: 11.23 | H20: =F20+G20*Nøgletal!$C$9 -> 1481.2405 | I20: =H20/Nøgletal!$C$9 -> 20.47326192 | J20: 0.001002141745 | K20: 0.005864941799 | L20: 0.09347322285 | M20: 0.02051711042 | N20: 1.484412939 | O20: 0.1200744896 | P20: 8.687389323 | Q20: 1.913701774 | R20: 138.4563234
A21: V026 | B21: Bording Vandværk a.m.b.a. | C21: Region Midtjylland | D21: Ikast-Brande Kommune | E21: 278122 | F21: 500 | G21: 9.54 | H21: =F21+G21*Nøgletal!$C$9 -> 1190.219 | I21: =H21/Nøgletal!$C$9 -> 16.45085003 | J21: 0.001108657747 | K21: 0.005666678206 | L21: 0.1427850482 | M21: 0.01823836234 | N21: 1.319545515 | O21: 0.09322167335 | P21: 6.744588067 | Q21: 2.348935416 | R21: 169.9454773
A22: V027 | B22: Bornholms Vand A/S | C22: Region Hovedstaden | D22: Bornholms Regionskommune | E22: 1198447 | F22: 1221.25 | G22: 17.14 | H22: =F22+G22*Nøgletal!$C$9 -> 2461.329 | I22: =H22/Nøgletal!$C$9 -> 34.01975121 | J22: 0.004777283175 | K22: 0.0115505036 | L22: 0.4959720406 | M22: 0.1625219851 | N22: 11.75846562 | O22: 0.3929452589 | P22: 28.42958948 | Q22: 16.87284543 | R22: 1220.750367
A23: V028 | B23: Borup Vandværk | C23: Region Sjælland | D23: Køge Kommune | E23: 239806 | F23: 250 | G23: 10.16 | H23: =F23+G23*Nøgletal!$C$9 -> 985.076 | I23: =H23/Nøgletal!$C$9 -> 13.61542502 | J23: 0.0009559214291 | K23: 0.007969491503 | L23: 0.1167083993 | M23: 0.01301527654 | N23: 0.9416552577 | O23: 0.108508014 | P23: 7.850554811 | Q23: 1.58903446 | R23: 114.9666432
A24: V030 | B24: Brande Vandværk a.m.b.a. | C24: Region Midtjylland | D24: Ikast-Brande Kommune | E24: 735075 | F24: 650 | G24: 13.91 | H24: =F24+G24*Nøgletal!$C$9 -> 1656.3885 | I24: =H24/Nøgletal!$C$9 -> 22.89410504 | J24: 0.002930176662 | K24: 0.01497700104 | L24: 0.3773801401 | M24: 0.06708377229 | N24: 4.853510925 | O24: 0.342885035 | P24: 24.80773228 | Q24: 8.63978057 | R24: 625.0881242
A25: V035 | B25: Brønderslev Vand A/S | C25: Region Nordjylland | D25: Brønderslev Kommune | E25: 904328 | F25: 500 | G25: 20.69 | H25: =F25+G25*Nøgletal!$C$9 -> 1996.9215 | I25: =H25/Nøgletal!$C$9 -> 27.60085003 | J25: 0.003604857736 | K25: 0.03607097853 | L25: 0.6787542172 | M25: 0.09949713776 | N25: 7.198617917 | O25: 0.995589669 | P25: 72.03091256 | Q25: 18.73419336 | R25: 1355.41889
A26: V041 | B26: Egedal Vandforsyning A/S | C26: Region Hovedstaden | D26: Egedal Kommune | E26: 623068 | F26: 420 | G26: 16.57 | H26: =F26+G26*Nøgletal!$C$9 -> 1618.8395 | I26: =H26/Nøgletal!$C$9 -> 22.37511403 | J26: 0.002483691205 | K26: 0.006005062534 | L26: 0.6956904281 | M26: 0.05557287391 | N26: 4.020697428 | O26: 0.134363959 | P26: 9.721232431 | Q26: 15.56615266 | R26: 1126.211145
A27: V043 | B27: Energi Viborg Vand A/S | C27: Region Midtjylland | D27: Viborg Kommune | E27: 2306114 | F27: 565 | G27: 16.42 | H27: =F27+G27*Nøgletal!$C$9 -> 1752.987 | I27: =H27/Nøgletal!$C$9 -> 24.22926054 | J27: 0.009192696557 | K27: 0.04698659561 | L27: 0.8182833647 | M27: 0.2227322399 | N27: 16.11467756 | O27: 1.138450467 | P27: 82.36689127 | Q27: 19.82640084 | R27: 1434.440101
A28: V044 | B28: Esbjerg Vand A/S | C28: Region Syddanmark | D28: Esbjerg Kommune | E28: 6798867 | F28: 876.25 | G28: 13.98 | H28: =F28+G28*Nøgletal!$C$9 -> 1887.703 | I28: =H28/Nøgletal!$C$9 -> 26.09126469 | J28: 0.02710183506 | K28: 0.1586109811 | L28: 1 | M28: 0.7071211521 | N28: 51.16021535 | O28: 4.138361089 | P28: 299.4104248 | Q28: 26.09126469 | R28: 1887.703
A29: V045 | B29: Fanø Vand A/S | C29: Region Syddanmark | D29: Fanø Kommune | E29: 225208 | F29: 665 | G29: 18.16 | H29: =F29+G29*Nøgletal!$C$9 -> 1978.876 | I29: =H29/Nøgletal!$C$9 -> 27.35143055 | J29: 0.0008977304705 | K29: 0.005253884482 | L29: 1 | M29: 0.02455421261 | N29: 1.776497283 | O29: 0.1437012565 | P29: 10.39678591 | Q29: 27.35143055 | R29: 1978.876
A30: V047 | B30: Faxe Vandforsyning A/S | C30: Region Sjælland | D30: Faxe Kommune | E30: 1380295 | F30: 127.5 | G30: 20.26 | H30: =F30+G30*Nøgletal!$C$9 -> 1593.311 | I30: =H30/Nøgletal!$C$9 -> 22.02226676 | J30: 0.005502170792 | K30: 0.0458714514 | L30: 1 | M30: 0.1211702729 | N30: 8.766669247 | O30: 1.010193339 | P30: 73.0874881 | Q30: 22.02226676 | R30: 1593.311
A31: V050 | B31: FFV Vand A/S | C31: Region Syddanmark | D31: Faaborg-Midtfyn Kommune | E31: 712485 | F31: 875 | G31: 17.67 | H31: =F31+G31*Nøgletal!$C$9 -> 2153.4245 | I31: =H31/Nøgletal!$C$9 -> 29.76398756 | J31: 0.002840127768 | K31: 0.01662158487 | L31: 0.3068272107 | M31: 0.08453352754 | N31: 6.116000718 | O31: 0.4947246453 | P31: 35.79332809 | Q31: 9.132401281 | R31: 660.7292327
A32: V051 | B32: Fjerritslev Vand a.m.b.a. | C32: Region Nordjylland | D32: Jammerbugt Kommune | E32: 233428 | F32: 656.25 | G32: 9.26 | H32: =F32+G32*Nøgletal!$C$9 -> 1326.211 | I32: =H32/Nøgletal!$C$9 -> 18.33049067 | J32: 0.0009304972659 | K32: 0.009310754922 | L32: 0.1770881223 | M32: 0.01705647145 | N32: 1.23403571 | O32: 0.1706707062 | P32: 12.3480256 | Q32: 3.246112173 | R32: 234.8562157
A33: V052 | B33: Fonden Djurs Vand | C33: Region Midtjylland | D33: Syddjurs Kommune | E33: 341755 | F33: 711.25 | G33: 12.86 | H33: =F33+G33*Nøgletal!$C$9 -> 1641.671 | I33: =H33/Nøgletal!$C$9 -> 22.69068417 | J33: 0.001362313403 | K33: 0.006963187415 | L33: 0.6291686994 | M33: 0.03091182318 | N33: 2.236470407 | O33: 0.1579994865 | P33: 11.43126285 | Q33: 14.27626825 | R33: 1032.888008
A34: V053 | B34: Forsyning Helsingør Vand A/S | C34: Region Hovedstaden | D34: Helsingør Kommune | E34: 2780956 | F34: 568.75 | G34: 20.78 | H34: =F34+G34*Nøgletal!$C$9 -> 2072.183 | I34: =H34/Nøgletal!$C$9 -> 28.64109191 | J34: 0.01108552511 | K34: 0.02680255556 | L34: 1 | M34: 0.3175015435 | N34: 22.97123667 | O34: 0.7676544572 | P34: 55.53979998 | Q34: 28.64109191 | R34: 2072.183
A35: V054 | B35: Fredensborg Vand A/S | C35: Region Hovedstaden | D35: Fredensborg Kommune | E35: 1730930 | F35: 254.01 | G35: 22.12 | H35: =F35+G35*Nøgletal!$C$9 -> 1854.392 | I35: =H35/Nøgletal!$C$9 -> 25.63085003 | J35: 0.006899881902 | K35: 0.01668251763 | L35: 1 | M35: 0.1768498383 | N35: 12.7950858 | O35: 0.4275871075 | P35: 30.93592723 | Q35: 25.63085003 | R35: 1854.392
A36: V055 | B36: Frederiksberg Vand A/S | C36: Region Hovedstaden | D36: Frederiksberg Kommune | E36: 5262960 | F36: 370 | G36: 23.54 | H36: =F36+G36*Nøgletal!$C$9 -> 2073.119 | I36: =H36/Nøgletal!$C$9 -> 28.65402903 | J36: 0.02097935933 | K36: 0.05072384381 | L36: 1 | M36: 0.6011431713 | N36: 43.49270844 | O36: 1.453442493 | P36: 105.1565644 | Q36: 28.65402903 | R36: 2073.119
A37: V056 | B37: Frederiksberg Vandværk | C37: Region Sjælland | D37: Sorø Kommune | E37: 213470 | F37: 625 | G37: 15.16 | H37: =F37+G37*Nøgletal!$C$9 -> 1721.826 | I37: =H37/Nøgletal!$C$9 -> 23.79856254 | J37: 0.0008509401244 | K37: 0.00709426516 | L37: 0.2070732987 | M37: 0.02025115177 | N37: 1.465170831 | O37: 0.1688333131 | P37: 12.2150902 | Q37: 4.928046851 | R37: 356.5441897
A38: V057 | B38: Frederikshavn Vand A/S | C38: Region Nordjylland | D38: Frederikshavn Kommune | E38: 4374278 | F38: 1312.5 | G38: 15.18 | H38: =F38+G38*Nøgletal!$C$9 -> 2410.773 | I38: =H38/Nøgletal!$C$9 -> 33.32098134 | J38: 0.01743687012 | K38: 0.1744770568 | L38: 1 | M38: 0.5810136241 | N38: 42.0363357 | O38: 5.813746754 | P38: 420.6245777 | Q38: 33.32098134 | R38: 2410.773
A39: V058 | B39: Frederikssund Vand A/S | C39: Region Hovedstaden | D39: Frederikssund Kommune | E39: 1312110 | F39: 825 | G39: 17.67 | H39: =F39+G39*Nøgletal!$C$9 -> 2103.4245 | I39: =H39/Nøgletal!$C$9 -> 29.07290256 | J39: 0.005230369825 | K39: 0.0126459754 | L39: 0.8041890323 | M39: 0.1520620323 | N39: 11.00168803 | O39: 0.3676552106 | P39: 26.59985449 | Q39: 23.38010937 | R39: 1691.550913
A40: V059 | B40: Furesø Vandforsyning a.m.b.a. | C40: Region Hovedstaden | D40: Furesø Kommune | E40: 1695737 | F40: 375 | G40: 13.29 | H40: =F40+G40*Nøgletal!$C$9 -> 1336.5315 | I40: =H40/Nøgletal!$C$9 -> 18.47313753 | J40: 0.006759594574 | K40: 0.01634333127 | L40: 1 | M40: 0.1248709202 | N40: 9.034411076 | O40: 0.3019126062 | P40: 21.84337706 | Q40: 18.47313753 | R40: 1336.5315
A41: V060 | B41: Galten Vandværk | C41: Region Midtjylland | D41: Skanderborg Kommune | E41: 264804 | F41: 750 | G41: 11.41 | H41: =F41+G41*Nøgletal!$C$9 -> 1575.5135 | I41: =H41/Nøgletal!$C$9 -> 21.77627505 | J41: 0.001055569161 | K41: 0.005395326711 | L41: 0.2076565125 | M41: 0.02298636438 | N41: 1.663063463 | O41: 0.1174901185 | P41: 8.50041007 | Q41: 4.521985332 | R41: 327.1656387
A42: V061 | B42: Gentofte Vand A/S | C42: Region Hovedstaden | D42: Gentofte Kommune | E42: 3680709 | F42: 0 | G42: 22 | H42: =F42+G42*Nøgletal!$C$9 -> 1591.7 | I42: =H42/Nøgletal!$C$9 -> 22 | J42: 0.01467214585 | K42: 0.03547427844 | L42: 1 | M42: 0.3227872087 | N42: 23.35365455 | O42: 0.7804341256 | P42: 56.46440899 | Q42: 22 | R42: 1591.7
A43: V062 | B43: Gilleleje Vandværk a.m.b.a. | C43: Region Hovedstaden | D43: Gribskov Kommune | E43: 461853 | F43: 887.5 | G43: 15.8 | H43: =F43+G43*Nøgletal!$C$9 -> 2030.63 | I43: =H43/Nøgletal!$C$9 -> 28.06675881 | J43: 0.001841051432 | K43: 0.004451289661 | L43: 0.317577092 | M43: 0.05167234651 | N43: 3.73849427 | O43: 0.1249332733 | P43: 9.038922325 | Q43: 8.913359644 | R43: 644.8815703
A44: V063 | B44: Give Vandværk a.m.b.a. | C44: Region Syddanmark | D44: Vejle Kommune | E44: 286465 | F44: 691.25 | G44: 13.91 | H44: =F44+G44*Nøgletal!$C$9 -> 1697.6385 | I44: =H44/Nøgletal!$C$9 -> 23.46425017 | J44: 0.001141914849 | K44: 0.006682950953 | L44: 1 | M44: 0.02679417568 | N44: 1.938558611 | O44: 0.156810433 | P44: 11.34523483 | Q44: 23.46425017 | R44: 1697.6385
A45: V065 | B45: Gladsaxe Vand A/S | C45: Region Hovedstaden | D45: Gladsaxe Kommune | E45: 3363923 | F45: 0 | G45: 23.9 | H45: =F45+G45*Nøgletal!$C$9 -> 1729.165 | I45: =H45/Nøgletal!$C$9 -> 23.9 | J45: 0.01340936458 | K45: 0.03242112896 | L45: 1 | M45: 0.3204838134 | N45: 23.1870039 | O45: 0.774864982 | P45: 56.06148145 | Q45: 23.9 | R45: 1729.165
A46: V067 | B46: Glostrup Vand a/s | C46: Region Hovedstaden | D46: Glostrup Kommune | E46: 1274214 | F46: 217.5 | G46: 20 | H46: =F46+G46*Nøgletal!$C$9 -> 1664.5 | I46: =H46/Nøgletal!$C$9 -> 23.00621977 | J46: 0.005079307723 | K46: 0.01228073782 | L46: 1 | M46: 0.1168556697 | N46: 8.454507705 | O46: 0.2825333532 | P46: 20.4412881 | Q46: 23.00621977 | R46: 1664.5
A47: V068 | B47: Greve Vandværk A.m.b.a. | C47: Region Sjælland | D47: Greve Kommune | E47: 1922636 | F47: 500 | G47: 16.75 | H47: =F47+G47*Nøgletal!$C$9 -> 1711.8625 | I47: =H47/Nøgletal!$C$9 -> 23.66085003 | J47: 0.007664065756 | K47: 0.06389511215 | L47: 1 | M47: 0.1813383105 | N47: 13.11982677 | O47: 1.511812667 | P47: 109.3796464 | Q47: 23.66085003 | R47: 1711.8625
A48: V069 | B48: Grindsted Vandværk A.m.b.a. | C48: Region Syddanmark | D48: Billund Kommune | E48: 1149247 | F48: 693.13 | G48: 10.46 | H48: =F48+G48*Nøgletal!$C$9 -> 1449.911 | I48: =H48/Nøgletal!$C$9 -> 20.04023497 | J48: 0.004581160749 | K48: 0.02681081924 | L48: 0.6330627925 | M48: 0.09180753785 | N48: 6.642275363 | O48: 0.5372951173 | P48: 38.87330173 | Q48: 12.68672711 | R48: 917.8847065
A49: V070 | B49: Guldborgsund Vand A/S | C49: Region Sjælland | D49: Guldborgsund Kommune | E49: 1379011 | F49: 915 | G49: 19.64 | H49: =F49+G49*Nøgletal!$C$9 -> 2335.954 | I49: =H49/Nøgletal!$C$9 -> 32.28685556 | J49: 0.005497052475 | K49: 0.04582878012 | L49: 0.7732643326 | M49: 0.1774825393 | N49: 12.84086172 | O49: 1.479667205 | P49: 107.0539222 | Q49: 24.96627382 | R49: 1806.309911
A50: V071 | B50: Haderslev Vand A/S | C50: Region Syddanmark | D50: Haderslev Kommune | E50: 1614041 | F50: 850.75 | G50: 18.1 | H50: =F50+G50*Nøgletal!$C$9 -> 2160.285 | I50: =H50/Nøgletal!$C$9 -> 29.85881133 | J50: 0.006433935679 | K50: 0.03765401302 | L50: 0.8706896831 | M50: 0.1921096716 | N50: 13.89913474 | O50: 1.124304071 | P50: 81.34339951 | Q50: 25.99775898 | R50: 1880.937862
A51: V072 | B51: Hadsten Vandværk a.m.b.a. | C51: Region Midtjylland | D51: Favrskov Kommune | E51: 335647 | F51: 798.75 | G51: 13.91 | H51: =F51+G51*Nøgletal!$C$9 -> 1805.1385 | I51: =H51/Nøgletal!$C$9 -> 24.95008293 | J51: 0.001337965522 | K51: 0.006838738178 | L51: 1 | M51: 0.03338235073 | N51: 2.415213075 | O51: 0.1706270847 | P51: 12.34486958 | Q51: 24.95008293 | R51: 1805.1385
A52: V073 | B52: Hadsund Vandværk a.m.b.a | C52: Region Nordjylland | D52: Mariagerfjord Kommune | E52: 369823 | F52: 412.5 | G52: 10.85 | H52: =F52+G52*Nøgletal!$C$9 -> 1197.4975 | I52: =H52/Nøgletal!$C$9 -> 16.55145128 | J52: 0.001474198855 | K52: 0.01475114947 | L52: 0.1985519175 | M52: 0.02440013053 | N52: 1.765349444 | O52: 0.2441529317 | P52: 17.66446461 | Q52: 3.286322388 | R52: 237.7654248
A53: V074 | B53: Halsnaes Forsyning A/S | C53: Region Hovedstaden | D53: Halsnæs Kommune | E53: 561424 | F53: 837.5 | G53: 21.33 | H53: =F53+G53*Nøgletal!$C$9 -> 2380.7255 | I53: =H53/Nøgletal!$C$9 -> 32.90567381 | J53: 0.002237964156 | K53: 0.005410944276 | L53: 1 | M53: 0.07364171851 | N53: 5.327978335 | O53: 0.1780507673 | P53: 12.88197302 | Q53: 32.90567381 | R53: 2380.7255
A54: V079 | B54: Helsinge Vandværk | C54: Region Hovedstaden | D54: Gribskov Kommune | E54: 439049 | F54: 762.5 | G54: 17.67 | H54: =F54+G54*Nøgletal!$C$9 -> 2040.9245 | I54: =H54/Nøgletal!$C$9 -> 28.2090463 | J54: 0.001750149486 | K54: 0.004231507156 | L54: 0.3018967175 | M54: 0.04937004787 | N54: 3.571922964 | O54: 0.1193667813 | P54: 8.636186627 | Q54: 8.516218482 | R54: 616.1484071
A55: V080 | B55: Herning Vand A/S | C55: Region Midtjylland | D55: Herning Kommune | E55: 3215749 | F55: 625 | G55: 13.85 | H55: =F55+G55*Nøgletal!$C$9 -> 1627.0475 | I55: =H55/Nøgletal!$C$9 -> 22.48856254 | J55: 0.01281870921 | K55: 0.06552022053 | L55: 0.7962522217 | M55: 0.2882743437 | N55: 20.85664877 | O55: 1.473455577 | P55: 106.604511 | Q55: 17.90656789 | R55: 1295.540187
A56: V081 | B56: Hillerød Vand A/S | C56: Region Hovedstaden | D56: Hillerød Kommune | E56: 1587218 | F56: 656.25 | G56: 18.66 | H56: =F56+G56*Nøgletal!$C$9 -> 2006.301 | I56: =H56/Nøgletal!$C$9 -> 27.73049067 | J56: 0.006327013081 | K56: 0.01529743679 | L56: 0.8598231185 | M56: 0.1754511772 | N56: 12.69389267 | O56: 0.4242054282 | P56: 30.69126273 | Q56: 23.84331697 | R56: 1725.063983
A57: V085 | B57: Hjørring Vandselskab A/S | C57: Region Nordjylland | D57: Hjørring Kommune | E57: 3281968 | F57: 1292.5 | G57: 15.04 | H57: =F57+G57*Nøgletal!$C$9 -> 2380.644 | I57: =H57/Nøgletal!$C$9 -> 32.90454734 | J57: 0.01308267325 | K57: 0.1309080303 | L57: 1 | M57: 0.4304794412 | N57: 31.14518757 | O57: 4.307469482 | P57: 311.645417 | Q57: 32.90454734 | R57: 2380.644
A58: V086 | B58: HOFOR Vand Albertslund A/S | C58: Region Hovedstaden | D58: Albertslund Kommune | E58: 1273064 | F58: 75 | G58: 23.6 | H58: =F58+G58*Nøgletal!$C$9 -> 1782.46 | I58: =H58/Nøgletal!$C$9 -> 24.63662751 | J58: 0.005074723561 | K58: 0.01226965424 | L58: 1 | M58: 0.1250240741 | N58: 9.045491758 | O58: 0.3022829012 | P58: 21.8701679 | Q58: 24.63662751 | R58: 1782.46
A59: V087 | B59: HOFOR Vand Brøndby A/S | C59: Region Hovedstaden | D59: Brøndby Kommune | E59: 1884705 | F59: 125 | G59: 19.01 | H59: =F59+G59*Nøgletal!$C$9 -> 1500.3735 | I59: =H59/Nøgletal!$C$9 -> 20.73771251 | J59: 0.007512864136 | K59: 0.01816458458 | L59: 1 | M59: 0.1557996166 | N59: 11.27210226 | O59: 0.3766919328 | P59: 27.25366134 | Q59: 20.73771251 | R59: 1500.3735
A60: V088 | B60: HOFOR Vand Dragør A/S | C60: Region Hovedstaden | D60: Dragør Kommune | E60: 659736 | F60: 441.15 | G60: 18.14 | H60: =F60+G60*Nøgletal!$C$9 -> 1753.579 | I60: =H60/Nøgletal!$C$9 -> 24.23744299 | J60: 0.002629858219 | K60: 0.006358464784 | L60: 1 | M60: 0.06374103863 | N60: 4.611664145 | O60: 0.1541129277 | P60: 11.15007032 | Q60: 24.23744299 | R60: 1753.579
A61: V089 | B61: HOFOR Vand Herlev A/S | C61: Region Hovedstaden | D61: Herlev Kommune | E61: 1468526 | F61: 0 | G61: 23.51 | H61: =F61+G61*Nøgletal!$C$9 -> 1700.9485 | I61: =H61/Nøgletal!$C$9 -> 23.51 | J61: 0.005853879689 | K61: 0.01415349603 | L61: 1 | M61: 0.1376247115 | N61: 9.957147876 | O61: 0.3327486916 | P61: 24.07436784 | Q61: 23.51 | R61: 1700.9485
A62: V090 | B62: HOFOR Vand Hvidovre A/S | C62: Region Hovedstaden | D62: Hvidovre Kommune | E62: 2806705 | F62: 0 | G62: 23.15 | H62: =F62+G62*Nøgletal!$C$9 -> 1674.9025 | I62: =H62/Nøgletal!$C$9 -> 23.15 | J62: 0.0111881665 | K62: 0.02705072166 | L62: 1 | M62: 0.2590060544 | N62: 18.73908803 | O62: 0.6262242063 | P62: 45.30732133 | Q62: 23.15 | R62: 1674.9025
A63: V091 | B63: HOFOR Vand København A/S | C63: Region Hovedstaden | D63: Københavns Kommune | E63: 48353025 | F63: 480 | G63: 16.31 | H63: =F63+G63*Nøgletal!$C$9 -> 1660.0285 | I63: =H63/Nøgletal!$C$9 -> 22.94441603 | J63: 0.1927461897 | K63: 0.4660212671 | L63: 1 | M63: 4.422448765 | N63: 319.9641681 | O63: 10.69258583 | P63: 773.608585 | Q63: 22.94441603 | R63: 1660.0285
A64: V092 | B64: HOFOR Vand Rødovre A/S | C64: Region Hovedstaden | D64: Rødovre Kommune | E64: 1808418 | F64: 0 | G64: 22.18 | H64: =F64+G64*Nøgletal!$C$9 -> 1604.723 | I64: =H64/Nøgletal!$C$9 -> 22.18 | J64: 0.007208766749 | K64: 0.01742933866 | L64: 1 | M64: 0.1598904465 | N64: 11.5680738 | O64: 0.3865827314 | P64: 27.96926062 | Q64: 22.18 | R64: 1604.723
A65: V093 | B65: HOFOR Vand Vallensbæk A/S | C65: Region Hovedstaden | D65: Vallensbæk Kommune | E65: 436733 | F65: 125 | G65: 25.3 | H65: =F65+G65*Nøgletal!$C$9 -> 1955.455 | I65: =H65/Nøgletal!$C$9 -> 27.02771251 | J65: 0.001740917381 | K65: 0.004209185797 | L65: 1 | M65: 0.04705301448 | N65: 3.404285598 | O65: 0.1137646636 | P65: 8.230873412 | Q65: 27.02771251 | R65: 1955.455
A66: V094 | B66: Holbæk Vand A/S | C66: Region Sjælland | D66: Holbæk Kommune | E66: 1639087 | F66: 0 | G66: 17.1 | H66: =F66+G66*Nøgletal!$C$9 -> 1237.185 | I66: =H66/Nøgletal!$C$9 -> 17.1 | J66: 0.006533774749 | K66: 0.05447190612 | L66: 0.5959590377 | M66: 0.1117275482 | N66: 8.083488113 | O66: 0.9314695946 | P66: 67.39182517 | Q66: 10.19089954 | R66: 737.3115821
A67: V097 | B67: Horsens Vand A/S | C67: Region Midtjylland | D67: Horsens Kommune | E67: 3839139 | F67: 350 | G67: 12.98 | H67: =F67+G67*Nøgletal!$C$9 -> 1289.103 | I67: =H67/Nøgletal!$C$9 -> 17.81759502 | J67: 0.01530368398 | K67: 0.07822166279 | L67: 1 | M67: 0.2726748435 | N67: 19.72802492 | O67: 1.39372191 | P67: 100.8357802 | Q67: 17.81759502 | R67: 1289.103
A68: V098 | B68: HTK Vand A/S | C68: Region Hovedstaden | D68: Høje-Taastrup Kommune | E68: 2195877 | F68: 0 | G68: 27.67 | H68: =F68+G68*Nøgletal!$C$9 -> 2001.9245 | I68: =H68/Nøgletal!$C$9 -> 27.67 | J68: =IF(H68>0,E68/(SUMIFS($E$3:$E$163,$I$3:$I$163,">0")),"-") -> 0.008753266724 | K68: =IF(H68>0,E68/(SUMIFS($E$3:$E$163,$C$3:$C$163,C68,$I$3:$I$163,">0")),"-") -> 0.02116362693 | L68: =IF(H68>0,E68/(SUMIFS($E$3:$E$163,$D$3:$D$163,D68,$I$3:$I$163,">0")),"-") -> 1 | M68: =IF(H68>0,J68*I68,"-") -> 0.2422028903 | N68: =IF(H68>0,J68*H68,"-") -> 17.52337911 | O68: =IF(H68>0,K68*I68,"-") -> 0.5855975571 | P68: =IF(H68>0,K68*H68,"-") -> 42.36798326 | Q68: =IF(H68>0,L68*I68,"-") -> 27.67 | R68: =IF(H68>0,L68*H68,"-") -> 2001.9245
A69: V101 | B69: Høng Vandværk a.m.b.a. | C69: Region Sjælland | D69: Kalundborg Kommune | E69: 234198 | F69: 812.5 | G69: 8.91 | H69: =F69+G69*Nøgletal!$C$9 -> 1457.1385 | I69: =H69/Nøgletal!$C$9 -> 20.14013131 | J69: 0.0009335666616 | K69: 0.007783120401 | L69: 0.06149287168 | M69: 0.01880215515 | N69: 1.360335925 | O69: 0.1567530669 | P69: 11.34108439 | Q69: 1.23847451 | R69: 89.60363079
A70: V102 | B70: Hørsholm Vand ApS | C70: Region Hovedstaden | D70: Hørsholm Kommune | E70: 1282827 | F70: 0 | G70: 25.31 | H70: =F70+G70*Nøgletal!$C$9 -> 1831.1785 | I70: =H70/Nøgletal!$C$9 -> 25.31 | J70: 0.005113641106 | K70: 0.01236374899 | L70: 1 | M70: 0.1294262564 | N70: 9.363989651 | O70: 0.3129264869 | P70: 22.64023133 | Q70: 25.31 | R70: 1831.1785
A71: V103 | B71: Haarby Vandværk | C71: Region Syddanmark | D71: Assens Kommune | E71: 318976 | F71: 1168.75 | G71: 13.6 | H71: =F71+G71*Nøgletal!$C$9 -> 2152.71 | I71: =H71/Nøgletal!$C$9 -> 29.75411196 | J71: 0.001271511112 | K71: 0.007441401089 | L71: 0.3345106758 | M71: 0.03783268399 | N71: 2.737194686 | O71: 0.2214122811 | P71: 16.01917854 | Q71: 9.953068098 | R71: 720.1044769
A72: V106 | B72: Ikast Vandforsyning a.m.b.a. | C72: Region Midtjylland | D72: Ikast-Brande Kommune | E72: 934640 | F72: 468.75 | G72: 12.66 | H72: =F72+G72*Nøgletal!$C$9 -> 1384.701 | I72: =H72/Nøgletal!$C$9 -> 19.13892191 | J72: 0.003725688283 | K72: 0.01904309662 | L72: 0.4798348116 | M72: 0.07130565711 | N72: 5.158964292 | O72: 0.3644643391 | P72: 26.36899493 | Q72: 9.183520988 | R72: 664.4277435
A73: V107 | B73: Ishøj Vand A/S | C73: Region Hovedstaden | D73: Ishøj Kommune | E73: 1024579 | F73: 226.25 | G73: 22 | H73: =F73+G73*Nøgletal!$C$9 -> 1817.95 | I73: =H73/Nøgletal!$C$9 -> 25.12715964 | J73: 0.004084205658 | K73: 0.009874782474 | L73: 1 | M73: 0.1026244876 | N73: 7.424881675 | O73: 0.2481252356 | P73: 17.9518608 | Q73: 25.12715964 | R73: 1817.95
A74: V108 | B74: Jammerbugt Forsyning A/S | C74: Region Nordjylland | D74: Jammerbugt Kommune | E74: 116184 | F74: 747 | G74: 13.02 | H74: =F74+G74*Nøgletal!$C$9 -> 1688.997 | I74: =H74/Nøgletal!$C$9 -> 23.34480995 | J74: 0.000463135932 | K74: 0.004634237323 | L74: 0.08814198124 | M74: 0.01081182032 | N74: 0.7822351998 | O74: 0.1081853896 | P74: 7.827212936 | Q74: 2.057657801 | R74: 148.8715419
A75: V110 | B75: Jyllinge Vandværk a.m.b.a. | C75: Region Sjælland | D75: Roskilde Kommune | E75: 238310 | F75: 950 | G75: 18.42 | H75: =F75+G75*Nøgletal!$C$9 -> 2282.687 | I75: =H75/Nøgletal!$C$9 -> 31.55061507 | J75: 0.0009499580318 | K75: 0.007919774818 | L75: 0.07325850807 | M75: 0.02997176019 | N75: 2.16845685 | O75: 0.2498737667 | P75: 18.07836702 | Q75: 2.311350988 | R75: 167.226244
A76: V112 | B76: Kalundborg Vandforsyning A/S | C76: Region Sjælland | D76: Kalundborg Kommune | E76: 2872010 | F76: 0 | G76: 19.92 | H76: =F76+G76*Nøgletal!$C$9 -> 1441.212 | I76: =H76/Nøgletal!$C$9 -> 19.92 | J76: 0.01144848713 | K76: 0.09544573234 | L76: 0.7540975686 | M76: 0.2280538635 | N76: 16.49969703 | O76: 1.901278988 | P76: 137.5575348 | Q76: 15.02162357 | R76: 1086.814465
A77: V113 | B77: Kerteminde Forsyning - Vand A/S | C77: Region Syddanmark | D77: Kerteminde Kommune | E77: 914180 | F77: 500 | G77: 17.44 | H77: =F77+G77*Nøgletal!$C$9 -> 1761.784 | I77: =H77/Nøgletal!$C$9 -> 24.35085003 | J77: 0.003644130055 | K77: 0.02132693384 | L77: 0.7385439169 | M77: 0.08873766449 | N77: 6.420170026 | O77: 0.5193289676 | P77: 37.5734508 | Q77: 17.98417217 | R77: 1301.154856
A78: V114 | B78: Klemensker Vandværk | C78: Region Hovedstaden | D78: Bornholms Regionskommune | E78: 302477 | F78: 562.5 | G78: 12.35 | H78: =F78+G78*Nøgletal!$C$9 -> 1456.0225 | I78: =H78/Nøgletal!$C$9 -> 20.12470629 | J78: 0.001205742334 | K78: 0.002915240873 | L78: 0.1251787813 | M78: 0.02426521033 | N78: 1.755587967 | O78: 0.05866836633 | P78: 4.244656304 | Q78: 2.519186207 | R78: 182.2631221
A79: V115 | B79: Kvarmløse-Tølløse Vandværk | C79: Region Sjælland | D79: Holbæk Kommune | E79: 260133 | F79: 0 | G79: 13.24 | H79: =F79+G79*Nøgletal!$C$9 -> 957.914 | I79: =H79/Nøgletal!$C$9 -> 13.24 | J79: 0.001036949489 | K79: 0.008645020279 | L79: 0.09458229634 | M79: 0.01372921123 | N79: 0.9933084326 | O79: 0.1144600685 | P79: 8.281185956 | Q79: 1.252269604 | R79: 90.60170581
A80: V116 | B80: Køge Vand A/S | C80: Region Sjælland | D80: Køge Kommune | E80: 1814939 | F80: 243.01 | G80: 20.76 | H80: =F80+G80*Nøgletal!$C$9 -> 1744.996 | I80: =H80/Nøgletal!$C$9 -> 24.11881133 | J80: 0.007234760943 | K80: 0.06031600935 | L80: 0.8832916007 | M80: 0.1744938342 | N80: 12.62462891 | O80: 1.45475045 | P80: 105.2511951 | Q80: 21.30394347 | R80: 1541.34031
A81: V117 | B81: Langeland Vand ApS | C81: Region Syddanmark | D81: Langeland Kommune | E81: 823991 | F81: 900 | G81: 11.16 | H81: =F81+G81*Nøgletal!$C$9 -> 1707.426 | I81: =H81/Nøgletal!$C$9 -> 23.59953006 | J81: 0.003284616124 | K81: 0.01922291183 | L81: 1 | M81: 0.07751539697 | N81: 5.608238971 | O81: 0.4536516857 | P81: 32.82169946 | Q81: 23.59953006 | R81: 1707.426
A82: V118 | B82: Langeskov Vandværk | C82: Region Syddanmark | D82: Kerteminde Kommune | E82: 323634 | F82: 287.5 | G82: 10.79 | H82: =F82+G82*Nøgletal!$C$9 -> 1068.1565 | I82: =H82/Nøgletal!$C$9 -> 14.76373877 | J82: 0.001290078963 | K82: 0.007550067717 | L82: 0.2614560831 | M82: 0.0190463888 | N82: 1.37800623 | O82: 0.1114672275 | P82: 8.064653908 | Q82: 3.86006931 | R82: 279.2760146
A83: V119 | B83: Lejre Vand A/S | C83: Region Sjælland | D83: Lejre Kommune | E83: 202480 | F83: 585.66 | G83: 13.86 | H83: =F83+G83*Nøgletal!$C$9 -> 1588.431 | I83: =H83/Nøgletal!$C$9 -> 21.95481686 | J83: 0.000807131477 | K83: 0.006729033633 | L83: 1 | M83: 0.01772042376 | N83: 1.282072659 | O83: 0.1477347011 | P83: 10.68860562 | Q83: 21.95481686 | R83: 1588.431
A84: V120 | B84: Lemvig Vand og Spildevand A/S | C84: Region Midtjylland | D84: Lemvig Kommune | E84: 1722695 | F84: 680 | G84: 12.98 | H84: =F84+G84*Nøgletal!$C$9 -> 1619.103 | I84: =H84/Nøgletal!$C$9 -> 22.37875605 | J84: 0.006867055313 | K84: 0.03509955419 | L84: 1 | M84: 0.1536761556 | N84: 11.11846986 | O84: 0.7854843607 | P84: 56.82979349 | Q84: 22.37875605 | R84: 1619.103
A85: V122 | B85: Lille Skensved Vandværk a.m.b.a. | C85: Region Sjælland | D85: Næstved Kommune | E85: 505565 | F85: 250 | G85: 11.1 | H85: =F85+G85*Nøgletal!$C$9 -> 1053.085 | I85: =H85/Nøgletal!$C$9 -> 14.55542502 | J85: 0.002015297438 | K85: 0.01680148108 | L85: 0.188267473 | M85: 0.02933351074 | N85: 2.122279502 | O85: 0.244552698 | P85: 17.6933877 | Q85: 2.740313087 | R85: 198.2616518
A86: V123 | B86: Lillerød Andelsvandværk a.m.b.a | C86: Region Hovedstaden | D86: Allerød Kommune | E86: 598227 | F86: 375 | G86: 12.67 | H86: =F86+G86*Nøgletal!$C$9 -> 1291.6745 | I86: =H86/Nøgletal!$C$9 -> 17.85313753 | J86: 0.002384669311 | K86: 0.005765647642 | L86: 1 | M86: 0.04257382916 | N86: 3.08021654 | O86: 0.1029349003 | P86: 7.447340035 | Q86: 17.85313753 | R86: 1291.6745
A87: V124 | B87: Lindholm Vandværk a.m.b.a | C87: Region Nordjylland | D87: Aalborg Kommune | E87: 501000 | F87: 462.5 | G87: 12.01 | H87: =F87+G87*Nøgletal!$C$9 -> 1331.4235 | I87: =H87/Nøgletal!$C$9 -> 18.40253628 | J87: 0.001997100306 | K87: 0.01998341337 | L87: 0.06688510461 | M87: 0.03675171084 | N87: 2.658986279 | O87: 0.3677454895 | P87: 26.60638617 | Q87: 1.230855564 | R87: 89.05240007
A88: V125 | B88: Lolland Vand A/S | C88: Region Sjælland | D88: Lolland Kommune | E88: 1673529 | F88: 785.66 | G88: 29.35 | H88: =F88+G88*Nøgletal!$C$9 -> 2909.1325 | I88: =H88/Nøgletal!$C$9 -> 40.20915688 | J88: 0.006671068419 | K88: 0.05561651979 | L88: 1 | M88: 0.2682380366 | N88: 19.40702195 | O88: 2.236293369 | P88: 161.7958253 | Q88: 40.20915688 | R88: 2909.1325
A89: V126 | B89: Lyngby-Taarbæk Vand A/S | C89: Region Hovedstaden | D89: Lyngby-Taarbæk Kommune | E89: 2785710 | F89: 0 | G89: 23.6 | H89: =F89+G89*Nøgletal!$C$9 -> 1707.46 | I89: =H89/Nøgletal!$C$9 -> 23.6 | J89: 0.01110447564 | K89: 0.0268483741 | L89: 1 | M89: 0.262065625 | N89: 18.96044797 | O89: 0.6336216287 | P89: 45.84252484 | Q89: 23.6 | R89: 1707.46
A90: V127 | B90: Læsø Vand A/S | C90: Region Nordjylland | D90: Læsø Kommune | E90: 195340 | F90: 1102.5 | G90: 10.36 | H90: =F90+G90*Nøgletal!$C$9 -> 1852.046 | I90: =H90/Nøgletal!$C$9 -> 25.59842433 | J90: 0.0007786698079 | K90: 0.007791536861 | L90: 1 | M90: 0.01993272015 | N90: 1.442132303 | O90: 0.1994510667 | P90: 14.43028468 | Q90: 25.59842433 | R90: 1852.046
A91: V128 | B91: Løgstør Vand a.m.b.a. | C91: Region Nordjylland | D91: Vesthimmerlands Kommune | E91: 455893 | F91: 897.5 | G91: 12.79 | H91: =F91+G91*Nøgletal!$C$9 -> 1822.8565 | I91: =H91/Nøgletal!$C$9 -> 25.19497581 | J91: 0.001817293513 | K91: 0.01818422809 | L91: 0.3819747703 | M91: 0.04578666609 | N91: 3.312665292 | O91: 0.4581511868 | P91: 33.14723836 | Q91: 9.6238451 | R91: 696.285193
A92: V131 | B92: Mariager Vand a.m.b.a. | C92: Region Nordjylland | D92: Mariagerfjord Kommune | E92: 211322 | F92: 548.75 | G92: 10.79 | H92: =F92+G92*Nøgletal!$C$9 -> 1329.4065 | I92: =H92/Nøgletal!$C$9 -> 18.37465791 | J92: 0.0008423777063 | K92: 0.008429011736 | L92: 0.113455324 | M92: 0.01547840219 | N92: 1.119862398 | O92: 0.1548802072 | P92: 11.20558299 | Q92: 2.084702768 | R92: 150.8282452
A93: V132 | B93: Mariagerfjord Vand a/s | C93: Region Nordjylland | D93: Mariagerfjord Kommune | E93: 1281456 | F93: 675 | G93: 12.66 | H93: =F93+G93*Nøgletal!$C$9 -> 1590.951 | I93: =H93/Nøgletal!$C$9 -> 21.98964755 | J93: 0.005108175988 | K93: 0.05111350292 | L93: 0.6879927585 | M93: 0.1123269896 | N93: 8.126857696 | O93: 1.123967914 | P93: 81.31907858 | Q93: 15.12871827 | R93: 1094.562767
A94: V133 | B94: Midtfyns Vandforsyning A.m.b.A. | C94: Region Syddanmark | D94: Faaborg-Midtfyn Kommune | E94: 1609620 | F94: 525 | G94: 10.54 | H94: =F94+G94*Nøgletal!$C$9 -> 1287.569 | I94: =H94/Nøgletal!$C$9 -> 17.79639254 | J94: 0.006416312564 | K94: 0.03755087537 | L94: 0.6931727893 | M94: 0.114187217 | N94: 8.261445152 | O94: 0.6682701181 | P94: 48.34934305 | Q94: 12.33597505 | R94: 892.5077952
A95: V134 | B95: Morsø Forsyning A/S | C95: Region Nordjylland | D95: Morsø Kommune | E95: 566014 | F95: 680 | G95: 15.86 | H95: =F95+G95*Nøgletal!$C$9 -> 1827.471 | I95: =H95/Nøgletal!$C$9 -> 25.25875605 | J95: 0.002256260943 | K95: 0.02257663021 | L95: 1 | M95: 0.05699034475 | N95: 4.123251442 | O95: 0.5702575948 | P95: 41.25813698 | Q95: 25.25875605 | R95: 1827.471
A96: V135 | B96: Mørkøv Vandværk | C96: Region Sjælland | D96: Holbæk Kommune | E96: 304000 | F96: 437.5 | G96: 11.41 | H96: =F96+G96*Nøgletal!$C$9 -> 1263.0135 | I96: =H96/Nøgletal!$C$9 -> 17.45699378 | J96: 0.001211813359 | K96: 0.01010285571 | L96: 0.1105319897 | M96: 0.02115461828 | N96: 1.530536632 | O96: 0.1763654893 | P96: 12.76004315 | Q96: 1.929556257 | R96: 139.6033952
A97: V136 | B97: NFS Vand A/S | C97: Region Syddanmark | D97: Nyborg Kommune | E97: 1168356 | F97: 500 | G97: 17.66 | H97: =F97+G97*Nøgletal!$C$9 -> 1777.701 | I97: =H97/Nøgletal!$C$9 -> 24.57085003 | J97: 0.004657333583 | K97: 0.0272566137 | L97: 0.8314014595 | M97: 0.114434645 | N97: 8.279346568 | O97: 0.6697181676 | P97: 48.45410943 | Q97: 20.42824058 | R97: 1477.983206
A98: V137 | B98: NK-Vand A/S | C98: Region Sjælland | D98: Næstved Kommune | E98: 2179790 | F98: 936.6 | G98: 19.26 | H98: =F98+G98*Nøgletal!$C$9 -> 2330.061 | I98: =H98/Nøgletal!$C$9 -> 32.20540428 | J98: 0.008689140272 | K98: 0.07244113109 | L98: 0.811732527 | M98: 0.2798372753 | N98: 20.24622687 | O98: 2.332995914 | P98: 168.7922544 | Q98: 26.1421742 | R98: 1891.386304
A99: V138 | B99: Nordenskov Vandværk | C99: Region Syddanmark | D99: Varde Kommune | E99: 220533 | F99: 562.5 | G99: 9.41 | H99: =F99+G99*Nøgletal!$C$9 -> 1243.3135 | I99: =H99/Nøgletal!$C$9 -> 17.18470629 | J99: 0.0008790948539 | K99: 0.005144821261 | L99: 0.1321133597 | M99: 0.01510698686 | N99: 1.0929905 | O99: 0.08841224227 | P99: 6.396625728 | Q99: 2.270329283 | R99: 164.2583236
A100: V140 | B100: Nybrovejens Vandværk a.m.b.a. | C100: Region Hovedstaden | D100: Frederikssund Kommune | E100: 319484 | F100: 525 | G100: 15.16 | H100: =F100+G100*Nøgletal!$C$9 -> 1621.826 | I100: =H100/Nøgletal!$C$9 -> 22.41639254 | J100: 0.001273536116 | K100: 0.003079152514 | L100: 0.1958109677 | M100: 0.02854808549 | N100: 2.065453985 | O100: 0.06902349144 | P100: 4.993849606 | Q100: 4.389375514 | R100: 317.5713185
A101: V141 | B101: Nyhuse Vandværk a.m.b.a. | C101: Region Hovedstaden | D101: Hillerød Kommune | E101: 258764 | F101: 625 | G101: 12.37 | H101: =F101+G101*Nøgletal!$C$9 -> 1519.9695 | I101: =H101/Nøgletal!$C$9 -> 21.00856254 | J101: 0.001031492342 | K101: 0.002493939669 | L101: 0.1401768815 | M101: 0.02167017139 | N101: 1.5678369 | O101: 0.05239408751 | P101: 3.790712232 | Q101: 2.944914781 | R101: 213.0645844
A102: V142 | B102: Næsby Vandværk | C102: Region Syddanmark | D102: Odense Kommune | E102: 416265 | F102: 600 | G102: 13.29 | H102: =F102+G102*Nøgletal!$C$9 -> 1561.5315 | I102: =H102/Nøgletal!$C$9 -> 21.58302004 | J102: 0.001659327263 | K102: 0.009711059216 | L102: 0.04443005893 | M102: 0.03581329358 | N102: 2.59109179 | O102: 0.2095939857 | P102: 15.16412486 | Q102: 0.9589348524 | R102: 69.37893657
A103: V144 | B103: Odder Vandværk A.m.b.a. | C103: Region Midtjylland | D103: Odder Kommune | E103: 893736 | F103: 450 | G103: 11.41 | H103: =F103+G103*Nøgletal!$C$9 -> 1275.5135 | I103: =H103/Nøgletal!$C$9 -> 17.62976503 | J103: 0.003562635607 | K103: 0.01820968608 | L103: 1 | M103: 0.06280842864 | N103: 4.544189812 | O103: 0.3210324869 | P103: 23.22670043 | Q103: 17.62976503 | R103: 1275.5135
A104: V145 | B104: Odsherred Vand A/S | C104: Region Sjælland | D104: Odsherred Kommune | E104: 357865 | F104: 1100 | G104: 15.16 | H104: =F104+G104*Nøgletal!$C$9 -> 2196.826 | I104: =H104/Nøgletal!$C$9 -> 30.36387008 | J104: 0.001426531539 | K104: 0.01189295546 | L104: 0.6405281518 | M104: 0.04331501831 | N104: 3.133841575 | O104: 0.3611161544 | P104: 26.12675377 | Q104: 19.44891358 | R104: 1407.128898
A105: V146 | B105: Otterup Vandværk | C105: Region Syddanmark | D105: Nordfyns Kommune | E105: 297430 | F105: 500 | G105: 12.66 | H105: =F105+G105*Nøgletal!$C$9 -> 1415.951 | I105: =H105/Nøgletal!$C$9 -> 19.57085003 | J105: 0.00118562384 | K105: 0.006938753781 | L105: 0.5602869344 | M105: 0.02320366638 | N105: 1.678785262 | O105: 0.1357973097 | P105: 9.824935355 | Q105: 10.96529157 | R105: 793.3388451
A106: V149 | B106: Padborg Vandværk a.m.b.a. | C106: Region Syddanmark | D106: Aabenraa Kommune | E106: 550293 | F106: 460 | G106: 12.26 | H106: =F106+G106*Nøgletal!$C$9 -> 1347.011 | I106: =H106/Nøgletal!$C$9 -> 18.61798203 | J106: 0.002193593451 | K106: 0.01283780262 | L106: 0.2046040399 | M106: 0.04084028345 | N106: 2.954794507 | O106: 0.2390139786 | P106: 17.29266135 | Q106: 3.809314338 | R106: 275.6038923
A107: V150 | B107: Pandrup Vandværk | C107: Region Nordjylland | D107: Jammerbugt Kommune | E107: 258138 | F107: 312.5 | G107: 11.13 | H107: =F107+G107*Nøgletal!$C$9 -> 1117.7555 | I107: =H107/Nøgletal!$C$9 -> 15.44928127 | J107: 0.001028996964 | K107: 0.01029636399 | L107: 0.1958341489 | M107: 0.01589726352 | N107: 1.150167016 | O107: 0.1590714234 | P107: 11.50881748 | Q107: 3.025496849 | R107: 218.894697
A108: V151 | B108: Randers Spildevand A/S | C108: Region Midtjylland | D108: Randers Kommune | E108: 272432 | F108: 425 | G108: 16.18 | H108: =F108+G108*Nøgletal!$C$9 -> 1595.623 | I108: =H108/Nøgletal!$C$9 -> 22.05422253 | J108: 0.001085976109 | K108: 0.005550745633 | L108: 0.09438476606 | M108: 0.02395035877 | N108: 1.732808457 | O108: 0.1224173794 | P108: 8.856897399 | Q108: 2.081582634 | R108: 150.6025036
A109: V152 | B109: Rebild Vand & Spildevand A/S | C109: Region Nordjylland | D109: Rebild Kommune | E109: 3115 | F109: 1060 | G109: 17.67 | H109: =F109+G109*Nøgletal!$C$9 -> 2338.4245 | I109: =H109/Nøgletal!$C$9 -> 32.32100207 | J109: 1.241710071e-05 | K109: 0.0001242481689 | L109: 0.009129168205 | M109: 0.0004013331376 | N109: 0.02903645251 | O109: 0.004015825326 | P109: 0.2905449623 | Q109: 0.2950638645 | R109: 21.3478706
A110: V153 | B110: Ringkjøbing-Skjern Vand A/S | C110: Region Midtjylland | D110: Ringkøbing-Skjern Kommune | E110: 3247319 | F110: 1075 | G110: 14.85 | H110: =F110+G110*Nøgletal!$C$9 -> 2149.3975 | I110: =H110/Nøgletal!$C$9 -> 29.70832757 | J110: 0.01294455443 | K110: 0.06616345274 | L110: 0.8931118604 | M110: 0.3845610633 | N110: 27.82299293 | O110: 1.965605528 | P110: 142.2115599 | Q110: 26.53285971 | R110: 1919.6524
A111: V154 | B111: Ringsted Vand A/S | C111: Region Sjælland | D111: Ringsted Kommune | E111: 1920279 | F111: 185.55 | G111: 18.63 | H111: =F111+G111*Nøgletal!$C$9 -> 1533.4305 | I111: =H111/Nøgletal!$C$9 -> 21.19461645 | J111: 0.007654670217 | K111: 0.06381678179 | L111: 1 | M111: 0.1622377993 | N111: 11.73790478 | O111: 1.352572213 | P111: 97.8585996 | Q111: 21.19461645 | R111: 1533.4305
A112: V155 | B112: Roskilde Vand A/S | C112: Region Sjælland | D112: Roskilde Kommune | E112: 3014691 | F112: 375.5 | G112: 22.15 | H112: =F112+G112*Nøgletal!$C$9 -> 1978.0525 | I112: =H112/Nøgletal!$C$9 -> 27.34004838 | J112: 0.01201724615 | K112: 0.1001874611 | L112: 0.9267414919 | M112: 0.328552091 | N112: 23.77074378 | O112: 2.739130034 | P112: 198.176058 | Q112: 25.33715722 | R112: 1833.143325
A113: V156 | B113: Rudersdal Forsyning A/S | C113: Region Hovedstaden | D113: Rudersdal Kommune | E113: 1701977 | F113: 437.91 | G113: 17 | H113: =F113+G113*Nøgletal!$C$9 -> 1667.86 | I113: =H113/Nøgletal!$C$9 -> 23.05266068 | J113: 0.006784468638 | K113: 0.01640347172 | L113: 0.5951965382 | M113: 0.1564000534 | N113: 11.31554386 | O113: 0.3781436675 | P113: 27.35869434 | Q113: 13.72086383 | R113: 992.7044981
A114: V158 | B114: Rødding Vandværk a.m.b.a. | C114: Region Syddanmark | D114: Vejen Kommune | E114: 237762 | F114: 675 | G114: 11.92 | H114: =F114+G114*Nøgletal!$C$9 -> 1537.412 | I114: =H114/Nøgletal!$C$9 -> 21.24964755 | J114: 0.0009477735788 | K114: 0.005546757141 | L114: 0.2661256744 | M114: 0.0201398545 | N114: 1.457118473 | O114: 0.1178666343 | P114: 8.52765099 | Q114: 5.655076784 | R114: 409.1448053
A115: V159 | B115: Rødekro Vandværk | C115: Region Syddanmark | D115: Aabenraa Kommune | E115: 301269 | F115: 475 | G115: 11.41 | H115: =F115+G115*Nøgletal!$C$9 -> 1300.5135 | I115: =H115/Nøgletal!$C$9 -> 17.97530753 | J115: 0.00120092697 | K115: 0.007028313932 | L115: 0.1120146076 | M115: 0.02158703161 | N115: 1.561821737 | O115: 0.1263361044 | P115: 9.140417151 | Q115: 2.013497021 | R115: 145.6765094
A116: V160 | B116: Rønne Vand A/S | C116: Region Hovedstaden | D116: Bornholms Regionskommune | E116: 915436 | F116: 806.25 | G116: 14.23 | H116: =F116+G116*Nøgletal!$C$9 -> 1835.7905 | I116: =H116/Nøgletal!$C$9 -> 25.37374568 | J116: 0.003649136758 | K116: 0.00882287395 | L116: 0.3788491781 | M116: 0.09259226805 | N116: 6.699050593 | O116: 0.2238693598 | P116: 16.19694818 | Q116: 9.612822697 | R116: 695.4877221
A117: V162 | B117: Silkeborg Vand a/s | C117: Region Midtjylland | D117: Silkeborg Kommune | E117: 2414949 | F117: 787.5 | G117: 13.84 | H117: =F117+G117*Nøgletal!$C$9 -> 1788.824 | I117: =H117/Nøgletal!$C$9 -> 24.7245888 | J117: 0.009626537698 | K117: 0.04920408621 | L117: 1 | M117: 0.2380121862 | N117: 17.22018167 | O117: 1.216550799 | P117: 88.01745032 | Q117: 24.7245888 | R117: 1788.824
A118: V165 | B118: SK Vand A/S | C118: Region Sjælland | D118: Slagelse Kommune | E118: 3485639 | F118: 1237.2 | G118: 14.36 | H118: =F118+G118*Nøgletal!$C$9 -> 2276.146 | I118: =H118/Nøgletal!$C$9 -> 31.46020733 | J118: 0.01389455232 | K118: 0.1158385128 | L118: 1 | M118: 0.4371254968 | N118: 31.62602969 | O118: 3.644303628 | P118: 263.6653675 | Q118: 31.46020733 | R118: 2276.146
A119: V166 | B119: Skanderborg Forsyningsvirksomhed A/S | C119: Region Midtjylland | D119: Skanderborg Kommune | E119: 1010398 | F119: 1106.25 | G119: 17.66 | H119: =F119+G119*Nøgletal!$C$9 -> 2383.951 | I119: =H119/Nøgletal!$C$9 -> 32.9502557 | J119: 0.004027676956 | K119: 0.0205866502 | L119: 0.7923434875 | M119: 0.1327129856 | N119: 9.601784507 | O119: 0.678335388 | P119: 49.07756532 | Q119: 26.10792052 | R119: 1888.908049
A120: V167 | B120: Skive Vand A/S | C120: Region Midtjylland | D120: Skive Kommune | E120: 2325912 | F120: 687.5 | G120: 14.23 | H120: =F120+G120*Nøgletal!$C$9 -> 1717.0405 | I120: =H120/Nøgletal!$C$9 -> 23.7324188 | J120: 0.009271615902 | K120: 0.04738997576 | L120: 1 | M120: 0.2200378715 | N120: 15.91974 | O120: 1.124678752 | P120: 81.37050768 | Q120: 23.7324188 | R120: 1717.0405
A121: V171 | B121: Solrød Vandværk a.m.b.a. | C121: Region Sjælland | D121: Solrød Kommune | E121: 647691 | F121: 231.25 | G121: 14.97 | H121: =F121+G121*Nøgletal!$C$9 -> 1314.3295 | I121: =H121/Nøgletal!$C$9 -> 18.16626814 | J121: 0.0025818441 | K121: 0.02152476552 | L121: 1 | M121: 0.04690247223 | N121: 3.393393866 | O121: 0.3910246622 | P121: 28.29063431 | Q121: 18.16626814 | R121: 1314.3295
A122: V172 | B122: Sorø Vand A/S | C122: Region Sjælland | D122: Sorø Kommune | E122: 515168 | F122: 520 | G122: 19.4 | H122: =F122+G122*Nøgletal!$C$9 -> 1923.59 | I122: =H122/Nøgletal!$C$9 -> 26.58728404 | J122: 0.002053577187 | K122: 0.01712061833 | L122: 0.4997308154 | M122: 0.05459903995 | N122: 3.95024054 | O122: 0.4551907423 | P122: 32.93305021 | Q122: 13.28648513 | R122: 961.2771992
A123: V174 | B123: Struer Forsyning Vand A/S | C123: Region Midtjylland | D123: Struer Kommune | E123: 967239 | F123: 555.45 | G123: 12.86 | H123: =F123+G123*Nøgletal!$C$9 -> 1485.871 | I123: =H123/Nøgletal!$C$9 -> 20.5372633 | J123: 0.003855635335 | K123: 0.0197072945 | L123: 1 | M123: 0.07918419808 | N123: 5.728976731 | O123: 0.4047338961 | P123: 29.28249739 | Q123: 20.5372633 | R123: 1485.871
A124: V176 | B124: Støvring Vandværk a.m.b.a. | C124: Region Nordjylland | D124: Rebild Kommune | E124: 338099 | F124: 500 | G124: 11.04 | H124: =F124+G124*Nøgletal!$C$9 -> 1298.744 | I124: =H124/Nøgletal!$C$9 -> 17.95085003 | J124: 0.001347739753 | K124: 0.01348577261 | L124: 0.9908708318 | M124: 0.0241930742 | N124: 1.750368918 | O124: 0.2420810817 | P124: 17.51456626 | Q124: 17.78697371 | R124: 1286.887548
A125: V178 | B125: Svendborg Vand A/S | C125: Region Syddanmark | D125: Svendborg Kommune | E125: 1928693 | F125: 600 | G125: 19.7 | H125: =F125+G125*Nøgletal!$C$9 -> 2025.295 | I125: =H125/Nøgletal!$C$9 -> 27.99302004 | J125: 0.00768821034 | K125: 0.04499453937 | L125: 1 | M125: 0.2152162261 | N125: 15.57089396 | O125: 1.259533042 | P125: 91.12721562 | Q125: 27.99302004 | R125: 2025.295
A126: V179 | B126: Svinninge Vandværk | C126: Region Sjælland | D126: Holbæk Kommune | E126: 547115 | F126: 250 | G126: 11.1 | H126: =F126+G126*Nøgletal!$C$9 -> 1053.085 | I126: =H126/Nøgletal!$C$9 -> 14.55542502 | J126: 0.002180925217 | K126: 0.01818231547 | L126: 0.1989266762 | M126: 0.03174429347 | N126: 2.296699633 | O126: 0.2646513295 | P126: 19.14752369 | Q126: 2.895462319 | R126: 209.4866988
A127: V180 | B127: Sydals Øst Vandforsyning | C127: Region Syddanmark | D127: Sønderborg Kommune | E127: 269536 | F127: 543.75 | G127: 10.16 | H127: =F127+G127*Nøgletal!$C$9 -> 1278.826 | I127: =H127/Nøgletal!$C$9 -> 17.67554941 | J127: 0.001074431992 | K127: 0.006288013782 | L127: 0.1130573202 | M127: 0.01899117577 | N127: 1.374011567 | O127: 0.1111440983 | P127: 8.041275512 | Q127: 1.998350249 | R127: 144.5806405
A128: V181 | B128: Sønderborg Vandforsyning A/S | C128: Region Syddanmark | D128: Sønderborg Kommune | E128: 2114529 | F128: 555 | G128: 15.64 | H128: =F128+G128*Nøgletal!$C$9 -> 1686.554 | I128: =H128/Nøgletal!$C$9 -> 23.31104354 | J128: 0.008428995036 | K128: 0.04932991324 | L128: 0.8869426798 | M128: 0.1964886703 | N128: 14.21595529 | O128: 1.149931755 | P128: 83.19756249 | Q128: 20.67555943 | R128: 1495.876724
A129: V183 | B129: Tarup Vandværk | C129: Region Syddanmark | D129: Odense Kommune | E129: 291852 | F129: 568.75 | G129: 11.95 | H129: =F129+G129*Nøgletal!$C$9 -> 1433.3325 | I129: =H129/Nøgletal!$C$9 -> 19.81109191 | J129: 0.00116338866 | K129: 0.006808624444 | L129: 0.03115083315 | M129: 0.02304799967 | N129: 1.667522776 | O129: 0.1348862847 | P129: 9.759022696 | Q129: 0.6171320187 | R129: 44.64950155
A130: V184 | B130: Thisted Drikkevand A/S | C130: Region Nordjylland | D130: Thisted Kommune | E130: 3114923 | F130: 713.75 | G130: 15.9 | H130: =F130+G130*Nøgletal!$C$9 -> 1864.115 | I130: =H130/Nøgletal!$C$9 -> 25.76523842 | J130: 0.01241679377 | K130: 0.1242450976 | L130: 1 | M130: 0.3199216518 | N130: 23.14633151 | O130: 3.201204564 | P130: 231.6071502 | Q130: 25.76523842 | R130: 1864.115
A131: V185 | B131: Tinglev Vandværk | C131: Region Syddanmark | D131: Aabenraa Kommune | E131: 331081 | F131: 700 | G131: 13.26 | H131: =F131+G131*Nøgletal!$C$9 -> 1659.361 | I131: =H131/Nøgletal!$C$9 -> 22.93519005 | J131: 0.001319764404 | K131: 0.007723799013 | L131: 0.1230989857 | M131: 0.03026904743 | N131: 2.189965581 | O131: 0.1771467983 | P131: 12.81657085 | Q131: 2.823298631 | R131: 204.265656
A132: V188 | B132: TREFOR Vand A/S 3 | C132: Region Syddanmark | D132: Fredericia Kommune | E132: 1017326.228 | F132: 1250 | G132: 15.16 | H132: =F132+G132*Nøgletal!$C$9 -> 2346.826 | I132: =H132/Nøgletal!$C$9 -> 32.43712509 | J132: =IF(H132>0,E132/(SUMIFS($E$3:$E$163,$I$3:$I$163,">0")),"-") -> 0.004055294455 | K132: =IF(H132>0,E132/(SUMIFS($E$3:$E$163,$C$3:$C$163,C132,$I$3:$I$163,">0")),"-") -> 0.02373323543 | L132: =IF(H132>0,E132/(SUMIFS($E$3:$E$163,$D$3:$D$163,D132,$I$3:$I$163,">0")),"-") -> 1 | M132: =IF(H132>0,J132*I132,"-") -> 0.1315420935 | N132: =IF(H132>0,J132*H132,"-") -> 9.517070464 | O132: =IF(H132>0,K132*I132,"-") -> 0.7698379263 | P132: =IF(H132>0,K132*H132,"-") -> 55.69777396 | Q132: =IF(H132>0,L132*I132,"-") -> 32.43712509 | R132: =IF(H132>0,L132*H132,"-") -> 2346.826
A133: V188 | B133: TREFOR Vand A/S 1 | C133: Region Syddanmark | D133: Kolding Kommune | E133: 1844976.766 | F133: 1250 | G133: 15.16 | H133: =F133+G133*Nøgletal!$C$9 -> 2346.826 | I133: =H133/Nøgletal!$C$9 -> 32.43712509 | J133: 0.007354498333 | K133: 0.04304152074 | L133: 0.8840063634 | M133: 0.2385587824 | N133: 17.2597279 | O133: 1.396143192 | P133: 101.0109599 | Q133: 28.67462499 | R133: 2074.609118
A134: V188 | B134: TREFOR Vand A/S 2 | C134: Region Syddanmark | D134: Middelfart Kommune | E134: 769336.0054 | F134: 1250 | G134: 15.16 | H134: =F134+G134*Nøgletal!$C$9 -> 2346.826 | I134: =H134/Nøgletal!$C$9 -> 32.43712509 | J134: 0.003066748846 | K134: 0.01794786375 | L134: 1 | M134: 0.09947651592 | N134: 7.197125927 | O134: 0.5821771016 | P134: 42.1205133 | Q134: 32.43712509 | R134: 2346.826
A135: V190 | B135: Tønder Vand A/S | C135: Region Syddanmark | D135: Tønder Kommune | E135: 1650174 | F135: 1032 | G135: 14.78 | H135: =F135+G135*Nøgletal!$C$9 -> 2101.333 | I135: =H135/Nøgletal!$C$9 -> 29.04399447 | J135: 0.006577970061 | K135: 0.0384969609 | L135: 1 | M135: 0.1910505261 | N135: 13.82250556 | O135: 1.11810552 | P135: 80.89493435 | Q135: 29.04399447 | R135: 2101.333
A136: V191 | B136: TÅRNBYFORSYNING Vand | C136: Region Hovedstaden | D136: Tårnby Kommune | E136: 2537439 | F136: 256.25 | G136: 18.38 | H136: =F136+G136*Nøgletal!$C$9 -> 1586.043 | I136: =H136/Nøgletal!$C$9 -> 21.92181064 | J136: 0.01011481079 | K136: 0.02445556484 | L136: 1 | M136: 0.2217349667 | N136: 16.04252484 | O136: 0.5361102615 | P136: 38.78757742 | Q136: 21.92181064 | R136: 1586.043
A137: V193 | B137: Udsholt Vandværk A.m.b.a. | C137: Region Hovedstaden | D137: Gribskov Kommune | E137: 283068 | F137: 1712.5 | G137: 13.91 | H137: =F137+G137*Nøgletal!$C$9 -> 2718.8885 | I137: =H137/Nøgletal!$C$9 -> 37.57966137 | J137: 0.001128373632 | K137: 0.002728179013 | L137: 0.1946418282 | M137: 0.04240389897 | N137: 3.067922091 | O137: 0.1025240435 | P137: 7.417614545 | Q137: 7.314573991 | R137: 529.2094282
A138: V194 | B138: Ulfborg Vandværk a.m.b.a | C138: Region Midtjylland | D138: Holstebro Kommune | E138: 299215 | F138: 531.25 | G138: 11.41 | H138: =F138+G138*Nøgletal!$C$9 -> 1356.7635 | I138: =H138/Nøgletal!$C$9 -> 18.75277816 | J138: 0.001192739258 | K138: 0.006096443716 | L138: 0.0774512466 | M138: 0.0223671747 | N138: 1.61826509 | O138: 0.1143252566 | P138: 8.271432314 | Q138: 1.452426046 | R138: 105.0830244
A139: V197 | B139: Vand Ballerup A/S | C139: Region Hovedstaden | D139: Ballerup Kommune | E139: 3187327 | F139: 0 | G139: 20.41 | H139: =F139+G139*Nøgletal!$C$9 -> 1476.6635 | I139: =H139/Nøgletal!$C$9 -> 20.41 | J139: 0.01270541263 | K139: 0.03071911565 | L139: 1 | M139: 0.2593174718 | N139: 18.76161908 | O139: 0.6269771505 | P139: 45.36179684 | Q139: 20.41 | R139: 1476.6635
A140: V198 | B140: Vandcenter Djurs a.m.b.a | C140: Region Midtjylland | D140: Norddjurs Kommune | E140: 1540000 | F140: 650 | G140: 13.28 | H140: =F140+G140*Nøgletal!$C$9 -> 1610.808 | I140: =H140/Nøgletal!$C$9 -> 22.26410504 | J140: 0.00613879136 | K140: 0.03137718137 | L140: 0.9022584584 | M140: 0.1366746957 | N140: 9.888414233 | O140: 0.698584862 | P140: 50.54261477 | Q140: 20.0879771 | R140: 1453.365143
A141: V199 | B141: Vandcenter Syd A/S | C141: Region Syddanmark | D141: Odense Kommune | E141: 8660878 | F141: 600 | G141: 17.35 | H141: =F141+G141*Nøgletal!$C$9 -> 1855.2725 | I141: =H141/Nøgletal!$C$9 -> 25.64302004 | J141: 0.03452423574 | K141: 0.202049894 | L141: 0.9244191079 | M141: 0.8853056689 | N141: 64.05186515 | O141: 5.181169481 | P141: 374.8576119 | Q141: 23.70489771 | R141: 1715.049349
A142: V200 | B142: Vandforsyningen Brovst og Omegn | C142: Region Nordjylland | D142: Jammerbugt Kommune | E142: 273776 | F142: 400 | G142: 9.16 | H142: =F142+G142*Nøgletal!$C$9 -> 1062.726 | I142: =H142/Nøgletal!$C$9 -> 14.68868003 | J142: 0.0010913336 | K142: 0.01092011772 | L142: 0.2076977816 | M142: 0.01603025005 | N142: 1.159788591 | O142: 0.1604021151 | P142: 11.60509303 | Q142: 3.050806256 | R142: 220.7258326
A143: V205 | B143: Vejen Vand A/S | C143: Region Syddanmark | D143: Vejen Kommune | E143: 655658 | F143: 750 | G143: 14.54 | H143: =F143+G143*Nøgletal!$C$9 -> 1801.969 | I143: =H143/Nøgletal!$C$9 -> 24.90627505 | J143: 0.00261360238 | K143: 0.01529586601 | L143: 0.7338743256 | M143: 0.06509509976 | N143: 4.709630467 | O143: 0.3809630459 | P143: 27.56267637 | Q143: 18.27807581 | R143: 1322.418785
A144: V206 | B144: Verdo Vand A/S | C144: Region Midtjylland | D144: Randers Kommune | E144: 2370932 | F144: 693.75 | G144: 16 | H144: =F144+G144*Nøgletal!$C$9 -> 1851.35 | I144: =H144/Nøgletal!$C$9 -> 25.58880442 | J144: 0.009451075894 | K144: 0.04830724895 | L144: 0.8214154805 | M144: 0.2418417326 | N144: 17.49724936 | O144: 1.236124745 | P144: 89.43362534 | Q144: 21.01904008 | R144: 1520.72755
A145: V207 | B145: Vestforsyning Vand A/S | C145: Region Midtjylland | D145: Holstebro Kommune | E145: 3564054 | F145: 682.5 | G145: 14.04 | H145: =F145+G145*Nøgletal!$C$9 -> 1698.294 | I145: =H145/Nøgletal!$C$9 -> 23.4733103 | J145: 0.0142071324 | K145: 0.07261686283 | L145: 0.9225487534 | M145: 0.3334884273 | N145: 24.12788772 | O145: 1.704558154 | P145: 123.3247825 | Q145: 21.65527315 | R145: 1566.759013
A146: V208 | B146: Vesthimmerlands Vand A/S | C146: Region Nordjylland | D146: Vesthimmerlands Kommune | E146: 50266 | F146: 632.5 | G146: 12.13 | H146: =F146+G146*Nøgletal!$C$9 -> 1510.1055 | I146: =H146/Nøgletal!$C$9 -> 20.87222529 | J146: 0.0002003717445 | K146: 0.002004962588 | L146: 0.04211589958 | M146: 0.004182204193 | N146: 0.3025824734 | O146: 0.04184803083 | P146: 3.027705031 | Q146: 0.8790525444 | R146: 63.59945159
A147: V209 | B147: Videbæk Vand A/S | C147: Region Midtjylland | D147: Ringkøbing-Skjern Kommune | E147: 388641 | F147: 625 | G147: 12.29 | H147: =F147+G147*Nøgletal!$C$9 -> 1514.1815 | I147: =H147/Nøgletal!$C$9 -> 20.92856254 | J147: 0.001549211697 | K147: 0.007918479964 | L147: 0.1068881396 | M147: 0.03242277389 | N147: 2.345787691 | O147: 0.1657224032 | P147: 11.99001587 | Q147: 2.237015114 | R147: 161.8480435
A148: V210 | B148: Vildbjerg Vandværk | C148: Region Midtjylland | D148: Herning Kommune | E148: 513378 | F148: 500 | G148: 11.41 | H148: =F148+G148*Nøgletal!$C$9 -> 1325.5135 | I148: =H148/Nøgletal!$C$9 -> 18.32085003 | J148: 0.002046441838 | K148: 0.01045997053 | L148: 0.1271176242 | M148: 0.03749255402 | N148: 2.712586283 | O148: 0.1916355515 | P148: 13.86483215 | Q148: 2.328902931 | R148: 168.496127
A149: V212 | B149: Vordingborg Vand A/S | C149: Region Sjælland | D149: Vordingborg Kommune | E149: 933021 | F149: 647 | G149: 19.71 | H149: =F149+G149*Nøgletal!$C$9 -> 2073.0185 | I149: =H149/Nøgletal!$C$9 -> 28.65263994 | J149: 0.00371923458 | K149: 0.03100715967 | L149: 1 | M149: 0.1065658893 | N149: 7.71004209 | O149: 0.8884369817 | P149: 64.27841562 | Q149: 28.65263994 | R149: 2073.0185
A150: V214 | B150: Ærø Vand A/S | C150: Region Syddanmark | D150: Ærø Kommune | E150: 153878 | F150: 1912.5 | G150: 15.16 | H150: =F150+G150*Nøgletal!$C$9 -> 3009.326 | I150: =H150/Nøgletal!$C$9 -> 41.59400138 | J150: 0.0006133928161 | K150: 0.003589824679 | L150: 1 | M150: 0.02551346164 | N150: 1.84589895 | O150: 0.1493151727 | P150: 10.80295274 | Q150: 41.59400138 | R150: 3009.326
A151: V217 | B151: Aabybro Vand A.m.b.a. | C151: Region Nordjylland | D151: Jammerbugt Kommune | E151: 436620 | F151: 828.75 | G151: 11.87 | H151: =F151+G151*Nøgletal!$C$9 -> 1687.5445 | I151: =H151/Nøgletal!$C$9 -> 23.32473393 | J151: 0.001740466937 | K151: 0.01741548492 | L151: 0.3312379661 | M151: 0.04059592823 | N151: 2.937115408 | O151: 0.4062115521 | P151: 29.38940579 | Q151: 7.726037426 | R151: 558.9788078
A152: V218 | B152: Aalborg Forsyning, Vand A/S | C152: Region Nordjylland | D152: Aalborg Kommune | E152: 6501864 | F152: 1250 | G152: 13.35 | H152: =F152+G152*Nøgletal!$C$9 -> 2215.8725 | I152: =H152/Nøgletal!$C$9 -> 30.62712509 | J152: 0.02591791334 | K152: 0.2593401916 | L152: 0.8680196682 | M152: 0.7937911739 | N152: 57.43079143 | O152: 7.942844487 | P152: 574.6647986 | Q152: 26.58494696 | R152: 1923.420912
A153: V219 | B153: Aalestrup Vand a.m.b.a. | C153: Region Nordjylland | D153: Vesthimmerlands Kommune | E153: 207287 | F153: 937.5 | G153: 11.41 | H153: =F153+G153*Nøgletal!$C$9 -> 1763.0135 | I153: =H153/Nøgletal!$C$9 -> 24.36784381 | J153: 0.0008262932757 | K153: 0.008268067479 | L153: 0.1736776047 | M153: 0.02013498549 | N153: 1.4567662 | O153: 0.201474977 | P153: 14.57671458 | Q153: 4.232148744 | R153: 306.1959617
A154: V220 | B154: Aarhus Vand A/S | C154: Region Midtjylland | D154: Aarhus Kommune | E154: 13865417 | F154: 687.5 | G154: 21.18 | H154: =F154+G154*Nøgletal!$C$9 -> 2219.873 | I154: =H154/Nøgletal!$C$9 -> 30.6824188 | J154: 0.05527071564 | K154: 0.2825050026 | L154: 1 | M154: 1.695839244 | N154: 122.6939693 | O154: 8.667936801 | P154: 627.1252276 | Q154: 30.6824188 | R154: 2219.873
A155: V221 | B155: Aars Vand | C155: Region Nordjylland | D155: Vesthimmerlands Kommune | E155: 480070 | F155: 850 | G155: 12.8 | H155: =F155+G155*Nøgletal!$C$9 -> 1776.08 | I155: =H155/Nøgletal!$C$9 -> 24.54844506 | J155: 0.001913668551 | K155: 0.01914857736 | L155: 0.4022317254 | M155: 0.04697758728 | N155: 3.39882844 | O155: 0.4700677992 | P155: 34.00940527 | Q155: 9.874163412 | R155: 714.3957229
A156: V016 | B156: Asnæs Vandværk a.m.b.a. | C156: Region Sjælland | D156: Odsherred Kommune | E156: 200838 | F156: 468.75 | G156: 11.41 | H156: =F156+G156*Nøgletal!$C$9 -> 1294.2635 | I156: =H156/Nøgletal!$C$9 -> 17.88892191 | J156: 0.0008005860903 | K156: 0.006674464919 | L156: 0.3594718482 | M156: 0.01432162205 | N156: 1.036169355 | O156: 0.1193989817 | P156: 8.638516327 | Q156: 6.43056382 | R156: 465.2512924
A157: V038 | B157: Christiansfeld Vandforsyning A/S | C157: Region Syddanmark | D157: Kolding Kommune | E157: 242086 | F157: 479.39 | G157: 12.98 | H157: =F157+G157*Nøgletal!$C$9 -> 1418.493 | I157: =H157/Nøgletal!$C$9 -> 19.6059848 | J157: 0.0009650100293 | K157: 0.005647631872 | L157: 0.1159936366 | M157: 0.01891997196 | N157: 1.368859972 | O157: 0.1107273846 | P157: 8.011126278 | Q157: 2.274169475 | R157: 164.5361615
A158: V039 | B158: Dianalund Vandværk | C158: Region Sjælland | D158: Sorø Kommune | E158: 302253 | F158: 281.25 | G158: 9.36 | H158: =F158+G158*Nøgletal!$C$9 -> 958.446 | I158: =H158/Nøgletal!$C$9 -> 13.24735314 | J158: 0.001204849419 | K158: 0.01004479752 | L158: 0.2931958859 | M158: 0.01596106574 | N158: 1.154783106 | O158: 0.1330669801 | P158: 9.627396008 | Q158: 3.884069441 | R158: 281.012424
A159: V040 | B159: Dronninglund Vandværk A.m.b.A | C159: Region Nordjylland | D159: Brønderslev Kommune | E159: 428007 | F159: 750 | G159: 11.17 | H159: =F159+G159*Nøgletal!$C$9 -> 1558.1495 | I159: =H159/Nøgletal!$C$9 -> 21.53627505 | J159: 0.001706133554 | K159: 0.01707193774 | L159: 0.3212457828 | M159: 0.0367437615 | N159: 2.658411144 | O159: 0.3676659467 | P159: 26.60063125 | Q159: 6.918437537 | R159: 500.5489558
A160: V096 | B160: Hornslet Vandværk a.m.b.a. | C160: Region Midtjylland | D160: Syddjurs Kommune | E160: 201430 | F160: 375 | G160: 10.17 | H160: =F160+G160*Nøgletal!$C$9 -> 1110.7995 | I160: =H160/Nøgletal!$C$9 -> 15.35313753 | J160: 0.0008029459374 | K160: 0.004104094573 | L160: 0.3708313006 | M160: 0.0123277394 | N160: 0.8919119458 | O160: 0.06301072841 | P160: 4.5588262 | Q160: 5.693423957 | R160: 411.9192233
A161: V175 | B161: Strømmen Vandværk | C161: Region Midtjylland | D161: Randers Kommune | E161: 243034 | F161: 478.75 | G161: 12.66 | H161: =F161+G161*Nøgletal!$C$9 -> 1394.701 | I161: =H161/Nøgletal!$C$9 -> 19.27713891 | J161: 0.0009687889736 | K161: 0.004951767465 | L161: 0.08419975346 | M161: 0.01867547962 | N161: 1.35117095 | O161: 0.09545590927 | P161: 6.906235036 | Q161: 1.623130344 | R161: 117.4334804
A162: V186 | B162: Tistrup Vandværk | C162: Region Syddanmark | D162: Varde Kommune | E162: 188090 | F162: 562.5 | G162: 10.54 | H162: =F162+G162*Nøgletal!$C$9 -> 1325.069 | I162: =H162/Nøgletal!$C$9 -> 18.31470629 | J162: 0.0007497696538 | K162: 0.004387957498 | L162: 0.1126779295 | M162: 0.01373181099 | N162: 0.9934965254 | O162: 0.08036415278 | P162: 5.814346454 | Q162: 2.063663183 | R162: 149.3060313
A163: V201 | B163: Vandforsyningen Østlolland a.m.b.a. | C163: Region Sjælland | D163: Guldborgsund Kommune | E163: 197278 | F163: 1331.25 | G163: 17.92 | H163: =F163+G163*Nøgletal!$C$9 -> 2627.762 | I163: =H163/Nøgletal!$C$9 -> 36.32013822 | J163: 0.0007863951181 | K163: 0.006556155162 | L163: 0.1106213373 | M163: 0.02856197938 | N163: 2.066459208 | O163: 0.2381204616 | P163: 17.2280154 | Q163: 4.017782261 | R163: 290.6865466
A164: Selskaber der ikke er blevet reguleret igennem hele perioden fra 2011-2021.
A165: V078 | B165: Hedensted Vandværk | C165: Region Midtjylland | D165: Hedensted Kommune | E165: 427789 | F165: 250 | G165: 11.41 | H165: =F165+G165*Nøgletal!$C$9 -> 1075.5135 | I165: =H165/Nøgletal!$C$9 -> 14.86542502
A166: V104 | B166: I/S Almtoft-Kjellerup Vandværk | C166: Region Midtjylland | D166: Silkeborg Kommune | E166: 332150 | F166: =275*1.25 -> 343.75 | G166: =(2.8+6.13)*1.25 -> 11.1625 | H166: =F166+G166*Nøgletal!$C$9 -> 1151.356875 | I166: =H166/Nøgletal!$C$9 -> 15.9137094
A167: V001 | B167: Andelsselskabet Ejby Vandværk | C167: Region Sjælland | D167: Køge Kommune | E167: 261492 | F167: 500 | G167: 12.16 | H167: =F167+G167*Nøgletal!$C$9 -> 1379.776 | I167: =H167/Nøgletal!$C$9 -> 19.07085003
A168: V004 | B168: Andelsselskabet Hammerum Vandværk | C168: Region Midtjylland | D168: Herning Kommune | E168: 222617 | F168: 570.31 | G168: 13.78 | H168: =F168+G168*Nøgletal!$C$9 -> 1567.293 | I168: =H168/Nøgletal!$C$9 -> 21.66265377
A169: V005 | B169: Andelsselskabet Haarlev Vandværk | C169: Region Sjælland | D169: Stevns Kommune | E169: 204460 | F169: 602.7 | G169: 14.81 | H169: =F169+G169*Nøgletal!$C$9 -> 1674.2035 | I169: =H169/Nøgletal!$C$9 -> 23.14033863
A170: V009 | B170: Andelsselskabet Strandhuse Nr. Bjert Vandværk | C170: Region Syddanmark | D170: Kolding Kommune | E170: 238280 | F170: 437.5 | G170: 14.54 | H170: =F170+G170*Nøgletal!$C$9 -> 1489.469 | I170: =H170/Nøgletal!$C$9 -> 20.58699378
A171: V011 | B171: Andelsselskabet Vrå Vandværk | C171: Region Nordjylland | D171: Hjørring Kommune | E171: 308789 | F171: 791.25 | G171: 13.29 | H171: =F171+G171*Nøgletal!$C$9 -> 1752.7815 | I171: =H171/Nøgletal!$C$9 -> 24.22642018
A172: V029 | B172: Bramdrupdam Vandværk I/S (SKØN) | C172: Region Syddanmark | D172: Kolding Kommune | E172: 322058 | F172: 500 | G172: 14.23 | H172: =F172+G172*Nøgletal!$C$9 -> 1529.5405 | I172: =H172/Nøgletal!$C$9 -> 21.14085003
A173: V031 | B173: Branderup Vandværk | C173: Region Syddanmark | D173: Tønder Kommune | E173: 366927 | F173: 531.25 | G173: 9.23 | H173: =F173+G173*Nøgletal!$C$9 -> 1199.0405 | I173: =H173/Nøgletal!$C$9 -> 16.57277816
A174: V032 | B174: Bredebro Andelsvandværk | C174: Region Syddanmark | D174: Tønder Kommune | E174: 204803 | F174: 437.5 | G174: 10.6 | H174: =F174+G174*Nøgletal!$C$9 -> 1204.41 | I174: =H174/Nøgletal!$C$9 -> 16.64699378
A175: V033 | B175: Broager Vandværk a.m.b.a. (SKØN) | C175: Region Syddanmark | D175: Sønderborg Kommune | E175: 200633 | F175: 477.81 | G175: 14.1 | H175: =F175+G175*Nøgletal!$C$9 -> 1497.945 | I175: =H175/Nøgletal!$C$9 -> 20.70414651
A176: V034 | B176: Brædstrup Vandværk a.m.b.a. | C176: Region Midtjylland | D176: Horsens Kommune | E176: 270906 | F176: 218.75 | G176: 9.85 | H176: =F176+G176*Nøgletal!$C$9 -> 931.3975 | I176: =H176/Nøgletal!$C$9 -> 12.87349689
A177: V036 | B177: Brørup Vandværk A.m.b.a. | C177: Region Syddanmark | D177: Vejen Kommune | E177: 495618 | F177: 625 | G177: 11.38 | H177: =F177+G177*Nøgletal!$C$9 -> 1448.343 | I177: =H177/Nøgletal!$C$9 -> 20.01856254
A178: V042 | B178: Egå vandværk a.m.b.a | C178: Region Midtjylland | D178: Aarhus Kommune | E178: 207815 | F178: 643.45 | G178: 18.95 | H178: =F178+G178*Nøgletal!$C$9 -> 2014.4825 | I178: =H178/Nøgletal!$C$9 -> 27.84357291
A179: V046 | B179: Farsø Vandværk I/S | C179: Region Nordjylland | D179: Vesthimmerlands Kommune | E179: 197564 | F179: 250 | G179: 9.53 | H179: =F179+G179*Nøgletal!$C$9 -> 939.4955 | I179: =H179/Nøgletal!$C$9 -> 12.98542502
A180: V048 | B180: Faxe Vandværk s.m.b.a. | C180: Region Sjælland | D180: Faxe Kommune | E180: 257848 | F180: 625 | G180: 16.41 | H180: =F180+G180*Nøgletal!$C$9 -> 1812.2635 | I180: =H180/Nøgletal!$C$9 -> 25.04856254
A181: V064 | B181: Gl. Hørning Vandværk | C181: Region Midtjylland | D181: Skanderborg Kommune | E181: 253553 | F181: 250 | G181: 12.66 | H181: =F181+G181*Nøgletal!$C$9 -> 1165.951 | I181: =H181/Nøgletal!$C$9 -> 16.11542502
A182: V066 | B182: Glamsbjerg vandværk | C182: Region Syddanmark | D182: Assens Kommune | E182: 221301 | F182: 95 | G182: 8.29 | H182: =F182+G182*Nøgletal!$C$9 -> 694.7815 | I182: =H182/Nøgletal!$C$9 -> 9.603061507
A183: V075 | B183: Halsnæs Vandforsyning a.m.b.a. | C183: Region Hovedstaden | D183: Halsnæs Kommune | E183: 456661 | F183: 762.5 | G183: 23.41 | H183: =F183+G183*Nøgletal!$C$9 -> 2456.2135 | I183: =H183/Nøgletal!$C$9 -> 33.9490463
A184: V076 | B184: Hammel Vandværk a.m.b.a. | C184: Region Midtjylland | D184: Favrskov Kommune | E184: 420626 | F184: 500 | G184: 12.05 | H184: =F184+G184*Nøgletal!$C$9 -> 1371.8175 | I184: =H184/Nøgletal!$C$9 -> 18.96085003
A185: V077 | B185: Hasselager-Kolt Vandværk A.M.B.A. | C185: Region Midtjylland | D185: Aarhus Kommune | E185: 358327 | F185: 512.5 | G185: 15.16 | H185: =F185+G185*Nøgletal!$C$9 -> 1609.326 | I185: =H185/Nøgletal!$C$9 -> 22.24362129
A186: V082 | B186: Hinnerup Vandværk A.m.b.a. | C186: Region Midtjylland | D186: Favrskov Kommune | E186: 320020 | G186: 13.65 | H186: =F186+G186*Nøgletal!$C$9 -> 987.5775 | I186: =H186/Nøgletal!$C$9 -> 13.65
A187: V083 | B187: Hjallerup Vandforsyning | C187: Region Nordjylland | D187: Brønderslev Kommune | E187: 267801 | F187: 781.25 | G187: 9.54 | H187: =F187+G187*Nøgletal!$C$9 -> 1471.469 | I187: =H187/Nøgletal!$C$9 -> 20.33820318
A188: V084 | B188: Hjerting Vandværk a.m.b.a. | C188: Region Syddanmark | D188: Esbjerg Kommune | E188: 328022 | F188: 350 | G188: 11.41 | H188: =F188+G188*Nøgletal!$C$9 -> 1175.5135 | I188: =H188/Nøgletal!$C$9 -> 16.24759502
A189: V095 | B189: Hornbæk Vandværk a.m.b.a. | C189: Region Hovedstaden | D189: Helsingør Kommune | E189: 202523 | F189: 562.5 | G189: 14.41 | H189: =F189+G189*Nøgletal!$C$9 -> 1605.0635 | I189: =H189/Nøgletal!$C$9 -> 22.18470629
A190: V099 | B190: Hurup Vandværk | C190: Region Nordjylland | D190: Thisted Kommune | E190: 339375 | F190: 625 | G190: 11.42 | H190: =F190+G190*Nøgletal!$C$9 -> 1451.237 | I190: =H190/Nøgletal!$C$9 -> 20.05856254
A191: V100 | B191: Hæstrup Vandværk I/S | C191: Region Nordjylland | D191: Hjørring Kommune | E191: 241920 | F191: 725 | G191: 10.79 | H191: =F191+G191*Nøgletal!$C$9 -> 1505.6565 | I191: =H191/Nøgletal!$C$9 -> 20.81073255
A192: V105 | B192: I/S Ørslev Vandværk | C192: Region Sjælland | D192: Vordingborg Kommune | E192: 308427 | F192: 375 | G192: 12.04 | H192: =F192+G192*Nøgletal!$C$9 -> 1246.094 | I192: =H192/Nøgletal!$C$9 -> 17.22313753
A193: V109 | B193: Juelsminde Vand | C193: Region Midtjylland | D193: Hedensted Kommune | E193: 214686 | F193: 500 | G193: 11.64 | H193: =F193+G193*Nøgletal!$C$9 -> 1342.154 | I193: =H193/Nøgletal!$C$9 -> 18.55085003
A194: V121 | B194: Lille Næstved Vandværk | C194: Region Sjælland | D194: Næstved Kommune | E194: 216163 | F194: 312.5 | G194: 20.95 | H194: =F194+G194*Nøgletal!$C$9 -> 1828.2325 | I194: =H194/Nøgletal!$C$9 -> 25.26928127
A195: V129 | B195: Løgten Skødstrup Vandværk A.m.b.a. | C195: Region Midtjylland | D195: Aarhus Kommune | E195: 328720 | F195: 518.75 | G195: 11.29 | H195: =F195+G195*Nøgletal!$C$9 -> 1335.5815 | I195: =H195/Nøgletal!$C$9 -> 18.46000691
A196: V130 | B196: Løkken Vandværk | C196: Region Nordjylland | D196: Hjørring Kommune | E196: 247015 | F196: 687.5 | G196: 10.78 | H196: =F196+G196*Nøgletal!$C$9 -> 1467.433 | I196: =H196/Nøgletal!$C$9 -> 20.2824188
A197: V139 | B197: Nr. Uttrup Vandværk a.m.b.a | C197: Region Nordjylland | D197: Aalborg Kommune | E197: 216450 | F197: 640 | G197: 13.41 | H197: =F197+G197*Nøgletal!$C$9 -> 1610.2135 | I197: =H197/Nøgletal!$C$9 -> 22.25588804
A198: V143 | B198: Nørre Alslev Vandværk | C198: Region Sjælland | D198: Guldborgsund Kommune | E198: 203337 | F198: 787.5 | G198: 13.29 | H198: =F198+G198*Nøgletal!$C$9 -> 1749.0315 | I198: =H198/Nøgletal!$C$9 -> 24.1745888
A199: V147 | B199: Outrup Vandværk I/S | C199: Region Syddanmark | D199: Varde Kommune | E199: 304973 | F199: 1100 | G199: 10.93 | H199: =F199+G199*Nøgletal!$C$9 -> 1890.7855 | I199: =H199/Nøgletal!$C$9 -> 26.13387008
A200: V148 | B200: Oksby Og Ho Vandværk a.m.b.a. | C200: Region Syddanmark | D200: Varde Kommune | E200: 270147 | F200: 750 | G200: 12.66 | H200: =F200+G200*Nøgletal!$C$9 -> 1665.951 | I200: =H200/Nøgletal!$C$9 -> 23.02627505
... 18 more rows

Sheet S 2013
A1: Forside | F1: Takstblad | H1: Beregning | J1: Vægte | M1: Land | O1: Region | Q1: Kommune
A2: ID | B2: Selskabsnavn | C2: Region | D2: Kommune | E2: Debiteret vandmængde | F2: Fast Årligt Bidrag | G2: Kubikmeterpris | H2: Samlede udgifter for en husholdning | I2: Takst inkl. Fast bidrag | J2: Land | K2: Region | L2: Kommune | M2: Vægtet takst | N2: Vægtet årlige udgifter | O2: Vægtet takst | P2: Vægtet årlige udgifter | Q2: Vægtet takst | R2: Vægtet årlige udgifter
A3: S001 | B3: Afløb Ballerup A/S | C3: Region Hovedstaden | D3: Ballerup Kommune | E3: 2733547 | F3: 0 | G3: 33.25 | H3: =F3+G3*Nøgletal!$C$9 -> 2405.6375 | I3: =H3/Nøgletal!$C$9 -> 33.25 | J3: =IF(H3>0,E3/(SUMIFS($E$3:$E$99,$H$3:$H$99,">0")),"-") -> 0.01035261365 | K3: =IF(H3>0,E3/(SUMIFS($E$3:$E$99,$C$3:$C$99,C3,$H$3:$H$99,">0")),"-") -> 0.031296037 | L3: =IF(H3>0,E3/(SUMIFS($E$3:$E$99,$D$3:$D$99,D3,$H$3:$H$99,">0")),"-") -> 1 | M3: =IF(H3>0,J3*I3,"-") -> 0.344224404 | N3: =IF(H3>0,J3*H3,"-") -> 24.90463563 | O3: =IF(H3>0,K3*I3,"-") -> 1.04059323 | P3: =IF(H3>0,K3*H3,"-") -> 75.2869202 | Q3: =IF(H3>0,L3*I3,"-") -> 33.25 | R3: =IF(H3>0,L3*H3,"-") -> 2405.6375
A4: S002 | B4: Allerød Spildevand A/S | C4: Region Hovedstaden | D4: Allerød Kommune | E4: 1118051 | F4: 0 | G4: 45.37 | H4: =F4+G4*Nøgletal!$C$9 -> 3282.5195 | I4: =H4/Nøgletal!$C$9 -> 45.37 | J4: =IF(H4>0,E4/(SUMIFS($E$3:$E$99,$H$3:$H$99,">0")),"-") -> 0.004234333651 | K4: =IF(H4>0,E4/(SUMIFS($E$3:$E$99,$C$3:$C$99,C4,$H$3:$H$99,">0")),"-") -> 0.01280042577 | L4: =IF(H4>0,E4/(SUMIFS($E$3:$E$99,$D$3:$D$99,D4,$H$3:$H$99,">0")),"-") -> 1 | M4: =IF(H4>0,J4*I4,"-") -> 0.1921117177 | N4: =IF(H4>0,J4*H4,"-") -> 13.89928278 | O4: =IF(H4>0,K4*I4,"-") -> 0.5807553172 | P4: =IF(H4>0,K4*H4,"-") -> 42.0176472 | Q4: =IF(H4>0,L4*I4,"-") -> 45.37 | R4: =IF(H4>0,L4*H4,"-") -> 3282.5195
A5: S003 | B5: AquaDjurs A/S | C5: Region Midtjylland | D5: Norddjurs Kommune | E5: 1695381 | F5: 708.16 | G5: 37.5 | H5: =F5+G5*Nøgletal!$C$9 -> 3421.285 | I5: =H5/Nøgletal!$C$9 -> 47.28797512 | J5: 0.006420824112 | K5: 0.02988749174 | L5: 1 | M5: 0.3036277709 | N5: 21.96746922 | O5: 1.413318966 | P5: 102.2536272 | Q5: 47.28797512 | R5: 3421.285
A6: S004 | B6: Arwos Spildevand A/S | C6: Region Syddanmark | D6: Aabenraa Kommune | E6: 2499826 | F6: 312.5 | G6: 38.75 | H6: =F6+G6*Nøgletal!$C$9 -> 3116.0625 | I6: =H6/Nøgletal!$C$9 -> 43.06928127 | J6: 0.009467454841 | K6: 0.04322877289 | L6: 1 | M6: 0.4077564755 | N6: 29.501181 | O6: 1.861832179 | P6: 134.7035581 | Q6: 43.06928127 | R6: 3116.0625
A7: S006 | B7: Assens Spildevand A/S | C7: Region Syddanmark | D7: Assens Kommune | E7: 1682064 | F7: 685 | G7: 45.5 | H7: =F7+G7*Nøgletal!$C$9 -> 3976.925 | I7: =H7/Nøgletal!$C$9 -> 54.96786455 | J7: 0.006370389363 | K7: 0.02908744954 | L7: 1 | M7: 0.3501666996 | N7: 25.33456072 | O7: 1.598874986 | P7: 115.6786053 | Q7: 54.96786455 | R7: 3976.925
A8: S007 | B8: Billund Spildevand A/S | C8: Region Syddanmark | D8: Billund Kommune | E8: 1288129 | F8: 708.16 | G8: 41.2 | H8: =F8+G8*Nøgletal!$C$9 -> 3688.98 | I8: =H8/Nøgletal!$C$9 -> 50.98797512 | J8: 0.004878460796 | K8: 0.02227524475 | L8: 1 | M8: 0.2487428377 | N8: 17.99654431 | O8: 1.135769625 | P8: 82.17293239 | Q8: 50.98797512 | R8: 3688.98
